Workbook

Sheet TITLE PAGE
C3: Water Resources Planning Tables 2024 | R3: Company tables version tracker
R5: Version | S5: Updates made | T5: Date (DD/MM/YY)
R6: 2 | S6: NW Changes: 1. Started Measured properties forumla one year later as our base year is 2020/21. 34BL &34FP (WRZ tables) | T6: 44834
S7: 2. DI formula incorrect as included non-potable water (which is prior to DI meter). Therefore have minused 12.1BL/FP formula. WRZ sheets.
S8: 3. Table 8f missing from the Ofwat Core section of '8. Business Plan Links'. Added to the end.
H9: Template Tables information | S9: 4. Table 2e: Formula in row 4 FPW is incorrect had $1146 and should be $146
S10: 5. Values will show to required decimal places. However full decimal places will still show in the formula bar. This is to ensure calculated cells such as DI, PCC, Properties etc add up to the correct value.
D11: Planning tables template version | H11: v1 | I11: All queries on the content of this workbook should be sent to: | S11: 6. Sheet 8, column 2024/25 greyed out as not included in AMP 8
D12: Version date | H12: 2022-03-18 | I12: water-company-plan@environment-agency.gov.uk | S12: 7. Sheet 4, Cell U5, Annual Savings not AMP Total
I13: wrepp@cyfoethnaturiolcymru.gov.uk (Welsh areas only) | S13: 8. Sheet 4, Cell AH5, AMP Total not Annual Cost
H16: Water company information
C18: Company / Regional Group: | D18: Northumbrian Water | H18: Yorkshire Water | J18: Hartlepool | M18: Water Resources North
C19: Base Year: | D19: 2020/21 | H19: 2019/20 | J19: 2019/20 | M19: 2019/20
C20: Responsible Officer: | D20: William Robinson | H20: Granville Davies | J20: Geoff Darch | M20: Granville Davies
C21: Version:
C23: Signed:
D25: [Digital signature is acceptable] | H25: [Digital signature is acceptable] | J25: [Digital signature is acceptable] | M25: [Digital signature is acceptable]
C27: Dated: | D27: 44883 | H27: 44883 | J27: 44883 | M27: 44883
C32: Key to cells | H32: Workbook contents
C34: Clear cells - indicate an input is required | H34: Worksheet | I34: Content
H35: 1.TITLE PAGE | I35: Baseline licences and existing transfers
C36: Yellow shaded cells - indicates a formula | H36: 2. WRZs | I36: DYAA & DYCP Baseline Water Balance, Final Plan Water Balance and preferred options
H37: 3. Options Appraisal Summary | I37: Appraisal of all options with key cost, benefit and natural capital metrics
C38: Blue shaded cells - indicate base year data | H38: 4. Options Benefits | I38: Benefits of your poptions across planning period
H39: 5. Larger option cost profile | I39: Larger option cost profile; Option unit cost profiles; worked example
C40: Light orange shaded cells - indicate preceding years | H40: 6. Adaptive Programmes | I40: Adaptive plan information
H41: 7. Best Value Planning metrics | I41: Best Value Planning Metrics and regional plan costs
C42: Dark grey shaded cells - indicate that no data entry is required | H42: 8. Regional plan strategic options | I42: Regional plan supply-side strategic options
H43: 9. Environmental destination | I43: Proposed abstraction reduction through environmental destination
C44: Green shaded cells - indicates annualised not cumulative figures | H44: 9.Non-PWS regional demands | I44: Abstraction and demand from non-public water supply sources
C48: Key to scenarios
C50: Normal Year Annual Average Final Plan - NYAA
C52: Dry Year Annual Average Baseline - DYAA
C54: Dry Year Annual Average Final Plan - DYAA
C56: Dry Year Critical Period Baseline - DYCP
C58: Dry Year Critical Period Final Plan - DYCP

Sheet HPL
B2: Back to title page
B3: Table 3a: DYAA - Baseline
B4: Table 3b: DYAA - Final plan Options
B5: Table 3c: DYAA - Final plan
B6: Table 3d: DYCP - Baseline
B7: Table 3e: DYCP - Final plan Options
B13: Water Company | C13: Anglian Water | D13: Version | E13: V1.3
B14: WRZ | C14: AWSHPL | D14: Planning Scenario | E14: DYAA
B22: Table 3a: DYAA - Baseline | C22: Back to top of sheet
B23: WRMP24 reference | C23: Component | D23: Derivation | E23: Unit | F23: Decimal places | G23: 2019-20 | H23: 2020-21 | I23: 2021-22 | J23: 2022-23 | K23: 2023-24 | L23: 2024-25 | M23: 2025-26 | N23: 2026-27 | O23: 2027-28 | P23: 2028-29 | Q23: 2029-30 | R23: 2030-31 | S23: 2031-32 | T23: 2032-33 | U23: 2033-34 | V23: 2034-35 | W23: 2035-36 | X23: 2036-37 | Y23: 2037-38 | Z23: 2038-39 | AA23: 2039-40 | AB23: 2040-41 | AC23: 2041-42 | AD23: 2042-43 | AE23: 2043-44 | AF23: 2044-45 | AG23: 2045-46 | AH23: 2046-47 | AI23: 2047-48 | AJ23: 2048-49 | AK23: 2049-50 | AL23: 2050-51 | AM23: 2051-52 | AN23: 2052-53 | AO23: 2053-54 | AP23: 2054-55 | AQ23: 2055-56 | AR23: 2056-57 | AS23: 2057-58 | AT23: 2058-59 | AU23: 2059-60 | AV23: 2060-61 | AW23: 2061-62 | AX23: 2062-63 | AY23: 2063-64 | AZ23: 2064-65 | BA23: 2065-66 | BB23: 2066-67 | BC23: 2067-68 | BD23: 2068-69 | BE23: 2069-70 | BF23: 2070-71 | BG23: 2071-72 | BH23: 2072-73 | BI23: 2073-74 | BJ23: 2074-75 | BK23: 2075-76 | BL23: 2076-77 | BM23: 2077-78 | BN23: 2078-79 | BO23: 2079-80 | BP23: 2080-81 | BQ23: 2081-82 | BR23: 2082-83 | BS23: 2083-84 | BT23: 2084-85 | BU23: 2085-86 | BV23: 2086-87 | BW23: 2087-88 | BX23: 2088-89 | BY23: 2089-90 | BZ23: 2090-91 | CA23: 2091-92 | CB23: 2092-93 | CC23: 2093-94 | CD23: 2094-95 | CE23: 2095-96 | CF23: 2096-97 | CG23: 2097-98 | CH23: 2098-99 | CI23: 2099-100
B24: 1BL | C24: Raw water abstracted | D24: Input | E24: Ml/d | F24: 2 | M24: 0 | N24: 0 | O24: 0 | P24: 0 | Q24: 0 | R24: 0 | S24: 0 | T24: 0 | U24: 0 | V24: 0 | W24: 0 | X24: 0 | Y24: 0 | Z24: 0 | AA24: 0 | AB24: 0 | AC24: 0 | AD24: 0 | AE24: 0 | AF24: 0 | AG24: 0 | AH24: 0 | AI24: 0 | AJ24: 0 | AK24: 0
B25: 1.1BL | C25: Non-potable water supplies (if applicable) | D25: Input | E25: Ml/d | F25: 2 | M25: 0 | N25: 0 | O25: 0 | P25: 0 | Q25: 0 | R25: 0 | S25: 0 | T25: 0 | U25: 0 | V25: 0 | W25: 0 | X25: 0 | Y25: 0 | Z25: 0 | AA25: 0 | AB25: 0 | AC25: 0 | AD25: 0 | AE25: 0 | AF25: 0 | AG25: 0 | AH25: 0 | AI25: 0 | AJ25: 0 | AK25: 0
B26: 2BL | C26: Raw water imported | D26: Input | E26: Ml/d | F26: 2 | M26: 0 | N26: 0 | O26: 0 | P26: 0 | Q26: 0 | R26: 0 | S26: 0 | T26: 0 | U26: 0 | V26: 0 | W26: 0 | X26: 0 | Y26: 0 | Z26: 0 | AA26: 0 | AB26: 0 | AC26: 0 | AD26: 0 | AE26: 0 | AF26: 0 | AG26: 0 | AH26: 0 | AI26: 0 | AJ26: 0 | AK26: 0
B27: 3BL | C27: Potable water imported | D27: Input | E27: Ml/d | F27: 2 | M27: 0 | N27: 0 | O27: 0 | P27: 0 | Q27: 0 | R27: 0 | S27: 0 | T27: 0 | U27: 0 | V27: 0 | W27: 0 | X27: 0 | Y27: 0 | Z27: 0 | AA27: 0 | AB27: 0 | AC27: 0 | AD27: 0 | AE27: 0 | AF27: 0 | AG27: 0 | AH27: 0 | AI27: 0 | AJ27: 0 | AK27: 0
B28: 4BL | C28: Raw water exported enter as -ve | D28: Input | E28: Ml/d | F28: 2 | M28: 0 | N28: 0 | O28: 0 | P28: 0 | Q28: 0 | R28: 0 | S28: 0 | T28: 0 | U28: 0 | V28: 0 | W28: 0 | X28: 0 | Y28: 0 | Z28: 0 | AA28: 0 | AB28: 0 | AC28: 0 | AD28: 0 | AE28: 0 | AF28: 0 | AG28: 0 | AH28: 0 | AI28: 0 | AJ28: 0 | AK28: 0
B29: 5BL | C29: Potable water exported enter as -ve | D29: Input | E29: Ml/d | F29: 2 | M29: 0 | N29: 0 | O29: 0 | P29: 0 | Q29: 0 | R29: 0 | S29: 0 | T29: 0 | U29: 0 | V29: 0 | W29: 0 | X29: 0 | Y29: 0 | Z29: 0 | AA29: 0 | AB29: 0 | AC29: 0 | AD29: 0 | AE29: 0 | AF29: 0 | AG29: 0 | AH29: 0 | AI29: 0 | AJ29: 0 | AK29: 0
B30: 6BL | C30: Deployable Output before forecast changes | D30: Input | E30: Ml/d | F30: 2 | M30: 40.22 | N30: 40.22 | O30: 40.22 | P30: 40.22 | Q30: 40.22 | R30: 40.22 | S30: 40.22 | T30: 40.22 | U30: 40.22 | V30: 40.22 | W30: 40.22 | X30: 40.22 | Y30: 40.22 | Z30: 40.22 | AA30: 40.22 | AB30: 40.22 | AC30: 40.22 | AD30: 40.22 | AE30: 40.22 | AF30: 40.22 | AG30: 40.22 | AH30: 40.22 | AI30: 40.22 | AJ30: 40.22 | AK30: 40.22
B31: 6.1BL | C31: Deployable Output post forecast changes | D31: 6BL + 7BL | E31: Ml/d | F31: 2 | G31: =G30+G32 -> 0 | H31: =H30+H32 -> 0 | I31: 0 | J31: 0 | K31: 0 | L31: 0 | M31: 40.22 | N31: 40.22 | O31: 40.22 | P31: 40.22 | Q31: 40.22 | R31: 40.22 | S31: 40.22 | T31: 40.22 | U31: 40.22 | V31: 40.22 | W31: 32.82 | X31: 32.82 | Y31: 32.82 | Z31: 32.82 | AA31: 32.82 | AB31: 32.82 | AC31: 32.82 | AD31: 32.82 | AE31: 32.82 | AF31: 32.82 | AG31: 32.82 | AH31: 32.82 | AI31: 32.82 | AJ31: 32.82 | AK31: 32.82
B32: 7BL | C32: Baseline forecast changes to Deployable Output | D32: sum (7.1BL:7.6BL) | E32: Ml/d | F32: 2 | G32: =SUM(G33:G38) -> 0 | H32: =SUM(H33:H38) -> 0 | I32: 0 | J32: 0 | K32: 0 | L32: 0 | M32: 0 | N32: 0 | O32: 0 | P32: 0 | Q32: 0 | R32: 0 | S32: 0 | T32: 0 | U32: 0 | V32: 0 | W32: -7.4 | X32: -7.4 | Y32: -7.4 | Z32: -7.4 | AA32: -7.4 | AB32: -7.4 | AC32: -7.4 | AD32: -7.4 | AE32: -7.4 | AF32: -7.4 | AG32: -7.4 | AH32: -7.4 | AI32: -7.4 | AJ32: -7.4 | AK32: -7.4
B33: 7.1BL | C33: Change in DO due to climate change | D33: Input | E33: Ml/d | F33: 2 | M33: 0 | N33: 0 | O33: 0 | P33: 0 | Q33: 0 | R33: 0 | S33: 0 | T33: 0 | U33: 0 | V33: 0 | W33: 0 | X33: 0 | Y33: 0 | Z33: 0 | AA33: 0 | AB33: 0 | AC33: 0 | AD33: 0 | AE33: 0 | AF33: 0 | AG33: 0 | AH33: 0 | AI33: 0 | AJ33: 0 | AK33: 0
B34: 7.2BL | C34: Total confirmed DO reductions to restore sustainable abstraction enter as -ve | D34: Input | E34: Ml/d | F34: 2 | M34: 0 | N34: 0 | O34: 0 | P34: 0 | Q34: 0 | R34: 0 | S34: 0 | T34: 0 | U34: 0 | V34: 0 | W34: -7.4 | X34: -7.4 | Y34: -7.4 | Z34: -7.4 | AA34: -7.4 | AB34: -7.4 | AC34: -7.4 | AD34: -7.4 | AE34: -7.4 | AF34: -7.4 | AG34: -7.4 | AH34: -7.4 | AI34: -7.4 | AJ34: -7.4 | AK34: -7.4
B35: 7.3BL | C35: Total additional DO reductions for Environmental Destination (excl. any confirmed reductions) enter as -ve | D35: Input | E35: Ml/d | F35: 2 | M35: 0 | N35: 0 | O35: 0 | P35: 0 | Q35: 0 | R35: 0 | S35: 0 | T35: 0 | U35: 0 | V35: 0 | W35: 0 | X35: 0 | Y35: 0 | Z35: 0 | AA35: 0 | AB35: 0 | AC35: 0 | AD35: 0 | AE35: 0 | AF35: 0 | AG35: 0 | AH35: 0 | AI35: 0 | AJ35: 0 | AK35: 0
B36: 7.4BL | C36: Change in DO from prolonged Outage reduction enter as -ve | D36: Input | E36: Ml/d | F36: 2 | M36: 0 | N36: 0 | O36: 0 | P36: 0 | Q36: 0 | R36: 0 | S36: 0 | T36: 0 | U36: 0 | V36: 0 | W36: 0 | X36: 0 | Y36: 0 | Z36: 0 | AA36: 0 | AB36: 0 | AC36: 0 | AD36: 0 | AE36: 0 | AF36: 0 | AG36: 0 | AH36: 0 | AI36: 0 | AJ36: 0 | AK36: 0
B37: 7.5BL | C37: Change in DO from drought measures | D37: Zero for baseline | E37: Ml/d | F37: 2 | G37: 0 | H37: 0 | I37: 0 | J37: 0 | K37: 0 | L37: 0 | M37: 0 | N37: 0 | O37: 0 | P37: 0 | Q37: 0 | R37: 0 | S37: 0 | T37: 0 | U37: 0 | V37: 0 | W37: 0 | X37: 0 | Y37: 0 | Z37: 0 | AA37: 0 | AB37: 0 | AC37: 0 | AD37: 0 | AE37: 0 | AF37: 0 | AG37: 0 | AH37: 0 | AI37: 0 | AJ37: 0 | AK37: 0
B38: 7.6BL | C38: Total other changes to DO (e.g. nitrates/operational decline) | D38: Input | E38: Ml/d | F38: 2 | M38: 0 | N38: 0 | O38: 0 | P38: 0 | Q38: 0 | R38: 0 | S38: 0 | T38: 0 | U38: 0 | V38: 0 | W38: 0 | X38: 0 | Y38: 0 | Z38: 0 | AA38: 0 | AB38: 0 | AC38: 0 | AD38: 0 | AE38: 0 | AF38: 0 | AG38: 0 | AH38: 0 | AI38: 0 | AJ38: 0 | AK38: 0
B39: 8BL | C39: Raw water losses, treatment works losses and operational use | D39: Input | E39: Ml/d | F39: 2 | M39: 1.92 | N39: 1.92 | O39: 1.92 | P39: 1.92 | Q39: 1.92 | R39: 1.92 | S39: 1.92 | T39: 1.92 | U39: 1.92 | V39: 1.92 | W39: 1.92 | X39: 1.92 | Y39: 1.92 | Z39: 1.92 | AA39: 1.92 | AB39: 1.92 | AC39: 1.92 | AD39: 1.92 | AE39: 1.92 | AF39: 1.92 | AG39: 1.92 | AH39: 1.92 | AI39: 1.92 | AJ39: 1.92 | AK39: 1.92
B40: 9BL | C40: Total Outage Allowance | D40: Input | E40: Ml/d | F40: 2 | M40: 0.7662180501 | N40: 0.7662180501 | O40: 0.7662180501 | P40: 0.7662180501 | Q40: 0.7662180501 | R40: 0.7662180501 | S40: 0.7662180501 | T40: 0.7662180501 | U40: 0.7662180501 | V40: 0.7662180501 | W40: 0.6181759203 | X40: 0.6181759203 | Y40: 0.6181759203 | Z40: 0.6181759203 | AA40: 0.6181759203 | AB40: 0.6181759203 | AC40: 0.6181759203 | AD40: 0.6181759203 | AE40: 0.6181759203 | AF40: 0.6181759203 | AG40: 0.6181759203 | AH40: 0.6181759203 | AI40: 0.6181759203 | AJ40: 0.6181759203 | AK40: 0.6181759203
B41: 10BL | C41: Water Available For Use (own sources) | D41: (6BL + 7BL) - (8BL + 9BL) | E41: Ml/d | F41: 2 | G41: =(G30+G32)-(G39+G40) -> 0 | H41: =(H30+H32)-(H39+H40) -> 0 | I41: 0 | J41: 0 | K41: 0 | L41: 0 | M41: 37.53378195 | N41: 37.53378195 | O41: 37.53378195 | P41: 37.53378195 | Q41: 37.53378195 | R41: 37.53378195 | S41: 37.53378195 | T41: 37.53378195 | U41: 37.53378195 | V41: 37.53378195 | W41: 30.28182408 | X41: 30.28182408 | Y41: 30.28182408 | Z41: 30.28182408 | AA41: 30.28182408 | AB41: 30.28182408 | AC41: 30.28182408 | AD41: 30.28182408 | AE41: 30.28182408 | AF41: 30.28182408 | AG41: 30.28182408 | AH41: 30.28182408 | AI41: 30.28182408 | AJ41: 30.28182408 | AK41: 30.28182408
B42: 11BL | C42: Total Water Available For Use | D42: 10BL + sum (2BL:5BL) | E42: Ml/d | F42: 2 | G42: =G41+SUM(G26:G29) -> 0 | H42: =H41+SUM(H26:H29) -> 0 | I42: 0 | J42: 0 | K42: 0 | L42: 0 | M42: 37.53378195 | N42: 37.53378195 | O42: 37.53378195 | P42: 37.53378195 | Q42: 37.53378195 | R42: 37.53378195 | S42: 37.53378195 | T42: 37.53378195 | U42: 37.53378195 | V42: 37.53378195 | W42: 30.28182408 | X42: 30.28182408 | Y42: 30.28182408 | Z42: 30.28182408 | AA42: 30.28182408 | AB42: 30.28182408 | AC42: 30.28182408 | AD42: 30.28182408 | AE42: 30.28182408 | AF42: 30.28182408 | AG42: 30.28182408 | AH42: 30.28182408 | AI42: 30.28182408 | AJ42: 30.28182408 | AK42: 30.28182408
B43: 12BL | C43: Water delivered measured non-household | D43: Input | E43: Ml/d | F43: 2 | G43: 9.790628199 | H43: 9.791114926 | I43: 9.791646194 | J43: 9.792055164 | K43: 9.792422434 | L43: 9.792842514 | M43: 9.793166748 | N43: 9.793494902 | O43: 9.793818203 | P43: 9.794141227 | Q43: 9.794453963 | R43: 9.794760234 | S43: 9.795067824 | T43: 9.795358622 | U43: 9.795633479 | V43: 9.795902507 | W43: 9.796158331 | X43: 9.796407419 | Y43: 9.796646865 | Z43: 9.796879065 | AA43: 9.797103167 | AB43: 9.797320742 | AC43: 9.797532288 | AD43: 9.797736433 | AE43: 9.797938309 | AF43: 9.798134971 | AG43: 9.798326305 | AH43: 9.798510369 | AI43: 9.798690355 | AJ43: 9.79886648 | AK43: 9.79903527
B44: 12.1BL | C44: Non-potable water consumption (if applicable) | D44: Input | E44: Ml/d | F44: 2 | M44: 0 | N44: 0 | O44: 0 | P44: 0 | Q44: 0 | R44: 0 | S44: 0 | T44: 0 | U44: 0 | V44: 0 | W44: 0 | X44: 0 | Y44: 0 | Z44: 0 | AA44: 0 | AB44: 0 | AC44: 0 | AD44: 0 | AE44: 0 | AF44: 0 | AG44: 0 | AH44: 0 | AI44: 0 | AJ44: 0 | AK44: 0
B45: 13BL | C45: Water delivered unmeasured non-household | D45: Input | E45: Ml/d | F45: 2 | G45: 0.03135429 | H45: 0.031361147 | I45: 0.031368632 | J45: 0.031374393 | K45: 0.031379567 | L45: 0.031385485 | M45: 0.031390052 | N45: 0.031394675 | O45: 0.03139923 | P45: 0.03140378 | Q45: 0.031408186 | R45: 0.031412501 | S45: 0.031416834 | T45: 0.03142093 | U45: 0.031424802 | V45: 0.031428592 | W45: 0.031432196 | X45: 0.031435705 | Y45: 0.031439078 | Z45: 0.03144235 | AA45: 0.031445507 | AB45: 0.031448572 | AC45: 0.031451552 | AD45: 0.031454428 | AE45: 0.031457272 | AF45: 0.031460042 | AG45: 0.031462738 | AH45: 0.031465331 | AI45: 0.031467866 | AJ45: 0.031470347 | AK45: 0.031472725
B46: 14BL | C46: Water delivered measured household | D46: Input | E46: Ml/d | F46: 2 | G46: 4.542423568 | H46: 5.369320697 | I46: 5.359169207 | J46: 5.696223234 | K46: 6.011354036 | L46: 6.316811396 | M46: 6.60216464 | N46: 6.819422025 | O46: 7.022513208 | P46: 7.211202726 | Q46: 7.359678166 | R46: 7.513564847 | S46: 7.663568563 | T46: 7.773343263 | U46: 7.878689473 | V46: 7.975392024 | W46: 8.062216682 | X46: 8.147684896 | Y46: 8.229456875 | Z46: 8.305660296 | AA46: 8.379675948 | AB46: 8.442486676 | AC46: 8.503047269 | AD46: 8.607889054 | AE46: 8.709621541 | AF46: 8.805836838 | AG46: 8.808503282 | AH46: 8.81317407 | AI46: 8.815239471 | AJ46: 8.818115749 | AK46: 8.818165896
B47: 15BL | C47: Water delivered unmeasured household | D47: Input | E47: Ml/d | F47: 2 | G47: 8.581219055 | H47: 9.065054942 | I47: 8.227147947 | J47: 7.959168129 | K47: 7.688257027 | L47: 7.412737824 | M47: 7.102596088 | N47: 6.808261834 | O47: 6.529306694 | P47: 6.264390914 | Q47: 6.010662972 | R47: 5.78299025 | S47: 5.569367877 | T47: 5.368011226 | U47: 5.178010067 | V47: 4.996221833 | W47: 4.821523038 | X47: 4.655313308 | Y47: 4.498104348 | Z47: 4.348405982 | AA47: 4.20711447 | AB47: 4.071833852 | AC47: 3.943954844 | AD47: 3.823230274 | AE47: 3.708514449 | AF47: 3.598555908 | AG47: 3.598912528 | AH47: 3.600337219 | AI47: 3.601297395 | AJ47: 3.602919306 | AK47: 3.604003121
B48: 16BL | C48: Percentage of consumption driven by climate change | D48: Input | E48: % | F48: 1 | G48: 0.008103448 | H48: 0.009827586 | I48: 0.010517241 | J48: 0.013103448 | K48: 0.014827586 | L48: 0.015 | M48: 0.018103448 | N48: 0.019827586 | O48: 0.017413793 | P48: 0.022931034 | Q48: 0.024655172 | R48: 0.023793103 | S48: 0.027931034 | T48: 0.029655172 | U48: 0.03137931 | V48: 0.029827586 | W48: 0.034655172 | X48: 0.03637931 | Y48: 0.030517241 | Z48: 0.039482759 | AA48: 0.041206897 | AB48: 0.03862069 | AC48: 0.04467046 | AD48: 0.044290131 | AE48: 0.045871751 | AF48: 0.047453372 | AG48: 0.027252471 | AH48: 0.029318467 | AI48: 0.027747669 | AJ48: 0.02891367 | AK48: 0.02880675
B49: 17BL | C49: Volume of consumption driven by climate change | D49: 16BL * (12BL + sum(13BL:15BL) - sum (23BL:26BL)) | E49: Ml/d | F49: 2 | G49: =G48*(G43+SUM(G45:G47)-SUM(G55:G58)) -> 0.1761813159 | H49: =H48*(SUM(H43:H47)-SUM(H55:H58)) -> 0.2266107447 | I49: 0.2336629205 | J49: 0.292117731 | K49: 0.3313229288 | L49: 0.3357403224 | M49: 0.4049202362 | N49: 0.4421423108 | O49: 0.3871519142 | P49: 0.5082637302 | Q49: 0.544107492 | R49: 0.5235326649 | S49: 0.6130347949 | T49: 0.6483932103 | U49: 0.683668714 | V49: 0.6475357332 | W49: 0.7495295414 | X49: 0.7841181234 | Y49: 0.6556540013 | Z49: 0.8456068221 | AA49: 0.8799927346 | AB49: 0.8221719071 | AC49: 0.9481839675 | AD49: 0.9396248553 | AE49: 0.9727988161 | AF49: 1.005900766 | AG49: 0.5777421857 | AH49: 0.6216894724 | AI49: 0.5884382637 | AJ49: 0.6132688299 | AK49: 0.6110085521
B50: 18BL | C50: Measured Household - PCC | D50: ((14BL - 25BL) * 1,000,000) / (39BL *1,000) | E50: l/h/d | F50: 1 | G50: =(((G46-G57))*1000000)/((G79)*1000) -> 125.1153676 | H50: =(((H46-H57))*1000000)/((H79)*1000) -> 137.6381567 | I50: 127.6178022 | J50: 127.2524177 | K50: 126.9264296 | L50: 126.631955 | M50: 126.3255719 | N50: 125.3708469 | O50: 124.4545901 | P50: 123.5780714 | Q50: 122.6762779 | R50: 122.1388956 | S50: 121.6328577 | T50: 120.5636121 | U50: 119.539557 | V50: 118.5508945 | W50: 117.5993813 | X50: 116.7509479 | Y50: 115.9186308 | Z50: 115.1180434 | AA50: 114.337977 | AB50: 113.5044167 | AC50: 112.6932474 | AD50: 112.5371567 | AE50: 112.3809674 | AF50: 112.2258958 | AG50: 111.9496281 | AH50: 111.6760979 | AI50: 111.400477 | AJ50: 111.126366 | AK50: 110.851926
B51: 19BL | C51: Unmeasured Household - PCC | D51: ((15BL - 26BL) * 1,000,000) / (40BL *1,000) | E51: l/h/d | F51: 1 | G51: =(((G47-G58))*1000000)/((G80)*1000) -> 141.9123331 | H51: 156.3531963 | I51: 145.5785103 | J51: 145.5975861 | K51: 145.6191747 | L51: 145.6410176 | M51: 145.2235345 | N51: 144.8083916 | O51: 144.3895938 | P51: 143.9785875 | Q51: 143.5698599 | R51: 143.6040196 | S51: 143.6441297 | T51: 143.6867276 | U51: 143.7318155 | V51: 143.7746872 | W51: 143.8245126 | X51: 143.876835 | Y51: 143.9207422 | Z51: 143.9775661 | AA51: 144.0368948 | AB51: 144.0925228 | AC51: 144.1568896 | AD51: 144.2207369 | AE51: 144.2868935 | AF51: 144.3553624 | AG51: 144.3947028 | AH51: 144.4370371 | AI51: 144.4771151 | AJ51: 144.5188887 | AK51: 144.5605199
B52: 20BL | C52: Average Household - PCC | D52: (((14BL - 25BL) + (15BL - 26BL)) * 1,000,000) / ((39BL + 40BL) *1,000) | E52: l/h/d | F52: 1 | G52: =(((G46-G57)+(G47-G58))*1000000)/((G79+G80)*1000) -> 135.3676647 | H52: =(((H46-H57)+(H47-H58))*1000000)/((H79+H80)*1000) -> 148.5744555 | I52: 137.6629672 | J52: 137.0741073 | K52: 136.5118582 | L52: 135.9613655 | M52: 135.1938196 | N52: 134.1116057 | O52: 133.0500757 | P52: 132.017564 | Q52: 130.9888455 | R52: 130.3555653 | S52: 129.7426838 | T52: 128.7668752 | U52: 127.8068488 | V52: 126.8577898 | W52: 125.9264288 | X52: 125.0588936 | Y52: 124.1946455 | Z52: 123.3526099 | AA52: 122.5225869 | AB52: 121.6500388 | AC52: 120.7933306 | AD52: 120.4260201 | AE52: 120.0679465 | AF52: 119.7198621 | AG52: 119.5008483 | AH52: 119.2848073 | AI52: 119.0672821 | AJ52: 118.851617 | AK52: 118.6363815
B53: 21BL | C53: Water taken unbilled | D53: Input | E53: Ml/d | F53: 2 | G53: -0.718472672 | H53: -0.718472672 | I53: -0.718472672 | J53: -0.718472672 | K53: -0.718472672 | L53: -0.718472672 | M53: 0 | N53: 0 | O53: 0 | P53: 0 | Q53: 0 | R53: 0 | S53: 0 | T53: 0 | U53: 0 | V53: 0 | W53: 0 | X53: 0 | Y53: 0 | Z53: 0 | AA53: 0 | AB53: 0 | AC53: 0 | AD53: 0 | AE53: 0 | AF53: 0 | AG53: 0 | AH53: 0 | AI53: 0 | AJ53: 0 | AK53: 0
B54: 22BL | C54: Distribution system operational use | D54: Input | E54: Ml/d | F54: 2 | G54: 1.406565989 | H54: 1.406565989 | I54: 1.406565989 | J54: 1.406565989 | K54: 1.406565989 | L54: 1.406565989 | M54: 0.688093317 | N54: 0.688093317 | O54: 0.688093317 | P54: 0.688093317 | Q54: 0.688093317 | R54: 0.688093317 | S54: 0.688093317 | T54: 0.688093317 | U54: 0.688093317 | V54: 0.688093317 | W54: 0.688093317 | X54: 0.688093317 | Y54: 0.688093317 | Z54: 0.688093317 | AA54: 0.688093317 | AB54: 0.688093317 | AC54: 0.688093317 | AD54: 0.688093317 | AE54: 0.688093317 | AF54: 0.688093317 | AG54: 0.688093317 | AH54: 0.688093317 | AI54: 0.688093317 | AJ54: 0.688093317 | AK54: 0.688093317
B55: 23BL | C55: Measured Non Household - USPL | D55: Input | E55: Ml/d | F55: 2 | G55: 0.033083638 | H55: 0.033570366 | I55: 0.034101634 | J55: 0.034510604 | K55: 0.034877874 | L55: 0.035297954 | M55: 0.035622188 | N55: 0.035950342 | O55: 0.036273643 | P55: 0.036596666 | Q55: 0.036909403 | R55: 0.037215674 | S55: 0.037523263 | T55: 0.037814062 | U55: 0.038088919 | V55: 0.038357947 | W55: 0.038613771 | X55: 0.038862858 | Y55: 0.039102305 | Z55: 0.039334504 | AA55: 0.039558607 | AB55: 0.039776182 | AC55: 0.039987727 | AD55: 0.040191872 | AE55: 0.040393748 | AF55: 0.040590411 | AG55: 0.040781745 | AH55: 0.040965809 | AI55: 0.041145795 | AJ55: 0.041321919 | AK55: 0.04149071
B56: 24BL | C56: Unmeasured Non Household - USPL | D56: Input | E56: Ml/d | F56: 2 | G56: 0.000466066 | H56: 0.000472923 | I56: 0.000480407 | J56: 0.000486168 | K56: 0.000491342 | L56: 0.00049726 | M56: 0.000501828 | N56: 0.000506451 | O56: 0.000511005 | P56: 0.000515556 | Q56: 0.000519961 | R56: 0.000524276 | S56: 0.000528609 | T56: 0.000532706 | U56: 0.000536578 | V56: 0.000540368 | W56: 0.000543972 | X56: 0.000547481 | Y56: 0.000550854 | Z56: 0.000554125 | AA56: 0.000557282 | AB56: 0.000560347 | AC56: 0.000563327 | AD56: 0.000566203 | AE56: 0.000569047 | AF56: 0.000571818 | AG56: 0.000574513 | AH56: 0.000577106 | AI56: 0.000579641 | AJ56: 0.000582123 | AK56: 0.0005845
B57: 25BL | C57: Measured Household - USPL | D57: Input | E57: Ml/d | F57: 2 | G57: 0.237823589 | H57: 0.259673902 | I57: 0.281352273 | J57: 0.302591839 | K57: 0.323202363 | L57: 0.34371754 | M57: 0.364241714 | N57: 0.383195826 | O57: 0.401324904 | P57: 0.418649414 | Q57: 0.434408257 | R57: 0.449514917 | S57: 0.463996439 | T57: 0.477877787 | U57: 0.491182772 | V57: 0.5039311 | W57: 0.516147865 | X57: 0.527854281 | Y57: 0.539067767 | Z57: 0.549808887 | AA57: 0.560098094 | AB57: 0.569950319 | AC57: 0.579382965 | AD57: 0.588412554 | AE57: 0.597053132 | AF57: 0.605319871 | AG57: 0.606383949 | AH57: 0.607399193 | AI57: 0.608366903 | AJ57: 0.609286912 | AK57: 0.610159407
B58: 26BL | C58: Unmeasured Household - USPL | D58: Input | E58: Ml/d | F58: 2 | G58: 0.932726995 | H58: 0.904496857 | I58: 0.876266719 | J58: 0.848036581 | K58: 0.819806443 | L58: 0.791576305 | M58: 0.761928884 | N58: 0.733569258 | O58: 0.706441489 | P58: 0.68049207 | Q58: 0.655669815 | R58: 0.631925764 | S58: 0.609213084 | T58: 0.587486974 | U58: 0.566704582 | V58: 0.546824914 | W58: 0.527808759 | X58: 0.509618609 | Y58: 0.492218585 | Z58: 0.475574365 | AA58: 0.459653121 | AB58: 0.444423447 | AC58: 0.429855305 | AD58: 0.415919959 | AE58: 0.402589923 | AF58: 0.389838904 | AG58: 0.389838904 | AH58: 0.389838904 | AI58: 0.389838904 | AJ58: 0.389838904 | AK58: 0.389838904
B59: 27BL | C59: Void Properties - USPL | D59: Input | E59: Ml/d | F59: 2 | G59: 0.120458424 | H59: 0.122182984 | I59: 0.123858569 | J59: 0.125409165 | K59: 0.126780586 | L59: 0.128124849 | M59: 0.129232112 | N59: 0.130098001 | O59: 0.130925787 | P59: 0.131712748 | Q59: 0.132233911 | R59: 0.132741647 | S59: 0.133236172 | T59: 0.133717437 | U59: 0.134185374 | V59: 0.134639044 | W59: 0.135079328 | X59: 0.135506272 | Y59: 0.135919104 | Z59: 0.136318195 | AA59: 0.136704123 | AB59: 0.137076122 | AC59: 0.137434346 | AD59: 0.13777891 | AE59: 0.138109421 | AF59: 0.138425998 | AG59: 0.138729088 | AH59: 0.139018268 | AI59: 0.139293909 | AJ59: 0.139555963 | AK59: 0.139804483
B60: 28BL | C60: Distribution losses | D60: Input | E60: Ml/d | F60: 2 | G60: 3.309793396 | H60: 3.309793396 | I60: 3.148313476 | J60: 2.986833556 | K60: 2.825353636 | L60: 2.663873716 | M60: 2.663873716 | N60: 2.663873716 | O60: 2.663873716 | P60: 2.663873716 | Q60: 2.663873716 | R60: 2.663873716 | S60: 2.663873716 | T60: 2.663873716 | U60: 2.663873716 | V60: 2.663873716 | W60: 2.663873716 | X60: 2.663873716 | Y60: 2.663873716 | Z60: 2.663873716 | AA60: 2.663873716 | AB60: 2.663873716 | AC60: 2.663873716 | AD60: 2.663873716 | AE60: 2.663873716 | AF60: 2.663873716 | AG60: 2.663873716 | AH60: 2.663873716 | AI60: 2.663873716 | AJ60: 2.663873716 | AK60: 2.663873716
B61: 29BL | C61: Total Leakage | D61: sum (23BL:28BL) | E61: Ml/d | F61: 2 | G61: =SUM(G55:G60) -> 4.634352108 | H61: =SUM(H55:H60) -> 4.630190428 | I61: 4.464373078 | J61: 4.297867913 | K61: 4.130512244 | L61: 3.963087624 | M61: 3.955400442 | N61: 3.947193594 | O61: 3.939350544 | P61: 3.93184017 | Q61: 3.923615063 | R61: 3.915795994 | S61: 3.908371283 | T61: 3.901302682 | U61: 3.894571941 | V61: 3.888167089 | W61: 3.882067411 | X61: 3.876263217 | Y61: 3.870732331 | Z61: 3.865463792 | AA61: 3.860444943 | AB61: 3.855660133 | AC61: 3.851097386 | AD61: 3.846743214 | AE61: 3.842588987 | AF61: 3.838620718 | AG61: 3.840181915 | AH61: 3.841672996 | AI61: 3.843098868 | AJ61: 3.844459537 | AK61: 3.84575172
B62: 30BL | C62: Leakage/property | D62: (29BL * 1,000,000) / (36BL * 1,000) | E62: l/prop/d | F62: 2 | G62: =(G61*1000000)/(G76*1000) -> 97.08092482 | H62: =(H61*1000000)/(H76*1000) -> 95.62146379 | I62: 90.93322934 | J62: 86.46328898 | K62: 82.19968509 | L62: 78.03062931 | M62: 77.20835685 | N62: 76.51861735 | O62: 75.86632127 | P62: 75.25018991 | Q62: 74.76663911 | R62: 74.30296961 | S62: 73.8570818 | T62: 73.43110148 | U62: 73.02417162 | V62: 72.63442605 | W62: 72.26198345 | X62: 71.90523418 | Y62: 71.56434902 | Z62: 71.23827657 | AA62: 70.92640386 | AB62: 70.62831713 | AC62: 70.34342623 | AD62: 70.07145208 | AE62: 69.81140433 | AF62: 69.56327342 | AG62: 69.42330853 | AH62: 69.29018597 | AI62: 69.16323676 | AJ62: 69.04237074 | AK62: 68.92797252
B63: 31BL | C63: Measured Non Household - properties | D63: Input | E63: 000's | F63: 2 | G63: 4.157838058 | H63: 4.219008245 | I63: 4.285776226 | J63: 4.337174204 | K63: 4.383331429 | L63: 4.436125654 | M63: 4.476874234 | N63: 4.51811554 | O63: 4.558746826 | P63: 4.59934335 | Q63: 4.63864702 | R63: 4.677138089 | S63: 4.715794868 | T63: 4.752341398 | U63: 4.786884516 | V63: 4.820695026 | W63: 4.852846081 | X63: 4.884150577 | Y63: 4.914243352 | Z63: 4.943425421 | AA63: 4.971589885 | AB63: 4.998933903 | AC63: 5.025520254 | AD63: 5.051176489 | AE63: 5.076547549 | AF63: 5.101263471 | AG63: 5.125309618 | AH63: 5.148442191 | AI63: 5.171062192 | AJ63: 5.193196893 | AK63: 5.214409909
B64: 32BL | C64: Unmeasured Non Household - properties | D64: Input | E64: 000's | F64: 2 | G64: 0.01316194204 | H64: 0.01335558077 | I64: 0.01356693972 | J64: 0.0137296438 | K64: 0.01387575789 | L64: 0.01404288189 | M64: 0.01417187452 | N64: 0.0143024269 | O64: 0.01443104822 | P64: 0.01455955951 | Q64: 0.01468397816 | R64: 0.01480582447 | S64: 0.01492819534 | T64: 0.01504388607 | U64: 0.01515323485 | V64: 0.01526026451 | W64: 0.01536204104 | X64: 0.01546113772 | Y64: 0.01555639861 | Z64: 0.0156487766 | AA64: 0.01573793328 | AB64: 0.01582449278 | AC64: 0.01590865383 | AD64: 0.01598987052 | AE64: 0.01607018448 | AF64: 0.01614842455 | AG64: 0.01622454439 | AH64: 0.01629777225 | AI64: 0.01636937753 | AJ64: 0.01643944655 | AK64: 0.01650659792
B65: 33BL | C65: All void non-households - properties | D65: Input | E65: 000's | F65: 2 | G65: 0 | H65: 0 | I65: 0 | J65: 0 | K65: 0 | L65: 0 | M65: 0 | N65: 0 | O65: 0 | P65: 0 | Q65: 0 | R65: 0 | S65: 0 | T65: 0 | U65: 0 | V65: 0 | W65: 0 | X65: 0 | Y65: 0 | Z65: 0 | AA65: 0 | AB65: 0 | AC65: 0 | AD65: 0 | AE65: 0 | AF65: 0 | AG65: 0 | AH65: 0 | AI65: 0 | AJ65: 0 | AK65: 0
B66: 34BL | C66: Measured households - properties (excl. void) | D66: Year before + sum (34.1BL:34.6BL) | E66: 000's | F66: 2 | G66: 18.127 | H66: =G66+SUM(H67:H72) -> 19.41468822 | I66: =H66+SUM(I67:I72) -> 20.68562995 | J66: 21.91383375 | K66: 23.0807711 | L66: 24.23842203 | M66: =L66+SUM(M67:M72) -> 25.35007735 | N66: 26.34735719 | O66: 27.30115022 | P66: 28.21184835 | Q66: 29.00379138 | R66: 29.76448409 | S66: 30.49515864 | T66: 31.19690578 | U66: 31.87076192 | V66: 32.51741961 | W66: 33.13814924 | X66: 33.73389447 | Y66: 34.30527794 | Z66: 34.8532753 | AA66: 35.3788961 | AB66: 35.88265458 | AC66: 36.36534673 | AD66: 36.82772167 | AE66: 37.27032487 | AF66: 37.69384697 | AG66: 37.79748422 | AH66: 37.89636526 | AI66: 37.99061663 | AJ66: 38.08022207 | AK66: 38.16519991
B67: 34.1BL | C67: New build properties - properties | D67: Input (new builds in each year) | E67: 000's | F67: 2 | G67: 0 | H67: 0.589688219 | I67: 0.57294173 | J67: 0.530203804 | K67: 0.468937344 | L67: 0.459650938 | M67: 0.378612499 | N67: 0.296078216 | O67: 0.283049489 | P67: 0.269089683 | Q67: 0.178204128 | R67: 0.173612782 | S67: 0.169095614 | T67: 0.164561505 | U67: 0.160004245 | V67: 0.155125973 | W67: 0.150548581 | X67: 0.145987431 | Y67: 0.141161806 | Z67: 0.136463227 | AA67: 0.131962481 | AB67: 0.127199501 | AC67: 0.122489753 | AD67: 0.117818661 | AE67: 0.113013412 | AF67: 0.108248704 | AG67: 0.103637251 | AH67: 0.098881035 | AI67: 0.094251374 | AJ67: 0.089605434 | AK67: 0.084977844
B68: 34.2BL | C68: Meter optants - properties | D68: Input (meter optants in each year) | E68: 000's | F68: 2 | G68: 0 | H68: 0.668 | I68: 0.668 | J68: 0.668 | K68: 0.668 | L68: 0.668 | M68: 0.707728812 | N68: 0.676987196 | O68: 0.647580903 | P68: 0.619451931 | Q68: 0.592544798 | R68: 0.566806429 | S68: 0.542186058 | T68: 0.518635123 | U68: 0.496107169 | V68: 0.474557762 | W68: 0.453944396 | X68: 0.434226413 | Y68: 0.415364921 | Z68: 0.397322715 | AA68: 0.380064208 | AB68: 0.363555359 | AC68: 0.347763605 | AD68: 0.332657797 | AE68: 0.31820814 | AF68: 0.304386133 | AG68: 0 | AH68: 0 | AI68: 0 | AJ68: 0 | AK68: 0
B69: 34.3BL | C69: Compulsory metering - properties | D69: Input (compulsory meters in each year) | E69: 000's | F69: 2 | G69: 0 | H69: 0 | I69: 0 | J69: 0 | K69: 0 | L69: 0 | M69: 0 | N69: 0 | O69: 0 | P69: 0 | Q69: 0 | R69: 0 | S69: 0 | T69: 0 | U69: 0 | V69: 0 | W69: 0 | X69: 0 | Y69: 0 | Z69: 0 | AA69: 0 | AB69: 0 | AC69: 0 | AD69: 0 | AE69: 0 | AF69: 0 | AG69: 0 | AH69: 0 | AI69: 0 | AJ69: 0 | AK69: 0
B70: 34.4BL | C70: Metering on change of occupancy - properties | D70: Input (change of occupancy meters in each year) | E70: 000's | F70: 2 | G70: 0 | H70: 0 | I70: 0 | J70: 0 | K70: 0 | L70: 0 | M70: 0 | N70: 0 | O70: 0 | P70: 0 | Q70: 0 | R70: 0 | S70: 0 | T70: 0 | U70: 0 | V70: 0 | W70: 0 | X70: 0 | Y70: 0 | Z70: 0 | AA70: 0 | AB70: 0 | AC70: 0 | AD70: 0 | AE70: 0 | AF70: 0 | AG70: 0 | AH70: 0 | AI70: 0 | AJ70: 0 | AK70: 0
B71: 34.5BL | C71: Selective metering - properties | D71: Input (selective meters in each year) | E71: 000's | F71: 2 | G71: 0 | H71: 0.03 | I71: 0.03 | J71: 0.03 | K71: 0.03 | L71: 0.03 | M71: 0.025314 | N71: 0.024214436 | O71: 0.023162633 | P71: 0.022156518 | Q71: 0.021194105 | R71: 0.020273497 | S71: 0.019392877 | T71: 0.018550509 | U71: 0.01774473 | V71: 0.016973952 | W71: 0.016236655 | X71: 0.015531383 | Y71: 0.014856747 | Z71: 0.014211414 | AA71: 0.013594113 | AB71: 0.013003625 | AC71: 0.012438787 | AD71: 0.011898483 | AE71: 0.011381649 | AF71: 0.010887264 | AG71: 0 | AH71: 0 | AI71: 0 | AJ71: 0 | AK71: 0
B72: 34.6BL | C72: Other changes to existing metering - properties | D72: Input (other changes to meters in each year) | E72: 000's | F72: 2 | G72: 0 | H72: 0 | I72: 0 | J72: 0 | K72: 0 | L72: 0 | M72: 0 | N72: 0 | O72: 0 | P72: 0 | Q72: 0 | R72: 0 | S72: 0 | T72: 0 | U72: 0 | V72: 0 | W72: 0 | X72: 0 | Y72: 0 | Z72: 0 | AA72: 0 | AB72: 0 | AC72: 0 | AD72: 0 | AE72: 0 | AF72: 0 | AG72: 0 | AH72: 0 | AI72: 0 | AJ72: 0 | AK72: 0
B73: 34.7BL | C73: Measured household void properties | D73: Input | E73: 000's | F73: 2 | G73: 1.046101605 | H73: 1.120413555 | I73: 1.193759071 | J73: 1.2646382 | K73: 1.331981667 | L73: 1.39878922 | M73: 1.462942384 | N73: 1.520494988 | O73: 1.575537985 | P73: 1.628093994 | Q73: 1.673796696 | R73: 1.717695955 | S73: 1.759862878 | T73: 1.800360412 | U73: 1.839248369 | V73: 1.876566714 | W73: 1.912388763 | X73: 1.946768971 | Y73: 1.979743273 | Z73: 2.011367971 | AA73: 2.041701329 | AB73: 2.07077302 | AC73: 2.098628983 | AD73: 2.125312448 | AE73: 2.150854894 | AF73: 2.175296177 | AG73: 2.18127704 | AH73: 2.186983423 | AI73: 2.192422631 | AJ73: 2.197593723 | AK73: 2.202497759
B74: 35BL | C74: Unmeasured households - properties (excl. void) | D74: Input | E74: 000's | F74: 2 | G74: 23.062 | H74: 22.364 | I74: 21.666 | J74: 20.968 | K74: 20.27 | L74: 19.572 | M74: 18.83895719 | N74: 18.13775556 | O74: 17.46701202 | P74: 16.82540357 | Q74: 16.21166467 | R74: 15.62458474 | S74: 15.06300581 | T74: 14.52582018 | U74: 14.01196828 | V74: 13.52043656 | W74: 13.05025551 | X74: 12.60049771 | Y74: 12.17027605 | Z74: 11.75874192 | AA74: 11.3650836 | AB74: 10.98852461 | AC74: 10.62832222 | AD74: 10.28376594 | AE74: 9.954176153 | AF74: 9.638902755 | AG74: 9.638902755 | AH74: 9.638902755 | AI74: 9.638902755 | AJ74: 9.638902755 | AK74: 9.638902755
B75: 35.1BL | C75: Unmeasured household void properties | D75: Input | E75: 000's | F75: 2 | G75: 1.330898395 | H75: 1.290617107 | I75: 1.250335818 | J75: 1.210054529 | K75: 1.16977324 | L75: 1.129491952 | M75: 1.087188357 | N75: 1.046722303 | O75: 1.008013974 | P75: 0.9709870181 | Q75: 0.9355684022 | R75: 0.9016882646 | S75: 0.8692797786 | T75: 0.8382790201 | U75: 0.8086248414 | V75: 0.7802587513 | W75: 0.7531247991 | X75: 0.7271694644 | Y75: 0.7023415515 | Z75: 0.6785920887 | AA75: 0.6558742313 | AB75: 0.6341431695 | AC75: 0.6133560398 | AD75: 0.5934718406 | AE75: 0.5744513515 | AF75: 0.5562570553 | AG75: 0.5562570553 | AH75: 0.5562570553 | AI75: 0.5562570553 | AJ75: 0.5562570553 | AK75: 0.5562570553
B76: 36BL | C76: Total Resource Zone Properties (incl. voids) | D76: sum (31BL:34BL) + 34.7BL + 35BL + 35.1BL | E76: 000's | F76: 2 | G76: =SUM(G63:G66)+G73+G74+G75 -> 47.737 | H76: =SUM(H63:H66)+H73+H74+H75 -> 48.42208271 | I76: 49.095068 | J76: 49.70743033 | K76: 50.24973319 | L76: 50.78887174 | M76: 51.23021139 | N76: 51.58474801 | O76: 51.92489207 | P76: 52.25023584 | Q76: 52.47815215 | R76: 52.70039696 | S76: 52.91803017 | T76: 53.12875067 | U76: 53.33264116 | V76: 53.53063692 | W76: 53.72212643 | X76: 53.90794233 | Y76: 54.08743857 | Z76: 54.26105147 | AA76: 54.42888308 | AB76: 54.59085378 | AC76: 54.74708288 | AD76: 54.89743826 | AE76: 55.042425 | AF76: 55.18171485 | AG76: 55.31545523 | AH76: 55.44324845 | AI76: 55.56563064 | AJ76: 55.68261194 | AK76: 55.79377399
B77: 37BL | C77: Measured Non Household - Population | D77: Input | E77: 000's | F77: 2 | G77: 1.57800471 | H77: 1.585352159 | I77: 1.613557862 | J77: 1.645474603 | K77: 1.66404507 | L77: 1.680179432 | M77: 1.682338011 | N77: 1.71654481 | O77: 1.734198793 | P77: 1.757228682 | Q77: 1.783391373 | R77: 1.811475614 | S77: 1.867705602 | T77: 1.917770768 | U77: 1.968526272 | V77: 2.00807671 | W77: 2.044844241 | X77: 2.087367272 | Y77: 2.135555942 | Z77: 2.170406435 | AA77: 2.214843382 | AB77: 2.256174641 | AC77: 2.30254691 | AD77: 2.348509672 | AE77: 2.399901108 | AF77: 2.444811145 | AG77: 2.498423056 | AH77: 2.551678692 | AI77: 2.594180709 | AJ77: 2.62943963 | AK77: 2.662521301
B78: 38BL | C78: Unmeasured Non Household - Population | D78: Input | E78: 000's | F78: 2 | G78: 0.00499528992 | H78: 0.00501854881 | I78: 0.005107836037 | J78: 0.005208870827 | K78: 0.005267657006 | L78: 0.005318731514 | M78: 0.005325564654 | N78: 0.005433848791 | O78: 0.005489733771 | P78: 0.005562636579 | Q78: 0.005645456501 | R78: 0.005734359231 | S78: 0.00591235939 | T78: 0.006070844356 | U78: 0.006231514633 | V78: 0.006356714454 | W78: 0.006473104776 | X78: 0.006607714555 | Y78: 0.006760259335 | Z78: 0.006870581133 | AA78: 0.007011249555 | AB78: 0.007142086694 | AC78: 0.00728888152 | AD78: 0.007434380023 | AE78: 0.007597063391 | AF78: 0.007739229416 | AG78: 0.007908941861 | AH78: 0.00807752649 | AI78: 0.008212069751 | AJ78: 0.008323684456 | AK78: 0.00842840692
B79: 39BL | C79: Measured Household - Population | D79: Input | E79: 000's | F79: 2 | G79: 34.405046 | H79: 37.12376653 | I79: 39.78925234 | J79: 42.38529602 | K79: 44.81455669 | L79: 47.16893027 | M79: 49.37973232 | N79: 51.33750277 | O79: 53.20164005 | P79: 54.96568472 | Q79: 56.45158157 | R79: 57.83620273 | S79: 59.19101352 | T79: 60.51133793 | U79: 61.79968278 | V79: 63.02323536 | W79: 64.16758943 | X79: 65.2656852 | Y79: 66.34299469 | Z79: 67.37303014 | AA79: 68.39003155 | AB79: 69.35885478 | AC79: 70.31179321 | AD79: 71.26069944 | AE79: 72.18809908 | AF79: 73.07152156 | AG79: 73.26615974 | AH79: 73.47834527 | AI79: 73.66999486 | AJ79: 73.86931771 | AK79: 74.04478016
B80: 40BL | C80: Unmeasured Household - Population | D80: Input | E80: 000's | F80: 2 | G80: 53.895894 | H80: 52.19310048 | I80: 50.49427427 | J80: 48.84099893 | K80: 47.16721268 | L80: 45.46220308 | M80: 43.66143013 | N80: 41.94986567 | O80: 40.32745749 | P80: 38.78284224 | Q80: 37.29886734 | R80: 35.86991855 | S80: 34.53085625 | T80: 33.27046508 | U80: 32.08270535 | V80: 30.94701164 | W80: 29.85384203 | X80: 28.81419166 | Y80: 27.83397099 | Z80: 26.89885461 | AA80: 26.01737114 | AB80: 25.17417514 | AC80: 24.37691011 | AD80: 23.62566153 | AE80: 22.91216095 | AF80: 22.22790307 | AG80: 22.22431683 | AH80: 22.22766666 | AI80: 22.22814658 | AJ80: 22.23294429 | AK80: 22.23403886
B81: 41BL | C81: Total Resource Zone Population | D81: sum (37BL:40BL) | E81: 000's | F81: 2 | G81: =SUM(G77:G80) -> 89.88394 | H81: =SUM(H77:H80) -> 90.90723772 | I81: 91.90219231 | J81: 92.87697842 | K81: 93.6510821 | L81: 94.31663151 | M81: 94.72882603 | N81: 95.0093471 | O81: 95.26878607 | P81: 95.51131828 | Q81: 95.53948574 | R81: 95.52333125 | S81: 95.59548773 | T81: 95.70564462 | U81: 95.85714592 | V81: 95.98468042 | W81: 96.07274881 | X81: 96.17385185 | Y81: 96.31928188 | Z81: 96.44916177 | AA81: 96.62925732 | AB81: 96.79634665 | AC81: 96.99853911 | AD81: 97.24230502 | AE81: 97.5077582 | AF81: 97.751975 | AG81: 97.99680857 | AH81: 98.26576815 | AI81: 98.50053422 | AJ81: 98.74002531 | AK81: 98.94976873
B82: 42BL | C82: Average household occupancy rate (excl. voids) | D82: (39BL + 40BL) / (34BL + 35BL) | E82: h/prop | F82: 1 | G82: =(G80+G79)/(G66+G74) -> 2.143799073 | H82: =(H80+H79)/(H66+H74) -> 2.137857142 | I82: 2.131760377 | J82: 2.127387916 | K82: 2.121802382 | L82: 2.114362954 | M82: 2.10552603 | N82: 2.097046914 | O82: 2.089187781 | P82: 2.081577427 | Q82: 2.073415975 | R82: 2.064508563 | S82: 2.057191524 | T82: 2.051098246 | U82: 2.046137789 | V82: 2.04115167 | W82: 2.035606815 | X82: 2.030454538 | Y82: 2.026376398 | Z82: 2.022480261 | AA82: 2.019669769 | AB82: 2.016869034 | AC82: 2.014924679 | AD82: 2.014081189 | AE82: 2.01379068 | AF82: 2.013392951 | AG82: 2.013021705 | AH82: 2.013368514 | AI82: 2.013418205 | AJ82: 2.013915015 | AK82: 2.014028371
B83: 43BL | C83: Total Household Metering penetration (excl. voids) | D83: 34BL / (34BL + 35BL) | E83: % | F83: 1 | G83: =G66/(G66+G74) -> 0.4400932288 | H83: =H66/(H66+H74) -> 0.4647031548 | I83: 0.4884258286 | J83: 0.5110283734 | K83: 0.5324189285 | L83: 0.5532569856 | M83: 0.5736734828 | N83: 0.5922735846 | O83: 0.6098340618 | P83: 0.6264114072 | Q83: 0.6414574554 | R83: 0.6557632676 | S83: 0.6693675877 | T83: 0.6823063394 | U83: 0.6946134587 | V83: 0.7063191537 | W83: 0.7174560243 | X83: 0.7280530267 | Y83: 0.738135966 | Z83: 0.7477315374 | AA83: 0.7568652974 | AB83: 0.7655590322 | AC83: 0.7738350195 | AD83: 0.7817142599 | AE83: 0.7892158533 | AF83: 0.7963586986 | AG83: 0.7968036065 | AH83: 0.7972262878 | AI83: 0.7976275453 | AJ83: 0.7980075538 | AK83: 0.7983666209
B84: 44BL | C84: Total Household Metering penetration (incl. voids) | D84: (34BL) / (34BL + 34.7BL + 35BL + 35.1BL) | E84: % | F84: 1 | G84: =(G66)/(G66+G75+G74+G73) -> 0.4160813478 | H84: =(H66)/(H66+H75+H74+H73) -> 0.4393485342 | I84: 0.4617768777 | J84: 0.4831462075 | K84: 0.5033696747 | L84: 0.5230707887 | M84: 0.5423733435 | N84: 0.5599586071 | O84: 0.5765609689 | P84: 0.5922338395 | Q84: 0.6064589618 | R84: 0.6199842361 | S84: 0.6328462923 | T84: 0.6450790941 | U84: 0.656714726 | V84: 0.6677817478 | W84: 0.6783109807 | X84: 0.6883298012 | Y84: 0.6978626062 | Z84: 0.7069346347 | AA84: 0.7155700486 | AB84: 0.7237894454 | AC84: 0.7316138874 | AD84: 0.7390632294 | AE84: 0.7461555291 | AF84: 0.7529086543 | AG84: 0.7533292877 | AH84: 0.7537289071 | AI84: 0.7541082716 | AJ84: 0.7544675465 | AK84: 0.7548070226
B85: 45BL | C85: Distribution input | D85: sum (12BL:15BL) +21BL + 22BL + 27BL + 28BL | E85: Ml/d | F85: 2 | G85: =SUM(G45:G47)+G43+G54+G59+G60+G53 -> 27.06397025 | H85: =SUM(H45:H47)+H43+H54+H59+H60+H53 -> 28.37692141 | I85: 27.36959734 | J85: 27.27915696 | K85: 27.1636406 | L85: 27.0338691 | M85: 27.01051667 | N85: 26.93463847 | O85: 26.85993016 | P85: 26.78481843 | Q85: 26.68040423 | R85: 26.60743651 | S85: 26.5446243 | T85: 26.45381851 | U85: 26.36991023 | V85: 26.28555103 | W85: 26.19837661 | X85: 26.11831463 | Y85: 26.0435333 | Z85: 25.97067292 | AA85: 25.90401025 | AB85: 25.832133 | AC85: 25.76538733 | AD85: 25.75005613 | AE85: 25.73760803 | AF85: 25.72438079 | AG85: 25.72790097 | AH85: 25.73447229 | AI85: 25.73795603 | AJ85: 25.74289488 | AK85: 25.74444853
B86: 46BL | C86: Target headroom (climate change component) | D86: Input | E86: Ml/d | F86: 2 | M86: 0.002576703078 | N86: 0.003355978521 | O86: 0.004079265347 | P86: 0.00503326662 | Q86: 0.006068547594 | R86: 0.007177042958 | S86: 0.00834505566 | T86: 0.009718092115 | U86: 0.01103847503 | V86: 0.01252990839 | W86: 0.01181851095 | X86: 0.01081748935 | Y86: 0.01180687267 | Z86: 0.01351496613 | AA86: 0.01497512624 | AB86: 0.01331549526 | AC86: 0.01461730207 | AD86: 0.01626180176 | AE86: 0.01743461983 | AF86: 0.01877015811 | AG86: 0.01605767886 | AH86: 0.01719086775 | AI86: 0.01825770384 | AJ86: 0.02040841924 | AK86: 0.02084509858
B87: 47BL | C87: Target headroom (All other components) | D87: Input | E87: Ml/d | F87: 2 | G87: 1.311091436 | H87: 1.39698192 | I87: 1.332873387 | J87: 1.346056871 | K87: 1.353255222 | L87: 1.346491834 | M87: 1.419405795 | N87: 1.452451886 | O87: 1.44971297 | P87: 1.48930256 | Q87: 1.475372009 | R87: 1.506114455 | S87: 1.508768273 | T87: 1.552875302 | U87: 1.547540483 | V87: 1.57755094 | W87: 1.248808086 | X87: 1.004326741 | Y87: 1.010496467 | Z87: 1.052839075 | AA87: 1.049179439 | AB87: 0.8544213295 | AC87: 0.876793181 | AD87: 0.8766303307 | AE87: 0.9113642693 | AF87: 0.9129064646 | AG87: 0.7242661948 | AH87: 0.7351960825 | AI87: 0.7591802956 | AJ87: 0.8575371589 | AK87: 0.8249211857
B88: 48BL | C88: Target Headroom | D88: 46BL + 47BL | E88: Ml/d | F88: 2 | M88: =M86+M87 -> 1.421982498 | N88: 1.455807865 | O88: 1.453792236 | P88: 1.494335826 | Q88: 1.481440556 | R88: 1.513291498 | S88: 1.517113328 | T88: 1.562593394 | U88: 1.558578958 | V88: 1.590080849 | W88: 1.260626597 | X88: 1.01514423 | Y88: 1.022303339 | Z88: 1.066354041 | AA88: 1.064154565 | AB88: 0.8677368248 | AC88: 0.8914104831 | AD88: 0.8928921324 | AE88: 0.9287988891 | AF88: 0.9316766227 | AG88: 0.7403238736 | AH88: 0.7523869502 | AI88: 0.7774379994 | AJ88: 0.8779455782 | AK88: 0.8457662843
B89: 49BL | C89: Available Headroom | D89: 11BL - 45BL | E89: Ml/d | F89: 2 | M89: =M42-M85 -> 10.52326528 | N89: 10.59914348 | O89: 10.67385179 | P89: 10.74896352 | Q89: 10.85337772 | R89: 10.92634544 | S89: 10.98915765 | T89: 11.07996344 | U89: 11.16387172 | V89: 11.24823092 | W89: 4.083447472 | X89: 4.163509447 | Y89: 4.238290777 | Z89: 4.311151159 | AA89: 4.377813832 | AB89: 4.449691083 | AC89: 4.516436748 | AD89: 4.531767948 | AE89: 4.544216055 | AF89: 4.55744329 | AG89: 4.553923106 | AH89: 4.54735179 | AI89: 4.543868051 | AJ89: 4.538929202 | AK89: 4.537375552
B90: 49.1BL | C90: Available non-potable balance (if applicable) | D90: 1.1BL -12.1BL | E90: Ml/d | F90: 2 | M90: =M25-M44 -> 0 | N90: 0 | O90: 0 | P90: 0 | Q90: 0 | R90: 0 | S90: 0 | T90: 0 | U90: 0 | V90: 0 | W90: 0 | X90: 0 | Y90: 0 | Z90: 0 | AA90: 0 | AB90: 0 | AC90: 0 | AD90: 0 | AE90: 0 | AF90: 0 | AG90: 0 | AH90: 0 | AI90: 0 | AJ90: 0 | AK90: 0
B91: 50BL | C91: Supply Demand Balance | D91: 49BL - 48BL | E91: Ml/d | F91: 2 | M91: =M89-M88 -> 9.101282778 | N91: 9.143335615 | O91: 9.220059559 | P91: 9.254627696 | Q91: 9.371937162 | R91: 9.41305394 | S91: 9.472044319 | T91: 9.517370045 | U91: 9.605292764 | V91: 9.658150068 | W91: 2.822820874 | X91: 3.148365217 | Y91: 3.215987437 | Z91: 3.244797118 | AA91: 3.313659267 | AB91: 3.581954258 | AC91: 3.625026265 | AD91: 3.638875815 | AE91: 3.615417166 | AF91: 3.625766667 | AG91: 3.813599232 | AH91: 3.794964839 | AI91: 3.766430051 | AJ91: 3.660983624 | AK91: 3.691609267
B93: Table 3b: DYAA - Final plan Options | C93: Back to top of sheet | G93: 0.1
B94: WRMP24 reference | C94: Option type | D94: Cat ID | E94: Unit | F94: Decimal places | G94: 2019-20 | H94: 2020-21 | I94: 2021-22 | J94: 2022-23 | K94: 2023-24 | L94: 2024-25 | M94: 2025-26 | N94: 2026-27 | O94: 2027-28 | P94: 2028-29 | Q94: 2029-30 | R94: 2030-31 | S94: 2031-32 | T94: 2032-33 | U94: 2033-34 | V94: 2034-35 | W94: 2035-36 | X94: 2036-37 | Y94: 2037-38 | Z94: 2038-39 | AA94: 2039-40 | AB94: 2040-41 | AC94: 2041-42 | AD94: 2042-43 | AE94: 2043-44 | AF94: 2044-45 | AG94: 2045-46 | AH94: 2046-47 | AI94: 2047-48 | AJ94: 2048-49 | AK94: 2049-50 | AL94: 2050-51 | AM94: 2051-52 | AN94: 2052-53 | AO94: 2053-54 | AP94: 2054-55 | AQ94: 2055-56 | AR94: 2056-57 | AS94: 2057-58 | AT94: 2058-59 | AU94: 2059-60 | AV94: 2060-61 | AW94: 2061-62 | AX94: 2062-63 | AY94: 2063-64 | AZ94: 2064-65 | BA94: 2065-66 | BB94: 2066-67 | BC94: 2067-68 | BD94: 2068-69 | BE94: 2069-70 | BF94: 2070-71 | BG94: 2071-72 | BH94: 2072-73 | BI94: 2073-74 | BJ94: 2074-75 | BK94: 2075-76 | BL94: 2076-77 | BM94: 2077-78 | BN94: 2078-79 | BO94: 2079-80 | BP94: 2080-81 | BQ94: 2081-82 | BR94: 2082-83 | BS94: 2083-84 | BT94: 2084-85 | BU94: 2085-86 | BV94: 2086-87 | BW94: 2087-88 | BX94: 2088-89 | BY94: 2089-90 | BZ94: 2090-91 | CA94: 2091-92 | CB94: 2092-93 | CC94: 2093-94 | CD94: 2094-95 | CE94: 2095-96 | CF94: 2096-97 | CG94: 2097-98 | CH94: 2098-99 | CI94: 2099-100
B95: 1.11FP | C95: Non potable supplies input reductions as -ve and increases as +ve | D95: RSNPS | E95: Ml/d | F95: 2 | M95: 0 | N95: 0 | O95: 0 | P95: 0 | Q95: 0 | R95: 0 | S95: 0 | T95: 0 | U95: 0 | V95: 0 | W95: 0 | X95: 0 | Y95: 0 | Z95: 0 | AA95: 0 | AB95: 0 | AC95: 0 | AD95: 0 | AE95: 0 | AF95: 0 | AG95: 0 | AH95: 0 | AI95: 0 | AJ95: 0 | AK95: 0
B96: 2.1FP | C96: Raw water imports input reductions as -ve | D96: RSRWI | E96: Ml/d | F96: 2 | M96: 0 | N96: 0 | O96: 0 | P96: 0 | Q96: 0 | R96: 0 | S96: 0 | T96: 0 | U96: 0 | V96: 0 | W96: 0 | X96: 0 | Y96: 0 | Z96: 0 | AA96: 0 | AB96: 0 | AC96: 0 | AD96: 0 | AE96: 0 | AF96: 0 | AG96: 0 | AH96: 0 | AI96: 0 | AJ96: 0 | AK96: 0
B97: 3.1FP | C97: Potable water imports input reductions as -ve | D97: RSPWI | E97: Ml/d | F97: 2 | M97: 0 | N97: 0 | O97: 0 | P97: 0 | Q97: 0 | R97: 0 | S97: 0 | T97: 0 | U97: 0 | V97: 0 | W97: 0 | X97: 0 | Y97: 0 | Z97: 0 | AA97: 0 | AB97: 0 | AC97: 0 | AD97: 0 | AE97: 0 | AF97: 0 | AG97: 0 | AH97: 0 | AI97: 0 | AJ97: 0 | AK97: 0
B98: 4.1FP | C98: Raw water exports input reductions as +ve and increases as -ve | D98: RSRWE | E98: Ml/d | F98: 2 | M98: 0 | N98: 0 | O98: 0 | P98: 0 | Q98: 0 | R98: 0 | S98: 0 | T98: 0 | U98: 0 | V98: 0 | W98: 0 | X98: 0 | Y98: 0 | Z98: 0 | AA98: 0 | AB98: 0 | AC98: 0 | AD98: 0 | AE98: 0 | AF98: 0 | AG98: 0 | AH98: 0 | AI98: 0 | AJ98: 0 | AK98: 0
B99: 5.1FP | C99: Potable water exports input reductions as +ve and increases as -ve | D99: RSPWE | E99: Ml/d | F99: 2 | M99: 0 | N99: 0 | O99: 0 | P99: 0 | Q99: 0 | R99: 0 | S99: 0 | T99: 0 | U99: 0 | V99: 0 | W99: 0 | X99: 0 | Y99: 0 | Z99: 0 | AA99: 0 | AB99: 0 | AC99: 0 | AD99: 0 | AE99: 0 | AF99: 0 | AG99: 0 | AH99: 0 | AI99: 0 | AJ99: 0 | AK99: 0
B100: 6.2FP | C100: DO benefit from increase raw water abstractions | D100: RSRWA | E100: Ml/d | F100: 2 | M100: 0 | N100: 0 | O100: 0 | P100: 0 | Q100: 0 | R100: 0 | S100: 0 | T100: 0 | U100: 0 | V100: 0 | W100: 0 | X100: 0 | Y100: 0 | Z100: 0 | AA100: 0 | AB100: 0 | AC100: 0 | AD100: 0 | AE100: 0 | AF100: 0 | AG100: 0 | AH100: 0 | AI100: 0 | AJ100: 0 | AK100: 0
B101: 6.3FP | C101: Other options to increase deployable output | D101: RSIPO | E101: Ml/d | F101: 2 | M101: 0 | N101: 0 | O101: 0 | P101: 0 | Q101: 0 | R101: 0 | S101: 0 | T101: 0 | U101: 0 | V101: 0 | W101: 0 | X101: 0 | Y101: 0 | Z101: 0 | AA101: 0 | AB101: 0 | AC101: 0 | AD101: 0 | AE101: 0 | AF101: 0 | AG101: 0 | AH101: 0 | AI101: 0 | AJ101: 0 | AK101: 0
B102: 7.01FP | C102: DO benefit from supply side drought measures | D102: RSDPS | E102: Ml/d | F102: 2 | M102: 0 | N102: 0 | O102: 0 | P102: 0 | Q102: 0 | R102: 0 | S102: 0 | T102: 0 | U102: 0 | V102: 0 | W102: 0 | X102: 0 | Y102: 0 | Z102: 0 | AA102: 0 | AB102: 0 | AC102: 0 | AD102: 0 | AE102: 0 | AF102: 0 | AG102: 0 | AH102: 0 | AI102: 0 | AJ102: 0 | AK102: 0
B103: 7.02FP | C103: Benefit from demand side drought measures | D103: RSDPD | E103: Ml/d | F103: 2 | G103: 0 | H103: 0 | I103: 0.000350385 | J103: 0.000350385 | K103: 0.000350385 | L103: 0.000350385 | M103: 0 | N103: 0 | O103: 0 | P103: 0 | Q103: 0 | R103: 0 | S103: 0 | T103: 0 | U103: 0 | V103: 0 | W103: 0 | X103: 0 | Y103: 0 | Z103: 0 | AA103: 0 | AB103: 0 | AC103: 0 | AD103: 0 | AE103: 0 | AF103: 0 | AG103: 0 | AH103: 0 | AI103: 0 | AJ103: 0 | AK103: 0
B104: 8.1FP | C104: Reduce raw water losses and operational use input as -ve | D104: RSLOU | E104: Ml/d | F104: 2 | M104: 0 | N104: 0 | O104: 0 | P104: 0 | Q104: 0 | R104: 0 | S104: 0 | T104: 0 | U104: 0 | V104: 0 | W104: 0 | X104: 0 | Y104: 0 | Z104: 0 | AA104: 0 | AB104: 0 | AC104: 0 | AD104: 0 | AE104: 0 | AF104: 0 | AG104: 0 | AH104: 0 | AI104: 0 | AJ104: 0 | AK104: 0
B105: 8.2FP | C105: Reduce treatment works losses input as -ve | D105: PSTWL | E105: Ml/d | F105: 2 | M105: 0 | N105: 0 | O105: 0 | P105: 0 | Q105: 0 | R105: 0 | S105: 0 | T105: 0 | U105: 0 | V105: 0 | W105: 0 | X105: 0 | Y105: 0 | Z105: 0 | AA105: 0 | AB105: 0 | AC105: 0 | AD105: 0 | AE105: 0 | AF105: 0 | AG105: 0 | AH105: 0 | AI105: 0 | AJ105: 0 | AK105: 0
B106: 9.1FP | C106: Reduce outages input as -ve | D106: PSROU | E106: Ml/d | F106: 2 | M106: 0 | N106: 0 | O106: 0 | P106: 0 | Q106: 0 | R106: 0 | S106: 0 | T106: 0 | U106: 0 | V106: 0 | W106: 0 | X106: 0 | Y106: 0 | Z106: 0 | AA106: 0 | AB106: 0 | AC106: 0 | AD106: 0 | AE106: 0 | AF106: 0 | AG106: 0 | AH106: 0 | AI106: 0 | AJ106: 0 | AK106: 0
B107: 12.2FP | C107: Change volume delivered to measured non households input reductions as -ve, line to include both measured non-household consumption and USPL options | D107: CVMNH | E107: Ml/d | F107: 2 | G107: 0 | H107: 0 | I107: 0 | J107: 0 | K107: 0 | L107: 0 | M107: 0 | N107: 0 | O107: 0 | P107: 0 | Q107: 0 | R107: 0 | S107: 0 | T107: 0 | U107: 0 | V107: 0 | W107: 0 | X107: 0 | Y107: 0 | Z107: 0 | AA107: 0 | AB107: 0 | AC107: 0 | AD107: 0 | AE107: 0 | AF107: 0 | AG107: 0 | AH107: 0 | AI107: 0 | AJ107: 0 | AK107: 0
B108: 13.1FP | C108: Change volume delivered to unmeasured non households input reductions as -ve, line to include both unmeasured non-household consumption and USPL options | D108: CVUNH | E108: Ml/d | F108: 2 | G108: 0 | H108: 0 | I108: 0 | J108: 0 | K108: 0 | L108: 0 | M108: 0 | N108: 0 | O108: 0 | P108: 0 | Q108: 0 | R108: 0 | S108: 0 | T108: 0 | U108: 0 | V108: 0 | W108: 0 | X108: 0 | Y108: 0 | Z108: 0 | AA108: 0 | AB108: 0 | AC108: 0 | AD108: 0 | AE108: 0 | AF108: 0 | AG108: 0 | AH108: 0 | AI108: 0 | AJ108: 0 | AK108: 0
B109: 14.1FP | C109: Change volume delivered to measured households input reductions as -ve, line to include both measured household consumption and USPL options | D109: CVMHH | E109: Ml/d | F109: 2 | G109: 0 | H109: 0 | I109: 0 | J109: 0 | K109: 0 | L109: 0 | M109: -0.00080015 | N109: -0.001615382 | O109: -0.002444442 | P109: -0.003286587 | Q109: 2.010881874 | R109: 1.969914447 | S109: 1.932934324 | T109: 1.899384513 | U109: 1.869124354 | V109: 1.844596921 | W109: 1.821504772 | X109: 1.8009688 | Y109: 1.783746125 | Z109: 1.769448104 | AA109: 1.759425382 | AB109: 1.753325604 | AC109: 1.754769961 | AD109: 1.755433426 | AE109: 1.654883989 | AF109: 1.559068752 | AG109: 1.553562108 | AH109: 1.54903726 | AI109: 1.544320769 | AJ109: 1.540247831 | AK109: 1.535902394
B110: 15.1FP | C110: Change volume delivered to unmeasured households input reductions as -ve, line to include both unmeasured household consumption and USPL options | D110: CVUHH | E110: Ml/d | F110: 2 | G110: 0 | H110: 0 | I110: 0 | J110: 0 | K110: 0 | L110: 0 | M110: 0 | N110: 0 | O110: 0 | P110: 0 | Q110: -3.764781757 | R110: -3.747857044 | S110: -3.734954411 | T110: -3.725409771 | U110: -3.719086181 | V110: -3.714156481 | W110: -3.71010326 | X110: -3.708387325 | Y110: -3.709993311 | Z110: -3.714420933 | AA110: -3.723407418 | AB110: -3.736418256 | AC110: -3.757939224 | AD110: -3.77607957 | AE110: -3.661342395 | AF110: -3.551361823 | AG110: -3.551705879 | AH110: -3.553116554 | AI110: -3.554063646 | AJ110: -3.555671622 | AK110: -3.556741805
B111: 21.1FP | C111: Options to reduce water taken unbilled input as -ve | D111: CSWTU | E111: Ml/d | F111: 2 | M111: 0 | N111: 0 | O111: 0 | P111: 0 | Q111: 0 | R111: 0 | S111: 0 | T111: 0 | U111: 0 | V111: 0 | W111: 0 | X111: 0 | Y111: 0 | Z111: 0 | AA111: 0 | AB111: 0 | AC111: 0 | AD111: 0 | AE111: 0 | AF111: 0 | AG111: 0 | AH111: 0 | AI111: 0 | AJ111: 0 | AK111: 0
B112: 22.1FP | C112: Reduce distribution system operational use (DSOU) input as -ve | D112: DSDOU | E112: Ml/d | F112: 2 | G112: 0 | H112: 0 | I112: 0 | J112: 0 | K112: 0 | L112: 0 | M112: 0 | N112: 0 | O112: 0 | P112: 0 | Q112: 0 | R112: 0 | S112: 0 | T112: 0 | U112: 0 | V112: 0 | W112: 0 | X112: 0 | Y112: 0 | Z112: 0 | AA112: 0 | AB112: 0 | AC112: 0 | AD112: 0 | AE112: 0 | AF112: 0 | AG112: 0 | AH112: 0 | AI112: 0 | AJ112: 0 | AK112: 0
B113: 23.1FP | C113: Options impacting on measured Non Household - USPL input reductions as -ve | D113: CUMNH | E113: Ml/d | F113: 2 | G113: 0 | H113: 0 | I113: 0 | J113: 0 | K113: 0 | L113: 0 | M113: 0 | N113: 0 | O113: 0 | P113: 0 | Q113: 0 | R113: 0 | S113: 0 | T113: 0 | U113: 0 | V113: 0 | W113: 0 | X113: 0 | Y113: 0 | Z113: 0 | AA113: 0 | AB113: 0 | AC113: 0 | AD113: 0 | AE113: 0 | AF113: 0 | AG113: 0 | AH113: 0 | AI113: 0 | AJ113: 0 | AK113: 0
B114: 24.1FP | C114: Options impacting on unmeasured Non Household - USPL input reductions as -ve | D114: CUUNH | E114: Ml/d | F114: 2 | G114: 0 | H114: 0 | I114: 0 | J114: 0 | K114: 0 | L114: 0 | M114: 0 | N114: 0 | O114: 0 | P114: 0 | Q114: 0 | R114: 0 | S114: 0 | T114: 0 | U114: 0 | V114: 0 | W114: 0 | X114: 0 | Y114: 0 | Z114: 0 | AA114: 0 | AB114: 0 | AC114: 0 | AD114: 0 | AE114: 0 | AF114: 0 | AG114: 0 | AH114: 0 | AI114: 0 | AJ114: 0 | AK114: 0
B115: 25.1FP | C115: Options impacting on measured Household - USPL input reductions as -ve | D115: CUMHH | E115: Ml/d | F115: 2 | G115: 0 | H115: 0 | I115: 0 | J115: 0 | K115: 0 | L115: 0 | M115: 0 | N115: 0 | O115: 0 | P115: 0 | Q115: 0.02618416 | R115: 0.021194984 | S115: 0.016426654 | T115: 0.01186997 | U115: 0.007516203 | V115: 0.003358855 | W115: -0.000611947 | X115: -0.004403963 | Y115: -0.008022892 | Z115: -0.011476459 | AA115: -0.014772484 | AB115: -0.01791569 | AC115: -0.020912405 | AD115: -0.024596089 | AE115: -0.032761096 | AF115: -0.040572315 | AG115: -0.041200278 | AH115: -0.041799422 | AI115: -0.042370513 | AJ115: -0.042913455 | AK115: -0.043428355
B116: 26.1FP | C116: Options impacting on unmeasured Household - USPL input reductions as -ve | D116: CUUHH | E116: Ml/d | F116: 2 | G116: 0 | H116: 0 | I116: 0 | J116: 0 | K116: 0 | L116: 0 | M116: 0 | N116: 0 | O116: 0 | P116: 0 | Q116: -0.428507611 | R116: -0.427120531 | S116: -0.425849463 | T116: -0.424687125 | U116: -0.423626644 | V116: -0.422661529 | W116: -0.421785656 | X116: -0.420993247 | Y116: -0.420278851 | Z116: -0.419637325 | AA116: -0.419063825 | AB116: -0.418553778 | AC116: -0.418102881 | AD116: -0.415733714 | AE116: -0.402403678 | AF116: -0.389652659 | AG116: -0.389652659 | AH116: -0.389652659 | AI116: -0.389652659 | AJ116: -0.389652659 | AK116: -0.389652659
B117: 27.1FP | C117: Options impacting on Void properties - USPL input reductions as -ve | D117: CUVPP | E117: Ml/d | F117: 2 | G117: 0 | H117: 0 | I117: 0 | J117: 0 | K117: 0 | L117: 0 | M117: 0 | N117: 0 | O117: 0 | P117: 0 | Q117: 0 | R117: 0 | S117: 0 | T117: 0 | U117: 0 | V117: 0 | W117: 0 | X117: 0 | Y117: 0 | Z117: 0 | AA117: 0 | AB117: 0 | AC117: 0 | AD117: 0 | AE117: 0 | AF117: 0 | AG117: 0 | AH117: 0 | AI117: 0 | AJ117: 0 | AK117: 0
B118: 28.1FP | C118: Reduce distribution losses input as -ve | D118: DSRDL | E118: Ml/d | F118: 2 | G118: 0 | H118: 0 | I118: 0 | J118: 0 | K118: 0 | L118: 0 | M118: 0 | N118: 0 | O118: 0 | P118: 0 | Q118: 0 | R118: 0 | S118: 0 | T118: 0 | U118: 0 | V118: 0 | W118: 0 | X118: 0 | Y118: 0 | Z118: 0 | AA118: 0 | AB118: 0 | AC118: 0 | AD118: 0 | AE118: 0 | AF118: 0 | AG118: 0 | AH118: 0 | AI118: 0 | AJ118: 0 | AK118: 0
B120: Table 3c: DYAA - Final plan | C120: Back to top of sheet
B121: WRMP24 reference | C121: Component | D121: Derivation | E121: Unit | F121: Decimal places | G121: 2019-20 | H121: 2020-21 | I121: 2021-22 | J121: 2022-23 | K121: 2023-24 | L121: 2024-25 | M121: 2025-26 | N121: 2026-27 | O121: 2027-28 | P121: 2028-29 | Q121: 2029-30 | R121: 2030-31 | S121: 2031-32 | T121: 2032-33 | U121: 2033-34 | V121: 2034-35 | W121: 2035-36 | X121: 2036-37 | Y121: 2037-38 | Z121: 2038-39 | AA121: 2039-40 | AB121: 2040-41 | AC121: 2041-42 | AD121: 2042-43 | AE121: 2043-44 | AF121: 2044-45 | AG121: 2045-46 | AH121: 2046-47 | AI121: 2047-48 | AJ121: 2048-49 | AK121: 2049-50 | AL121: 2050-51 | AM121: 2051-52 | AN121: 2052-53 | AO121: 2053-54 | AP121: 2054-55 | AQ121: 2055-56 | AR121: 2056-57 | AS121: 2057-58 | AT121: 2058-59 | AU121: 2059-60 | AV121: 2060-61 | AW121: 2061-62 | AX121: 2062-63 | AY121: 2063-64 | AZ121: 2064-65 | BA121: 2065-66 | BB121: 2066-67 | BC121: 2067-68 | BD121: 2068-69 | BE121: 2069-70 | BF121: 2070-71 | BG121: 2071-72 | BH121: 2072-73 | BI121: 2073-74 | BJ121: 2074-75 | BK121: 2075-76 | BL121: 2076-77 | BM121: 2077-78 | BN121: 2078-79 | BO121: 2079-80 | BP121: 2080-81 | BQ121: 2081-82 | BR121: 2082-83 | BS121: 2083-84 | BT121: 2084-85 | BU121: 2085-86 | BV121: 2086-87 | BW121: 2087-88 | BX121: 2088-89 | BY121: 2089-90 | BZ121: 2090-91 | CA121: 2091-92 | CB121: 2092-93 | CC121: 2093-94 | CD121: 2094-95 | CE121: 2095-96 | CF121: 2096-97 | CG121: 2097-98 | CH121: 2098-99 | CI121: 2099-100
B122: 1FP | C122: Raw water abstracted | D122: Input | E122: Ml/d | F122: 2 | M122: 0 | N122: 0 | O122: 0 | P122: 0 | Q122: 0 | R122: 0 | S122: 0 | T122: 0 | U122: 0 | V122: 0 | W122: 0 | X122: 0 | Y122: 0 | Z122: 0 | AA122: 0 | AB122: 0 | AC122: 0 | AD122: 0 | AE122: 0 | AF122: 0 | AG122: 0 | AH122: 0 | AI122: 0 | AJ122: 0 | AK122: 0
B123: 1.1FP | C123: Non-potable water supplies | D123: 1.1BL + 1.11FP | E123: Ml/d | F123: 2 | G123: =G25+G95 -> 0 | H123: 0 | I123: 0 | J123: 0 | K123: 0 | L123: 0 | M123: 0 | N123: 0 | O123: 0 | P123: 0 | Q123: 0 | R123: 0 | S123: 0 | T123: 0 | U123: 0 | V123: 0 | W123: 0 | X123: 0 | Y123: 0 | Z123: 0 | AA123: 0 | AB123: 0 | AC123: 0 | AD123: 0 | AE123: 0 | AF123: 0 | AG123: 0 | AH123: 0 | AI123: 0 | AJ123: 0 | AK123: 0
B124: 2FP | C124: Raw water imported | D124: 2BL + 2.1FP | E124: Ml/d | F124: 2 | G124: 0 | H124: 0 | I124: 0 | J124: 0 | K124: 0 | L124: 0 | M124: 0 | N124: 0 | O124: 0 | P124: 0 | Q124: 0 | R124: 0 | S124: 0 | T124: 0 | U124: 0 | V124: 0 | W124: 0 | X124: 0 | Y124: 0 | Z124: 0 | AA124: 0 | AB124: 0 | AC124: 0 | AD124: 0 | AE124: 0 | AF124: 0 | AG124: 0 | AH124: 0 | AI124: 0 | AJ124: 0 | AK124: 0
B125: 3FP | C125: Potable water imported | D125: 3BL + 3.1FP | E125: Ml/d | F125: 2 | G125: 0 | H125: 0 | I125: 0 | J125: 0 | K125: 0 | L125: 0 | M125: 0 | N125: 0 | O125: 0 | P125: 0 | Q125: 0 | R125: 0 | S125: 0 | T125: 0 | U125: 0 | V125: 0 | W125: 0 | X125: 0 | Y125: 0 | Z125: 0 | AA125: 0 | AB125: 0 | AC125: 0 | AD125: 0 | AE125: 0 | AF125: 0 | AG125: 0 | AH125: 0 | AI125: 0 | AJ125: 0 | AK125: 0
B126: 4FP | C126: Raw water exported enter as -ve | D126: 4BL + 4.1FP | E126: Ml/d | F126: 2 | G126: 0 | H126: 0 | I126: 0 | J126: 0 | K126: 0 | L126: 0 | M126: 0 | N126: 0 | O126: 0 | P126: 0 | Q126: 0 | R126: 0 | S126: 0 | T126: 0 | U126: 0 | V126: 0 | W126: 0 | X126: 0 | Y126: 0 | Z126: 0 | AA126: 0 | AB126: 0 | AC126: 0 | AD126: 0 | AE126: 0 | AF126: 0 | AG126: 0 | AH126: 0 | AI126: 0 | AJ126: 0 | AK126: 0
B127: 5FP | C127: Potable water exported enter as -ve | D127: 5BL + 5.1FP | E127: Ml/d | F127: 2 | G127: 0 | H127: 0 | I127: 0 | J127: 0 | K127: 0 | L127: 0 | M127: 0 | N127: 0 | O127: 0 | P127: 0 | Q127: 0 | R127: 0 | S127: 0 | T127: 0 | U127: 0 | V127: 0 | W127: 0 | X127: 0 | Y127: 0 | Z127: 0 | AA127: 0 | AB127: 0 | AC127: 0 | AD127: 0 | AE127: 0 | AF127: 0 | AG127: 0 | AH127: 0 | AI127: 0 | AJ127: 0 | AK127: 0
B128: 6.1FP | C128: Deployable Output post forecast changes | D128: 6.1BL + 6.2FP + 6.3FP +7.01FP +7.02FP | E128: Ml/d | F128: 2 | G128: =G31+G100+G101+G102+G103 -> 0 | H128: 0 | I128: 0.000350385 | J128: 0.000350385 | K128: 0.000350385 | L128: 0.000350385 | M128: 40.22 | N128: 40.22 | O128: 40.22 | P128: 40.22 | Q128: 40.22 | R128: 40.22 | S128: 40.22 | T128: 40.22 | U128: 40.22 | V128: 40.22 | W128: 32.82 | X128: 32.82 | Y128: 32.82 | Z128: 32.82 | AA128: 32.82 | AB128: 32.82 | AC128: 32.82 | AD128: 32.82 | AE128: 32.82 | AF128: 32.82 | AG128: 32.82 | AH128: 32.82 | AI128: 32.82 | AJ128: 32.82 | AK128: 32.82
B129: 8FP | C129: Raw water losses, treatment works losses and operational use | D129: 8BL + 8.1FP + 8.2FP | E129: Ml/d | F129: 2 | G129: =G39+G104+G105 -> 0 | H129: 0 | I129: 0 | J129: 0 | K129: 0 | L129: 0 | M129: 1.92 | N129: 1.92 | O129: 1.92 | P129: 1.92 | Q129: 1.92 | R129: 1.92 | S129: 1.92 | T129: 1.92 | U129: 1.92 | V129: 1.92 | W129: 1.92 | X129: 1.92 | Y129: 1.92 | Z129: 1.92 | AA129: 1.92 | AB129: 1.92 | AC129: 1.92 | AD129: 1.92 | AE129: 1.92 | AF129: 1.92 | AG129: 1.92 | AH129: 1.92 | AI129: 1.92 | AJ129: 1.92 | AK129: 1.92
B130: 9FP | C130: Total Outage Allowance | D130: 9BL + 9.1FP | E130: Ml/d | F130: 2 | G130: =G40+G106 -> 0 | H130: 0 | I130: 0 | J130: 0 | K130: 0 | L130: 0 | M130: 0.7662180501 | N130: 0.7662180501 | O130: 0.7662180501 | P130: 0.7662180501 | Q130: 0.7662180501 | R130: 0.7662180501 | S130: 0.7662180501 | T130: 0.7662180501 | U130: 0.7662180501 | V130: 0.7662180501 | W130: 0.6181759203 | X130: 0.6181759203 | Y130: 0.6181759203 | Z130: 0.6181759203 | AA130: 0.6181759203 | AB130: 0.6181759203 | AC130: 0.6181759203 | AD130: 0.6181759203 | AE130: 0.6181759203 | AF130: 0.6181759203 | AG130: 0.6181759203 | AH130: 0.6181759203 | AI130: 0.6181759203 | AJ130: 0.6181759203 | AK130: 0.6181759203
B131: 10FP | C131: Water Available For Use (own sources) | D131: (6.1FP) - (8FP + 9FP) | E131: Ml/d | F131: 2 | G131: =(G128)-(G129+G130) -> 0 | H131: =(H128)-(H129+H130) -> 0 | I131: 0.000350385 | J131: 0.000350385 | K131: 0.000350385 | L131: 0.000350385 | M131: 37.53378195 | N131: 37.53378195 | O131: 37.53378195 | P131: 37.53378195 | Q131: 37.53378195 | R131: 37.53378195 | S131: 37.53378195 | T131: 37.53378195 | U131: 37.53378195 | V131: 37.53378195 | W131: 30.28182408 | X131: 30.28182408 | Y131: 30.28182408 | Z131: 30.28182408 | AA131: 30.28182408 | AB131: 30.28182408 | AC131: 30.28182408 | AD131: 30.28182408 | AE131: 30.28182408 | AF131: 30.28182408 | AG131: 30.28182408 | AH131: 30.28182408 | AI131: 30.28182408 | AJ131: 30.28182408 | AK131: 30.28182408
B132: 11FP | C132: Total Water Available For Use | D132: 10FP + sum (2FP:5FP) | E132: Ml/d | F132: 2 | G132: =G131+SUM(G124:G127) -> 0 | H132: 0 | I132: 0.000350385 | J132: 0.000350385 | K132: 0.000350385 | L132: 0.000350385 | M132: 37.53378195 | N132: 37.53378195 | O132: 37.53378195 | P132: 37.53378195 | Q132: 37.53378195 | R132: 37.53378195 | S132: 37.53378195 | T132: 37.53378195 | U132: 37.53378195 | V132: 37.53378195 | W132: 30.28182408 | X132: 30.28182408 | Y132: 30.28182408 | Z132: 30.28182408 | AA132: 30.28182408 | AB132: 30.28182408 | AC132: 30.28182408 | AD132: 30.28182408 | AE132: 30.28182408 | AF132: 30.28182408 | AG132: 30.28182408 | AH132: 30.28182408 | AI132: 30.28182408 | AJ132: 30.28182408 | AK132: 30.28182408
B133: 12FP | C133: Water delivered measured non-household | D133: 12BL + 12.2FP | E133: Ml/d | F133: 2 | G133: =G43+G107 -> 9.790628199 | H133: 9.791114926 | I133: 9.791646194 | J133: 9.792055164 | K133: 9.792422434 | L133: 9.792842514 | M133: 9.793166748 | N133: 9.793494902 | O133: 9.793818203 | P133: 9.794141227 | Q133: 9.794453963 | R133: 9.794760234 | S133: 9.795067824 | T133: 9.795358622 | U133: 9.795633479 | V133: 9.795902507 | W133: 9.796158331 | X133: 9.796407419 | Y133: 9.796646865 | Z133: 9.796879065 | AA133: 9.797103167 | AB133: 9.797320742 | AC133: 9.797532288 | AD133: 9.797736433 | AE133: 9.797938309 | AF133: 9.798134971 | AG133: 9.798326305 | AH133: 9.798510369 | AI133: 9.798690355 | AJ133: 9.79886648 | AK133: 9.79903527
B134: 12.1FP | C134: Non-potable water consumption | D134: Input | E134: Ml/d | F134: 2 | M134: 0 | N134: 0 | O134: 0 | P134: 0 | Q134: 0 | R134: 0 | S134: 0 | T134: 0 | U134: 0 | V134: 0 | W134: 0 | X134: 0 | Y134: 0 | Z134: 0 | AA134: 0 | AB134: 0 | AC134: 0 | AD134: 0 | AE134: 0 | AF134: 0 | AG134: 0 | AH134: 0 | AI134: 0 | AJ134: 0 | AK134: 0
B135: 13FP | C135: Water delivered unmeasured non-household | D135: 13BL + 13.1FP | E135: Ml/d | F135: 2 | G135: =G45+G108 -> 0.03135429 | H135: 0.031361147 | I135: 0.031368632 | J135: 0.031374393 | K135: 0.031379567 | L135: 0.031385485 | M135: 0.031390052 | N135: 0.031394675 | O135: 0.03139923 | P135: 0.03140378 | Q135: 0.031408186 | R135: 0.031412501 | S135: 0.031416834 | T135: 0.03142093 | U135: 0.031424802 | V135: 0.031428592 | W135: 0.031432196 | X135: 0.031435705 | Y135: 0.031439078 | Z135: 0.03144235 | AA135: 0.031445507 | AB135: 0.031448572 | AC135: 0.031451552 | AD135: 0.031454428 | AE135: 0.031457272 | AF135: 0.031460042 | AG135: 0.031462738 | AH135: 0.031465331 | AI135: 0.031467866 | AJ135: 0.031470347 | AK135: 0.031472725
B136: 14FP | C136: Water delivered measured household | D136: 14BL + 14.1FP | E136: Ml/d | F136: 2 | G136: 4.542423568 | H136: 5.369320697 | I136: 5.359169207 | J136: 5.696223234 | K136: 6.011354036 | L136: 6.316811396 | M136: 6.60136449 | N136: 6.817806643 | O136: 7.020068766 | P136: 7.207916139 | Q136: 9.37056004 | R136: 9.483479294 | S136: 9.596502887 | T136: 9.672727776 | U136: 9.747813827 | V136: 9.819988945 | W136: 9.883721454 | X136: 9.948653696 | Y136: 10.013203 | Z136: 10.0751084 | AA136: 10.13910133 | AB136: 10.19581228 | AC136: 10.25781723 | AD136: 10.36332248 | AE136: 10.36450553 | AF136: 10.36490559 | AG136: 10.36206539 | AH136: 10.36221133 | AI136: 10.35956024 | AJ136: 10.35836358 | AK136: 10.35406829
B137: 15FP | C137: Water delivered unmeasured household | D137: 15BL + 15.1FP | E137: Ml/d | F137: 2 | G137: 8.581219055 | H137: 9.065054942 | I137: 8.227147947 | J137: 7.959168129 | K137: 7.688257027 | L137: 7.412737824 | M137: 7.102596088 | N137: 6.808261834 | O137: 6.529306694 | P137: 6.264390914 | Q137: 2.245881215 | R137: 2.035133206 | S137: 1.834413466 | T137: 1.642601455 | U137: 1.458923886 | V137: 1.282065352 | W137: 1.111419778 | X137: 0.946925983 | Y137: 0.788111037 | Z137: 0.633985049 | AA137: 0.483707052 | AB137: 0.335415596 | AC137: 0.18601562 | AD137: 0.047150704 | AE137: 0.047172054 | AF137: 0.047194085 | AG137: 0.047206649 | AH137: 0.047220665 | AI137: 0.047233749 | AJ137: 0.047247684 | AK137: 0.047261316
B138: 16FP | C138: Percentage of consumption driven by climate change | D138: 16BL | E138: % | F138: 1 | G138: =G48 -> 0.008103448 | H138: 0.009827586 | I138: 0.010517241 | J138: 0.013103448 | K138: 0.014827586 | L138: 0.015 | M138: 0.018103448 | N138: 0.019827586 | O138: 0.017413793 | P138: 0.022931034 | Q138: 0.024655172 | R138: 0.023793103 | S138: 0.027931034 | T138: 0.029655172 | U138: 0.03137931 | V138: 0.029827586 | W138: 0.034655172 | X138: 0.03637931 | Y138: 0.030517241 | Z138: 0.039482759 | AA138: 0.041206897 | AB138: 0.03862069 | AC138: 0.04467046 | AD138: 0.044290131 | AE138: 0.045871751 | AF138: 0.047453372 | AG138: 0.027252471 | AH138: 0.029318467 | AI138: 0.027747669 | AJ138: 0.02891367 | AK138: 0.02880675
B139: 17FP | C139: Volume of consumption driven by climate change | D139: 16FP * (12FP + sum(13FP:15FP) - sum (23FP:26FP)) | E139: Ml/d | F139: 2 | G139: =G138*(G133+SUM(G135:G137)-SUM(G145:G148)) -> 0.1761813159 | H139: =H138*(SUM(H133:H137)-SUM(H145:H148)) -> 0.2266107447 | I139: =I138*(SUM(I133:I137)-SUM(I145:I148)) -> 0.2336629205 | J139: =J138*(SUM(J133:J137)-SUM(J145:J148)) -> 0.292117731 | K139: 0.3313229288 | L139: 0.3357403224 | M139: 0.4049057508 | N139: 0.4421102817 | O139: 0.3871093472 | P139: 0.5081883653 | Q139: 0.5107841426 | R139: 0.4908881219 | S139: 0.574138113 | T139: 0.6064842809 | U139: 0.6386754468 | V139: 0.6042780712 | W139: 0.6987180975 | X139: 0.7302032106 | Y139: 0.6099408392 | Z139: 0.7858354902 | AA139: 0.8169401772 | AB139: 0.7624402526 | AC139: 0.8783124898 | AD139: 0.8696324376 | AE139: 0.9007208259 | AF139: 0.9317753676 | AG139: 0.5350296377 | AH139: 0.5755824534 | AI139: 0.5446602196 | AJ139: 0.5675026053 | AK139: 0.5652703929
B140: 18FP | C140: Measured Household - PCC | D140: ((14FP - 25FP) * 1,000,000) / (39FP * 1000) | E140: l/h/d | F140: 1 | G140: =(((G136-G147))*1000000)/((G169)*1000) -> 125.1153676 | H140: =(((H136-H147))*1000000)/((H169)*1000) -> 137.6381567 | I140: 127.6178022 | J140: 127.2524177 | K140: 126.9264296 | L140: 126.631955 | M140: 126.3093679 | N140: 125.339381 | O140: 124.4086433 | P140: 123.518278 | Q140: 111.8084598 | R140: 111.323098 | S140: 110.8636655 | T140: 109.9982062 | U140: 109.1630553 | V140: 108.3922373 | W140: 107.6419493 | X140: 106.9655851 | Y140: 106.3012499 | Z140: 105.6624092 | AA140: 105.0440417 | AB140: 104.387076 | AC140: 103.7586785 | AD140: 103.6318909 | AE140: 103.405465 | AF140: 103.1880328 | AG140: 102.946444 | AH140: 102.7109805 | AI140: 102.4726118 | AJ140: 102.2377918 | AK140: 102.0011802
B141: 19FP | C141: Unmeasured Household - PCC | D141: ((15FP - 26FP) * 1,000,000) / (40FP * 1000) | E141: l/h/d | F141: 1 | G141: =(((G137-G148))*1000000)/((G170)*1000) -> 141.9123331 | H141: 156.3531963 | I141: 145.5785103 | J141: 145.5975861 | K141: 145.6191747 | L141: 145.6410176 | M141: 145.2235345 | N141: 144.8083916 | O141: 144.3895938 | P141: 143.9785875 | Q141: 143.5698599 | R141: 143.6040195 | S141: 143.6441296 | T141: 143.6867275 | U141: 143.7318155 | V141: 143.7746872 | W141: 143.8245125 | X141: 143.8768349 | Y141: 143.9207422 | Z141: 143.9775659 | AA141: 144.036895 | AB141: 144.0925229 | AC141: 144.1568902 | AD141: 144.2207364 | AE141: 144.2868932 | AF141: 144.3553613 | AG141: 144.3947034 | AH141: 144.4370353 | AI141: 144.4771131 | AJ141: 144.5188886 | AK141: 144.5605183
B142: 20FP | C142: Average Household - PCC | D142: (((14FP - 25FP) + (15FP - 26FP)) * 1,000,000)/ ((39FP + 40FP) * 1,000) | E142: l/h/d | F142: 1 | G142: =(((G136-G147)+(G137-G148))*1000000)/((G169+G170)*1000) -> 135.3676647 | H142: =(((H136-H147)+(H137-H148))*1000000)/((H169+H170)*1000) -> 148.5744555 | I142: 137.6629672 | J142: 137.0741073 | K142: 136.5118582 | L142: 135.9613655 | M142: 135.1852196 | N142: 134.0942895 | O142: 133.0239401 | P142: 131.9825065 | Q142: 116.5720992 | R142: 115.7138639 | S142: 114.8838544 | T142: 113.6977674 | U142: 112.5340014 | V142: 111.4246402 | W142: 110.3321025 | X142: 109.3060954 | Y142: 108.2889999 | Z142: 107.2941737 | AA142: 106.3146871 | AB142: 105.2893744 | AC142: 104.2744226 | AD142: 103.7711887 | AE142: 103.5454509 | AF142: 103.3287023 | AG142: 103.0877892 | AH142: 102.8529533 | AI142: 102.6152458 | AJ142: 102.3810611 | AK142: 102.1451282
B143: 21FP | C143: Water taken unbilled | D143: 21BL + 21.1FP | E143: Ml/d | F143: 2 | G143: =G53+G111 -> -0.718472672 | H143: -0.718472672 | I143: -0.718472672 | J143: -0.718472672 | K143: -0.718472672 | L143: -0.718472672 | M143: 0 | N143: 0 | O143: 0 | P143: 0 | Q143: 0 | R143: 0 | S143: 0 | T143: 0 | U143: 0 | V143: 0 | W143: 0 | X143: 0 | Y143: 0 | Z143: 0 | AA143: 0 | AB143: 0 | AC143: 0 | AD143: 0 | AE143: 0 | AF143: 0 | AG143: 0 | AH143: 0 | AI143: 0 | AJ143: 0 | AK143: 0
B144: 22FP | C144: Distribution system operational use | D144: 22BL + 22.1FP | E144: Ml/d | F144: 2 | G144: 1.406565989 | H144: 1.406565989 | I144: 1.406565989 | J144: 1.406565989 | K144: 1.406565989 | L144: 1.406565989 | M144: 0.688093317 | N144: 0.688093317 | O144: 0.688093317 | P144: 0.688093317 | Q144: 0.688093317 | R144: 0.688093317 | S144: 0.688093317 | T144: 0.688093317 | U144: 0.688093317 | V144: 0.688093317 | W144: 0.688093317 | X144: 0.688093317 | Y144: 0.688093317 | Z144: 0.688093317 | AA144: 0.688093317 | AB144: 0.688093317 | AC144: 0.688093317 | AD144: 0.688093317 | AE144: 0.688093317 | AF144: 0.688093317 | AG144: 0.688093317 | AH144: 0.688093317 | AI144: 0.688093317 | AJ144: 0.688093317 | AK144: 0.688093317
B145: 23FP | C145: Measured Non Household - USPL | D145: 23BL + 23.1FP | E145: Ml/d | F145: 2 | G145: 0.033083638 | H145: 0.033570366 | I145: 0.034101634 | J145: 0.034510604 | K145: 0.034877874 | L145: 0.035297954 | M145: 0.035622188 | N145: 0.035950342 | O145: 0.036273643 | P145: 0.036596666 | Q145: 0.036909403 | R145: 0.037215674 | S145: 0.037523263 | T145: 0.037814062 | U145: 0.038088919 | V145: 0.038357947 | W145: 0.038613771 | X145: 0.038862858 | Y145: 0.039102305 | Z145: 0.039334504 | AA145: 0.039558607 | AB145: 0.039776182 | AC145: 0.039987727 | AD145: 0.040191872 | AE145: 0.040393748 | AF145: 0.040590411 | AG145: 0.040781745 | AH145: 0.040965809 | AI145: 0.041145795 | AJ145: 0.041321919 | AK145: 0.04149071
B146: 24FP | C146: Unmeasured Non Household - USPL | D146: 24BL + 24.1FP | E146: Ml/d | F146: 2 | G146: 0.000466066 | H146: 0.000472923 | I146: 0.000480407 | J146: 0.000486168 | K146: 0.000491342 | L146: 0.00049726 | M146: 0.000501828 | N146: 0.000506451 | O146: 0.000511005 | P146: 0.000515556 | Q146: 0.000519961 | R146: 0.000524276 | S146: 0.000528609 | T146: 0.000532706 | U146: 0.000536578 | V146: 0.000540368 | W146: 0.000543972 | X146: 0.000547481 | Y146: 0.000550854 | Z146: 0.000554125 | AA146: 0.000557282 | AB146: 0.000560347 | AC146: 0.000563327 | AD146: 0.000566203 | AE146: 0.000569047 | AF146: 0.000571818 | AG146: 0.000574513 | AH146: 0.000577106 | AI146: 0.000579641 | AJ146: 0.000582123 | AK146: 0.0005845
B147: 25FP | C147: Measured Household - USPL | D147: 25BL + 25.1FP | E147: Ml/d | F147: 2 | G147: 0.237823589 | H147: 0.259673902 | I147: 0.281352273 | J147: 0.302591839 | K147: 0.323202363 | L147: 0.34371754 | M147: 0.364241714 | N147: 0.383195826 | O147: 0.401324904 | P147: 0.418649414 | Q147: 0.460592417 | R147: 0.470709901 | S147: 0.480423093 | T147: 0.489747757 | U147: 0.498698975 | V147: 0.507289955 | W147: 0.515535918 | X147: 0.523450318 | Y147: 0.531044875 | Z147: 0.538332428 | AA147: 0.54532561 | AB147: 0.552034629 | AC147: 0.55847056 | AD147: 0.563816465 | AE147: 0.564292036 | AF147: 0.564747556 | AG147: 0.565183671 | AH147: 0.565599771 | AI147: 0.56599639 | AJ147: 0.566373457 | AK147: 0.566731052
B148: 26FP | C148: Unmeasured Household - USPL | D148: 26BL + 26.1BL | E148: Ml/d | F148: 2 | G148: 0.932726995 | H148: 0.904496857 | I148: 0.876266719 | J148: 0.848036581 | K148: 0.819806443 | L148: 0.791576305 | M148: 0.761928884 | N148: 0.733569258 | O148: 0.706441489 | P148: 0.68049207 | Q148: 0.227162204 | R148: 0.204805233 | S148: 0.183363621 | T148: 0.162799849 | U148: 0.143077938 | V148: 0.124163385 | W148: 0.106023103 | X148: 0.088625362 | Y148: 0.071939734 | Z148: 0.05593704 | AA148: 0.040589296 | AB148: 0.025869669 | AC148: 0.011752424 | AD148: 0.000186245 | AE148: 0.000186245 | AF148: 0.000186245 | AG148: 0.000186245 | AH148: 0.000186245 | AI148: 0.000186245 | AJ148: 0.000186245 | AK148: 0.000186245
B149: 27FP | C149: Void Properties - USPL | D149: 27BL + 27.1FP | E149: Ml/d | F149: 2 | G149: 0.120458424 | H149: 0.122182984 | I149: 0.123858569 | J149: 0.125409165 | K149: 0.126780586 | L149: 0.128124849 | M149: 0.129232112 | N149: 0.130098001 | O149: 0.130925787 | P149: 0.131712748 | Q149: 0.132233911 | R149: 0.132741647 | S149: 0.133236172 | T149: 0.133717437 | U149: 0.134185374 | V149: 0.134639044 | W149: 0.135079328 | X149: 0.135506272 | Y149: 0.135919104 | Z149: 0.136318195 | AA149: 0.136704123 | AB149: 0.137076122 | AC149: 0.137434346 | AD149: 0.13777891 | AE149: 0.138109421 | AF149: 0.138425998 | AG149: 0.138729088 | AH149: 0.139018268 | AI149: 0.139293909 | AJ149: 0.139555963 | AK149: 0.139804483
B150: 28FP | C150: Distribution losses | D150: 28BL + 28.1FP | E150: Ml/d | F150: 2 | G150: 3.309793396 | H150: 3.309793396 | I150: 3.148313476 | J150: 2.986833556 | K150: 2.825353636 | L150: 2.663873716 | M150: 2.663873716 | N150: 2.663873716 | O150: 2.663873716 | P150: 2.663873716 | Q150: 2.663873716 | R150: 2.663873716 | S150: 2.663873716 | T150: 2.663873716 | U150: 2.663873716 | V150: 2.663873716 | W150: 2.663873716 | X150: 2.663873716 | Y150: 2.663873716 | Z150: 2.663873716 | AA150: 2.663873716 | AB150: 2.663873716 | AC150: 2.663873716 | AD150: 2.663873716 | AE150: 2.663873716 | AF150: 2.663873716 | AG150: 2.663873716 | AH150: 2.663873716 | AI150: 2.663873716 | AJ150: 2.663873716 | AK150: 2.663873716
B151: 29FP | C151: Total Leakage | D151: sum (23FP:28FP) | E151: Ml/d | F151: 2 | G151: =SUM(G145:G150) -> 4.634352108 | H151: =SUM(H145:H150) -> 4.630190428 | I151: 4.464373078 | J151: 4.297867913 | K151: 4.130512244 | L151: 3.963087624 | M151: 3.955400442 | N151: 3.947193594 | O151: 3.939350544 | P151: 3.93184017 | Q151: 3.521291612 | R151: 3.509870447 | S151: 3.498948474 | T151: 3.488485527 | U151: 3.4784615 | V151: 3.468864415 | W151: 3.459669808 | X151: 3.450866007 | Y151: 3.442430588 | Z151: 3.434350008 | AA151: 3.426608634 | AB151: 3.419190665 | AC151: 3.4120821 | AD151: 3.406413411 | AE151: 3.407424213 | AF151: 3.408395744 | AG151: 3.409328978 | AH151: 3.410220915 | AI151: 3.411075696 | AJ151: 3.411893423 | AK151: 3.412670706
B152: 30FP | C152: Leakage/property | D152: (29FP * 1,000,000) / (36FP * 1,000) | E152: l/prop/d | F152: 2 | G152: =(G151*1000000)/(G166*1000) -> 97.08092482 | H152: =(H151*1000000)/(H166*1000) -> 95.62146379 | I152: 90.93322934 | J152: 86.46328898 | K152: 82.19968509 | L152: 78.03062931 | M152: 77.20835685 | N152: 76.51861735 | O152: 75.86632127 | P152: 75.25018991 | Q152: 67.10014488 | R152: 66.60045558 | S152: 66.12015721 | T152: 65.6609742 | U152: 65.22199959 | V152: 64.80147845 | W152: 64.399346 | X152: 64.0140554 | Y152: 63.64565747 | Z152: 63.29309726 | AA152: 62.95570367 | AB152: 62.63303151 | AC152: 62.32445494 | AD152: 62.05049851 | AE152: 61.90541592 | AF152: 61.76676011 | AG152: 61.63429305 | AH152: 61.50831724 | AI152: 61.38822968 | AJ152: 61.27394719 | AK152: 61.16579794
B153: 31FP | C153: Measured Non Household - properties | D153: Input | E153: 000's | F153: 2 | G153: 4.157838058 | H153: 4.219008245 | I153: 4.285776226 | J153: 4.337174204 | K153: 4.383331429 | L153: 4.436125654 | M153: 4.476874234 | N153: 4.51811554 | O153: 4.558746826 | P153: 4.59934335 | Q153: 4.63864702 | R153: 4.677138089 | S153: 4.715794868 | T153: 4.752341398 | U153: 4.786884516 | V153: 4.820695026 | W153: 4.852846081 | X153: 4.884150577 | Y153: 4.914243352 | Z153: 4.943425421 | AA153: 4.971589885 | AB153: 4.998933903 | AC153: 5.025520254 | AD153: 5.051176489 | AE153: 5.076547549 | AF153: 5.101263471 | AG153: 5.125309618 | AH153: 5.148442191 | AI153: 5.171062192 | AJ153: 5.193196893 | AK153: 5.214409909
B154: 32FP | C154: Unmeasured Non Household - properties | D154: Input | E154: 000's | F154: 2 | G154: 0.01316194204 | H154: 0.01335558077 | I154: 0.01356693972 | J154: 0.0137296438 | K154: 0.01387575789 | L154: 0.01404288189 | M154: 0.01417187452 | N154: 0.0143024269 | O154: 0.01443104822 | P154: 0.01455955951 | Q154: 0.01468397816 | R154: 0.01480582447 | S154: 0.01492819534 | T154: 0.01504388607 | U154: 0.01515323485 | V154: 0.01526026451 | W154: 0.01536204104 | X154: 0.01546113772 | Y154: 0.01555639861 | Z154: 0.0156487766 | AA154: 0.01573793328 | AB154: 0.01582449278 | AC154: 0.01590865383 | AD154: 0.01598987052 | AE154: 0.01607018448 | AF154: 0.01614842455 | AG154: 0.01622454439 | AH154: 0.01629777225 | AI154: 0.01636937753 | AJ154: 0.01643944655 | AK154: 0.01650659792
B155: 33FP | C155: All void non-households - properties | D155: Input | E155: 000's | F155: 2 | G155: 0 | H155: 0 | I155: 0 | J155: 0 | K155: 0 | L155: 0 | M155: 0 | N155: 0 | O155: 0 | P155: 0 | Q155: 0 | R155: 0 | S155: 0 | T155: 0 | U155: 0 | V155: 0 | W155: 0 | X155: 0 | Y155: 0 | Z155: 0 | AA155: 0 | AB155: 0 | AC155: 0 | AD155: 0 | AE155: 0 | AF155: 0 | AG155: 0 | AH155: 0 | AI155: 0 | AJ155: 0 | AK155: 0
B156: 34FP | C156: Measured households - properties (excl. void) | D156: Year before + sum (34.1BL:34.6BL) | E156: 000's | F156: 2 | G156: 18.127 | H156: =G156+SUM(H157:H162) -> 19.41468822 | I156: =H156+SUM(I157:I162) -> 20.68562995 | J156: =I156+SUM(J157:J162) -> 21.91383375 | K156: 23.0807711 | L156: 24.23842203 | M156: =L156+SUM(M157:M162) -> 25.35007735 | N156: =M156+SUM(N157:N162) -> 26.34735719 | O156: 27.30115022 | P156: 28.21184835 | Q156: 39.59879138 | R156: 40.32518807 | S156: 41.02443503 | T156: 41.69744296 | U156: 42.34507833 | V156: 42.96787321 | W156: 43.56694659 | X156: 44.14309923 | Y156: 44.69681899 | Z156: 45.22895441 | AA156: 45.74039519 | AB156: 46.23154261 | AC156: 46.70308616 | AD156: 47.10688264 | AE156: 47.21989605 | AF156: 47.32814476 | AG156: 47.43178201 | AH156: 47.53066304 | AI156: 47.62491442 | AJ156: 47.71451985 | AK156: 47.7994977
B157: 34.1FP | C157: New build properties - properties | D157: Input (new builds in each year) | E157: 000's | F157: 2 | G157: 0 | H157: 0.589688219 | I157: 0.57294173 | J157: 0.530203804 | K157: 0.468937344 | L157: 0.459650938 | M157: 0.378612499 | N157: 0.296078216 | O157: 0.283049489 | P157: 0.269089683 | Q157: 0.178204128 | R157: 0.173612782 | S157: 0.169095614 | T157: 0.164561505 | U157: 0.160004245 | V157: 0.155125973 | W157: 0.150548581 | X157: 0.145987431 | Y157: 0.141161806 | Z157: 0.136463227 | AA157: 0.131962481 | AB157: 0.127199501 | AC157: 0.122489753 | AD157: 0.117818661 | AE157: 0.113013412 | AF157: 0.108248704 | AG157: 0.103637251 | AH157: 0.098881035 | AI157: 0.094251374 | AJ157: 0.089605434 | AK157: 0.084977844
B158: 34.2FP | C158: Meter optants - properties | D158: Input (meter optants in each year) | E158: 000's | F158: 2 | G158: 0 | H158: 0.668 | I158: 0.668 | J158: 0.668 | K158: 0.668 | L158: 0.668 | M158: 0.707728812 | N158: 0.676987196 | O158: 0.647580903 | P158: 0.619451931 | Q158: 0.592544798 | R158: 0.122483914 | S158: 0.11716358 | T158: 0.112074346 | U158: 0.107206173 | V158: 0.102549458 | W158: 0.098095017 | X158: 0.093834064 | Y158: 0.089758194 | Z158: 0.085859367 | AA158: 0.082129894 | AB158: 0.078562418 | AC158: 0.075149902 | AD158: 0.061408427 | AE158: 0 | AF158: 0 | AG158: 0 | AH158: 0 | AI158: 0 | AJ158: 0 | AK158: 0
B159: 34.3FP | C159: Compulsory metering - properties | D159: Input (compulsory meters in each year) | E159: 000's | F159: 2 | G159: 0 | H159: 0 | I159: 0 | J159: 0 | K159: 0 | L159: 0 | M159: 0 | N159: 0 | O159: 0 | P159: 0 | Q159: 10.595 | R159: 0 | S159: 0 | T159: 0 | U159: 0 | V159: 0 | W159: 0 | X159: 0 | Y159: 0 | Z159: 0 | AA159: 0 | AB159: 0 | AC159: 0 | AD159: 0 | AE159: 0 | AF159: 0 | AG159: 0 | AH159: 0 | AI159: 0 | AJ159: 0 | AK159: 0
B160: 34.4FP | C160: Metering on change of occupancy - properties | D160: Input (change of occupancy meters in each year) | E160: 000's | F160: 2 | G160: 0 | H160: 0 | I160: 0 | J160: 0 | K160: 0 | L160: 0 | M160: 0 | N160: 0 | O160: 0 | P160: 0 | Q160: 0 | R160: 0.425919 | S160: 0.408797056 | T160: 0.392363415 | U160: 0.376590405 | V160: 0.361451471 | W160: 0.346921122 | X160: 0.332974893 | Y160: 0.319589302 | Z160: 0.306741812 | AA160: 0.294410791 | AB160: 0.282575477 | AC160: 0.271215943 | AD160: 0.22237294 | AE160: 0 | AF160: 0 | AG160: 0 | AH160: 0 | AI160: 0 | AJ160: 0 | AK160: 0
B161: 34.5FP | C161: Selective metering - properties | D161: Input (selective meters in each year) | E161: 000's | F161: 2 | G161: 0 | H161: 0.03 | I161: 0.03 | J161: 0.03 | K161: 0.03 | L161: 0.03 | M161: 0.025314 | N161: 0.024214436 | O161: 0.023162633 | P161: 0.022156518 | Q161: 0.021194105 | R161: 0.004380997 | S161: 0.0041907 | T161: 0.004008668 | U161: 0.003834544 | V161: 0.003667983 | W161: 0.003508656 | X161: 0.003356251 | Y161: 0.003210465 | Z161: 0.003071012 | AA161: 0.002937617 | AB161: 0.002810016 | AC161: 0.002687957 | AD161: 0.002196453 | AE161: 0 | AF161: 0 | AG161: 0 | AH161: 0 | AI161: 0 | AJ161: 0 | AK161: 0
B162: 34.6FP | C162: Other changes to existing metering - properties | D162: Input (other changes to meters in each year) | E162: 000's | F162: 2 | G162: 0 | H162: 0 | I162: 0 | J162: 0 | K162: 0 | L162: 0 | M162: 0 | N162: 0 | O162: 0 | P162: 0 | Q162: 0 | R162: 0 | S162: 0 | T162: 0 | U162: 0 | V162: 0 | W162: 0 | X162: 0 | Y162: 0 | Z162: 0 | AA162: 0 | AB162: 0 | AC162: 0 | AD162: 0 | AE162: 0 | AF162: 0 | AG162: 0 | AH162: 0 | AI162: 0 | AJ162: 0 | AK162: 0
B163: 34.7FP | C163: Measured household void properties | D163: Input | E163: 000's | F163: 2 | G163: 1.046101605 | H163: 1.120413555 | I163: 1.193759071 | J163: 1.2646382 | K163: 1.331981667 | L163: 1.39878922 | M163: 1.462942384 | N163: 1.520494988 | O163: 1.575537985 | P163: 1.628093994 | Q163: 2.285229724 | R163: 2.327149774 | S163: 2.367503024 | T163: 2.406342031 | U163: 2.443716798 | V163: 2.479658031 | W163: 2.514230305 | X163: 2.547479833 | Y163: 2.57943477 | Z163: 2.610144083 | AA163: 2.639659117 | AB163: 2.668003029 | AC163: 2.695215611 | AD163: 2.718518537 | AE163: 2.725040494 | AF163: 2.731287482 | AG163: 2.737268344 | AH163: 2.742974728 | AI163: 2.748413935 | AJ163: 2.753585027 | AK163: 2.758489063
B164: 35FP | C164: Unmeasured households - properties (excl. void) | D164: Input | E164: 000's | F164: 2 | G164: 23.062 | H164: 22.364 | I164: 21.666 | J164: 20.968 | K164: 20.27 | L164: 19.572 | M164: 18.83895719 | N164: 18.13775556 | O164: 17.46701202 | P164: 16.82540357 | Q164: 5.616664668 | R164: 5.063880757 | S164: 4.533729421 | T164: 4.025282992 | U164: 3.537651871 | V164: 3.069982959 | W164: 2.621458163 | X164: 2.191292956 | Y164: 1.778734994 | Z164: 1.383062803 | AA164: 1.003584501 | AB164: 0.63963659 | AC164: 0.290582788 | AD164: 0.004604968 | AE164: 0.004604968 | AF164: 0.004604968 | AG164: 0.004604968 | AH164: 0.004604968 | AI164: 0.004604968 | AJ164: 0.004604968 | AK164: 0.004604968
B165: 35.1FP | C165: Unmeasured household void properties | D165: Input | E165: 000's | F165: 2 | G165: 1.330898395 | H165: 1.290617107 | I165: 1.250335818 | J165: 1.210054529 | K165: 1.16977324 | L165: 1.129491952 | M165: 1.087188357 | N165: 1.046722303 | O165: 1.008013974 | P165: 0.9709870181 | Q165: 0.3241353739 | R165: 0.2922344451 | S165: 0.2616396328 | T165: 0.2322974016 | U165: 0.204156413 | V165: 0.1771674353 | W165: 0.1512832566 | X165: 0.1264586019 | Y165: 0.1026500542 | Z165: 0.07981597713 | AA165: 0.05791644269 | AB165: 0.03691316066 | AC165: 0.01676941141 | AD165: 0.00026575076 | AE165: 0.00026575076 | AF165: 0.00026575076 | AG165: 0.00026575076 | AH165: 0.00026575076 | AI165: 0.00026575076 | AJ165: 0.00026575076 | AK165: 0.00026575076
B166: 36FP | C166: Total Resource Zone Properties (incl. voids) | D166: sum (31FP:34FP) + 34.7FP + 35BL + 35.1BL | E166: 000's | F166: 2 | G166: =SUM(G153:G156)+G163+G164+G165 -> 47.737 | H166: =SUM(H153:H156)+H163+H164+H165 -> 48.42208271 | I166: 49.095068 | J166: 49.70743033 | K166: 50.24973319 | L166: 50.78887174 | M166: 51.23021139 | N166: 51.58474801 | O166: 51.92489207 | P166: 52.25023584 | Q166: 52.47815215 | R166: 52.70039696 | S166: 52.91803017 | T166: 53.12875067 | U166: 53.33264116 | V166: 53.53063693 | W166: 53.72212643 | X166: 53.90794233 | Y166: 54.08743856 | Z166: 54.26105147 | AA166: 54.42888307 | AB166: 54.59085378 | AC166: 54.74708288 | AD166: 54.89743826 | AE166: 55.042425 | AF166: 55.18171485 | AG166: 55.31545523 | AH166: 55.44324845 | AI166: 55.56563064 | AJ166: 55.68261194 | AK166: 55.79377398
B167: 37FP | C167: Measured Non Household - Population | D167: Input | E167: 000's | F167: 2 | G167: 1.57800471 | H167: 1.585352159 | I167: 1.613557862 | J167: 1.645474603 | K167: 1.66404507 | L167: 1.680179432 | M167: 1.682338011 | N167: 1.71654481 | O167: 1.734198793 | P167: 1.757228682 | Q167: 1.783391373 | R167: 1.811475614 | S167: 1.867705602 | T167: 1.917770768 | U167: 1.968526272 | V167: 2.00807671 | W167: 2.044844241 | X167: 2.087367272 | Y167: 2.135555942 | Z167: 2.170406435 | AA167: 2.214843382 | AB167: 2.256174641 | AC167: 2.30254691 | AD167: 2.348509672 | AE167: 2.399901108 | AF167: 2.444811145 | AG167: 2.498423056 | AH167: 2.551678692 | AI167: 2.594180709 | AJ167: 2.62943963 | AK167: 2.662521301
B168: 38FP | C168: Unmeasured Non Household - Population | D168: Input | E168: 000's | F168: 2 | G168: 0.00499528992 | H168: 0.00501854881 | I168: 0.005107836037 | J168: 0.005208870827 | K168: 0.005267657006 | L168: 0.005318731514 | M168: 0.005325564654 | N168: 0.005433848791 | O168: 0.005489733771 | P168: 0.005562636579 | Q168: 0.005645456501 | R168: 0.005734359231 | S168: 0.00591235939 | T168: 0.006070844356 | U168: 0.006231514633 | V168: 0.006356714454 | W168: 0.006473104776 | X168: 0.006607714555 | Y168: 0.006760259335 | Z168: 0.006870581133 | AA168: 0.007011249555 | AB168: 0.007142086694 | AC168: 0.00728888152 | AD168: 0.007434380023 | AE168: 0.007597063391 | AF168: 0.007739229416 | AG168: 0.007908941861 | AH168: 0.00807752649 | AI168: 0.008212069751 | AJ168: 0.008323684456 | AK168: 0.00842840692
B169: 39FP | C169: Measured Household - Population | D169: Input | E169: 000's | F169: 2 | G169: 34.405046 | H169: 37.12376653 | I169: 39.78925234 | J169: 42.38529602 | K169: 44.81455669 | L169: 47.16893027 | M169: 49.37973232 | N169: 51.33750277 | O169: 53.20164005 | P169: 54.96568472 | Q169: 79.68956586 | R169: 80.96046152 | S169: 82.22784041 | T169: 83.48299788 | U169: 84.72751908 | V169: 85.91665989 | W169: 87.03099111 | X169: 88.1143535 | Y169: 89.20081497 | Z169: 90.25703699 | AA169: 91.33098428 | AB169: 92.38478572 | AC169: 93.47985929 | AD169: 94.56071807 | AE169: 94.77461848 | AF169: 94.97378491 | AG169: 95.16483856 | AH169: 95.38037232 | AI169: 95.57250159 | AJ169: 95.77661988 | AK169: 95.95317637
B170: 40FP | C170: Unmeasured Household - Population | D170: Input | E170: 000's | F170: 2 | G170: 53.895894 | H170: 52.19310048 | I170: 50.49427427 | J170: 48.84099893 | K170: 47.16721268 | L170: 45.46220308 | M170: 43.66143013 | N170: 41.94986567 | O170: 40.32745749 | P170: 38.78284224 | Q170: 14.06088306 | R170: 12.74565976 | S170: 11.49402937 | T170: 10.29880513 | U170: 9.154869044 | V170: 8.053587105 | W170: 6.990440348 | X170: 5.965523372 | Y170: 4.976150706 | Z170: 4.014847767 | AA170: 3.076418413 | AB170: 2.148244203 | AC170: 1.208844029 | AD170: 0.325642901 | AE170: 0.32564156 | AF170: 0.325639724 | AG170: 0.325638011 | AH170: 0.325639611 | AI170: 0.32563984 | AJ170: 0.325642132 | AK170: 0.325642655
B171: 41FP | C171: Total Resource Zone Population | D171: sum (37FP:40FP) | E171: 000's | F171: 2 | G171: =SUM(G167:G170) -> 89.88394 | H171: =SUM(H167:H170) -> 90.90723772 | I171: 91.90219231 | J171: 92.87697842 | K171: 93.6510821 | L171: 94.31663151 | M171: 94.72882603 | N171: 95.0093471 | O171: 95.26878607 | P171: 95.51131828 | Q171: 95.53948575 | R171: 95.52333125 | S171: 95.59548774 | T171: 95.70564462 | U171: 95.85714591 | V171: 95.98468042 | W171: 96.0727488 | X171: 96.17385186 | Y171: 96.31928188 | Z171: 96.44916177 | AA171: 96.62925732 | AB171: 96.79634665 | AC171: 96.99853911 | AD171: 97.24230502 | AE171: 97.50775821 | AF171: 97.75197501 | AG171: 97.99680857 | AH171: 98.26576815 | AI171: 98.50053421 | AJ171: 98.74002533 | AK171: 98.94976873
B172: 42FP | C172: Average household occupancy rate (excl. voids) | D172: (39FP + 40FP) / (34FP + 35FP) | E172: h/prop | F172: 1 | G172: =(G170+G169)/(G156+G164) -> 2.143799073 | H172: =(H170+H169)/(H156+H164) -> 2.137857142 | I172: 2.131760377 | J172: 2.127387916 | K172: 2.121802382 | L172: 2.114362954 | M172: 2.10552603 | N172: 2.097046914 | O172: 2.089187781 | P172: 2.081577427 | Q172: 2.073415976 | R172: 2.064508563 | S172: 2.057191525 | T172: 2.051098246 | U172: 2.046137789 | V172: 2.04115167 | W172: 2.035606814 | X172: 2.030454538 | Y172: 2.026376398 | Z172: 2.022480261 | AA172: 2.019669769 | AB172: 2.016869034 | AC172: 2.014924679 | AD172: 2.014081189 | AE172: 2.01379068 | AF172: 2.013392951 | AG172: 2.013021705 | AH172: 2.013368514 | AI172: 2.013418205 | AJ172: 2.013915016 | AK172: 2.014028371
B173: 43FP | C173: Total Household Metering penetration (excl. voids) | D173: 34FP / (34FP + 35FP) | E173: % | F173: 1 | G173: =G156/(G156+G164) -> 0.4400932288 | H173: =H156/(H156+H164) -> 0.4647031548 | I173: 0.4884258286 | J173: 0.5110283734 | K173: 0.5324189285 | L173: 0.5532569856 | M173: 0.5736734828 | N173: 0.5922735846 | O173: 0.6098340618 | P173: 0.6264114072 | Q173: 0.8757799841 | R173: 0.888433914 | S173: 0.9004848093 | T173: 0.9119631888 | U173: 0.922897965 | V173: 0.9333161182 | W173: 0.9432442368 | X173: 0.9527069882 | Y173: 0.9617275139 | Z173: 0.9703281925 | AA173: 0.978530187 | AB173: 0.9863533071 | AC173: 0.9938165546 | AD173: 0.9999022538 | AE173: 0.9999024877 | AF173: 0.9999027107 | AG173: 0.9999029233 | AH173: 0.9999031252 | AI173: 0.9999033169 | AJ173: 0.9999034985 | AK173: 0.99990367
B174: 44FP | C174: Total Household Metering penetration (incl. voids) | D174: (34FP) / (34FP + 34.7FP + 35FP + 35.1FP) | E174: % | F174: 1 | G174: =(G156)/(G156+G165+G164+G163) -> 0.4160813478 | H174: =(H156)/(H156+H165+H164+H163) -> 0.4393485342 | I174: 0.4617768777 | J174: 0.4831462075 | K174: 0.5033696747 | L174: 0.5230707887 | M174: 0.5423733435 | N174: 0.5599586071 | O174: 0.5765609689 | P174: 0.5922338395 | Q174: 0.8279966434 | R174: 0.8399601635 | S174: 0.8513535512 | T174: 0.86220566 | U174: 0.872543825 | V174: 0.8823935544 | W174: 0.891779986 | X174: 0.9007264412 | Y174: 0.9092547989 | Z174: 0.9173862168 | AA174: 0.9251407032 | AB174: 0.9325369868 | AC174: 0.9395930328 | AD174: 0.9453466908 | AE174: 0.945346912 | AF174: 0.9453471228 | AG174: 0.9453473238 | AH174: 0.9453475147 | AI174: 0.9453476959 | AJ174: 0.9453478676 | AK174: 0.9453480298
B175: 45FP | C175: Distribution input | D175: sum (12FP:15FP) + 21FP + 22FP + 27FP + 28FP | E175: Ml/d | F175: 2 | G175: =SUM(G135:G137)+G133+G144+G149+G150+G143 -> 27.06397025 | H175: =SUM(H135:H137)+H133+H144+H149+H150+H143 -> 28.37692141 | I175: 27.36959734 | J175: 27.27915696 | K175: 27.1636406 | L175: 27.0338691 | M175: 27.00971652 | N175: 26.93302309 | O175: 26.85748571 | P175: 26.78153184 | Q175: 24.92650435 | R175: 24.82949392 | S175: 24.74260422 | T175: 24.62779325 | U175: 24.5199484 | V175: 24.41599147 | W175: 24.30977812 | X175: 24.21089611 | Y175: 24.11728612 | Z175: 24.02570009 | AA175: 23.94002821 | AB175: 23.84904035 | AC175: 23.76221807 | AD175: 23.72940999 | AE175: 23.73114962 | AF175: 23.73208772 | AG175: 23.7297572 | AH175: 23.730393 | AI175: 23.72821315 | AJ175: 23.72747109 | AK175: 23.72360912
B176: 46FP | C176: Target headroom (climate change component) | D176: Input | E176: Ml/d | F176: 2 | M176: 0.002576703078 | N176: 0.003355978521 | O176: 0.004079265347 | P176: 0.00503326662 | Q176: 0.006068547594 | R176: 0.007177042958 | S176: 0.00834505566 | T176: 0.009718092115 | U176: 0.01103847503 | V176: 0.01252990839 | W176: 0.01181851095 | X176: 0.01081748935 | Y176: 0.01180687267 | Z176: 0.01351496613 | AA176: 0.01497512624 | AB176: 0.01331549526 | AC176: 0.01461730207 | AD176: 0.01626180176 | AE176: 0.01743461983 | AF176: 0.01877015811 | AG176: 0.01605767886 | AH176: 0.01719086775 | AI176: 0.01825770384 | AJ176: 0.02040841924 | AK176: 0.02084509858
B177: 47FP | C177: Target headroom (All other components) | D177: Input | E177: Ml/d | F177: 2 | M177: 1.419405795 | N177: 1.452451886 | O177: 1.44971297 | P177: 1.48930256 | Q177: 1.475372009 | R177: 1.506114455 | S177: 1.508768273 | T177: 1.552875302 | U177: 1.547540483 | V177: 1.57755094 | W177: 1.248808086 | X177: 1.004326741 | Y177: 1.010496467 | Z177: 1.052839075 | AA177: 1.049179439 | AB177: 0.8544213295 | AC177: 0.876793181 | AD177: 0.8766303307 | AE177: 0.9113642693 | AF177: 0.9129064646 | AG177: 0.7242661948 | AH177: 0.7351960825 | AI177: 0.7591802956 | AJ177: 0.8575371589 | AK177: 0.8249211857
B178: 48FP | C178: Target Headroom | D178: 46FP + 47FP | E178: Ml/d | F178: 2 | M178: =M176+M177 -> 1.421982498 | N178: 1.455807865 | O178: 1.453792236 | P178: 1.494335826 | Q178: 1.481440556 | R178: 1.513291498 | S178: 1.517113328 | T178: 1.562593394 | U178: 1.558578958 | V178: 1.590080849 | W178: 1.260626597 | X178: 1.01514423 | Y178: 1.022303339 | Z178: 1.066354041 | AA178: 1.064154565 | AB178: 0.8677368248 | AC178: 0.8914104831 | AD178: 0.8928921324 | AE178: 0.9287988891 | AF178: 0.9316766227 | AG178: 0.7403238736 | AH178: 0.7523869502 | AI178: 0.7774379994 | AJ178: 0.8779455782 | AK178: 0.8457662843
B179: 49FP | C179: Available Headroom | D179: 11FP - 45FP | E179: Ml/d | F179: 2 | M179: =M132-M175 -> 10.52406543 | N179: 10.60075886 | O179: 10.67629624 | P179: 10.75225011 | Q179: 12.6072776 | R179: 12.70428803 | S179: 12.79117773 | T179: 12.9059887 | U179: 13.01383355 | V179: 13.11779048 | W179: 5.97204596 | X179: 6.070927972 | Y179: 6.164537963 | Z179: 6.256123988 | AA179: 6.341795868 | AB179: 6.432783735 | AC179: 6.519606011 | AD179: 6.552414092 | AE179: 6.550674461 | AF179: 6.549736361 | AG179: 6.552066877 | AH179: 6.551431084 | AI179: 6.553610928 | AJ179: 6.554352993 | AK179: 6.558214963
B180: 49.1FP | C180: Available non-potable balance (if applicable) | D180: 1.1FP - 12.1FP | E180: Ml/d | F180: 2 | M180: =M123-M134 -> 0 | N180: 0 | O180: 0 | P180: 0 | Q180: 0 | R180: 0 | S180: 0 | T180: 0 | U180: 0 | V180: 0 | W180: 0 | X180: 0 | Y180: 0 | Z180: 0 | AA180: 0 | AB180: 0 | AC180: 0 | AD180: 0 | AE180: 0 | AF180: 0 | AG180: 0 | AH180: 0 | AI180: 0 | AJ180: 0 | AK180: 0
B181: 50FP | C181: Supply Demand Balance | D181: 49FP - 48FP | E181: Ml/d | F181: 2 | M181: =M179-M178 -> 9.102082928 | N181: 9.144950997 | O181: 9.222504001 | P181: 9.257914283 | Q181: 11.12583705 | R181: 11.19099654 | S181: 11.27406441 | T181: 11.3433953 | U181: 11.45525459 | V181: 11.52770963 | W181: 4.711419362 | X181: 5.055783742 | Y181: 5.142234623 | Z181: 5.189769947 | AA181: 5.277641303 | AB181: 5.56504691 | AC181: 5.628195528 | AD181: 5.659521959 | AE181: 5.621875572 | AF181: 5.618059738 | AG181: 5.811743003 | AH181: 5.799044133 | AI181: 5.776172928 | AJ181: 5.676407415 | AK181: 5.712448678
B184: Water Company | C184: Anglian Water | D184: Version | E184: V1.3
B185: WRZ | C185: AWSHPL | D185: Planning Scenario | E185: DYCP
B203: Table 3d: DYCP - Baseline | C203: Back to top of sheet
B204: WRMP24 reference | C204: Component | D204: Derivation | E204: Unit | F204: Decimal places | G204: 2019-20 | H204: 2020-21 | I204: 2021-22 | J204: 2022-23 | K204: 2023-24 | L204: 2024-25 | M204: 2025-26 | N204: 2026-27 | O204: 2027-28 | P204: 2028-29 | Q204: 2029-30 | R204: 2030-31 | S204: 2031-32 | T204: 2032-33 | U204: 2033-34 | V204: 2034-35 | W204: 2035-36 | X204: 2036-37 | Y204: 2037-38 | Z204: 2038-39 | AA204: 2039-40 | AB204: 2040-41 | AC204: 2041-42 | AD204: 2042-43 | AE204: 2043-44 | AF204: 2044-45 | AG204: 2045-46 | AH204: 2046-47 | AI204: 2047-48 | AJ204: 2048-49 | AK204: 2049-50 | AL204: 2050-51 | AM204: 2051-52 | AN204: 2052-53 | AO204: 2053-54 | AP204: 2054-55 | AQ204: 2055-56 | AR204: 2056-57 | AS204: 2057-58 | AT204: 2058-59 | AU204: 2059-60 | AV204: 2060-61 | AW204: 2061-62 | AX204: 2062-63 | AY204: 2063-64 | AZ204: 2064-65 | BA204: 2065-66 | BB204: 2066-67 | BC204: 2067-68 | BD204: 2068-69 | BE204: 2069-70 | BF204: 2070-71 | BG204: 2071-72 | BH204: 2072-73 | BI204: 2073-74 | BJ204: 2074-75 | BK204: 2075-76 | BL204: 2076-77 | BM204: 2077-78 | BN204: 2078-79 | BO204: 2079-80 | BP204: 2080-81 | BQ204: 2081-82 | BR204: 2082-83 | BS204: 2083-84 | BT204: 2084-85 | BU204: 2085-86 | BV204: 2086-87 | BW204: 2087-88 | BX204: 2088-89 | BY204: 2089-90 | BZ204: 2090-91 | CA204: 2091-92 | CB204: 2092-93 | CC204: 2093-94 | CD204: 2094-95 | CE204: 2095-96 | CF204: 2096-97 | CG204: 2097-98 | CH204: 2098-99 | CI204: 2099-100
B205: 1BL | C205: Raw water abstracted | D205: Input | E205: Ml/d | F205: 2 | M205: 0 | N205: 0 | O205: 0 | P205: 0 | Q205: 0 | R205: 0 | S205: 0 | T205: 0 | U205: 0 | V205: 0 | W205: 0 | X205: 0 | Y205: 0 | Z205: 0 | AA205: 0 | AB205: 0 | AC205: 0 | AD205: 0 | AE205: 0 | AF205: 0 | AG205: 0 | AH205: 0 | AI205: 0 | AJ205: 0 | AK205: 0
B206: 1.1BL | C206: Non-potable water supplies | D206: Input | E206: Ml/d | F206: 2 | M206: 0 | N206: 0 | O206: 0 | P206: 0 | Q206: 0 | R206: 0 | S206: 0 | T206: 0 | U206: 0 | V206: 0 | W206: 0 | X206: 0 | Y206: 0 | Z206: 0 | AA206: 0 | AB206: 0 | AC206: 0 | AD206: 0 | AE206: 0 | AF206: 0 | AG206: 0 | AH206: 0 | AI206: 0 | AJ206: 0 | AK206: 0
B207: 2BL | C207: Raw water imported | D207: Input | E207: Ml/d | F207: 2 | M207: 0 | N207: 0 | O207: 0 | P207: 0 | Q207: 0 | R207: 0 | S207: 0 | T207: 0 | U207: 0 | V207: 0 | W207: 0 | X207: 0 | Y207: 0 | Z207: 0 | AA207: 0 | AB207: 0 | AC207: 0 | AD207: 0 | AE207: 0 | AF207: 0 | AG207: 0 | AH207: 0 | AI207: 0 | AJ207: 0 | AK207: 0
B208: 3BL | C208: Potable water imported | D208: Input | E208: Ml/d | F208: 2 | M208: 0 | N208: 0 | O208: 0 | P208: 0 | Q208: 0 | R208: 0 | S208: 0 | T208: 0 | U208: 0 | V208: 0 | W208: 0 | X208: 0 | Y208: 0 | Z208: 0 | AA208: 0 | AB208: 0 | AC208: 0 | AD208: 0 | AE208: 0 | AF208: 0 | AG208: 0 | AH208: 0 | AI208: 0 | AJ208: 0 | AK208: 0
B209: 4BL | C209: Raw water exported enter as -ve | D209: Input | E209: Ml/d | F209: 2 | M209: 0 | N209: 0 | O209: 0 | P209: 0 | Q209: 0 | R209: 0 | S209: 0 | T209: 0 | U209: 0 | V209: 0 | W209: 0 | X209: 0 | Y209: 0 | Z209: 0 | AA209: 0 | AB209: 0 | AC209: 0 | AD209: 0 | AE209: 0 | AF209: 0 | AG209: 0 | AH209: 0 | AI209: 0 | AJ209: 0 | AK209: 0
B210: 5BL | C210: Potable water exported enter as -ve | D210: Input | E210: Ml/d | F210: 2 | M210: 0 | N210: 0 | O210: 0 | P210: 0 | Q210: 0 | R210: 0 | S210: 0 | T210: 0 | U210: 0 | V210: 0 | W210: 0 | X210: 0 | Y210: 0 | Z210: 0 | AA210: 0 | AB210: 0 | AC210: 0 | AD210: 0 | AE210: 0 | AF210: 0 | AG210: 0 | AH210: 0 | AI210: 0 | AJ210: 0 | AK210: 0
B211: 6BL | C211: Deployable Output before forecast changes | D211: Input | E211: Ml/d | F211: 2 | M211: 47.25587467 | N211: 47.25587467 | O211: 47.25587467 | P211: 47.25587467 | Q211: 47.25587467 | R211: 47.25587467 | S211: 47.25587467 | T211: 47.25587467 | U211: 47.25587467 | V211: 47.25587467 | W211: 47.25587467 | X211: 47.25587467 | Y211: 47.25587467 | Z211: 47.25587467 | AA211: 47.25587467 | AB211: 47.25587467 | AC211: 47.25587467 | AD211: 47.25587467 | AE211: 47.25587467 | AF211: 47.25587467 | AG211: 47.25587467 | AH211: 47.25587467 | AI211: 47.25587467 | AJ211: 47.25587467 | AK211: 47.25587467
B212: 6.1BL | C212: Deployable Output post forecast changes | D212: 6BL + 7BL | E212: Ml/d | F212: 2 | G212: =G211+G213 -> 0 | H212: =H211+H213 -> 0 | I212: 0 | J212: 0 | K212: 0 | L212: 0 | M212: 47.25587467 | N212: 47.25587467 | O212: 47.25587467 | P212: 47.25587467 | Q212: 47.25587467 | R212: 47.25587467 | S212: 47.25587467 | T212: 47.25587467 | U212: 47.25587467 | V212: 47.25587467 | W212: 47.25587467 | X212: 47.25587467 | Y212: 47.25587467 | Z212: 47.25587467 | AA212: 47.25587467 | AB212: 47.25587467 | AC212: 47.25587467 | AD212: 47.25587467 | AE212: 47.25587467 | AF212: 47.25587467 | AG212: 47.25587467 | AH212: 47.25587467 | AI212: 47.25587467 | AJ212: 47.25587467 | AK212: 47.25587467
B213: 7BL | C213: Baseline forecast changes to Deployable Output | D213: sum (7.1BL:7.6BL) | E213: Ml/d | F213: 2 | G213: =SUM(G214:G219) -> 0 | H213: =SUM(H214:H219) -> 0 | I213: 0 | J213: 0 | K213: 0 | L213: 0 | M213: 0 | N213: 0 | O213: 0 | P213: 0 | Q213: 0 | R213: 0 | S213: 0 | T213: 0 | U213: 0 | V213: 0 | W213: 0 | X213: 0 | Y213: 0 | Z213: 0 | AA213: 0 | AB213: 0 | AC213: 0 | AD213: 0 | AE213: 0 | AF213: 0 | AG213: 0 | AH213: 0 | AI213: 0 | AJ213: 0 | AK213: 0
B214: 7.1BL | C214: Change in DO due to climate change | D214: Input | E214: Ml/d | F214: 2 | M214: 0 | N214: 0 | O214: 0 | P214: 0 | Q214: 0 | R214: 0 | S214: 0 | T214: 0 | U214: 0 | V214: 0 | W214: 0 | X214: 0 | Y214: 0 | Z214: 0 | AA214: 0 | AB214: 0 | AC214: 0 | AD214: 0 | AE214: 0 | AF214: 0 | AG214: 0 | AH214: 0 | AI214: 0 | AJ214: 0 | AK214: 0
B215: 7.2BL | C215: Total confirmed DO reductions to restore sustainable abstraction enter as -ve | D215: Input | E215: Ml/d | F215: 2 | M215: 0 | N215: 0 | O215: 0 | P215: 0 | Q215: 0 | R215: 0 | S215: 0 | T215: 0 | U215: 0 | V215: 0 | W215: 0 | X215: 0 | Y215: 0 | Z215: 0 | AA215: 0 | AB215: 0 | AC215: 0 | AD215: 0 | AE215: 0 | AF215: 0 | AG215: 0 | AH215: 0 | AI215: 0 | AJ215: 0 | AK215: 0
B216: 7.3BL | C216: Total expected DO reductions to restore sustainable abstraction (Environmental Destination) (excl. any confirmed reductions) enter as -ve | D216: Input | E216: Ml/d | F216: 2 | M216: 0 | N216: 0 | O216: 0 | P216: 0 | Q216: 0 | R216: 0 | S216: 0 | T216: 0 | U216: 0 | V216: 0 | W216: 0 | X216: 0 | Y216: 0 | Z216: 0 | AA216: 0 | AB216: 0 | AC216: 0 | AD216: 0 | AE216: 0 | AF216: 0 | AG216: 0 | AH216: 0 | AI216: 0 | AJ216: 0 | AK216: 0
B217: 7.4BL | C217: Change in DO from prolonged Outage reduction enter as -ve | D217: Input | E217: Ml/d | F217: 2 | M217: 0 | N217: 0 | O217: 0 | P217: 0 | Q217: 0 | R217: 0 | S217: 0 | T217: 0 | U217: 0 | V217: 0 | W217: 0 | X217: 0 | Y217: 0 | Z217: 0 | AA217: 0 | AB217: 0 | AC217: 0 | AD217: 0 | AE217: 0 | AF217: 0 | AG217: 0 | AH217: 0 | AI217: 0 | AJ217: 0 | AK217: 0
B218: 7.5BL | C218: Change in DO from drought measures | D218: Zero for baseline | E218: Ml/d | F218: 2 | G218: 0 | H218: 0 | I218: 0 | J218: 0 | K218: 0 | L218: 0 | M218: 0 | N218: 0 | O218: 0 | P218: 0 | Q218: 0 | R218: 0 | S218: 0 | T218: 0 | U218: 0 | V218: 0 | W218: 0 | X218: 0 | Y218: 0 | Z218: 0 | AA218: 0 | AB218: 0 | AC218: 0 | AD218: 0 | AE218: 0 | AF218: 0 | AG218: 0 | AH218: 0 | AI218: 0 | AJ218: 0 | AK218: 0
B219: 7.6BL | C219: Total other changes to DO (specify e.g. Nitrates) | D219: Input | E219: Ml/d | F219: 2 | M219: 0 | N219: 0 | O219: 0 | P219: 0 | Q219: 0 | R219: 0 | S219: 0 | T219: 0 | U219: 0 | V219: 0 | W219: 0 | X219: 0 | Y219: 0 | Z219: 0 | AA219: 0 | AB219: 0 | AC219: 0 | AD219: 0 | AE219: 0 | AF219: 0 | AG219: 0 | AH219: 0 | AI219: 0 | AJ219: 0 | AK219: 0
B220: 8BL | C220: Raw water losses, treatment works losses and operational use | D220: Input | E220: Ml/d | F220: 2 | M220: 2.255874674 | N220: 2.255874674 | O220: 2.255874674 | P220: 2.255874674 | Q220: 2.255874674 | R220: 2.255874674 | S220: 2.255874674 | T220: 2.255874674 | U220: 2.255874674 | V220: 2.255874674 | W220: 2.255874674 | X220: 2.255874674 | Y220: 2.255874674 | Z220: 2.255874674 | AA220: 2.255874674 | AB220: 2.255874674 | AC220: 2.255874674 | AD220: 2.255874674 | AE220: 2.255874674 | AF220: 2.255874674 | AG220: 2.255874674 | AH220: 2.255874674 | AI220: 2.255874674 | AJ220: 2.255874674 | AK220: 2.255874674
B221: 9BL | C221: Total Outage Allowance | D221: Input | E221: Ml/d | F221: 2 | M221: 1.127 | N221: 1.127 | O221: 1.127 | P221: 1.127 | Q221: 1.127 | R221: 1.127 | S221: 1.127 | T221: 1.127 | U221: 1.127 | V221: 1.127 | W221: 1.127 | X221: 1.127 | Y221: 1.127 | Z221: 1.127 | AA221: 1.127 | AB221: 1.127 | AC221: 1.127 | AD221: 1.127 | AE221: 1.127 | AF221: 1.127 | AG221: 1.127 | AH221: 1.127 | AI221: 1.127 | AJ221: 1.127 | AK221: 1.127
B222: 10BL | C222: Water Available For Use (own sources) | D222: (6BL + 7BL) - (8BL + 9BL) | E222: Ml/d | F222: 2 | G222: =(G211+G213)-(G220+G221) -> 0 | H222: =(H211+H213)-(H220+H221) -> 0 | I222: 0 | J222: 0 | K222: 0 | L222: 0 | M222: 43.873 | N222: 43.873 | O222: 43.873 | P222: 43.873 | Q222: 43.873 | R222: 43.873 | S222: 43.873 | T222: 43.873 | U222: 43.873 | V222: 43.873 | W222: 43.873 | X222: 43.873 | Y222: 43.873 | Z222: 43.873 | AA222: 43.873 | AB222: 43.873 | AC222: 43.873 | AD222: 43.873 | AE222: 43.873 | AF222: 43.873 | AG222: 43.873 | AH222: 43.873 | AI222: 43.873 | AJ222: 43.873 | AK222: 43.873
B223: 11BL | C223: Total Water Available For Use | D223: 10BL + sum (2BL:5BL) | E223: Ml/d | F223: 2 | G223: =G222+SUM(G207:G210) -> 0 | H223: =H222+SUM(H207:H210) -> 0 | I223: 0 | J223: 0 | K223: 0 | L223: 0 | M223: 43.873 | N223: 43.873 | O223: 43.873 | P223: 43.873 | Q223: 43.873 | R223: 43.873 | S223: 43.873 | T223: 43.873 | U223: 43.873 | V223: 43.873 | W223: 43.873 | X223: 43.873 | Y223: 43.873 | Z223: 43.873 | AA223: 43.873 | AB223: 43.873 | AC223: 43.873 | AD223: 43.873 | AE223: 43.873 | AF223: 43.873 | AG223: 43.873 | AH223: 43.873 | AI223: 43.873 | AJ223: 43.873 | AK223: 43.873
B224: 12BL | C224: Water delivered measured non-household | D224: Input Note - consumption & uspl | E224: Ml/d | F224: 2 | G224: 12.06946821 | H224: 12.06995494 | I224: 12.07048621 | J224: 12.07089518 | K224: 12.07126245 | L224: 12.07168253 | M224: 12.07200676 | N224: 12.07233492 | O224: 12.07265822 | P224: 12.07298124 | Q224: 12.07329398 | R224: 12.07360025 | S224: 12.07390784 | T224: 12.07419864 | U224: 12.07447349 | V224: 12.07474252 | W224: 12.07499835 | X224: 12.07524743 | Y224: 12.07548688 | Z224: 12.07571908 | AA224: 12.07594318 | AB224: 12.07616076 | AC224: 12.0763723 | AD224: 12.07657645 | AE224: 12.07677832 | AF224: 12.07697499 | AG224: 12.07716632 | AH224: 12.07735038 | AI224: 12.07753037 | AJ224: 12.07770649 | AK224: 12.07787528
B225: 12.1BL | C225: Non-potable water consumption | D225: Input | E225: Ml/d | F225: 2 | M225: 0 | N225: 0 | O225: 0 | P225: 0 | Q225: 0 | R225: 0 | S225: 0 | T225: 0 | U225: 0 | V225: 0 | W225: 0 | X225: 0 | Y225: 0 | Z225: 0 | AA225: 0 | AB225: 0 | AC225: 0 | AD225: 0 | AE225: 0 | AF225: 0 | AG225: 0 | AH225: 0 | AI225: 0 | AJ225: 0 | AK225: 0
B226: 13BL | C226: Water delivered unmeasured non-household | D226: Input Note - consumption & uspl | E226: Ml/d | F226: 2 | G226: 0.03135429 | H226: 0.031361147 | I226: 0.031368632 | J226: 0.031374393 | K226: 0.031379567 | L226: 0.031385485 | M226: 0.031390052 | N226: 0.031394675 | O226: 0.03139923 | P226: 0.03140378 | Q226: 0.031408186 | R226: 0.031412501 | S226: 0.031416834 | T226: 0.03142093 | U226: 0.031424802 | V226: 0.031428592 | W226: 0.031432196 | X226: 0.031435705 | Y226: 0.031439078 | Z226: 0.03144235 | AA226: 0.031445507 | AB226: 0.031448572 | AC226: 0.031451552 | AD226: 0.031454428 | AE226: 0.031457272 | AF226: 0.031460042 | AG226: 0.031462738 | AH226: 0.031465331 | AI226: 0.031467866 | AJ226: 0.031470347 | AK226: 0.031472725
B227: 14BL | C227: Water delivered measured household | D227: Input Note - consumption & uspl | E227: Ml/d | F227: 2 | G227: 5.76355457 | H227: 6.819992078 | I227: 6.802275421 | J227: 7.230718051 | K227: 7.631666227 | L227: 8.020775744 | M227: 8.384272065 | N227: 8.661087264 | O227: 8.921029247 | P227: 9.162461332 | Q227: 9.352983607 | R227: 9.551300581 | S227: 9.745510514 | T227: 9.887970114 | U227: 10.0252738 | V227: 10.15260231 | W227: 10.26746162 | X227: 10.3807904 | Y227: 10.49099866 | Z227: 10.59347051 | AA227: 10.69405139 | AB227: 10.78110515 | AC227: 10.86490387 | AD227: 11.00721421 | AE227: 11.14613323 | AF227: 11.27852411 | AG227: 11.29141267 | AH227: 11.30701935 | AI227: 11.31629174 | AJ227: 11.32694314 | AK227: 11.33520439
B228: 15BL | C228: Water delivered unmeasured household | D228: Input Note - consumption & uspl | E228: Ml/d | F228: 2 | G228: 11.26435515 | H228: 11.92978356 | I228: 10.80988475 | J228: 10.45993669 | K228: 10.10625639 | L228: 9.746578264 | M228: 9.340342362 | N228: 8.955025326 | O228: 8.590708608 | P228: 8.244314108 | Q228: 7.912612784 | R228: 7.615951632 | S228: 7.338102316 | T228: 7.076108039 | U228: 6.829111856 | V228: 6.593256403 | W228: 6.366446345 | X228: 6.150587106 | Y228: 5.947204158 | Z228: 5.753061898 | AA228: 5.570216297 | AB228: 5.395423026 | AC228: 5.229955369 | AD228: 5.074134082 | AE228: 4.926199979 | AF228: 4.784455715 | AG228: 4.788953749 | AH228: 4.794953565 | AI228: 4.799101311 | AJ228: 4.804285065 | AK228: 4.809261192
B229: 16BL | C229: Percentage of consumption driven by climate change | D229: Input | E229: % | F229: 1 | G229: 0.01551724138 | H229: 0.01775862069 | I229: 0.0225862069 | J229: 0.02362068966 | K229: 0.02775862069 | L229: 0.0324137931 | M229: 0.0324137931 | N229: 0.03517241379 | O229: 0.04620689655 | P229: 0.04137931034 | Q229: 0.04413793103 | R229: 0.04948275862 | S229: 0.05534482759 | T229: 0.05293103448 | U229: 0.05568965517 | V229: 0.065 | W229: 0.065 | X229: 0.06448275862 | Y229: 0.07862068966 | Z229: 0.07051724138 | AA229: 0.0774137931 | AB229: 0.08482758621 | AC229: 0.0791778495 | AD229: 0.08658145065 | AE229: 0.08967470698 | AF229: 0.09276796331 | AG229: 0.09253762339 | AH229: 0.09335437193 | AI229: 0.06527168813 | AJ229: 0.06815715149 | AK229: 0.08035054911
B230: 17BL | C230: Volume of consumption driven by climate change | D230: 16BL * (12BL + sum(13BL:15BL) - sum (23BL:26BL)) | E230: Ml/d | F230: 2 | G230: =G229*(G224+SUM(G226:G228)-SUM(G236:G239)) -> 0.4333132541 | H230: =H229*(SUM(H224:H228)-SUM(H236:H239)) -> 0.526594207 | I230: 0.6441995916 | J230: 0.6757241344 | K230: 0.7956227663 | L230: 0.9302542409 | M230: 0.9291646078 | N230: 1.00475699 | O230: 1.315567838 | P230: 1.174134073 | Q230: 1.246578367 | R230: 1.393092276 | S230: 1.553954143 | T230: 1.48026858 | U230: 1.551723804 | V230: 1.804554407 | W230: 1.797719569 | X230: 1.77722075 | Y230: 2.160039708 | Z230: 1.931355962 | AA230: 2.114309204 | AB230: 2.309806584 | AC230: 2.149907736 | AD230: 2.350191882 | AE230: 2.433768225 | AF230: 2.517267391 | AG230: 2.512527542 | AH230: 2.536625705 | AI230: 1.774375598 | AJ230: 1.853831935 | AK230: 2.186478257
B231: 18BL | C231: Measured Household - PCC | D231: ((14BL - 25BL) * 1,000,000) / (39BL *1,000) | E231: l/h/d | F231: 1 | G231: =(((G227-G238))*1000000)/((G260)*1000) -> 160.6081556 | H231: =(((H227-H238))*1000000)/((H260)*1000) -> 176.7147784 | I231: 163.8865464 | J231: 163.4558883 | K231: 163.0823644 | L231: 162.7566739 | M231: 162.4154278 | N231: 161.2445287 | O231: 160.1398817 | P231: 159.0776493 | Q231: 157.9862796 | R231: 157.3717712 | S231: 156.8061353 | T231: 155.5095731 | U231: 154.2741095 | V231: 153.0970467 | W231: 151.9663407 | X231: 150.9665621 | Y231: 150.0072606 | Z231: 149.0754031 | AA231: 148.1788071 | AB231: 147.2220795 | AC231: 146.2844345 | AD231: 146.2068396 | AE231: 146.1332302 | AF231: 146.0651703 | AG231: 145.8385257 | AH231: 145.6159651 | AI231: 145.349879 | AJ231: 145.0894168 | AK231: 144.845389
B232: 19BL | C232: Unmeasured Household - PCC | D232: ((15BL - 26BL) * 1,000,000) / (40BL *1,000) | E232: l/h/d | F232: 1 | G232: =(((G228-G239))*1000000)/((G261)*1000) -> 191.6960159 | H232: 211.2403096 | I232: 196.7276127 | J232: 196.7998264 | K232: 196.8835854 | L232: 196.9768588 | M232: 196.4757786 | N232: 195.9828938 | O232: 195.5061789 | P232: 195.0301113 | Q232: 194.5620199 | R232: 194.7042578 | S232: 194.8659826 | T232: 195.0264611 | U232: 195.1957357 | V232: 195.3801407 | W232: 195.5740765 | X232: 195.7704927 | Y232: 195.9830157 | Z232: 196.1974816 | AA232: 196.4288839 | AB232: 196.6697837 | AC232: 196.9117514 | AD232: 197.1675636 | AE232: 197.4327112 | AF232: 197.707215 | AG232: 197.9415106 | AH232: 198.1816053 | AI232: 198.3639253 | AJ232: 198.5542762 | AK232: 198.7683082
B233: 20BL | C233: Average Household - PCC | D233: (((14BL - 25BL) + (15BL - 26BL)) * 1,000,000) / ((39BL + 40BL) *1,000) | E233: l/h/d | F233: 1 | G233: =(((G227-G238)+(G228-G239))*1000000)/((G260+G261)*1000) -> 179.5831294 | H233: =(((H227-H238)+(H228-H239))*1000000)/((H260+H261)*1000) -> 196.8900776 | I233: 182.2540811 | J233: 181.3076628 | K233: 180.4152489 | L233: 179.5515132 | M233: 178.39893 | N233: 176.8658263 | O233: 175.3889634 | P233: 173.9508287 | Q233: 172.5380359 | R233: 171.6623345 | S233: 170.8288935 | T233: 169.5287666 | U233: 168.2583775 | V233: 167.0220437 | W233: 165.8127418 | X233: 164.6888275 | Y233: 163.5953798 | Z233: 162.5208746 | AA233: 161.4758593 | AB233: 160.3900184 | AC233: 159.3180648 | AD233: 158.8955001 | AE233: 158.4926282 | AF233: 158.1103045 | AG233: 157.9648998 | AH233: 157.824305 | AI233: 157.6379585 | AJ233: 157.4583373 | AK233: 157.2980166
B234: 21BL | C234: Water taken unbilled | D234: Input | E234: Ml/d | F234: 2 | G234: -0.718472672 | H234: -0.718472672 | I234: -0.718472672 | J234: -0.718472672 | K234: -0.718472672 | L234: -0.718472672 | M234: -0.718472672 | N234: -0.718472672 | O234: -0.718472672 | P234: -0.718472672 | Q234: -0.718472672 | R234: -0.718472672 | S234: -0.718472672 | T234: -0.718472672 | U234: -0.718472672 | V234: -0.718472672 | W234: -0.718472672 | X234: -0.718472672 | Y234: -0.718472672 | Z234: -0.718472672 | AA234: -0.718472672 | AB234: -0.718472672 | AC234: -0.718472672 | AD234: -0.718472672 | AE234: -0.718472672 | AF234: -0.718472672 | AG234: -0.718472672 | AH234: -0.718472672 | AI234: -0.718472672 | AJ234: -0.718472672 | AK234: -0.718472672
... 159 more rows

Sheet NWLBWF
B2: Back to title page
B3: Table 3a: DYAA - Baseline
B4: Table 3b: DYAA - Final plan Options
B5: Table 3c: DYAA - Final plan
B6: Table 3d: DYCP - Baseline
B7: Table 3e: DYCP - Final plan Options
B8: Table 3f: DYCP - Final plan
B13: Water Company | C13: Northumbrian Water | D13: Version | E13: 5
B14: WRZ | C14: NWLBWF | D14: Planning Scenario | E14: DYAA
B22: Table 3a: DYAA - Baseline | C22: Back to top of sheet
B23: WRMP24 reference | C23: Component | D23: Derivation | E23: Unit | F23: Decimal places | G23: 2019-20 | H23: 2020-21 | I23: 2021-22 | J23: 2022-23 | K23: 2023-24 | L23: 2024-25 | M23: 2025-26 | N23: 2026-27 | O23: 2027-28 | P23: 2028-29 | Q23: 2029-30 | R23: 2030-31 | S23: 2031-32 | T23: 2032-33 | U23: 2033-34 | V23: 2034-35 | W23: 2035-36 | X23: 2036-37 | Y23: 2037-38 | Z23: 2038-39 | AA23: 2039-40 | AB23: 2040-41 | AC23: 2041-42 | AD23: 2042-43 | AE23: 2043-44 | AF23: 2044-45 | AG23: 2045-46 | AH23: 2046-47 | AI23: 2047-48 | AJ23: 2048-49 | AK23: 2049-50 | AL23: 2050-51 | AM23: 2051-52 | AN23: 2052-53 | AO23: 2053-54 | AP23: 2054-55 | AQ23: 2055-56 | AR23: 2056-57 | AS23: 2057-58 | AT23: 2058-59 | AU23: 2059-60 | AV23: 2060-61 | AW23: 2061-62 | AX23: 2062-63 | AY23: 2063-64 | AZ23: 2064-65 | BA23: 2065-66 | BB23: 2066-67 | BC23: 2067-68 | BD23: 2068-69 | BE23: 2069-70 | BF23: 2070-71 | BG23: 2071-72 | BH23: 2072-73 | BI23: 2073-74 | BJ23: 2074-75 | BK23: 2075-76 | BL23: 2076-77 | BM23: 2077-78 | BN23: 2078-79 | BO23: 2079-80 | BP23: 2080-81 | BQ23: 2081-82 | BR23: 2082-83 | BS23: 2083-84 | BT23: 2084-85 | BU23: 2085-86 | BV23: 2086-87 | BW23: 2087-88 | BX23: 2088-89 | BY23: 2089-90 | BZ23: 2090-91 | CA23: 2091-92 | CB23: 2092-93 | CC23: 2093-94 | CD23: 2094-95 | CE23: 2095-96 | CF23: 2096-97 | CG23: 2097-98 | CH23: 2098-99 | CI23: 2099-100
B24: 1BL | C24: Raw water abstracted | D24: Input | E24: Ml/d | F24: 2 | H24: 9.133349892 | I24: 9.883279064 | J24: 9.752648866 | K24: 9.61143838 | L24: 9.463757138 | M24: 9.57894044 | N24: 9.643733817 | O24: 9.704233225 | P24: 9.728976332 | Q24: 9.756245468 | R24: 9.77344253 | S24: 9.76279927 | T24: 9.747268284 | U24: 9.721941659 | V24: 9.701547 | W24: 9.683069064 | X24: 9.665158315 | Y24: 9.647594792 | Z24: 9.631025675 | AA24: 9.614552423 | AB24: 9.599284308 | AC24: 9.584746738 | AD24: 9.570814834 | AE24: 9.569021333 | AF24: 9.56780293 | AG24: 9.568343009 | AH24: 9.57023834 | AI24: 9.572015501 | AJ24: 9.574565094 | AK24: 9.577579241 | AL24: 9.579220209 | AM24: 9.581480849 | AN24: 9.583233256 | AO24: 9.584902536 | AP24: 9.587887608 | AQ24: 9.592492499 | AR24: 9.596351569 | AS24: 9.600581769 | AT24: 9.606536859 | AU24: 9.613114689 | AV24: 9.620383955 | AW24: 9.62785771 | AX24: 9.636399425 | AY24: 9.644940232 | AZ24: 9.653083205 | BA24: 9.661308192 | BB24: 9.669857391 | BC24: 9.678646539 | BD24: 9.687235922 | BE24: 9.69522991 | BF24: 9.702706876 | BG24: 9.710109173 | BH24: 9.717151641 | BI24: 9.72383907 | BJ24: 9.73029486 | BK24: 9.736406873 | BL24: 9.742150993 | BM24: 9.748183609 | BN24: 9.754596176 | BO24: 9.761019727 | BP24: 9.768116855 | BQ24: 9.775242543 | BR24: 9.782976794 | BS24: 9.790630041 | BT24: 9.798479079
B25: 1.1BL | C25: Non-potable water supplies (if applicable) | D25: Input | E25: Ml/d | F25: 2 | H25: 0 | I25: 0 | J25: 0 | K25: 0 | L25: 0 | M25: 0 | N25: 0 | O25: 0 | P25: 0 | Q25: 0 | R25: 0 | S25: 0 | T25: 0 | U25: 0 | V25: 0 | W25: 0 | X25: 0 | Y25: 0 | Z25: 0 | AA25: 0 | AB25: 0 | AC25: 0 | AD25: 0 | AE25: 0 | AF25: 0 | AG25: 0 | AH25: 0 | AI25: 0 | AJ25: 0 | AK25: 0 | AL25: 0 | AM25: 0 | AN25: 0 | AO25: 0 | AP25: 0 | AQ25: 0 | AR25: 0 | AS25: 0 | AT25: 0 | AU25: 0 | AV25: 0 | AW25: 0 | AX25: 0 | AY25: 0 | AZ25: 0 | BA25: 0 | BB25: 0 | BC25: 0 | BD25: 0 | BE25: 0 | BF25: 0 | BG25: 0 | BH25: 0 | BI25: 0 | BJ25: 0 | BK25: 0 | BL25: 0 | BM25: 0 | BN25: 0 | BO25: 0 | BP25: 0 | BQ25: 0 | BR25: 0 | BS25: 0 | BT25: 0
B26: 2BL | C26: Raw water imported | D26: Input | E26: Ml/d | F26: 2 | H26: 0 | I26: 0 | J26: 0 | K26: 0 | L26: 0 | M26: 0 | N26: 0 | O26: 0 | P26: 0 | Q26: 0 | R26: 0 | S26: 0 | T26: 0 | U26: 0 | V26: 0 | W26: 0 | X26: 0 | Y26: 0 | Z26: 0 | AA26: 0 | AB26: 0 | AC26: 0 | AD26: 0 | AE26: 0 | AF26: 0 | AG26: 0 | AH26: 0 | AI26: 0 | AJ26: 0 | AK26: 0 | AL26: 0 | AM26: 0 | AN26: 0 | AO26: 0 | AP26: 0 | AQ26: 0 | AR26: 0 | AS26: 0 | AT26: 0 | AU26: 0 | AV26: 0 | AW26: 0 | AX26: 0 | AY26: 0 | AZ26: 0 | BA26: 0 | BB26: 0 | BC26: 0 | BD26: 0 | BE26: 0 | BF26: 0 | BG26: 0 | BH26: 0 | BI26: 0 | BJ26: 0 | BK26: 0 | BL26: 0 | BM26: 0 | BN26: 0 | BO26: 0 | BP26: 0 | BQ26: 0 | BR26: 0 | BS26: 0 | BT26: 0
B27: 3BL | C27: Potable water imported | D27: Input | E27: Ml/d | F27: 2 | H27: 0 | I27: 0 | J27: 0 | K27: 0 | L27: 0 | M27: 0 | N27: 0 | O27: 0 | P27: 0 | Q27: 0 | R27: 0 | S27: 0 | T27: 0 | U27: 0 | V27: 0 | W27: 0 | X27: 0 | Y27: 0 | Z27: 0 | AA27: 0 | AB27: 0 | AC27: 0 | AD27: 0 | AE27: 0 | AF27: 0 | AG27: 0 | AH27: 0 | AI27: 0 | AJ27: 0 | AK27: 0 | AL27: 0 | AM27: 0 | AN27: 0 | AO27: 0 | AP27: 0 | AQ27: 0 | AR27: 0 | AS27: 0 | AT27: 0 | AU27: 0 | AV27: 0 | AW27: 0 | AX27: 0 | AY27: 0 | AZ27: 0 | BA27: 0 | BB27: 0 | BC27: 0 | BD27: 0 | BE27: 0 | BF27: 0 | BG27: 0 | BH27: 0 | BI27: 0 | BJ27: 0 | BK27: 0 | BL27: 0 | BM27: 0 | BN27: 0 | BO27: 0 | BP27: 0 | BQ27: 0 | BR27: 0 | BS27: 0 | BT27: 0
B28: 4BL | C28: Raw water exported enter as -ve | D28: Input | E28: Ml/d | F28: 2 | H28: 0 | I28: 0 | J28: 0 | K28: 0 | L28: 0 | M28: 0 | N28: 0 | O28: 0 | P28: 0 | Q28: 0 | R28: 0 | S28: 0 | T28: 0 | U28: 0 | V28: 0 | W28: 0 | X28: 0 | Y28: 0 | Z28: 0 | AA28: 0 | AB28: 0 | AC28: 0 | AD28: 0 | AE28: 0 | AF28: 0 | AG28: 0 | AH28: 0 | AI28: 0 | AJ28: 0 | AK28: 0 | AL28: 0 | AM28: 0 | AN28: 0 | AO28: 0 | AP28: 0 | AQ28: 0 | AR28: 0 | AS28: 0 | AT28: 0 | AU28: 0 | AV28: 0 | AW28: 0 | AX28: 0 | AY28: 0 | AZ28: 0 | BA28: 0 | BB28: 0 | BC28: 0 | BD28: 0 | BE28: 0 | BF28: 0 | BG28: 0 | BH28: 0 | BI28: 0 | BJ28: 0 | BK28: 0 | BL28: 0 | BM28: 0 | BN28: 0 | BO28: 0 | BP28: 0 | BQ28: 0 | BR28: 0 | BS28: 0 | BT28: 0
B29: 5BL | C29: Potable water exported enter as -ve | D29: Input | E29: Ml/d | F29: 2 | H29: 0 | I29: 0 | J29: 0 | K29: 0 | L29: 0 | M29: 0 | N29: 0 | O29: 0 | P29: 0 | Q29: 0 | R29: 0 | S29: 0 | T29: 0 | U29: 0 | V29: 0 | W29: 0 | X29: 0 | Y29: 0 | Z29: 0 | AA29: 0 | AB29: 0 | AC29: 0 | AD29: 0 | AE29: 0 | AF29: 0 | AG29: 0 | AH29: 0 | AI29: 0 | AJ29: 0 | AK29: 0 | AL29: 0 | AM29: 0 | AN29: 0 | AO29: 0 | AP29: 0 | AQ29: 0 | AR29: 0 | AS29: 0 | AT29: 0 | AU29: 0 | AV29: 0 | AW29: 0 | AX29: 0 | AY29: 0 | AZ29: 0 | BA29: 0 | BB29: 0 | BC29: 0 | BD29: 0 | BE29: 0 | BF29: 0 | BG29: 0 | BH29: 0 | BI29: 0 | BJ29: 0 | BK29: 0 | BL29: 0 | BM29: 0 | BN29: 0 | BO29: 0 | BP29: 0 | BQ29: 0 | BR29: 0 | BS29: 0 | BT29: 0
B30: 6BL | C30: Deployable Output before forecast changes | D30: Input | E30: Ml/d | F30: 2 | H30: 11.58 | I30: 11.58 | J30: 11.58 | K30: 11.58 | L30: 11.58 | M30: 11.58 | N30: 11.58 | O30: 11.58 | P30: 11.58 | Q30: 11.58 | R30: 11.58 | S30: 11.58 | T30: 11.58 | U30: 11.58 | V30: 11.58 | W30: 11.58 | X30: 11.58 | Y30: 11.58 | Z30: 11.58 | AA30: 11.58 | AB30: 11.58 | AC30: 11.58 | AD30: 11.58 | AE30: 11.58 | AF30: 11.58 | AG30: 11.58 | AH30: 11.58 | AI30: 11.58 | AJ30: 11.58 | AK30: 11.58 | AL30: 11.58 | AM30: 11.58 | AN30: 11.58 | AO30: 11.58 | AP30: 11.58 | AQ30: 11.58 | AR30: 11.58 | AS30: 11.58 | AT30: 11.58 | AU30: 11.58 | AV30: 11.58 | AW30: 11.58 | AX30: 11.58 | AY30: 11.58 | AZ30: 11.58 | BA30: 11.58 | BB30: 11.58 | BC30: 11.58 | BD30: 11.58 | BE30: 11.58 | BF30: 11.58 | BG30: 11.58 | BH30: 11.58 | BI30: 11.58 | BJ30: 11.58 | BK30: 11.58 | BL30: 11.58 | BM30: 11.58 | BN30: 11.58 | BO30: 11.58 | BP30: 11.58 | BQ30: 11.58 | BR30: 11.58 | BS30: 11.58 | BT30: 11.58
B31: 6.1BL | C31: Deployable Output post forecast changes | D31: 6BL + 7BL | E31: Ml/d | F31: 2 | G31: =G30+G32 -> 0 | H31: =H30+H32 -> 9.82 | I31: 9.82 | J31: 9.82 | K31: 9.82 | L31: 9.82 | M31: 9.82 | N31: 9.82 | O31: 9.82 | P31: 9.82 | Q31: 9.82 | R31: 9.82 | S31: 9.82 | T31: 9.82 | U31: 9.82 | V31: 9.82 | W31: 9.82 | X31: 9.82 | Y31: 9.82 | Z31: 9.82 | AA31: 9.82 | AB31: 9.82 | AC31: 9.82 | AD31: 9.82 | AE31: 9.82 | AF31: 9.82 | AG31: 9.82 | AH31: 9.82 | AI31: 9.82 | AJ31: 9.82 | AK31: 9.82 | AL31: 9.82 | AM31: 9.82 | AN31: 9.82 | AO31: 9.82 | AP31: 9.82 | AQ31: 9.82 | AR31: 9.82 | AS31: 9.82 | AT31: 9.82 | AU31: 9.82 | AV31: 9.82 | AW31: 9.82 | AX31: 9.82 | AY31: 9.82 | AZ31: 9.82 | BA31: 9.82 | BB31: 9.82 | BC31: 9.82 | BD31: 9.82 | BE31: 9.82 | BF31: 9.82 | BG31: 9.82 | BH31: 9.82 | BI31: 9.82 | BJ31: 9.82 | BK31: 9.82 | BL31: 9.82 | BM31: 9.82 | BN31: 9.82 | BO31: 9.82 | BP31: 9.82 | BQ31: 9.82 | BR31: 9.82 | BS31: 9.82 | BT31: =BT30+BT32 -> 9.82
B32: 7BL | C32: Baseline forecast changes to Deployable Output | D32: sum (7.1BL:7.6BL) | E32: Ml/d | F32: 2 | G32: =SUM(G33:G38) -> 0 | H32: =SUM(H33:H38) -> -1.76 | I32: -1.76 | J32: -1.76 | K32: -1.76 | L32: -1.76 | M32: -1.76 | N32: -1.76 | O32: -1.76 | P32: -1.76 | Q32: -1.76 | R32: -1.76 | S32: -1.76 | T32: -1.76 | U32: -1.76 | V32: -1.76 | W32: -1.76 | X32: -1.76 | Y32: -1.76 | Z32: -1.76 | AA32: -1.76 | AB32: -1.76 | AC32: -1.76 | AD32: -1.76 | AE32: -1.76 | AF32: -1.76 | AG32: -1.76 | AH32: -1.76 | AI32: -1.76 | AJ32: -1.76 | AK32: -1.76 | AL32: -1.76 | AM32: -1.76 | AN32: -1.76 | AO32: -1.76 | AP32: -1.76 | AQ32: -1.76 | AR32: -1.76 | AS32: -1.76 | AT32: -1.76 | AU32: -1.76 | AV32: -1.76 | AW32: -1.76 | AX32: -1.76 | AY32: -1.76 | AZ32: -1.76 | BA32: -1.76 | BB32: -1.76 | BC32: -1.76 | BD32: -1.76 | BE32: -1.76 | BF32: -1.76 | BG32: -1.76 | BH32: -1.76 | BI32: -1.76 | BJ32: -1.76 | BK32: -1.76 | BL32: -1.76 | BM32: -1.76 | BN32: -1.76 | BO32: -1.76 | BP32: -1.76 | BQ32: -1.76 | BR32: -1.76 | BS32: -1.76 | BT32: =SUM(BT33:BT38) -> -1.76
B33: 7.1BL | C33: Change in DO due to climate change | D33: Input | E33: Ml/d | F33: 2 | H33: 0 | I33: 0 | J33: 0 | K33: 0 | L33: 0 | M33: 0 | N33: 0 | O33: 0 | P33: 0 | Q33: 0 | R33: 0 | S33: 0 | T33: 0 | U33: 0 | V33: 0 | W33: 0 | X33: 0 | Y33: 0 | Z33: 0 | AA33: 0 | AB33: 0 | AC33: 0 | AD33: 0 | AE33: 0 | AF33: 0 | AG33: 0 | AH33: 0 | AI33: 0 | AJ33: 0 | AK33: 0 | AL33: 0 | AM33: 0 | AN33: 0 | AO33: 0 | AP33: 0 | AQ33: 0 | AR33: 0 | AS33: 0 | AT33: 0 | AU33: 0 | AV33: 0 | AW33: 0 | AX33: 0 | AY33: 0 | AZ33: 0 | BA33: 0 | BB33: 0 | BC33: 0 | BD33: 0 | BE33: 0 | BF33: 0 | BG33: 0 | BH33: 0 | BI33: 0 | BJ33: 0 | BK33: 0 | BL33: 0 | BM33: 0 | BN33: 0 | BO33: 0 | BP33: 0 | BQ33: 0 | BR33: 0 | BS33: 0 | BT33: 0
B34: 7.2BL | C34: Total confirmed DO reductions to restore sustainable abstraction enter as -ve | D34: Input | E34: Ml/d | F34: 2 | H34: 0 | I34: 0 | J34: 0 | K34: 0 | L34: 0 | M34: 0 | N34: 0 | O34: 0 | P34: 0 | Q34: 0 | R34: 0 | S34: 0 | T34: 0 | U34: 0 | V34: 0 | W34: 0 | X34: 0 | Y34: 0 | Z34: 0 | AA34: 0 | AB34: 0 | AC34: 0 | AD34: 0 | AE34: 0 | AF34: 0 | AG34: 0 | AH34: 0 | AI34: 0 | AJ34: 0 | AK34: 0 | AL34: 0 | AM34: 0 | AN34: 0 | AO34: 0 | AP34: 0 | AQ34: 0 | AR34: 0 | AS34: 0 | AT34: 0 | AU34: 0 | AV34: 0 | AW34: 0 | AX34: 0 | AY34: 0 | AZ34: 0 | BA34: 0 | BB34: 0 | BC34: 0 | BD34: 0 | BE34: 0 | BF34: 0 | BG34: 0 | BH34: 0 | BI34: 0 | BJ34: 0 | BK34: 0 | BL34: 0 | BM34: 0 | BN34: 0 | BO34: 0 | BP34: 0 | BQ34: 0 | BR34: 0 | BS34: 0 | BT34: 0
B35: 7.3BL | C35: Total additional DO reductions for Environmental Destination (excl. any confirmed reductions) enter as -ve | D35: Input | E35: Ml/d | F35: 2 | H35: 0 | I35: 0 | J35: 0 | K35: 0 | L35: 0 | M35: 0 | N35: 0 | O35: 0 | P35: 0 | Q35: 0 | R35: 0 | S35: 0 | T35: 0 | U35: 0 | V35: 0 | W35: 0 | X35: 0 | Y35: 0 | Z35: 0 | AA35: 0 | AB35: 0 | AC35: 0 | AD35: 0 | AE35: 0 | AF35: 0 | AG35: 0 | AH35: 0 | AI35: 0 | AJ35: 0 | AK35: 0 | AL35: 0 | AM35: 0 | AN35: 0 | AO35: 0 | AP35: 0 | AQ35: 0 | AR35: 0 | AS35: 0 | AT35: 0 | AU35: 0 | AV35: 0 | AW35: 0 | AX35: 0 | AY35: 0 | AZ35: 0 | BA35: 0 | BB35: 0 | BC35: 0 | BD35: 0 | BE35: 0 | BF35: 0 | BG35: 0 | BH35: 0 | BI35: 0 | BJ35: 0 | BK35: 0 | BL35: 0 | BM35: 0 | BN35: 0 | BO35: 0 | BP35: 0 | BQ35: 0 | BR35: 0 | BS35: 0 | BT35: 0
B36: 7.4BL | C36: Change in DO from prolonged Outage reduction enter as -ve | D36: Input | E36: Ml/d | F36: 2 | H36: 0 | I36: 0 | J36: 0 | K36: 0 | L36: 0 | M36: 0 | N36: 0 | O36: 0 | P36: 0 | Q36: 0 | R36: 0 | S36: 0 | T36: 0 | U36: 0 | V36: 0 | W36: 0 | X36: 0 | Y36: 0 | Z36: 0 | AA36: 0 | AB36: 0 | AC36: 0 | AD36: 0 | AE36: 0 | AF36: 0 | AG36: 0 | AH36: 0 | AI36: 0 | AJ36: 0 | AK36: 0 | AL36: 0 | AM36: 0 | AN36: 0 | AO36: 0 | AP36: 0 | AQ36: 0 | AR36: 0 | AS36: 0 | AT36: 0 | AU36: 0 | AV36: 0 | AW36: 0 | AX36: 0 | AY36: 0 | AZ36: 0 | BA36: 0 | BB36: 0 | BC36: 0 | BD36: 0 | BE36: 0 | BF36: 0 | BG36: 0 | BH36: 0 | BI36: 0 | BJ36: 0 | BK36: 0 | BL36: 0 | BM36: 0 | BN36: 0 | BO36: 0 | BP36: 0 | BQ36: 0 | BR36: 0 | BS36: 0 | BT36: 0
B37: 7.5BL | C37: Change in DO from drought measures | D37: Zero for baseline | E37: Ml/d | F37: 2 | H37: 0 | I37: 0 | J37: 0 | K37: 0 | L37: 0 | M37: 0 | N37: 0 | O37: 0 | P37: 0 | Q37: 0 | R37: 0 | S37: 0 | T37: 0 | U37: 0 | V37: 0 | W37: 0 | X37: 0 | Y37: 0 | Z37: 0 | AA37: 0 | AB37: 0 | AC37: 0 | AD37: 0 | AE37: 0 | AF37: 0 | AG37: 0 | AH37: 0 | AI37: 0 | AJ37: 0 | AK37: 0 | AL37: 0 | AM37: 0 | AN37: 0 | AO37: 0 | AP37: 0 | AQ37: 0 | AR37: 0 | AS37: 0 | AT37: 0 | AU37: 0 | AV37: 0 | AW37: 0 | AX37: 0 | AY37: 0 | AZ37: 0 | BA37: 0 | BB37: 0 | BC37: 0 | BD37: 0 | BE37: 0 | BF37: 0 | BG37: 0 | BH37: 0 | BI37: 0 | BJ37: 0 | BK37: 0 | BL37: 0 | BM37: 0 | BN37: 0 | BO37: 0 | BP37: 0 | BQ37: 0 | BR37: 0 | BS37: 0 | BT37: 0
B38: 7.6BL | C38: Total other changes to DO (raw water losses that impact DO) | D38: Input | E38: Ml/d | F38: 2 | H38: -1.76 | I38: -1.76 | J38: -1.76 | K38: -1.76 | L38: -1.76 | M38: -1.76 | N38: -1.76 | O38: -1.76 | P38: -1.76 | Q38: -1.76 | R38: -1.76 | S38: -1.76 | T38: -1.76 | U38: -1.76 | V38: -1.76 | W38: -1.76 | X38: -1.76 | Y38: -1.76 | Z38: -1.76 | AA38: -1.76 | AB38: -1.76 | AC38: -1.76 | AD38: -1.76 | AE38: -1.76 | AF38: -1.76 | AG38: -1.76 | AH38: -1.76 | AI38: -1.76 | AJ38: -1.76 | AK38: -1.76 | AL38: -1.76 | AM38: -1.76 | AN38: -1.76 | AO38: -1.76 | AP38: -1.76 | AQ38: -1.76 | AR38: -1.76 | AS38: -1.76 | AT38: -1.76 | AU38: -1.76 | AV38: -1.76 | AW38: -1.76 | AX38: -1.76 | AY38: -1.76 | AZ38: -1.76 | BA38: -1.76 | BB38: -1.76 | BC38: -1.76 | BD38: -1.76 | BE38: -1.76 | BF38: -1.76 | BG38: -1.76 | BH38: -1.76 | BI38: -1.76 | BJ38: -1.76 | BK38: -1.76 | BL38: -1.76 | BM38: -1.76 | BN38: -1.76 | BO38: -1.76 | BP38: -1.76 | BQ38: -1.76 | BR38: -1.76 | BS38: -1.76 | BT38: -1.76
B39: 8BL | C39: Raw water losses, treatment works losses and operational use | D39: Input | E39: Ml/d | F39: 2 | H39: 2.009336976 | I39: 2.174321394 | J39: 2.14558275 | K39: 2.114516444 | L39: 2.08202657 | M39: 2.107366897 | N39: 2.12162144 | O39: 2.13493131 | P39: 2.140374793 | Q39: 2.146374003 | R39: 2.150157357 | S39: 2.147815839 | T39: 2.144399022 | U39: 2.138827165 | V39: 2.13434034 | W39: 2.130275194 | X39: 2.126334829 | Y39: 2.122470854 | Z39: 2.118825649 | AA39: 2.115201533 | AB39: 2.111842548 | AC39: 2.108644282 | AD39: 2.105579263 | AE39: 2.105184693 | AF39: 2.104916645 | AG39: 2.105035462 | AH39: 2.105452435 | AI39: 2.10584341 | AJ39: 2.106404321 | AK39: 2.107067433 | AL39: 2.107428446 | AM39: 2.107925787 | AN39: 2.108311316 | AO39: 2.108678558 | AP39: 2.109335274 | AQ39: 2.11034835 | AR39: 2.111197345 | AS39: 2.112127989 | AT39: 2.113438109 | AU39: 2.114885231 | AV39: 2.11648447 | AW39: 2.118128696 | AX39: 2.120007873 | AY39: 2.121886851 | AZ39: 2.123678305 | BA39: 2.125487802 | BB39: 2.127368626 | BC39: 2.129302239 | BD39: 2.131191903 | BE39: 2.13295058 | BF39: 2.134595513 | BG39: 2.136224018 | BH39: 2.137773361 | BI39: 2.139244595 | BJ39: 2.140664869 | BK39: 2.142009512 | BL39: 2.143273219 | BM39: 2.144600394 | BN39: 2.146011159 | BO39: 2.14742434 | BP39: 2.148985708 | BQ39: 2.150553359 | BR39: 2.152254895 | BS39: 2.153938609 | BT39: 2.155665397
B40: 9BL | C40: Total Outage Allowance | D40: Input | E40: Ml/d | F40: 2 | H40: 0.59 | I40: 0.59 | J40: 0.59 | K40: 0.59 | L40: 0.59 | M40: 0.59 | N40: 0.59 | O40: 0.59 | P40: 0.59 | Q40: 0.59 | R40: 0.59 | S40: 0.59 | T40: 0.59 | U40: 0.59 | V40: 0.59 | W40: 0.59 | X40: 0.59 | Y40: 0.59 | Z40: 0.59 | AA40: 0.59 | AB40: 0.59 | AC40: 0.59 | AD40: 0.59 | AE40: 0.59 | AF40: 0.59 | AG40: 0.59 | AH40: 0.59 | AI40: 0.59 | AJ40: 0.59 | AK40: 0.59 | AL40: 0.59 | AM40: 0.59 | AN40: 0.59 | AO40: 0.59 | AP40: 0.59 | AQ40: 0.59 | AR40: 0.59 | AS40: 0.59 | AT40: 0.59 | AU40: 0.59 | AV40: 0.59 | AW40: 0.59 | AX40: 0.59 | AY40: 0.59 | AZ40: 0.59 | BA40: 0.59 | BB40: 0.59 | BC40: 0.59 | BD40: 0.59 | BE40: 0.59 | BF40: 0.59 | BG40: 0.59 | BH40: 0.59 | BI40: 0.59 | BJ40: 0.59 | BK40: 0.59 | BL40: 0.59 | BM40: 0.59 | BN40: 0.59 | BO40: 0.59 | BP40: 0.59 | BQ40: 0.59 | BR40: 0.59 | BS40: 0.59 | BT40: 0.59
B41: 10BL | C41: Water Available For Use (own sources) | D41: (6BL + 7BL) - (9BL) | E41: Ml/d | F41: 2 | G41: =(G30+G32)-(G39+G40) -> 0 | H41: =(H30+H32)-(H40) -> 9.23 | I41: =(I30+I32)-(I40) -> 9.23 | J41: 9.23 | K41: 9.23 | L41: 9.23 | M41: 9.23 | N41: 9.23 | O41: 9.23 | P41: 9.23 | Q41: 9.23 | R41: 9.23 | S41: 9.23 | T41: 9.23 | U41: 9.23 | V41: 9.23 | W41: 9.23 | X41: 9.23 | Y41: 9.23 | Z41: 9.23 | AA41: 9.23 | AB41: 9.23 | AC41: 9.23 | AD41: 9.23 | AE41: 9.23 | AF41: 9.23 | AG41: 9.23 | AH41: 9.23 | AI41: 9.23 | AJ41: 9.23 | AK41: 9.23 | AL41: 9.23 | AM41: 9.23 | AN41: 9.23 | AO41: 9.23 | AP41: 9.23 | AQ41: 9.23 | AR41: 9.23 | AS41: 9.23 | AT41: 9.23 | AU41: 9.23 | AV41: 9.23 | AW41: 9.23 | AX41: 9.23 | AY41: 9.23 | AZ41: 9.23 | BA41: 9.23 | BB41: 9.23 | BC41: 9.23 | BD41: 9.23 | BE41: 9.23 | BF41: 9.23 | BG41: 9.23 | BH41: 9.23 | BI41: 9.23 | BJ41: 9.23 | BK41: 9.23 | BL41: 9.23 | BM41: 9.23 | BN41: 9.23 | BO41: 9.23 | BP41: 9.23 | BQ41: 9.23 | BR41: 9.23 | BS41: 9.23 | BT41: 9.23
B42: 11BL | C42: Total Water Available For Use | D42: 10BL + sum (2BL:5BL) | E42: Ml/d | F42: 2 | G42: =G41+SUM(G26:G29) -> 0 | H42: =H41+SUM(H27:H29) -> 9.23 | I42: =I41+SUM(I27:I29) -> 9.23 | J42: 9.23 | K42: 9.23 | L42: 9.23 | M42: 9.23 | N42: 9.23 | O42: 9.23 | P42: 9.23 | Q42: 9.23 | R42: 9.23 | S42: 9.23 | T42: 9.23 | U42: 9.23 | V42: 9.23 | W42: 9.23 | X42: 9.23 | Y42: 9.23 | Z42: 9.23 | AA42: 9.23 | AB42: 9.23 | AC42: 9.23 | AD42: 9.23 | AE42: 9.23 | AF42: 9.23 | AG42: 9.23 | AH42: 9.23 | AI42: 9.23 | AJ42: 9.23 | AK42: 9.23 | AL42: 9.23 | AM42: 9.23 | AN42: 9.23 | AO42: 9.23 | AP42: 9.23 | AQ42: 9.23 | AR42: 9.23 | AS42: 9.23 | AT42: 9.23 | AU42: 9.23 | AV42: 9.23 | AW42: 9.23 | AX42: 9.23 | AY42: 9.23 | AZ42: 9.23 | BA42: 9.23 | BB42: 9.23 | BC42: 9.23 | BD42: 9.23 | BE42: 9.23 | BF42: 9.23 | BG42: 9.23 | BH42: 9.23 | BI42: 9.23 | BJ42: 9.23 | BK42: 9.23 | BL42: 9.23 | BM42: 9.23 | BN42: 9.23 | BO42: 9.23 | BP42: 9.23 | BQ42: 9.23 | BR42: 9.23 | BS42: 9.23 | BT42: 9.23
B43: 12BL | C43: Water delivered measured non-household | D43: Input | E43: Ml/d | F43: 2 | H43: 1.510667921 | I43: 2.062306244 | J43: 2.071379096 | K43: 2.081112536 | L43: 2.090063674 | M43: 2.15783352 | N43: 2.190904905 | O43: 2.225066156 | P43: 2.227170436 | Q43: 2.229181828 | R43: 2.23124484 | S43: 2.233016623 | T43: 2.234030918 | U43: 2.234810815 | V43: 2.235536217 | W43: 2.236242808 | X43: 2.237000692 | Y43: 2.237803941 | Z43: 2.238584075 | AA43: 2.239340097 | AB43: 2.240074519 | AC43: 2.240753236 | AD43: 2.241383432 | AE43: 2.241996098 | AF43: 2.242578433 | AG43: 2.243172405 | AH43: 2.243755845 | AI43: 2.244280264 | AJ43: 2.244792556 | AK43: 2.245290192 | AL43: 2.24577426 | AM43: 2.246226994 | AN43: 2.246459834 | AO43: 2.246657632 | AP43: 2.246833214 | AQ43: 2.24699075 | AR43: 2.247131165 | AS43: 2.247247961 | AT43: 2.247354473 | AU43: 2.247463872 | AV43: 2.247573837 | AW43: 2.24768366 | AX43: 2.247797854 | AY43: 2.247916127 | AZ43: 2.248029102 | BA43: 2.248124145 | BB43: 2.24821309 | BC43: 2.248304823 | BD43: 2.248398392 | BE43: 2.248486624 | BF43: 2.248565779 | BG43: 2.248633252 | BH43: 2.248696847 | BI43: 2.248754868 | BJ43: 2.248796224 | BK43: 2.248826767 | BL43: 2.248843273 | BM43: 2.248846566 | BN43: 2.248844425 | BO43: 2.248836554 | BP43: 2.248817525 | BQ43: 2.248794608 | BR43: 2.248762346 | BS43: 2.24872153 | BT43: 2.248678693
B44: 12.1BL | C44: Non-potable water consumption (if applicable) | D44: Input | E44: Ml/d | F44: 2 | H44: 0 | I44: 0 | J44: 0 | K44: 0 | L44: 0 | M44: 0 | N44: 0 | O44: 0 | P44: 0 | Q44: 0 | R44: 0 | S44: 0 | T44: 0 | U44: 0 | V44: 0 | W44: 0 | X44: 0 | Y44: 0 | Z44: 0 | AA44: 0 | AB44: 0 | AC44: 0 | AD44: 0 | AE44: 0 | AF44: 0 | AG44: 0 | AH44: 0 | AI44: 0 | AJ44: 0 | AK44: 0 | AL44: 0 | AM44: 0 | AN44: 0 | AO44: 0 | AP44: 0 | AQ44: 0 | AR44: 0 | AS44: 0 | AT44: 0 | AU44: 0 | AV44: 0 | AW44: 0 | AX44: 0 | AY44: 0 | AZ44: 0 | BA44: 0 | BB44: 0 | BC44: 0 | BD44: 0 | BE44: 0 | BF44: 0 | BG44: 0 | BH44: 0 | BI44: 0 | BJ44: 0 | BK44: 0 | BL44: 0 | BM44: 0 | BN44: 0 | BO44: 0 | BP44: 0 | BQ44: 0 | BR44: 0 | BS44: 0 | BT44: 0
B45: 13BL | C45: Water delivered unmeasured non-household | D45: Input | E45: Ml/d | F45: 2 | H45: 0.07819875031 | I45: 0.09867260901 | J45: 0.104897382 | K45: 0.104543981 | L45: 0.1041905801 | M45: 0.1038371791 | N45: 0.1034837782 | O45: 0.1031303772 | P45: 0.1027769762 | Q45: 0.1024235753 | R45: 0.1014811727 | S45: 0.1005387702 | T45: 0.09959636762 | U45: 0.09865396507 | V45: 0.09771156252 | W45: 0.0970047606 | X45: 0.09629795868 | Y45: 0.09559115677 | Z45: 0.09488435485 | AA45: 0.09417755294 | AB45: 0.09370635166 | AC45: 0.09323515038 | AD45: 0.09276394911 | AE45: 0.09229274783 | AF45: 0.09182154655 | AG45: 0.09135034527 | AH45: 0.090879144 | AI45: 0.09040794272 | AJ45: 0.08993674144 | AK45: 0.0897011408 | AL45: 0.08946554017 | AM45: 0.08922993953 | AN45: 0.08899433889 | AO45: 0.08875873825 | AP45: 0.08852313761 | AQ45: 0.08828753697 | AR45: 0.08805193633 | AS45: 0.0878163357 | AT45: 0.08758073506 | AU45: 0.08734513442 | AV45: 0.08710953378 | AW45: 0.08687393314 | AX45: 0.0866383325 | AY45: 0.08640273186 | AZ45: 0.08616713123 | BA45: 0.08593153059 | BB45: 0.08569592995 | BC45: 0.08546032931 | BD45: 0.08522472867 | BE45: 0.08498912803 | BF45: 0.08475352739 | BG45: 0.08451792676 | BH45: 0.08428232612 | BI45: 0.08404672548 | BJ45: 0.08381112484 | BK45: 0.0835755242 | BL45: 0.08333992356 | BM45: 0.08310432293 | BN45: 0.08286872229 | BO45: 0.08263312165 | BP45: 0.08239752101 | BQ45: 0.08216192037 | BR45: 0.08192631973 | BS45: 0.08169071909 | BT45: 0.08145511846
B46: 14BL | C46: Water delivered measured household | D46: Input | E46: Ml/d | F46: 2 | H46: 1.049191448 | I46: 1.079101183 | J46: 1.100662168 | K46: 1.12512404 | L46: 1.148655732 | M46: 1.257701949 | N46: 1.324283443 | O46: 1.392107239 | P46: 1.464120191 | Q46: 1.537640648 | R46: 1.596611593 | S46: 1.628498478 | T46: 1.657069716 | U46: 1.68304018 | V46: 1.711716637 | W46: 1.731826157 | X46: 1.75198252 | Y46: 1.781400092 | Z46: 1.81089907 | AA46: 1.84025121 | AB46: 1.865258139 | AC46: 1.885971312 | AD46: 1.90654119 | AE46: 1.931080007 | AF46: 1.955904112 | AG46: 1.976201026 | AH46: 1.99124518 | AI46: 2.006178241 | AJ46: 2.021275193 | AK46: 2.036338545 | AL46: 2.049611565 | AM46: 2.060769814 | AN46: 2.071612571 | AO46: 2.082466971 | AP46: 2.093820668 | AQ46: 2.105482338 | AR46: 2.116804503 | AS46: 2.128490039 | AT46: 2.141141874 | AU46: 2.15435267 | AV46: 2.1680282 | AW46: 2.181930209 | AX46: 2.196590934 | AY46: 2.211142293 | AZ46: 2.225318462 | BA46: 2.239528603 | BB46: 2.253930501 | BC46: 2.26842445 | BD46: 2.282812011 | BE46: 2.296872353 | BF46: 2.310621721 | BG46: 2.324253025 | BH46: 2.337692522 | BI46: 2.35076032 | BJ46: 2.363548894 | BK46: 2.375965776 | BL46: 2.388002591 | BM46: 2.400200749 | BN46: 2.412625949 | BO46: 2.424994544 | BP46: 2.436670241 | BQ46: 2.447211617 | BR46: 2.458034741 | BS46: 2.468813625 | BT46: 2.479703495
B47: 15BL | C47: Water delivered unmeasured household | D47: Input | E47: Ml/d | F47: 2 | H47: 2.760273226 | I47: 2.706233658 | J47: 2.615198253 | K47: 2.51870591 | L47: 2.418716144 | M47: 2.333836294 | N47: 2.286937864 | O47: 2.234856947 | P47: 2.183013218 | Q47: 2.13121575 | R47: 2.085031872 | S47: 2.044284484 | T47: 2.003810363 | U47: 1.958563683 | V47: 1.914528938 | W47: 1.880530048 | X47: 1.846868309 | Y47: 1.80397017 | Z47: 1.761769456 | AA47: 1.719819778 | AB47: 1.683015959 | AC47: 1.651187058 | AD47: 1.619980685 | AE47: 1.594256636 | AF47: 1.568713917 | AG47: 1.54914819 | AH47: 1.535974147 | AI47: 1.522848124 | AJ47: 1.510153794 | AK47: 1.497625183 | AL47: 1.485563833 | AM47: 1.476086175 | AN47: 1.466748574 | AO47: 1.457400093 | AP47: 1.448632742 | AQ47: 1.440846966 | AR47: 1.432851752 | AS47: 1.424838274 | AT47: 1.417237924 | AU47: 1.409613075 | AV47: 1.402101961 | AW47: 1.394550494 | AX47: 1.387103175 | AY47: 1.379756054 | AZ47: 1.372506984 | BA47: 1.36534476 | BB47: 1.358260238 | BC47: 1.351251989 | BD47: 1.344183634 | BE47: 1.336958588 | BF47: 1.329651665 | BG47: 1.322410437 | BH47: 1.315053639 | BI47: 1.307782751 | BJ47: 1.300595749 | BK47: 1.293495112 | BL47: 1.286481548 | BM47: 1.279553929 | BN47: 1.272710131 | BO47: 1.265948698 | BP47: 1.26045982 | BQ47: 1.256166782 | BR47: 1.252106566 | BS47: 1.248037469 | BT47: 1.244036794
B48: 16BL | C48: Percentage of consumption driven by climate change | D48: Input | E48: % | F48: 1 | H48: 0 | I48: 0.001163693535 | J48: 0.001547043361 | K48: 0.001999102349 | L48: 0.002400239083 | M48: 0.002139144681 | N48: 0.002323725641 | O48: 0.002579195338 | P48: 0.002790124473 | Q48: 0.00300441658 | R48: 0.003219740176 | S48: 0.003463180347 | T48: 0.003640489583 | U48: 0.003846929546 | V48: 0.004053958683 | W48: 0.004300851847 | X48: 0.004498778084 | Y48: 0.004707722432 | Z48: 0.0049162269 | AA48: 0.005173447029 | AB48: 0.005375659906 | AC48: 0.005576735174 | AD48: 0.005781848221 | AE48: 0.005948142572 | AF48: 0.006115537834 | AG48: 0.00627460691 | AH48: 0.006419010717 | AI48: 0.006565774597 | AJ48: 0.006711509195 | AK48: 0.006857316374 | AL48: 0.007015214169 | AM48: 0.007135294218 | AN48: 0.007253171706 | AO48: 0.007369430049 | AP48: 0.007480511253 | AQ48: 0.00758832735 | AR48: 0.007693755132 | AS48: 0.007798592992 | AT48: 0.007901902954 | AU48: 0.008003413343 | AV48: 0.008102284135 | AW48: 0.008202315351 | AX48: 0.008299734982 | AY48: 0.008396303622 | AZ48: 0.008487110245 | BA48: 0.008573174239 | BB48: 0.008658591464 | BC48: 0.008745854577 | BD48: 0.008537498425 | BE48: 0.008405798301 | BF48: 0.008295358008 | BG48: 0.008208420954 | BH48: 0.008190063298 | BI48: 0.00816588056 | BJ48: 0.008170298817 | BK48: 0.008189678652 | BL48: 0.008210193799 | BM48: 0.008226819926 | BN48: 0.00824477942 | BO48: 0.008238347728 | BP48: 0.008209135086 | BQ48: 0.008173103188 | BR48: 0.008040453969 | BS48: 0.007943478244 | BT48: 0.007820015278
B49: 17BL | C49: Volume of consumption driven by climate change | D49: 16BL * (12BL + sum(13BL:15BL) - sum (23BL:26BL)) | E49: Ml/d | F49: 2 | G49: =G48*(G43+SUM(G45:G47)-SUM(G55:G58)) -> 0 | H49: =H48*(SUM(H43:H47)-SUM(H55:H58)) -> 0 | I49: 0.006663643422 | J49: 0.008784180915 | K49: 0.01123854695 | L49: 0.01334652816 | M49: 0.01208738436 | N49: 0.01324838373 | O49: 0.01482736531 | P49: 0.01609468066 | Q49: 0.0173955224 | R49: 0.0186857994 | S49: 0.0200701472 | T49: 0.02105391404 | U49: 0.02217215349 | V49: 0.02330125771 | W49: 0.02465870976 | X49: 0.02573102488 | Y49: 0.02686201793 | Z49: 0.02798862404 | AA49: 0.02938698457 | AB49: 0.03047205524 | AC49: 0.03154904896 | AD49: 0.03264702098 | AE49: 0.03357809493 | AF49: 0.03451767724 | AG49: 0.03541854269 | AH49: 0.03624350731 | AI49: 0.03708162188 | AJ49: 0.03791837677 | AK49: 0.03875862436 | AL49: 0.03966026525 | AM49: =AM48*(SUM(AM43:AM47)-SUM(AM55:AM58)) -> 0.04035188921 | AN49: 0.04102860789 | AO49: 0.04169603499 | AP49: 0.04234216927 | AQ49: 0.04297993094 | AR49: 0.04360047235 | AS49: 0.04422058932 | AT49: 0.04484338407 | AU49: 0.04546084822 | AV49: 0.04606875273 | AW49: 0.04668571889 | AX49: 0.04729591898 | AY49: 0.04790256268 | AZ49: 0.04847497716 | BA49: 0.04902201333 | BB49: 0.04956865824 | BC49: 0.05012865641 | BD49: 0.04899207865 | BE49: 0.04828917005 | BF49: 0.04770352616 | BG49: 0.04725139719 | BH49: 0.04719110876 | BI49: 0.04709474896 | BJ49: 0.04716173624 | BK49: 0.04731299195 | BL49: 0.04746862825 | BM49: 0.04760380508 | BN49: 0.04774931136 | BO49: 0.0477536939 | BP49: 0.04763016645 | BQ49: 0.04746689277 | BR49: 0.04674538793 | BS49: =BS48*(SUM(BS43:BS47)-SUM(BS55:BS58)) -> 0.04622938388 | BT49: 0.04555911423
B50: 18BL | C50: Measured Household - PCC | D50: ((14BL - 25BL) * 1,000,000) / (39BL *1,000) | E50: l/h/d | F50: 1 | H50: =(((H46-H57))*1000000)/((H79)*1000) -> 147.5203523 | I50: 145.405218 | J50: 141.236278 | K50: 137.3297584 | L50: 133.7307844 | M50: 141.2728959 | N50: 139.7919951 | O50: 138.1133135 | P50: 136.6319083 | Q50: 135.2983121 | R50: 134.1704116 | S50: 133.2051498 | T50: 132.4194331 | U50: 131.3646114 | V50: 130.3438656 | W50: 129.4034599 | X50: 128.4739462 | Y50: 127.5169025 | Z50: 126.5923051 | AA50: 125.6850764 | AB50: 124.8284577 | AC50: 124.0365882 | AD50: 123.2653205 | AE50: 122.832925 | AF50: 122.4000343 | AG50: 122.0048436 | AH50: 121.6869773 | AI50: 121.3551524 | AJ50: 121.0339026 | AK50: 120.7131761 | AL50: 120.3326277 | AM50: 120.2066235 | AN50: 120.093832 | AO50: 119.9861857 | AP50: 119.9108488 | AQ50: 119.8517969 | AR50: 119.8031533 | AS50: 119.7542476 | AT50: 119.7181092 | AU50: 119.6870417 | AV50: 119.6673801 | AW50: 119.6325163 | AX50: 119.6137219 | AY50: 119.5970265 | AZ50: 119.6045004 | BA50: 119.6308603 | BB50: 119.657306 | BC50: 119.6729375 | BD50: 119.6823231 | BE50: 119.6797519 | BF50: 119.679168 | BG50: 119.6722504 | BH50: 119.6541574 | BI50: 119.6378831 | BJ50: 119.6129022 | BK50: 119.5834086 | BL50: 119.5536796 | BM50: 119.5259174 | BN50: 119.4986069 | BO50: 119.4791521 | BP50: 119.4684323 | BQ50: 119.4647616 | BR50: 119.4831864 | BS50: 119.4949554 | BT50: =(((BT46-BT57))*1000000)/((BT79)*1000) -> 119.5150254
B51: 19BL | C51: Unmeasured Household - PCC | D51: ((15BL - 26BL) * 1,000,000) / (40BL *1,000) | E51: l/h/d | F51: 1 | H51: 153.2147793 | I51: 151.6088804 | J51: 148.4394406 | K51: 145.2378772 | L51: 142.022575 | M51: 139.3640607 | N51: 139.057067 | O51: 138.4258715 | P51: 137.7909618 | Q51: 137.1520741 | R51: 136.5828468 | S51: 136.0489678 | T51: 135.5175273 | U51: 134.6252176 | V51: 133.7955433 | W51: 132.9639015 | X51: 132.132838 | Y51: 131.3039869 | Z51: 130.4987047 | AA51: 129.6819929 | AB51: 128.9000199 | AC51: 128.1433027 | AD51: 127.4104285 | AE51: 127.1134651 | AF51: 126.8158252 | AG51: 126.5555142 | AH51: 126.3685925 | AI51: 126.1689448 | AJ51: 125.9899529 | AK51: 125.8082041 | AL51: 125.6507087 | AM51: 125.7061932 | AN51: 125.7602715 | AO51: 125.7996797 | AP51: 125.8795453 | AQ51: 126.0389179 | AR51: 126.167933 | AS51: 126.2848544 | AT51: 126.4308931 | AU51: 126.5647055 | AV51: 126.7000527 | AW51: 126.8226289 | AX51: 126.9464891 | AY51: 127.0716061 | AZ51: 127.1979248 | BA51: 127.3255632 | BB51: 127.4546131 | BC51: 127.5850279 | BD51: 127.7025247 | BE51: 127.796888 | BF51: 127.8748825 | BG51: 127.9519549 | BH51: 128.0092041 | BI51: 128.0668862 | BJ51: 128.1249652 | BK51: 128.183357 | BL51: 128.2419972 | BM51: 128.3008421 | BN51: 128.3598613 | BO51: 128.419018 | BP51: 128.4815253 | BQ51: 128.5386989 | BR51: 128.6130295 | BS51: 128.6788218 | BT51: 128.7446183
B52: 20BL | C52: Average Household - PCC | D52: (((14BL - 25BL) + (15BL - 26BL)) * 1,000,000) / ((39BL + 40BL) *1,000) | E52: l/h/d | F52: 1 | H52: =(((H46-H57)+(H47-H58))*1000000)/((H79+H80)*1000) -> 151.5944448 | I52: 149.7777319 | J52: 146.2202886 | K52: 142.6905235 | L52: 139.2336407 | M52: 140.0294853 | N52: 139.3266417 | O52: 138.3053975 | P52: 137.322302 | Q52: 136.3675964 | R52: 135.5240625 | S52: 134.7709425 | T52: 134.0952169 | U52: 133.0962482 | V52: 132.141632 | W52: 131.2305582 | X52: 130.3234813 | Y52: 129.3921941 | Z52: 128.4865225 | AA52: 127.5822701 | AB52: 126.7246058 | AC52: 125.9176798 | AD52: 125.1325299 | AE52: 124.7292811 | AF52: 124.3233915 | AG52: 123.959725 | AH52: 123.6778198 | AI52: 123.3814385 | AJ52: 123.0988762 | AK52: 122.8144883 | AL52: 122.5040272 | AM52: 122.4339385 | AN52: 122.3705427 | AO52: 122.3035727 | AP52: 122.2714235 | AQ52: 122.279552 | AR52: 122.281449 | AS52: 122.2773598 | AT52: 122.2909146 | AU52: 122.3017047 | AV52: 122.3191737 | AW52: 122.3212188 | AX52: 122.3327141 | AY52: 122.3454463 | AZ52: 122.3740121 | BA52: 122.4148876 | BB52: 122.4557737 | BC52: 122.4895264 | BD52: 122.5142044 | BE52: 122.5226723 | BF52: 122.5267061 | BG52: 122.5260361 | BH52: 122.5109408 | BI52: 122.4973291 | BJ52: 122.4779622 | BK52: 122.4556908 | BL52: 122.4334064 | BM52: 122.4121729 | BN52: 122.3908965 | BO52: 122.374943 | BP52: 122.3682886 | BQ52: 122.3674469 | BR52: 122.3872495 | BS52: 122.3997102 | BT52: =(((BT46-BT57)+(BT47-BT58))*1000000)/((BT79+BT80)*1000) -> 122.4179153
B53: 21BL | C53: Water taken unbilled | D53: Input | E53: Ml/d | F53: 2 | H53: 0.2279750549 | I53: 0.2325722038 | J53: 0.2327086595 | K53: 0.2325974142 | L53: 0.232488455 | M53: 0.2322620226 | N53: 0.2320151964 | O53: 0.2317254865 | P53: 0.2314135066 | Q53: 0.2311453316 | R53: 0.2310309528 | S53: 0.2309471025 | T53: 0.2308621538 | U53: 0.2307743593 | V53: 0.2306852344 | W53: 0.2306033815 | X53: 0.2305222448 | Y53: 0.2304336077 | Z53: 0.2303466717 | AA53: 0.2302592651 | AB53: 0.2301754836 | AC53: 0.2300983576 | AD53: 0.2300249265 | AE53: 0.2299544398 | AF53: 0.2298850082 | AG53: 0.2298220238 | AH53: 0.2297670843 | AI53: 0.2297147237 | AJ53: 0.2296640052 | AK53: 0.2296128065 | AL53: 0.2295844811 | AM53: 0.2295600968 | AN53: 0.2295356185 | AO53: 0.2295085082 | AP53: 0.2294787571 | AQ53: 0.2294483133 | AR53: 0.2294165198 | AS53: 0.2293819702 | AT53: 0.2293453775 | AU53: 0.2293043406 | AV53: 0.2292598844 | AW53: 0.2292131486 | AX53: 0.2291634667 | AY53: 0.2291141632 | AZ53: 0.229062461 | BA53: 0.2290074092 | BB53: 0.2289514573 | BC53: 0.2288968887 | BD53: 0.2288430829 | BE53: 0.2287914172 | BF53: 0.2287397422 | BG53: 0.2286885687 | BH53: 0.2286400297 | BI53: 0.2285927342 | BJ53: 0.2285481365 | BK53: 0.2285059493 | BL53: 0.2284654913 | BM53: 0.2284242548 | BN53: 0.2283822383 | BO53: 0.2283392359 | BP53: 0.2282953562 | BQ53: 0.2282512671 | BR53: 0.2282045498 | BS53: 0.228157704 | BT53: 0.2281087365
B54: 22BL | C54: Distribution system operational use | D54: Input | E54: Ml/d | F54: 2 | H54: 0.01104344092 | I54: 0.01104344092 | J54: 0.01104344092 | K54: 0.01104344092 | L54: 0.01104344092 | M54: 0.01104344092 | N54: 0.01104344092 | O54: 0.01104344092 | P54: 0.01104344092 | Q54: 0.01104344092 | R54: 0.01104344092 | S54: 0.01104344092 | T54: 0.01104344092 | U54: 0.01104344092 | V54: 0.01104344092 | W54: 0.01104344092 | X54: 0.01104344092 | Y54: 0.01104344092 | Z54: 0.01104344092 | AA54: 0.01104344092 | AB54: 0.01104344092 | AC54: 0.01104344092 | AD54: 0.01104344092 | AE54: 0.01104344092 | AF54: 0.01104344092 | AG54: 0.01104344092 | AH54: 0.01104344092 | AI54: 0.01104344092 | AJ54: 0.01104344092 | AK54: 0.01104344092 | AL54: 0.01104344092 | AM54: 0.01104344092 | AN54: 0.01104344092 | AO54: 0.01104344092 | AP54: 0.01104344092 | AQ54: 0.01104344092 | AR54: 0.01104344092 | AS54: 0.01104344092 | AT54: 0.01104344092 | AU54: 0.01104344092 | AV54: 0.01104344092 | AW54: 0.01104344092 | AX54: 0.01104344092 | AY54: 0.01104344092 | AZ54: 0.01104344092 | BA54: 0.01104344092 | BB54: 0.01104344092 | BC54: 0.01104344092 | BD54: 0.01104344092 | BE54: 0.01104344092 | BF54: 0.01104344092 | BG54: 0.01104344092 | BH54: 0.01104344092 | BI54: 0.01104344092 | BJ54: 0.01104344092 | BK54: 0.01104344092 | BL54: 0.01104344092 | BM54: 0.01104344092 | BN54: 0.01104344092 | BO54: 0.01104344092 | BP54: 0.01104344092 | BQ54: 0.01104344092 | BR54: 0.01104344092 | BS54: 0.01104344092 | BT54: 0.01104344092
B55: 23BL | C55: Measured Non Household - USPL | D55: Input | E55: Ml/d | F55: 2 | H55: 0.009993295052 | I55: 0.01130424932 | J55: 0.01097049605 | K55: 0.01063496121 | L55: 0.01029764478 | M55: 0.01032288385 | N55: 0.01034812292 | O55: 0.01037336199 | P55: 0.01039860106 | Q55: 0.01042384012 | R55: 0.01044907919 | S55: 0.01047431826 | T55: 0.01049955733 | U55: 0.0105247964 | V55: 0.01055003547 | W55: 0.01057527454 | X55: 0.01060051361 | Y55: 0.01062575268 | Z55: 0.01065099174 | AA55: 0.01067623081 | AB55: 0.01070146988 | AC55: 0.01072670895 | AD55: 0.01075194802 | AE55: 0.01077718709 | AF55: 0.01080242616 | AG55: 0.01082766523 | AH55: 0.0108529043 | AI55: 0.01087814336 | AJ55: 0.01090338243 | AK55: 0.0109286215 | AL55: 0.01095386057 | AM55: 0.01097909964 | AN55: 0.01100433871 | AO55: 0.01102957778 | AP55: 0.01105481685 | AQ55: 0.01108005592 | AR55: 0.01110529498 | AS55: 0.01113053405 | AT55: 0.01115577312 | AU55: 0.01118101219 | AV55: 0.01120625126 | AW55: 0.01123149033 | AX55: 0.0112567294 | AY55: 0.01128196847 | AZ55: 0.01130720754 | BA55: 0.0113324466 | BB55: 0.01135768567 | BC55: 0.01138292474 | BD55: 0.01140816381 | BE55: 0.01143340288 | BF55: 0.01145864195 | BG55: 0.01148388102 | BH55: 0.01150912009 | BI55: 0.01153435915 | BJ55: 0.01155959822 | BK55: 0.01158483729 | BL55: 0.01161007636 | BM55: 0.01163531543 | BN55: 0.0116605545 | BO55: 0.01168579357 | BP55: 0.01171103264 | BQ55: 0.01173627171 | BR55: 0.01176151077 | BS55: 0.01178674984 | BT55: 0.01181198891
B56: 24BL | C56: Unmeasured Non Household - USPL | D56: Input | E56: Ml/d | F56: 2 | H56: 0.002988750312 | I56: 0.00377125964 | J56: 0.004009169991 | K56: 0.003995663033 | L56: 0.003982156076 | M56: 0.003968649118 | N56: 0.00395514216 | O56: 0.003941635202 | P56: 0.003928128244 | Q56: 0.003914621286 | R56: 0.003878602732 | S56: 0.003842584178 | T56: 0.003806565624 | U56: 0.00377054707 | V56: 0.003734528515 | W56: 0.0037075146 | X56: 0.003680500684 | Y56: 0.003653486768 | Z56: 0.003626472853 | AA56: 0.003599458937 | AB56: 0.00358144966 | AC56: 0.003563440383 | AD56: 0.003545431106 | AE56: 0.003527421829 | AF56: 0.003509412552 | AG56: 0.003491403274 | AH56: 0.003473393997 | AI56: 0.00345538472 | AJ56: 0.003437375443 | AK56: 0.003428370805 | AL56: 0.003419366166 | AM56: 0.003410361527 | AN56: 0.003401356889 | AO56: 0.00339235225 | AP56: 0.003383347612 | AQ56: 0.003374342973 | AR56: 0.003365338335 | AS56: 0.003356333696 | AT56: 0.003347329058 | AU56: 0.003338324419 | AV56: 0.00332931978 | AW56: 0.003320315142 | AX56: 0.003311310503 | AY56: 0.003302305865 | AZ56: 0.003293301226 | BA56: 0.003284296588 | BB56: 0.003275291949 | BC56: 0.003266287311 | BD56: 0.003257282672 | BE56: 0.003248278034 | BF56: 0.003239273395 | BG56: 0.003230268756 | BH56: 0.003221264118 | BI56: 0.003212259479 | BJ56: 0.003203254841 | BK56: 0.003194250202 | BL56: 0.003185245564 | BM56: 0.003176240925 | BN56: 0.003167236287 | BO56: 0.003158231648 | BP56: 0.003149227009 | BQ56: 0.003140222371 | BR56: 0.003131217732 | BS56: 0.003122213094 | BT56: 0.003113208455
B57: 25BL | C57: Measured Household - USPL | D57: Input | E57: Ml/d | F57: 2 | H57: 0.05050045065 | I57: 0.05312391333 | J57: 0.05415150782 | K57: 0.05532622627 | L57: 0.05655843395 | M57: 0.06080726262 | N57: 0.06515615907 | O57: 0.06996018936 | P57: 0.07500028173 | Q57: 0.07957475291 | R57: 0.08232146999 | S57: 0.08449222064 | T57: 0.08667443174 | U57: 0.08888666508 | V57: 0.09111214977 | W57: 0.09268412491 | X57: 0.09424778119 | Y57: 0.09644188462 | Z57: 0.09861777104 | AA57: 0.1007984955 | AB57: 0.1026653376 | AC57: 0.104209405 | AD57: 0.1057135448 | AE57: 0.1071864067 | AF57: 0.1086480353 | AG57: 0.109727 | AH57: 0.1104063714 | AI57: 0.1110584036 | AJ57: 0.1116930349 | AK57: 0.1123088949 | AL57: 0.1126820668 | AM57: 0.1130134242 | AN57: 0.1133457794 | AO57: 0.1137060636 | AP57: 0.1140936825 | AQ57: 0.1144886547 | AR57: 0.1148979524 | AS57: 0.1153365005 | AT57: 0.1157967339 | AU57: 0.1163041354 | AV57: 0.1168478324 | AW57: 0.117415733 | AX57: 0.1180149122 | AY57: 0.1186100908 | AZ57: 0.1192307426 | BA57: 0.1198869615 | BB57: 0.1205527541 | BC57: 0.1212038829 | BD57: 0.1218469336 | BE57: 0.1224672848 | BF57: 0.1230870598 | BG57: 0.1237015267 | BH57: 0.124288041 | BI57: 0.1248613672 | BJ57: 0.1254060646 | BK57: 0.1259251805 | BL57: 0.1264259478 | BM57: 0.1269349869 | BN57: 0.1274523147 | BO57: 0.1279801168 | BP57: 0.1284543652 | BQ57: 0.12886797 | BR57: 0.1293094948 | BS57: 0.1297523987 | BT57: 0.1302178492
B58: 26BL | C58: Unmeasured Household - USPL | D58: Input | E58: Ml/d | F58: 2 | H58: 0.152282383 | I58: 0.1518270469 | J58: 0.1449613096 | K58: 0.1377329359 | L58: 0.1302884229 | M58: 0.1275412666 | N58: 0.124796026 | O58: 0.1220517433 | P58: 0.1193084185 | Q58: 0.1165650936 | R58: 0.1142087462 | S58: 0.1122355446 | T58: 0.1102623431 | U58: 0.1082891416 | V58: 0.1063178558 | W58: 0.1051890121 | X58: 0.1040620841 | Y58: 0.1020965455 | Z58: 0.1001310069 | AA58: 0.09816546828 | AB58: 0.0965830756 | AC58: 0.09538574457 | AD58: 0.09419032928 | AE58: 0.09299491398 | AF58: 0.09179949869 | AG58: 0.0910830158 | AH58: 0.09084546532 | AI58: 0.09060791485 | AJ58: 0.09037036437 | AK58: 0.0901328139 | AL58: 0.08989526342 | AM58: 0.08965771295 | AN58: 0.08942016247 | AO58: 0.08918261199 | AP58: 0.08894697725 | AQ58: 0.0887113425 | AR58: 0.08847570776 | AS58: 0.08824007301 | AT58: 0.08800443827 | AU58: 0.08776880352 | AV58: 0.08753316877 | AW58: 0.08729753403 | AX58: 0.08706189928 | AY58: 0.08682626454 | AZ58: 0.08659062979 | BA58: 0.08635499504 | BB58: 0.0861193603 | BC58: 0.08588372555 | BD58: 0.08564809081 | BE58: 0.08541245606 | BF58: 0.08517873704 | BG58: 0.08494501803 | BH58: 0.08471129901 | BI58: 0.08447757999 | BJ58: 0.08424386098 | BK58: 0.08401014196 | BL58: 0.08377642295 | BM58: 0.08354270393 | BN58: 0.08330898491 | BO58: 0.0830752659 | BP58: 0.08293733336 | BQ58: 0.08289518731 | BR58: 0.08285304126 | BS58: 0.08281089521 | BT58: 0.08276874915
B59: 27BL | C59: Void Properties - USPL | D59: Input | E59: Ml/d | F59: 2 | H59: 0.01779540323 | I59: 0.01319825433 | J59: 0.01306179869 | K59: 0.01317304397 | L59: 0.01328200313 | M59: 0.01350843555 | N59: 0.01375526179 | O59: 0.01404497169 | P59: 0.01435695154 | Q59: 0.01462512658 | R59: 0.01473950537 | S59: 0.0148233557 | T59: 0.0149083044 | U59: 0.01499609892 | V59: 0.0150852238 | W59: 0.01516707666 | X59: 0.01524821334 | Y59: 0.01533685048 | Z59: 0.01542378647 | AA59: 0.01551119309 | AB59: 0.01559497456 | AC59: 0.01567210053 | AD59: 0.0157455317 | AE59: 0.0158160184 | AF59: 0.01588544993 | AG59: 0.01594843434 | AH59: 0.0160033739 | AI59: 0.01605573443 | AJ59: 0.01610645292 | AK59: 0.01615765163 | AL59: 0.01618597704 | AM59: 0.01621036141 | AN59: 0.01623483969 | AO59: 0.01626194996 | AP59: 0.01629170109 | AQ59: 0.01632214489 | AR59: 0.01635393838 | AS59: 0.016388488 | AT59: 0.01642508063 | AU59: 0.01646611753 | AV59: 0.01651057376 | AW59: 0.01655730958 | AX59: 0.01660699146 | AY59: 0.01665629497 | AZ59: 0.01670799719 | BA59: 0.01676304893 | BB59: 0.01681900085 | BC59: 0.01687356942 | BD59: 0.01692737524 | BE59: 0.01697904098 | BF59: 0.01703071595 | BG59: 0.01708188946 | BH59: 0.01713042845 | BI59: 0.01717772398 | BJ59: 0.01722232168 | BK59: 0.01726450882 | BL59: 0.01730496688 | BM59: 0.01734620339 | BN59: 0.01738821991 | BO59: 0.01743122223 | BP59: 0.01747510195 | BQ59: 0.01751919109 | BR59: 0.0175659084 | BS59: 0.01761275412 | BT59: 0.01766172162
B60: 28BL | C60: Distribution losses | D60: Input | E60: Ml/d | F60: 2 | H60: 1.468867672 | I60: 1.505830076 | J60: 1.458115318 | K60: 1.41062157 | L60: 1.363290539 | M60: 1.361550702 | N60: 1.359688488 | O60: 1.357327298 | P60: 1.354706819 | Q60: 1.352595765 | R60: 1.352101797 | S60: 1.351831177 | T60: 1.351547998 | U60: 1.351231951 | V60: 1.350899407 | W60: 1.350376197 | X60: 1.349860107 | Y60: 1.34954468 | Z60: 1.349249171 | AA60: 1.348948353 | AB60: 1.348572893 | AC60: 1.348141801 | AD60: 1.347752415 | AE60: 1.347397252 | AF60: 1.347054377 | AG60: 1.346621681 | AH60: 1.346117691 | AI60: 1.345643619 | AJ60: 1.34518859 | AK60: 1.344742847 | AL60: 1.344562666 | AM60: 1.34442824 | AN60: 1.344292723 | AO60: 1.344126644 | AP60: 1.343928675 | AQ60: 1.343722659 | AR60: 1.343500968 | AS60: 1.343247271 | AT60: 1.342969845 | AU60: 1.342640807 | AV60: 1.342272054 | AW60: 1.341876818 | AX60: 1.341447357 | AY60: 1.341022275 | AZ60: 1.340569322 | BA60: 1.340077451 | BB60: 1.339575107 | BC60: 1.33908881 | BD60: 1.338611354 | BE60: 1.338158737 | BF60: 1.337704772 | BG60: 1.337256616 | BH60: 1.336839047 | BI60: 1.33643591 | BJ60: 1.3360641 | BK60: 1.335720281 | BL60: 1.33539654 | BM60: 1.335063749 | BN60: 1.33472189 | BO60: 1.33436857 | BP60: 1.33397214 | BQ60: 1.333540358 | BR60: 1.333078027 | BS60: 1.332614189 | BT60: 1.332125683
B61: 29BL | C61: Total Leakage | D61: sum (23BL:28BL) | E61: Ml/d | F61: 2 | G61: =SUM(G55:G60) -> 0 | H61: =SUM(H55:H60) -> 1.702427954 | I61: 1.7390548 | J61: 1.6852696 | K61: 1.6314844 | L61: 1.5776992 | M61: 1.5776992 | N61: 1.5776992 | O61: 1.5776992 | P61: 1.5776992 | Q61: 1.5776992 | R61: 1.5776992 | S61: 1.5776992 | T61: 1.5776992 | U61: 1.5776992 | V61: 1.5776992 | W61: 1.5776992 | X61: 1.5776992 | Y61: 1.5776992 | Z61: 1.5776992 | AA61: 1.5776992 | AB61: 1.5776992 | AC61: 1.5776992 | AD61: 1.5776992 | AE61: 1.5776992 | AF61: 1.5776992 | AG61: 1.5776992 | AH61: 1.5776992 | AI61: 1.5776992 | AJ61: 1.5776992 | AK61: 1.5776992 | AL61: 1.5776992 | AM61: 1.5776992 | AN61: 1.5776992 | AO61: 1.5776992 | AP61: 1.5776992 | AQ61: 1.5776992 | AR61: 1.5776992 | AS61: 1.5776992 | AT61: 1.5776992 | AU61: 1.5776992 | AV61: 1.5776992 | AW61: 1.5776992 | AX61: 1.5776992 | AY61: 1.5776992 | AZ61: 1.5776992 | BA61: 1.5776992 | BB61: 1.5776992 | BC61: 1.5776992 | BD61: 1.5776992 | BE61: 1.5776992 | BF61: 1.5776992 | BG61: 1.5776992 | BH61: 1.5776992 | BI61: 1.5776992 | BJ61: 1.5776992 | BK61: 1.5776992 | BL61: 1.5776992 | BM61: 1.5776992 | BN61: 1.5776992 | BO61: 1.5776992 | BP61: 1.5776992 | BQ61: 1.5776992 | BR61: 1.5776992 | BS61: 1.5776992 | BT61: =SUM(BT55:BT60) -> 1.5776992
B62: 30BL | C62: Leakage/property | D62: (29BL * 1,000,000) / (36BL * 1,000) | E62: l/prop/d | F62: 2 | G62: =(G61*1000000)/(G76*1000) ->  | H62: =(H61*1000000)/(H76*1000) -> 158.071305 | I62: 159.8376264 | J62: 153.6242791 | K62: 147.6236314 | L62: 141.7876481 | M62: 139.4121198 | N62: 136.8791523 | O62: 133.9612936 | P62: 130.9298205 | Q62: 128.4758514 | R62: 127.5498936 | S62: 126.9002806 | T62: 126.2464791 | U62: 125.571764 | V62: 124.8912655 | W62: 124.2226635 | X62: 123.5677259 | Y62: 122.9297016 | Z62: 122.3138891 | AA62: 121.6999267 | AB62: 121.1059301 | AC62: 120.5419761 | AD62: 120.0158122 | AE62: 119.5200959 | AF62: 119.0376567 | AG62: 118.5724741 | AH62: 118.1379083 | AI62: 117.7285055 | AJ62: 117.3358384 | AK62: 116.9571267 | AL62: 116.7724399 | AM62: 116.6213052 | AN62: 116.4697775 | AO62: 116.2967363 | AP62: 116.1021393 | AQ62: 115.902467 | AR62: 115.6923639 | AS62: 115.4604102 | AT62: 115.2126965 | AU62: 114.929913 | AV62: 114.6208673 | AW62: 114.2951538 | AX62: 113.9477457 | AY62: 113.6054477 | AZ62: 113.2462692 | BA62: 112.8630969 | BB62: 112.4755015 | BC62: 112.1012543 | BD62: 111.7353482 | BE62: 111.3881579 | BF62: 111.0428998 | BG62: 110.7035565 | BH62: 110.3860289 | BI62: 110.0795878 | BJ62: 109.7948497 | BK62: 109.5293712 | BL62: 109.2778762 | BM62: 109.0218404 | BN62: 108.7613242 | BO62: 108.4949099 | BP62: 108.216412 | BQ62: 107.9308137 | BR62: 107.627984 | BS62: 107.3259389 | BT62: =(BT61*1000000)/(BT76*1000) -> 107.0106326
B63: 31BL | C63: Measured Non Household - properties | D63: Input | E63: 000's | F63: 2 | H63: 0.789 | I63: 0.8925036902 | J63: 0.8947073805 | K63: 0.8969110707 | L63: 0.899114761 | M63: 0.9013184512 | N63: 0.9035221415 | O63: 0.9057258317 | P63: 0.907929522 | Q63: 0.9101332122 | R63: 0.9123369025 | S63: 0.9145405927 | T63: 0.916744283 | U63: 0.9189479732 | V63: 0.9211516635 | W63: 0.9233553537 | X63: 0.9255590439 | Y63: 0.9277627342 | Z63: 0.9299664244 | AA63: 0.9321701147 | AB63: 0.9343738049 | AC63: 0.9365774952 | AD63: 0.9387811854 | AE63: 0.9409848757 | AF63: 0.9431885659 | AG63: 0.9453922562 | AH63: 0.9475959464 | AI63: 0.9497996367 | AJ63: 0.9520033269 | AK63: 0.9542070172 | AL63: 0.9564107074 | AM63: 0.9586143977 | AN63: 0.9608180879 | AO63: 0.9630217781 | AP63: 0.9652254684 | AQ63: 0.9674291586 | AR63: 0.9696328489 | AS63: 0.9718365391 | AT63: 0.9740402294 | AU63: 0.9762439196 | AV63: 0.9784476099 | AW63: 0.9806513001 | AX63: 0.9828549904 | AY63: 0.9850586806 | AZ63: 0.9872623709 | BA63: 0.9894660611 | BB63: 0.9916697514 | BC63: 0.9938734416 | BD63: 0.9960771318 | BE63: 0.9982808221 | BF63: 1.000484512 | BG63: 1.002688203 | BH63: 1.004891893 | BI63: 1.007095583 | BJ63: 1.009299273 | BK63: 1.011502964 | BL63: 1.013706654 | BM63: 1.015910344 | BN63: 1.018114034 | BO63: 1.020317725 | BP63: 1.022521415 | BQ63: 1.024725105 | BR63: 1.026928795 | BS63: 1.029132486 | BT63: 1.031336176
B64: 32BL | C64: Unmeasured Non Household - properties | D64: Input | E64: 000's | F64: 2 | H64: 0.109 | I64: 0.1375381875 | J64: 0.1462148 | K64: 0.1457222 | L64: 0.1452296 | M64: 0.144737 | N64: 0.1442444 | O64: 0.1437518 | P64: 0.1432592 | Q64: 0.1427666 | R64: 0.141453 | S64: 0.1401394 | T64: 0.1388258 | U64: 0.1375122 | V64: 0.1361986 | W64: 0.1352134 | X64: 0.1342282 | Y64: 0.133243 | Z64: 0.1322578 | AA64: 0.1312726 | AB64: 0.1306158 | AC64: 0.129959 | AD64: 0.1293022 | AE64: 0.1286454 | AF64: 0.1279886 | AG64: 0.1273318 | AH64: 0.126675 | AI64: 0.1260182 | AJ64: 0.1253614 | AK64: 0.125033 | AL64: 0.1247046 | AM64: 0.1243762 | AN64: 0.1240478 | AO64: 0.1237194 | AP64: 0.123391 | AQ64: 0.1230626 | AR64: 0.1227342 | AS64: 0.1224058 | AT64: 0.1220774 | AU64: 0.121749 | AV64: 0.1214206 | AW64: 0.1210922 | AX64: 0.1207638 | AY64: 0.1204354 | AZ64: 0.120107 | BA64: 0.1197786 | BB64: 0.1194502 | BC64: 0.1191218 | BD64: 0.1187934 | BE64: 0.118465 | BF64: 0.1181366 | BG64: 0.1178082 | BH64: 0.1174798 | BI64: 0.1171514 | BJ64: 0.116823 | BK64: 0.1164946 | BL64: 0.1161662 | BM64: 0.1158378 | BN64: 0.1155094 | BO64: 0.115181 | BP64: 0.1148526 | BQ64: 0.1145242 | BR64: 0.1141958 | BS64: 0.1138674 | BT64: 0.113539
B65: 33BL | C65: All void non-households - properties | D65: Input | E65: 000's | F65: 2 | H65: 0.299 | I65: 0.1688497723 | J65: 0.1598611195 | K65: 0.1600416793 | L65: 0.160222239 | M65: 0.1604027988 | N65: 0.1605833585 | O65: 0.1607639183 | P65: 0.160944478 | Q65: 0.1611250378 | R65: 0.1611003475 | S65: 0.1610756573 | T65: 0.161050967 | U65: 0.1610262768 | V65: 0.1610015865 | W65: 0.1610589963 | X65: 0.1611164061 | Y65: 0.1611738158 | Z65: 0.1612312256 | AA65: 0.1612886353 | AB65: 0.1614281451 | AC65: 0.1615676548 | AD65: 0.1617071646 | AE65: 0.1618466743 | AF65: 0.1619861841 | AG65: 0.1621256938 | AH65: 0.1622652036 | AI65: 0.1624047133 | AJ65: 0.1625442231 | AK65: 0.1627658328 | AL65: 0.1629874426 | AM65: 0.1632090523 | AN65: 0.1634306621 | AO65: 0.1636522719 | AP65: 0.1638738816 | AQ65: 0.1640954914 | AR65: 0.1643171011 | AS65: 0.1645387109 | AT65: 0.1647603206 | AU65: 0.1649819304 | AV65: 0.1652035401 | AW65: 0.1654251499 | AX65: 0.1656467596 | AY65: 0.1658683694 | AZ65: 0.1660899791 | BA65: 0.1663115889 | BB65: 0.1665331986 | BC65: 0.1667548084 | BD65: 0.1669764182 | BE65: 0.1671980279 | BF65: 0.1674196377 | BG65: 0.1676412474 | BH65: 0.1678628572 | BI65: 0.1680844669 | BJ65: 0.1683060767 | BK65: 0.1685276864 | BL65: 0.1687492962 | BM65: 0.1689709059 | BN65: 0.1691925157 | BO65: 0.1694141254 | BP65: 0.1696357352 | BQ65: 0.1698573449 | BR65: 0.1700789547 | BS65: 0.1703005645 | BT65: 0.1705221742
B66: 34BL | C66: Measured households - properties (excl. void) | D66: Year before + sum (34.1BL:34.6BL) | E66: 000's | F66: 2 | H66: 3.492 | I66: =H66+SUM(I67:I72) -> 3.654886741 | J66: 3.817456667 | K66: 3.991730126 | L66: 4.176008228 | M66: =L66+SUM(M67:M72) -> 4.469975629 | N66: =M66+SUM(N67:N72) -> 4.782935361 | O66: 5.135929011 | P66: 5.509698139 | Q66: 5.842542387 | R66: 6.024697721 | S66: 6.166191217 | T66: 6.308710876 | U66: 6.453889254 | V66: 6.600249834 | W66: 6.711019473 | X66: 6.821059316 | Y66: 6.964678946 | Z66: 7.10670927 | AA66: 7.24917929 | AB66: 7.374018863 | AC66: 7.480439335 | AD66: 7.583347214 | AE66: 7.683504212 | AF66: 7.782675404 | AG66: 7.860647761 | AH66: 7.915928592 | AI66: 7.96879995 | AJ66: 8.020137232 | AK66: 8.069819997 | AL66: 8.098133267 | AM66: 8.122764592 | AN66: 8.147483657 | AO66: 8.174661682 | AP66: 8.204246229 | AQ66: 8.234477906 | AR66: 8.265970549 | AS66: 8.30003811 | AT66: 8.336014375 | AU66: 8.376142709 | AV66: 8.419465575 | AW66: 8.464918168 | AX66: 8.513123124 | AY66: 8.560974582 | AZ66: 8.611067057 | BA66: 8.664288832 | BB66: 8.718351606 | BC66: 8.77112198 | BD66: 8.823179743 | BE66: 8.873238134 | BF66: 8.923244444 | BG66: 8.97278226 | BH66: 9.019858769 | BI66: 9.065773559 | BJ66: 9.109167895 | BK66: 9.150310153 | BL66: 9.189837001 | BM66: 9.230091127 | BN66: 9.27107398 | BO66: 9.312977826 | BP66: 9.352666259 | BQ66: 9.389515235 | BR66: 9.428819596 | BS66: 9.468243915 | BT66: 9.50965053
B67: 34.1BL | C67: New build properties - properties | D67: Input (new builds in each year) | E67: 000's | F67: 2 | H67: 0.023 | I67: 0.1116495408 | J67: 0.09145474441 | K67: 0.08309014336 | L67: 0.07706533194 | M67: 0.1911186224 | N67: 0.2108523491 | O67: 0.2524490518 | P67: 0.2740765834 | Q67: 0.2315951877 | R67: 0.09156704856 | S67: 0.06573791407 | T67: 0.06680413359 | U67: 0.06956664047 | V67: 0.07079499114 | W67: 0.06983607776 | X67: 0.06907779314 | Y67: 0.06794704398 | Z67: 0.06629569716 | AA67: 0.06675255774 | AB67: 0.06485387816 | AC67: 0.06213575989 | AD67: 0.05848604736 | AE67: 0.05562778086 | AF67: 0.05460349255 | AG67: 0.05310212892 | AH67: 0.05004980278 | AI67: 0.04754627354 | AJ67: 0.04595231178 | AK67: 0.0442332084 | AL67: 0.02202952262 | AM67: 0.01820384672 | AN67: 0.01829501171 | AO67: 0.02084996141 | AP67: 0.02335042555 | AQ67: 0.02402281786 | AR67: 0.02533300645 | AS67: 0.02800844136 | AT67: 0.0299916538 | AU67: 0.03430580537 | AV67: 0.03762504102 | AW67: 0.03983790529 | AX67: 0.04269771058 | AY67: 0.04233041378 | AZ67: 0.04465891185 | BA67: 0.04791036967 | BB67: 0.04878419767 | BC67: 0.04744134671 | BD67: 0.04670091857 | BE67: 0.04462349736 | BF67: 0.04456938396 | BG67: 0.04408260151 | BH67: 0.04152521312 | BI67: 0.04031814422 | BJ67: 0.03769930142 | BK67: 0.03535930889 | BL67: 0.03368083957 | BM67: 0.03443650823 | BN67: 0.0351936817 | BO67: 0.03615062755 | BP67: 0.03795373285 | BQ67: 0.03910843255 | BR67: 0.0416596675 | BS67: 0.04178430852 | BT67: 0.0438439857
B68: 34.2BL | C68: Meter optants - properties | D68: Input (meter optants in each year) | E68: 000's | F68: 2 | H68: 0.047 | I68: 0.060445 | J68: 0.077995 | K68: 0.09852 | L68: 0.11494 | M68: 0.11494 | N68: 0.11494 | O68: 0.11494 | P68: 0.11494 | Q68: 0.11494 | R68: 0.09852 | S68: 0.0821 | T68: 0.0821 | U68: 0.0821 | V68: 0.0821 | W68: 0.046078625 | X68: 0.046078625 | Y68: 0.0821 | Z68: 0.0821 | AA68: 0.0821 | AB68: 0.06568 | AC68: 0.04926 | AD68: 0.04926 | AE68: 0.04926 | AF68: 0.04926 | AG68: 0.028735 | AH68: 0.00821 | AI68: 0.00821 | AJ68: 0.00821 | AK68: 0.00821 | AL68: 0.00821 | AM68: 0.00821 | AN68: 0.00821 | AO68: 0.00821 | AP68: 0.00821 | AQ68: 0.00821 | AR68: 0.00821 | AS68: 0.00821 | AT68: 0.00821 | AU68: 0.00821 | AV68: 0.00821 | AW68: 0.00821 | AX68: 0.00821 | AY68: 0.00821 | AZ68: 0.00821 | BA68: 0.00821 | BB68: 0.00821 | BC68: 0.00821 | BD68: 0.00821 | BE68: 0.00821 | BF68: 0.00821 | BG68: 0.00821 | BH68: 0.00821 | BI68: 0.00821 | BJ68: 0.00821 | BK68: 0.00821 | BL68: 0.00821 | BM68: 0.00821 | BN68: 0.00821 | BO68: 0.00821 | BP68: 0.004105 | BQ68: 0 | BR68: 0 | BS68: 0 | BT68: 0
B69: 34.3BL | C69: Compulsory metering - properties | D69: Input (compulsory meters in each year) | E69: 000's | F69: 2 | H69: 0 | I69: 0 | J69: 0 | K69: 0 | L69: 0 | M69: 0 | N69: 0 | O69: 0 | P69: 0 | Q69: 0 | R69: 0 | S69: 0 | T69: 0 | U69: 0 | V69: 0 | W69: 0 | X69: 0 | Y69: 0 | Z69: 0 | AA69: 0 | AB69: 0 | AC69: 0 | AD69: 0 | AE69: 0 | AF69: 0 | AG69: 0 | AH69: 0 | AI69: 0 | AJ69: 0 | AK69: 0 | AL69: 0 | AM69: 0 | AN69: 0 | AO69: 0 | AP69: 0 | AQ69: 0 | AR69: 0 | AS69: 0 | AT69: 0 | AU69: 0 | AV69: 0 | AW69: 0 | AX69: 0 | AY69: 0 | AZ69: 0 | BA69: 0 | BB69: 0 | BC69: 0 | BD69: 0 | BE69: 0 | BF69: 0 | BG69: 0 | BH69: 0 | BI69: 0 | BJ69: 0 | BK69: 0 | BL69: 0 | BM69: 0 | BN69: 0 | BO69: 0 | BP69: 0 | BQ69: 0 | BR69: 0 | BS69: 0 | BT69: 0
B70: 34.4BL | C70: Metering on change of occupancy - properties | D70: Input (change of occupancy meters in each year) | E70: 000's | F70: 2 | H70: 0 | I70: 0 | J70: 0 | K70: 0 | L70: 0 | M70: 0 | N70: 0 | O70: 0 | P70: 0 | Q70: 0 | R70: 0 | S70: 0 | T70: 0 | U70: 0 | V70: 0 | W70: 0 | X70: 0 | Y70: 0 | Z70: 0 | AA70: 0 | AB70: 0 | AC70: 0 | AD70: 0 | AE70: 0 | AF70: 0 | AG70: 0 | AH70: 0 | AI70: 0 | AJ70: 0 | AK70: 0 | AL70: 0 | AM70: 0 | AN70: 0 | AO70: 0 | AP70: 0 | AQ70: 0 | AR70: 0 | AS70: 0 | AT70: 0 | AU70: 0 | AV70: 0 | AW70: 0 | AX70: 0 | AY70: 0 | AZ70: 0 | BA70: 0 | BB70: 0 | BC70: 0 | BD70: 0 | BE70: 0 | BF70: 0 | BG70: 0 | BH70: 0 | BI70: 0 | BJ70: 0 | BK70: 0 | BL70: 0 | BM70: 0 | BN70: 0 | BO70: 0 | BP70: 0 | BQ70: 0 | BR70: 0 | BS70: 0 | BT70: 0
B71: 34.5BL | C71: Selective metering - properties | D71: Input (selective meters in each year) | E71: 000's | F71: 2 | H71: 0 | I71: 0 | J71: 0 | K71: 0 | L71: 0 | M71: 0 | N71: 0 | O71: 0 | P71: 0 | Q71: 0 | R71: 0 | S71: 0 | T71: 0 | U71: 0 | V71: 0 | W71: 0 | X71: 0 | Y71: 0 | Z71: 0 | AA71: 0 | AB71: 0 | AC71: 0 | AD71: 0 | AE71: 0 | AF71: 0 | AG71: 0 | AH71: 0 | AI71: 0 | AJ71: 0 | AK71: 0 | AL71: 0 | AM71: 0 | AN71: 0 | AO71: 0 | AP71: 0 | AQ71: 0 | AR71: 0 | AS71: 0 | AT71: 0 | AU71: 0 | AV71: 0 | AW71: 0 | AX71: 0 | AY71: 0 | AZ71: 0 | BA71: 0 | BB71: 0 | BC71: 0 | BD71: 0 | BE71: 0 | BF71: 0 | BG71: 0 | BH71: 0 | BI71: 0 | BJ71: 0 | BK71: 0 | BL71: 0 | BM71: 0 | BN71: 0 | BO71: 0 | BP71: 0 | BQ71: 0 | BR71: 0 | BS71: 0 | BT71: 0
B72: 34.6BL | C72: Other changes to existing metering - properties | D72: Input (other changes to meters in each year) | E72: 000's | F72: 2 | H72: 0 | I72: -0.009207800175 | J72: -0.006879818215 | K72: -0.007336683723 | L72: -0.007727230377 | M72: -0.01209122162 | N72: -0.01283261663 | O72: -0.01439540242 | P72: -0.01524745533 | Q72: -0.01369093942 | R72: -0.007931714854 | S72: -0.006344417235 | T72: -0.006384475043 | U72: -0.006488262272 | V72: -0.006534411338 | W72: -0.005145063972 | X72: -0.005116575262 | Y72: -0.006427414122 | Z72: -0.006365373115 | AA72: -0.006382537341 | AB72: -0.005694305574 | AC72: -0.004975287542 | AD72: -0.004838168046 | AE72: -0.004730783134 | AF72: -0.004692300679 | AG72: -0.00386477143 | AH72: -0.002978972606 | AI72: -0.002884915153 | AJ72: -0.002825030099 | AK72: -0.002760443481 | AL72: -0.001926252249 | AM72: -0.001782521819 | AN72: -0.001785946883 | AO72: -0.0018819362 | AP72: -0.001975878498 | AQ72: -0.002001140239 | AR72: -0.002050363951 | AS72: -0.002150879891 | AT72: -0.002225389072 | AU72: -0.002387471505 | AV72: -0.002512175002 | AW72: -0.002595312189 | AX72: -0.002702754914 | AY72: -0.002688955594 | AZ72: -0.002776437136 | BA72: -0.002898594224 | BB72: -0.002931423893 | BC72: -0.002880973058 | BD72: -0.002853155214 | BE72: -0.002775106616 | BF72: -0.002773073578 | BG72: -0.002754785189 | BH72: -0.00265870425 | BI72: -0.002613354739 | BJ72: -0.002514964961 | BK72: -0.002427051573 | BL72: -0.002363991575 | BM72: -0.002392382004 | BN72: -0.002420828969 | BO72: -0.002456781371 | BP72: -0.002370299316 | BQ72: -0.002259456699 | BR72: -0.002355306453 | BS72: -0.002359989209 | BT72: -0.002437371165
B73: 34.7BL | C73: Measured household void properties | D73: Input | E73: 000's | F73: 2 | H73: 0.134 | I73: 0.1426741502 | J73: 0.1490203184 | K73: 0.1558233521 | L73: 0.1630169325 | M73: 0.1744924041 | N73: 0.1867092707 | O73: 0.2004889232 | P73: 0.2150795785 | Q73: 0.2280726679 | R73: 0.2351833828 | S73: 0.2407068 | T73: 0.2462702751 | U73: 0.2519375373 | V73: 0.2576509487 | W73: 0.2619750126 | X73: 0.2662705879 | Y73: 0.271877002 | Z73: 0.2774213751 | AA73: 0.2829829125 | AB73: 0.2878562181 | AC73: 0.2920105056 | AD73: 0.2960276736 | AE73: 0.2999374568 | AF73: 0.3038087575 | AG73: 0.3068525289 | AH73: 0.3090105015 | AI73: 0.3110744166 | AJ73: 0.3130784467 | AK73: 0.3150178902 | AL73: 0.3161231425 | AM73: 0.3170846643 | AN73: 0.3180496112 | AO73: 0.3191105474 | AP73: 0.3202654259 | AQ73: 0.3214455661 | AR73: 0.3226749301 | AS73: 0.32400481 | AT73: 0.325409199 | AU73: 0.3269756705 | AV73: 0.3286668455 | AW73: 0.3304411577 | AX73: 0.3323229126 | AY73: 0.3341908682 | AZ73: 0.3361463054 | BA73: 0.3382238996 | BB73: 0.3403343235 | BC73: 0.3423942965 | BD73: 0.3444264518 | BE73: 0.3463805584 | BF73: 0.348332632 | BG73: 0.3502664171 | BH73: 0.3521041214 | BI73: 0.3538964761 | BJ73: 0.3555904411 | BK73: 0.3571964927 | BL73: 0.3587394842 | BM73: 0.3603108662 | BN73: 0.3619106952 | BO73: 0.3635464766 | BP73: 0.3650957759 | BQ73: 0.3665342326 | BR73: 0.3680685391 | BS73: 0.3696075283 | BT73: 0.3712238994
B74: 35BL | C74: Unmeasured households - properties (excl. void) | D74: Input | E74: 000's | F74: 2 | H74: 5.731 | I74: 5.713863868 | J74: 5.635329433 | K74: 5.536862401 | L74: 5.42244929 | M74: 5.30811591 | N74: 5.193862261 | O74: 5.079648476 | P74: 4.965474557 | Q74: 4.851300638 | R74: 4.753232258 | S74: 4.671109956 | T74: 4.588987653 | U74: 4.506865351 | V74: 4.424822779 | W74: 4.377841647 | X74: 4.330940244 | Y74: 4.249136864 | Z74: 4.167333483 | AA74: 4.085530103 | AB74: 4.0196728 | AC74: 3.969841306 | AD74: 3.920089542 | AE74: 3.870337779 | AF74: 3.820586015 | AG74: 3.790766849 | AH74: 3.78088028 | AI74: 3.770993712 | AJ74: 3.761107144 | AK74: 3.751220575 | AL74: 3.741334007 | AM74: 3.731447438 | AN74: 3.72156087 | AO74: 3.711674302 | AP74: 3.701867463 | AQ74: 3.692060625 | AR74: 3.682253787 | AS74: 3.672446949 | AT74: 3.662640111 | AU74: 3.652833273 | AV74: 3.643026435 | AW74: 3.633219597 | AX74: 3.623412759 | AY74: 3.613605921 | AZ74: 3.603799083 | BA74: 3.593992245 | BB74: 3.584185407 | BC74: 3.574378569 | BD74: 3.564571731 | BE74: 3.554764893 | BF74: 3.545037785 | BG74: 3.535310678 | BH74: 3.52558357 | BI74: 3.515856462 | BJ74: 3.506129355 | BK74: 3.496402247 | BL74: 3.48667514 | BM74: 3.476948032 | BN74: 3.467220924 | BO74: 3.457493817 | BP74: 3.451753229 | BQ74: 3.44999916 | BR74: 3.448245091 | BS74: 3.446491023 | BT74: 3.444736954
B75: 35.1BL | C75: Unmeasured household void properties | D75: Input | E75: 000's | F75: 2 | H75: 0.216 | I75: 0.1698176324 | J75: 0.1674835671 | K75: 0.1645570993 | L75: 0.1611567097 | M75: 0.1577586896 | N75: 0.1543630392 | O75: 0.1509685736 | P75: 0.1475752928 | Q75: 0.144182012 | R75: 0.1412673923 | S75: 0.1388266945 | T75: 0.1363859967 | U75: 0.1339452989 | V75: 0.1315069707 | W75: 0.1301106783 | X75: 0.1287167555 | Y75: 0.1262855362 | Z75: 0.1238543168 | AA75: 0.1214230975 | AB75: 0.1194658 | AC75: 0.1179847941 | AD75: 0.1165061577 | AE75: 0.1150275214 | AF75: 0.1135488851 | AG75: 0.1126626511 | AH75: 0.1123688195 | AI75: 0.1120749879 | AJ75: 0.1117811564 | AK75: 0.1114873248 | AL75: 0.1111934932 | AM75: 0.1108996616 | AN75: 0.1106058301 | AO75: 0.1103119985 | AP75: 0.1100205365 | AQ75: 0.1097290745 | AR75: 0.1094376126 | AS75: 0.1091461506 | AT75: 0.1088546886 | AU75: 0.1085632267 | AV75: 0.1082717647 | AW75: 0.1079803027 | AX75: 0.1076888407 | AY75: 0.1073973788 | AZ75: 0.1071059168 | BA75: 0.1068144548 | BB75: 0.1065229929 | BC75: 0.1062315309 | BD75: 0.1059400689 | BE75: 0.105648607 | BF75: 0.1053595146 | BG75: 0.1050704222 | BH75: 0.1047813299 | BI75: 0.1044922375 | BJ75: 0.1042031452 | BK75: 0.1039140528 | BL75: 0.1036249604 | BM75: 0.1033358681 | BN75: 0.1030467757 | BO75: 0.1027576834 | BP75: 0.1025870715 | BQ75: 0.1025349401 | BR75: 0.1024828087 | BS75: 0.1024306772 | BT75: 0.1023785458
B76: 36BL | C76: Total Resource Zone Properties (incl. voids) | D76: sum (31BL:34BL) + 34.7BL + 35BL + 35.1BL | E76: 000's | F76: 2 | G76: =SUM(G63:G66)+G73+G74+G75 -> 0 | H76: =SUM(H63:H66)+H73+H74+H75 -> 10.77 | I76: 10.88013404 | J76: 10.97007329 | K76: 11.05164793 | L76: 11.12719776 | M76: 11.31680088 | N76: 11.52621983 | O76: 11.77727653 | P76: 12.04996077 | Q76: 12.28012255 | R76: 12.369271 | S76: 12.43259032 | T76: 12.49697585 | U76: 12.56412389 | V76: 12.63258238 | W76: 12.70057456 | X76: 12.76789055 | Y76: 12.8341579 | Z76: 12.89877389 | AA76: 12.96384675 | AB76: 13.02743143 | AC76: 13.08838009 | AD76: 13.14576114 | AE76: 13.20028392 | AF76: 13.25378241 | AG76: 13.30577954 | AH76: 13.35472434 | AI76: 13.40116562 | AJ76: 13.44601293 | AK76: 13.48955164 | AL76: 13.51088666 | AM76: 13.52839601 | AN76: 13.54599652 | AO76: 13.56615198 | AP76: 13.58889 | AQ76: 13.61230042 | AR76: 13.63702103 | AS76: 13.66441707 | AT76: 13.69379632 | AU76: 13.72748973 | AV76: 13.76450237 | AW76: 13.80372788 | AX76: 13.84581319 | AY76: 13.8875312 | AZ76: 13.93157771 | BA76: 13.97887568 | BB76: 14.02704748 | BC76: 14.07387643 | BD76: 14.11996494 | BE76: 14.16397604 | BF76: 14.20801513 | BG76: 14.25156743 | BH76: 14.29256234 | BI76: 14.33235018 | BJ76: 14.36951919 | BK76: 14.4043482 | BL76: 14.43749873 | BM76: 14.47140494 | BN76: 14.50606832 | BO76: 14.54168865 | BP76: 14.57911209 | BQ76: 14.61769022 | BR76: 14.65881959 | BS76: 14.70007359 | BT76: =SUM(BT63:BT66)+BT73+BT74+BT75 -> 14.74338728
B77: 37BL | C77: Measured Non Household - Population | D77: Input | E77: 000's | F77: 2 | H77: 0.396069078 | I77: 0.4014848942 | J77: 0.4111724526 | K77: 0.4198598024 | L77: 0.4289029305 | M77: 0.4373422053 | N77: 0.4458468148 | O77: 0.4569605173 | P77: 0.4703203143 | Q77: 0.4846191583 | R77: 0.4986625036 | S77: 0.5117417731 | T77: 0.534468613 | U77: 0.5540162614 | V77: 0.5693100478 | W77: 0.5826600296 | X77: 0.5949734982 | Y77: 0.606228112 | Z77: 0.6173977821 | AA77: 0.6299583555 | AB77: 0.6408586856 | AC77: 0.6524742472 | AD77: 0.6649527016 | AE77: 0.6788847641 | AF77: 0.6939035898 | AG77: 0.7088202401 | AH77: 0.7237301689 | AI77: 0.7381544433 | AJ77: 0.7520996052 | AK77: 0.7657862778 | AL77: 0.7789443217 | AM77: 0.7897314261 | AN77: 0.7989380917 | AO77: 0.8063198434 | AP77: 0.8126426653 | AQ77: 0.8175080508 | AR77: 0.8232989205 | AS77: 0.8267300843 | AT77: 0.8277753505 | AU77: 0.8279500301 | AV77: 0.8284035685 | AW77: 0.8284539565 | AX77: 0.8280638339 | AY77: 0.8293362673 | AZ77: 0.8342852084 | BA77: 0.8420261094 | BB77: 0.8508366285 | BC77: 0.8595881049 | BD77: 0.8686228796 | BE77: 0.8777590434 | BF77: 0.8881471833 | BG77: 0.8989498955 | BH77: 0.909443164 | BI77: 0.920183928 | BJ77: 0.9302314583 | BK77: 0.9400098538 | BL77: 0.9502915061 | BM77: 0.9593633213 | BN77: 0.9664499006 | BO77: 0.9733447964 | BP77: 0.9787465024 | BQ77: 0.9842611149 | BR77: 0.9897579582 | BS77: 0.9948191437 | BT77: 0.9997729864
B78: 38BL | C78: Unmeasured Non Household - Population | D78: Input | E78: 000's | F78: 2 | H78: 0.07538560358 | I78: 0.07641642017 | J78: 0.0782602966 | K78: 0.07991379883 | L78: 0.08163501796 | M78: 0.08324130297 | N78: 0.08486002344 | O78: 0.08697534426 | P78: 0.08951817433 | Q78: 0.09223973743 | R78: 0.09491267031 | S78: 0.09740210631 | T78: 0.1017278077 | U78: 0.1054483992 | V78: 0.1083593342 | W78: 0.1109002961 | X78: 0.1132439738 | Y78: 0.1153861149 | Z78: 0.1175120883 | AA78: 0.1199027985 | AB78: 0.1219775072 | AC78: 0.1241883492 | AD78: 0.1265634293 | AE78: 0.1292151813 | AF78: 0.1320737817 | AG78: 0.1349129346 | AH78: 0.1377508082 | AI78: 0.1404962451 | AJ78: 0.1431504903 | AK78: 0.145755536 | AL78: 0.1482599655 | AM78: 0.1503131235 | AN78: 0.1520654694 | AO78: 0.1534704713 | AP78: 0.1546739224 | AQ78: 0.155599973 | AR78: 0.1567021752 | AS78: 0.157355244 | AT78: 0.1575541942 | AU78: 0.1575874418 | AV78: 0.1576737657 | AW78: 0.1576833563 | AX78: 0.1576091025 | AY78: 0.1578512905 | AZ78: 0.1587932446 | BA78: 0.160266605 | BB78: 0.1619435506 | BC78: 0.1636092584 | BD78: 0.1653288876 | BE78: 0.1670678146 | BF78: 0.1690450358 | BG78: 0.1711011645 | BH78: 0.1730983953 | BI78: 0.1751427331 | BJ78: 0.1770551246 | BK78: 0.1789162905 | BL78: 0.1808732435 | BM78: 0.1825999227 | BN78: 0.1839487431 | BO78: 0.1852610796 | BP78: 0.1862892105 | BQ78: 0.1873388314 | BR78: 0.1883850702 | BS78: 0.1893483884 | BT78: 0.1902912755
B79: 39BL | C79: Measured Household - Population | D79: Input | E79: 000's | F79: 2 | H79: 6.769852305 | I79: 7.055986602 | J79: 7.40964485 | K79: 7.789992693 | L79: 8.16638669 | M79: 8.472217398 | N79: 9.007148675 | O79: 9.57291528 | P79: 10.16687776 | Q79: 10.77667468 | R79: 11.28631942 | S79: 11.59119043 | T79: 11.85925092 | U79: 12.13533461 | V79: 12.43330079 | W79: 12.6669104 | X79: 12.90327562 | Y79: 13.21360678 | Z79: 13.52595087 | AA79: 13.83977131 | AB79: 14.12011999 | AC79: 14.36480907 | AD79: 14.60936164 | AE79: 14.84857257 | AF79: 15.09195718 | AG79: 15.29836006 | AH79: 15.45636887 | AI79: 15.6163113 | AJ79: 15.77725015 | AK79: 15.93885367 | AL79: 16.09646141 | AM79: 16.20340322 | AN79: 16.30613962 | AO79: 16.4082298 | AP79: 16.50999059 | AQ79: 16.61213043 | AR79: 16.70996543 | AS79: 16.81070675 | AT79: 16.91761718 | AU79: 17.02814694 | AV79: 17.14068084 | AW79: 17.25713494 | AX79: 17.37740443 | AY79: 17.49652365 | AZ79: 17.6087665 | BA79: 17.7181844 | BB79: 17.82906384 | BC79: 17.94240713 | BD79: 18.05584167 | BE79: 18.16852922 | BF79: 18.27832444 | BG79: 18.38815173 | BH79: 18.49834999 | BI79: 18.60530206 | BJ79: 18.71155025 | BK79: 18.81565864 | BL79: 18.9168301 | BM79: 19.01901957 | BN79: 19.12301485 | BO79: 19.22523207 | BP79: 19.32071789 | BQ79: 19.40608774 | BR79: 19.48998278 | BS79: 19.57456044 | BT79: 19.65849597
B80: 40BL | C80: Unmeasured Household - Population | D80: Input | E80: 000's | F80: 2 | H80: 17.02179682 | I80: 16.84866087 | J80: 16.64137869 | K80: 16.39360903 | L80: 16.11312653 | M80: 15.83116204 | N80: 15.54859372 | O80: 15.26308038 | P80: 14.97706942 | Q80: 14.68917382 | R80: 14.42950686 | S80: 14.20112899 | T80: 13.97271672 | U80: 13.74389267 | V80: 13.51473328 | W80: 13.35205282 | X80: 13.18980392 | Y80: 12.96132482 | Z80: 12.73298806 | AA80: 12.50485339 | AB80: 12.30746811 | AC80: 12.14110515 | AD80: 11.97539616 | AE80: 11.81040672 | AF80: 11.64613657 | AG80: 11.52115088 | AH80: 11.43582161 | AI80: 11.35176499 | AJ80: 11.26902104 | AK80: 11.18760401 | AL80: 11.10752644 | AM80: 11.02911819 | AN80: 10.95201525 | AO80: 10.8761603 | AP80: 10.80148297 | AQ80: 10.72792154 | AR80: 10.65544955 | AS80: 10.58399447 | AT80: 10.51351813 | AU80: 10.44401965 | AV80: 10.37543998 | AW80: 10.3077264 | AX80: 10.24086042 | AY80: 10.17481268 | AZ80: 10.10957023 | BA80: 10.04503521 | BB80: 9.981128552 | BC80: 9.917842897 | BD80: 9.855212701 | BE80: 9.7932442 | BF80: 9.731957541 | BG80: 9.671328739 | BH80: 9.611358407 | BI80: 9.552080224 | BJ80: 9.493480729 | BK80: 9.435585075 | BL80: 9.378402952 | BM80: 9.321928094 | BN80: 9.266145464 | BO80: 9.21104561 | BP80: 9.164916779 | BQ80: 9.127769336 | BR80: 9.09125249 | BS80: 9.055309629 | BT80: 9.01993466
B81: 41BL | C81: Total Resource Zone Population | D81: sum (37BL:40BL) | E81: 000's | F81: 2 | G81: =SUM(G77:G80) -> 0 | H81: =SUM(H77:H80) -> 24.26310381 | I81: 24.38254878 | J81: 24.54045629 | K81: 24.68337532 | L81: 24.79005117 | M81: 24.82396295 | N81: 25.08644923 | O81: 25.37993153 | P81: 25.70378566 | Q81: 26.0427074 | R81: 26.30940146 | S81: 26.4014633 | T81: 26.46816406 | U81: 26.53869194 | V81: 26.62570345 | W81: 26.71252354 | X81: 26.80129701 | Y81: 26.89654583 | Z81: 26.9938488 | AA81: 27.09448586 | AB81: 27.19042429 | AC81: 27.28257682 | AD81: 27.37627393 | AE81: 27.46707923 | AF81: 27.56407112 | AG81: 27.66324412 | AH81: 27.75367146 | AI81: 27.84672698 | AJ81: 27.94152128 | AK81: 28.0379995 | AL81: 28.13119214 | AM81: 28.17256596 | AN81: 28.20915843 | AO81: 28.24418041 | AP81: 28.27879014 | AQ81: 28.31316 | AR81: 28.34541607 | AS81: 28.37878656 | AT81: 28.41646485 | AU81: 28.45770407 | AV81: 28.50219815 | AW81: 28.55099866 | AX81: 28.60393779 | AY81: 28.65852389 | AZ81: 28.71141518 | BA81: 28.76551232 | BB81: 28.82297257 | BC81: 28.88344739 | BD81: 28.94500614 | BE81: 29.00660027 | BF81: 29.0674742 | BG81: 29.12953153 | BH81: 29.19224995 | BI81: 29.25270894 | BJ81: 29.31231756 | BK81: 29.37016986 | BL81: 29.4263978 | BM81: 29.48291091 | BN81: 29.53955896 | BO81: 29.59488356 | BP81: 29.65067038 | BQ81: 29.70545703 | BR81: 29.7593783 | BS81: 29.8140376 | BT81: =SUM(BT77:BT80) -> 29.86849489
B82: 42BL | C82: Average household occupancy rate (excl. voids) | D82: (39BL + 40BL) / (34BL + 35BL) | E82: h/prop | F82: 1 | H82: =(H80+H79)/(H66+H74) -> 2.579599818 | I82: 2.551529918 | J82: 2.544331723 | K82: 2.538003556 | L82: 2.529522392 | M82: 2.48549314 | N82: 2.461285006 | O82: 2.431188613 | P82: 2.400337245 | Q82: 2.381356117 | R82: 2.385970807 | S82: 2.379957796 | T82: 2.370405785 | U82: 2.361080802 | V82: 2.35354768 | W82: 2.346405365 | X82: 2.339766909 | Y82: 2.334168141 | Z82: 2.3291502 | AA82: 2.324243507 | AB82: 2.319493004 | AC82: 2.314870269 | AD82: 2.311027423 | AE82: 2.307369212 | AF82: 2.304360195 | AG82: 2.301824443 | AH82: 2.299104891 | AI82: 2.29715079 | AJ82: 2.295705812 | AK82: 2.29476056 | AL82: 2.297737493 | AM82: 2.297286512 | AN82: 2.296575331 | AO82: 2.295441601 | AP82: 2.293903305 | AQ82: 2.292371077 | AR82: 2.290333208 | AS82: 2.288138268 | AT82: 2.286184283 | AU82: 2.283832525 | AV82: 2.281130698 | AW82: 2.278438374 | AX82: 2.275629976 | AY82: 2.272878012 | AZ82: 2.269229675 | BA82: 2.264854218 | BB82: 2.260524992 | BC82: 2.256712874 | BD82: 2.253117075 | BE82: 2.249900757 | BF82: 2.246522934 | BG82: 2.243306043 | BH82: 2.24063111 | BI82: 2.237975702 | BJ82: 2.235780134 | BK82: 2.23388046 | BL82: 2.232099235 | BM82: 2.230334487 | BN82: 2.228646811 | BO82: 2.226721023 | BP82: 2.22467209 | BQ82: 2.222347061 | BR82: 2.219545833 | BS82: 2.216837605 | BT82: =(BT80+BT79)/(BT66+BT74) -> 2.213800588
B83: 43BL | C83: Total Household Metering penetration (excl. voids) | D83: 34BL / (34BL + 35BL) | E83: % | F83: 1 | H83: =H66/(H66+H74) -> 0.3786186707 | I83: 0.3901146368 | J83: 0.4038446048 | K83: 0.4189212746 | L83: 0.4350707622 | M83: 0.4571419291 | N83: 0.4794058717 | O83: 0.5027546428 | P83: 0.525976831 | Q83: 0.5463463764 | R83: 0.5589846782 | S83: 0.5689784863 | T83: 0.5789030463 | U83: 0.588817968 | V83: 0.5986581736 | W83: 0.6052036725 | X83: 0.6116445108 | Y83: 0.6210801982 | Z83: 0.6303603264 | AA83: 0.6395558138 | AB83: 0.6472018974 | AC83: 0.6532974666 | AD83: 0.6592244887 | AE83: 0.6650172487 | AF83: 0.6707317127 | AG83: 0.6746517933 | AH83: 0.6767596768 | AI83: 0.67878535 | AJ83: 0.6807546789 | AK83: 0.6826657897 | AL83: 0.6839947339 | AM83: 0.6852218073 | AN83: 0.6864481499 | AO83: 0.6877360436 | AP83: 0.6890784383 | AQ83: 0.6904331784 | AR83: 0.6918158143 | AS83: 0.6932594252 | AT83: 0.6947457637 | AU83: 0.6963304874 | AV83: 0.6979872457 | AW83: 0.6996876984 | AX83: 0.7014458826 | AY83: 0.7031843586 | AZ83: 0.7049661419 | BA83: 0.7068110755 | BB83: 0.708662904 | BC83: 0.7104711506 | BD83: 0.7122503032 | BE83: 0.7139713528 | BF83: 0.7156755261 | BG83: 0.717358138 | BH83: 0.7189749492 | BI83: 0.7205563622 | BJ83: 0.7220731874 | BK83: 0.7235327145 | BL83: 0.7249499625 | BM83: 0.7263762244 | BN83: 0.727811222 | BO83: 0.7292587217 | BP83: 0.7304248559 | BQ83: 0.7312983144 | BR83: 0.7322180811 | BS83: 0.7331349781 | BT83: =BT66/(BT66+BT74) -> 0.7340872381
B84: 44BL | C84: Total Household Metering penetration (incl. voids) | D84: (34BL) / (34BL + 34.7BL + 35BL + 35.1BL) | E84: % | F84: 1 | H84: =(H66)/(H66+H75+H74+H73) -> 0.3647759323 | I84: 0.3775224907 | J84: 0.3907609123 | K84: 0.4052940479 | L84: 0.4208569441 | M84: 0.4421191043 | N84: 0.4635584082 | O84: 0.4860331227 | P84: 0.5083766193 | Q84: 0.5279677211 | R84: 0.5401194252 | S84: 0.549726496 | T84: 0.559265288 | U84: 0.5687931149 | V84: 0.5782474618 | W84: 0.5845353683 | X84: 0.5907220102 | Y84: 0.5997840107 | Z84: 0.6086951121 | AA84: 0.617523471 | AB84: 0.6248631738 | AC84: 0.6307137686 | AD84: 0.6364019748 | AE84: 0.6419607428 | AF84: 0.64744381 | AG84: 0.6512048283 | AH84: 0.653227072 | AI84: 0.6551703733 | AJ84: 0.6570595536 | AK84: 0.6588928212 | AL84: 0.6601675979 | AM84: 0.6613446289 | AN84: 0.662520933 | AO84: 0.6637562487 | AP84: 0.6650438101 | AQ84: 0.6663431811 | AR84: 0.6676692751 | AS84: 0.6690538153 | AT84: 0.6704792973 | AU84: 0.6719990942 | AV84: 0.6735879282 | AW84: 0.6752186159 | AX84: 0.676904614 | AY84: 0.6785716608 | AZ84: 0.6802801815 | BA84: 0.6820491981 | BB84: 0.6838247669 | BC84: 0.6855584916 | BD84: 0.6872642662 | BE84: 0.6889142823 | BF84: 0.6905480683 | BG84: 0.6921611344 | BH84: 0.6937110735 | BI84: 0.6952270348 | BJ84: 0.696681041 | BK84: 0.6980800848 | BL84: 0.6994385662 | BM84: 0.7008056529 | BN84: 0.7021810775 | BO84: 0.7035684494 | BP84: 0.704686117 | BQ84: 0.7055232578 | BR84: 0.7064047671 | BS84: 0.7072835114 | BT84: =(BT66)/(BT66+BT75+BT74+BT73) -> 0.7081961321
B85: 45BL | C85: Distribution input | D85: sum (12BL:15BL) +21BL + 22BL + 27BL + 28BL | E85: Ml/d | F85: 2 | G85: =SUM(G45:G47)+G43+G54+G59+G60+G53 -> 0 | H85: =SUM(H45:H47)+H43+H54+H59+H60+H53 -> 7.124012916 | I85: 7.70895767 | J85: 7.607066115 | K85: 7.496921937 | L85: 7.381730568 | M85: 7.471573543 | N85: 7.522112377 | O85: 7.569301916 | P85: 7.588601539 | Q85: 7.609871465 | R85: 7.623285173 | S85: 7.61498343 | T85: 7.602869261 | U85: 7.583114494 | V85: 7.56720666 | W85: 7.55279387 | X85: 7.538823486 | Y85: 7.525123938 | Z85: 7.512200027 | AA85: 7.49935089 | AB85: 7.487441761 | AC85: 7.476102456 | AD85: 7.46523557 | AE85: 7.46383664 | AF85: 7.462886286 | AG85: 7.463307547 | AH85: 7.464785905 | AI85: 7.46617209 | AJ85: 7.468160773 | AK85: 7.470511808 | AL85: 7.471791763 | AM85: 7.473555062 | AN85: 7.47492194 | AO85: 7.476223978 | AP85: 7.478552335 | AQ85: 7.482144149 | AR85: 7.485154224 | AS85: 7.48845378 | AT85: 7.49309875 | AU85: 7.498229457 | AV85: 7.503899485 | AW85: 7.509729014 | AX85: 7.516391551 | AY85: 7.523053381 | AZ85: 7.5294049 | BA85: 7.53582039 | BB85: 7.542488765 | BC85: 7.549344301 | BD85: 7.556044019 | BE85: 7.56227933 | BF85: 7.568111363 | BG85: 7.573885155 | BH85: 7.57937828 | BI85: 7.584594475 | BJ85: 7.589629991 | BK85: 7.594397361 | BL85: 7.598877775 | BM85: 7.603583215 | BN85: 7.608585017 | BO85: 7.613595387 | BP85: 7.619131147 | BQ85: 7.624689183 | BR85: 7.630721899 | BS85: 7.636691432 | BT85: =SUM(BT45:BT47)+BT43+BT54+BT59+BT60+BT53 -> 7.642813682
B86: 46BL | C86: Target headroom (climate change component) | D86: Input | E86: Ml/d | F86: 2 | H86: -0.004259465649 | I86: 0.007693509603 | J86: 0.01027314844 | K86: 0.01620311621 | L86: 0.01916363586 | M86: 0.01898291683 | N86: 0.01842269009 | O86: 0.01910120233 | P86: 0.02209630112 | Q86: 0.01909325465 | R86: 0.02193430065 | S86: 0.0249745914 | T86: 0.02273883647 | U86: 0.02393443181 | V86: 0.027849979 | W86: 0.02692038252 | X86: 0.02667099875 | Y86: 0.02864825478 | Z86: 0.03055146639 | AA86: 0.03124320044 | AB86: 0.03259248878 | AC86: 0.03511729418 | AD86: 0.03310539434 | AE86: 0.0357598484 | AF86: 0.03540123177 | AG86: 0.03892390321 | AH86: 0.03678249286 | AI86: 0.03791015616 | AJ86: 0.04135456714 | AK86: 0.04049549476 | AL86: 0.04052281098 | AM86: 0.04089819214 | AN86: 0.04113107755 | AO86: 0.04367767937 | AP86: 0.04298518523 | AQ86: 0.04292051746 | AR86: 0.04350971847 | AS86: 0.04421805591 | AT86: 0.04688238907 | AU86: 0.04519497392 | AV86: 0.04504282336 | AW86: 0.04847855683 | AX86: 0.0479398555 | AY86: 0.04741380213 | AZ86: 0.04930631245 | BA86: 0.04722128118 | BB86: 0.05064290886 | BC86: 0.04847111883 | BD86: 0.05046984086 | BE86: 0.05045748815 | BF86: 0.05090541069 | BG86: 0.04963180011 | BH86: 0.05122739764 | BI86: 0.05041493805 | BJ86: 0.05257788366 | BK86: 0.05213269085 | BL86: 0.05260356897 | BM86: 0.05304520732 | BN86: 0.05202044222 | BO86: 0.05439037611 | BP86: 0.05334587591 | BQ86: 0.05467994383 | BR86: 0.05362181233 | BS86: 0.05574370601 | BT86: 0.05574370601
B87: 47BL | C87: Target headroom (All other components) | D87: Input | E87: Ml/d | F87: 2 | H87: 0.6138138849 | I87: 0.6303476814 | J87: 0.626997034 | K87: 0.6215083671 | L87: 0.6192966851 | M87: 0.6209680165 | N87: 0.6104145255 | O87: 0.6015776992 | P87: 0.5912976729 | Q87: 0.5825040538 | R87: 0.5733037656 | S87: 0.5638582463 | T87: 0.5549852612 | U87: 0.5465557109 | V87: 0.5376033108 | W87: 0.5308314061 | X87: 0.5240774061 | Y87: 0.5161221822 | Z87: 0.5090748744 | AA87: 0.5022784737 | AB87: 0.494613749 | AC87: 0.4881964017 | AD87: 0.484421419 | AE87: 0.4759181712 | AF87: 0.4709845302 | AG87: 0.4640602502 | AH87: 0.459386782 | AI87: 0.4495118927 | AJ87: 0.448231366 | AK87: 0.4435614935 | AL87: 0.4388258369 | AM87: 0.4390378111 | AN87: 0.438746843 | AO87: 0.4385112732 | AP87: 0.4389976984 | AQ87: 0.4401418809 | AR87: 0.4396233009 | AS87: 0.439205054 | AT87: 0.4376169072 | AU87: 0.4392977422 | AV87: 0.4402283067 | AW87: 0.4388714462 | AX87: 0.4390024128 | AY87: 0.4403219825 | AZ87: 0.4384304328 | BA87: 0.4407879006 | BB87: 0.4391217642 | BC87: 0.4404740916 | BD87: 0.4394116193 | BE87: 0.4397280275 | BF87: 0.4410098978 | BG87: 0.43995986 | BH87: 0.4401704654 | BI87: 0.44078088 | BJ87: 0.4397477824 | BK87: 0.439651802 | BL87: 0.4407571644 | BM87: 0.4407610684 | BN87: 0.4416425045 | BO87: 0.4412247516 | BP87: 0.4419522404 | BQ87: 0.4421247698 | BR87: 0.4414126343 | BS87: 0.4403156235 | BT87: 0.4403156235
B88: 48BL | C88: Target Headroom | D88: 46BL + 47BL | E88: Ml/d | F88: 2 | G88: =G86+G87 -> 0 | H88: =H86+H87 -> 0.6095544193 | I88: 0.638041191 | J88: 0.6372701824 | K88: 0.6377114833 | L88: 0.6384603209 | M88: 0.6399509333 | N88: 0.6288372156 | O88: 0.6206789015 | P88: 0.613393974 | Q88: 0.6015973085 | R88: 0.5952380663 | S88: 0.5888328377 | T88: 0.5777240976 | U88: 0.5704901427 | V88: 0.5654532898 | W88: 0.5577517886 | X88: 0.5507484048 | Y88: 0.544770437 | Z88: 0.5396263408 | AA88: 0.5335216741 | AB88: 0.5272062378 | AC88: 0.5233136959 | AD88: 0.5175268133 | AE88: 0.5116780196 | AF88: 0.506385762 | AG88: 0.5029841534 | AH88: 0.4961692748 | AI88: 0.4874220488 | AJ88: 0.4895859331 | AK88: 0.4840569882 | AL88: 0.4793486479 | AM88: 0.4799360033 | AN88: 0.4798779206 | AO88: 0.4821889526 | AP88: 0.4819828836 | AQ88: 0.4830623984 | AR88: 0.4831330194 | AS88: 0.4834231099 | AT88: 0.4844992963 | AU88: 0.4844927162 | AV88: 0.48527113 | AW88: 0.487350003 | AX88: 0.4869422683 | AY88: 0.4877357846 | AZ88: 0.4877367453 | BA88: 0.4880091818 | BB88: 0.4897646731 | BC88: 0.4889452104 | BD88: 0.4898814602 | BE88: 0.4901855156 | BF88: 0.4919153085 | BG88: 0.4895916601 | BH88: 0.4913978631 | BI88: 0.491195818 | BJ88: 0.4923256661 | BK88: 0.4917844928 | BL88: 0.4933607334 | BM88: 0.4938062758 | BN88: 0.4936629467 | BO88: 0.4956151277 | BP88: 0.4952981163 | BQ88: 0.4968047136 | BR88: 0.4950344467 | BS88: 0.4960593295 | BT88: =BT86+BT87 -> 0.4960593295
B89: 49BL | C89: Available Headroom | D89: 11BL - 45BL | E89: Ml/d | F89: 2 | G89: =G42-G85 -> 0 | H89: =H42-H85 -> 2.105987084 | I89: 1.52104233 | J89: 1.622933885 | K89: 1.733078063 | L89: 1.848269432 | M89: 1.758426457 | N89: 1.707887623 | O89: 1.660698084 | P89: 1.641398461 | Q89: 1.620128535 | R89: 1.606714827 | S89: 1.61501657 | T89: 1.627130739 | U89: 1.646885506 | V89: 1.66279334 | W89: 1.67720613 | X89: 1.691176514 | Y89: 1.704876062 | Z89: 1.717799973 | AA89: 1.73064911 | AB89: 1.742558239 | AC89: 1.753897544 | AD89: 1.76476443 | AE89: 1.76616336 | AF89: 1.767113714 | AG89: 1.766692453 | AH89: 1.765214095 | AI89: 1.76382791 | AJ89: 1.761839227 | AK89: 1.759488192 | AL89: 1.758208237 | AM89: 1.756444938 | AN89: 1.75507806 | AO89: 1.753776022 | AP89: 1.751447665 | AQ89: 1.747855851 | AR89: 1.744845776 | AS89: 1.74154622 | AT89: 1.73690125 | AU89: 1.731770543 | AV89: 1.726100515 | AW89: 1.720270986 | AX89: 1.713608449 | AY89: 1.706946619 | AZ89: 1.7005951 | BA89: 1.69417961 | BB89: 1.687511235 | BC89: 1.680655699 | BD89: 1.673955981 | BE89: 1.66772067 | BF89: 1.661888637 | BG89: 1.656114845 | BH89: 1.65062172 | BI89: 1.645405525 | BJ89: 1.640370009 | BK89: 1.635602639 | BL89: 1.631122225 | BM89: 1.626416785 | BN89: 1.621414983 | BO89: 1.616404613 | BP89: 1.610868853 | BQ89: 1.605310817 | BR89: 1.599278101 | BS89: 1.593308568 | BT89: =BT42-BT85 -> 1.587186318
B90: 49.1BL | C90: Available non-potable balance (if applicable) | D90: 1.1BL -12.1BL | E90: Ml/d | F90: 2 | G90: =G25-G44 -> 0 | H90: =H25-H44 -> 0 | I90: 0 | J90: 0 | K90: 0 | L90: 0 | M90: 0 | N90: 0 | O90: 0 | P90: 0 | Q90: 0 | R90: 0 | S90: 0 | T90: 0 | U90: 0 | V90: 0 | W90: 0 | X90: 0 | Y90: 0 | Z90: 0 | AA90: 0 | AB90: 0 | AC90: 0 | AD90: 0 | AE90: 0 | AF90: 0 | AG90: 0 | AH90: 0 | AI90: 0 | AJ90: 0 | AK90: 0 | AL90: 0 | AM90: 0 | AN90: 0 | AO90: 0 | AP90: 0 | AQ90: 0 | AR90: 0 | AS90: 0 | AT90: 0 | AU90: 0 | AV90: 0 | AW90: 0 | AX90: 0 | AY90: 0 | AZ90: 0 | BA90: 0 | BB90: 0 | BC90: 0 | BD90: 0 | BE90: 0 | BF90: 0 | BG90: 0 | BH90: 0 | BI90: 0 | BJ90: 0 | BK90: 0 | BL90: 0 | BM90: 0 | BN90: 0 | BO90: 0 | BP90: 0 | BQ90: 0 | BR90: 0 | BS90: 0 | BT90: =BT25-BT44 -> 0
B91: 50BL | C91: Supply Demand Balance | D91: 49BL - 48BL | E91: Ml/d | F91: 2 | G91: =G89-G88 -> 0 | H91: =H89-H88 -> 1.496432665 | I91: 0.8830011392 | J91: 0.9856637022 | K91: 1.09536658 | L91: 1.209809111 | M91: 1.118475524 | N91: 1.079050407 | O91: 1.040019183 | P91: 1.028004487 | Q91: 1.018531227 | R91: 1.011476761 | S91: 1.026183732 | T91: 1.049406641 | U91: 1.076395364 | V91: 1.09734005 | W91: 1.119454341 | X91: 1.140428109 | Y91: 1.160105625 | Z91: 1.178173633 | AA91: 1.197127436 | AB91: 1.215352002 | AC91: 1.230583848 | AD91: 1.247237616 | AE91: 1.254485341 | AF91: 1.260727952 | AG91: 1.2637083 | AH91: 1.26904482 | AI91: 1.276405861 | AJ91: 1.272253294 | AK91: 1.275431204 | AL91: 1.278859589 | AM91: 1.276508935 | AN91: 1.27520014 | AO91: 1.271587069 | AP91: 1.269464782 | AQ91: 1.264793453 | AR91: 1.261712757 | AS91: 1.25812311 | AT91: 1.252401954 | AU91: 1.247277827 | AV91: 1.240829385 | AW91: 1.232920983 | AX91: 1.226666181 | AY91: 1.219210835 | AZ91: 1.212858355 | BA91: 1.206170428 | BB91: 1.197746562 | BC91: 1.191710489 | BD91: 1.184074521 | BE91: 1.177535154 | BF91: 1.169973328 | BG91: 1.166523185 | BH91: 1.159223857 | BI91: 1.154209707 | BJ91: 1.148044343 | BK91: 1.143818147 | BL91: 1.137761492 | BM91: 1.132610509 | BN91: 1.127752036 | BO91: 1.120789485 | BP91: 1.115570737 | BQ91: 1.108506103 | BR91: 1.104243654 | BS91: 1.097249239 | BT91: =BT89-BT88 -> 1.091126989
B93: Table 3b: DYAA - Final plan Options | C93: Back to top of sheet
B94: WRMP24 reference | C94: Option type | D94: Cat ID | E94: Unit | F94: Decimal places | G94: 2019-20 | H94: 2020-21 | I94: 2021-22 | J94: 2022-23 | K94: 2023-24 | L94: 2024-25 | M94: 2025-26 | N94: 2026-27 | O94: 2027-28 | P94: 2028-29 | Q94: 2029-30 | R94: 2030-31 | S94: 2031-32 | T94: 2032-33 | U94: 2033-34 | V94: 2034-35 | W94: 2035-36 | X94: 2036-37 | Y94: 2037-38 | Z94: 2038-39 | AA94: 2039-40 | AB94: 2040-41 | AC94: 2041-42 | AD94: 2042-43 | AE94: 2043-44 | AF94: 2044-45 | AG94: 2045-46 | AH94: 2046-47 | AI94: 2047-48 | AJ94: 2048-49 | AK94: 2049-50 | AL94: 2050-51 | AM94: 2051-52 | AN94: 2052-53 | AO94: 2053-54 | AP94: 2054-55 | AQ94: 2055-56 | AR94: 2056-57 | AS94: 2057-58 | AT94: 2058-59 | AU94: 2059-60 | AV94: 2060-61 | AW94: 2061-62 | AX94: 2062-63 | AY94: 2063-64 | AZ94: 2064-65 | BA94: 2065-66 | BB94: 2066-67 | BC94: 2067-68 | BD94: 2068-69 | BE94: 2069-70 | BF94: 2070-71 | BG94: 2071-72 | BH94: 2072-73 | BI94: 2073-74 | BJ94: 2074-75 | BK94: 2075-76 | BL94: 2076-77 | BM94: 2077-78 | BN94: 2078-79 | BO94: 2079-80 | BP94: 2080-81 | BQ94: 2081-82 | BR94: 2082-83 | BS94: 2083-84 | BT94: 2084-85 | BU94: 2085-86 | BV94: 2086-87 | BW94: 2087-88 | BX94: 2088-89 | BY94: 2089-90 | BZ94: 2090-91 | CA94: 2091-92 | CB94: 2092-93 | CC94: 2093-94 | CD94: 2094-95 | CE94: 2095-96 | CF94: 2096-97 | CG94: 2097-98 | CH94: 2098-99 | CI94: 2099-100
B95: 1.11FP | C95: Non potable supplies input reductions as -ve and increases as +ve | D95: RSNPS | E95: Ml/d | F95: 2 | H95: 0 | I95: 0 | J95: 0 | K95: 0 | L95: 0 | M95: 0 | N95: 0 | O95: 0 | P95: 0 | Q95: 0 | R95: 0 | S95: 0 | T95: 0 | U95: 0 | V95: 0 | W95: 0 | X95: 0 | Y95: 0 | Z95: 0 | AA95: 0 | AB95: 0 | AC95: 0 | AD95: 0 | AE95: 0 | AF95: 0 | AG95: 0 | AH95: 0 | AI95: 0 | AJ95: 0 | AK95: 0 | AL95: 0 | AM95: 0 | AN95: 0 | AO95: 0 | AP95: 0 | AQ95: 0 | AR95: 0 | AS95: 0 | AT95: 0 | AU95: 0 | AV95: 0 | AW95: 0 | AX95: 0 | AY95: 0 | AZ95: 0 | BA95: 0 | BB95: 0 | BC95: 0 | BD95: 0 | BE95: 0 | BF95: 0 | BG95: 0 | BH95: 0 | BI95: 0 | BJ95: 0 | BK95: 0 | BL95: 0 | BM95: 0 | BN95: 0 | BO95: 0 | BP95: 0 | BQ95: 0 | BR95: 0 | BS95: 0 | BT95: 0
B96: 2.1FP | C96: Raw water imports input reductions as -ve | D96: RSRWI | E96: Ml/d | F96: 2 | H96: 0 | I96: 0 | J96: 0 | K96: 0 | L96: 0 | M96: 0 | N96: 0 | O96: 0 | P96: 0 | Q96: 0 | R96: 0 | S96: 0 | T96: 0 | U96: 0 | V96: 0 | W96: 0 | X96: 0 | Y96: 0 | Z96: 0 | AA96: 0 | AB96: 0 | AC96: 0 | AD96: 0 | AE96: 0 | AF96: 0 | AG96: 0 | AH96: 0 | AI96: 0 | AJ96: 0 | AK96: 0 | AL96: 0 | AM96: 0 | AN96: 0 | AO96: 0 | AP96: 0 | AQ96: 0 | AR96: 0 | AS96: 0 | AT96: 0 | AU96: 0 | AV96: 0 | AW96: 0 | AX96: 0 | AY96: 0 | AZ96: 0 | BA96: 0 | BB96: 0 | BC96: 0 | BD96: 0 | BE96: 0 | BF96: 0 | BG96: 0 | BH96: 0 | BI96: 0 | BJ96: 0 | BK96: 0 | BL96: 0 | BM96: 0 | BN96: 0 | BO96: 0 | BP96: 0 | BQ96: 0 | BR96: 0 | BS96: 0 | BT96: 0
B97: 3.1FP | C97: Potable water imports input reductions as -ve | D97: RSPWI | E97: Ml/d | F97: 2 | H97: 0 | I97: 0 | J97: 0 | K97: 0 | L97: 0 | M97: 0 | N97: 0 | O97: 0 | P97: 0 | Q97: 0 | R97: 0 | S97: 0 | T97: 0 | U97: 0 | V97: 0 | W97: 0 | X97: 0 | Y97: 0 | Z97: 0 | AA97: 0 | AB97: 0 | AC97: 0 | AD97: 0 | AE97: 0 | AF97: 0 | AG97: 0 | AH97: 0 | AI97: 0 | AJ97: 0 | AK97: 0 | AL97: 0 | AM97: 0 | AN97: 0 | AO97: 0 | AP97: 0 | AQ97: 0 | AR97: 0 | AS97: 0 | AT97: 0 | AU97: 0 | AV97: 0 | AW97: 0 | AX97: 0 | AY97: 0 | AZ97: 0 | BA97: 0 | BB97: 0 | BC97: 0 | BD97: 0 | BE97: 0 | BF97: 0 | BG97: 0 | BH97: 0 | BI97: 0 | BJ97: 0 | BK97: 0 | BL97: 0 | BM97: 0 | BN97: 0 | BO97: 0 | BP97: 0 | BQ97: 0 | BR97: 0 | BS97: 0 | BT97: 0
B98: 4.1FP | C98: Raw water exports input reductions as +ve and increases as -ve | D98: RSRWE | E98: Ml/d | F98: 2 | H98: 0 | I98: 0 | J98: 0 | K98: 0 | L98: 0 | M98: 0 | N98: 0 | O98: 0 | P98: 0 | Q98: 0 | R98: 0 | S98: 0 | T98: 0 | U98: 0 | V98: 0 | W98: 0 | X98: 0 | Y98: 0 | Z98: 0 | AA98: 0 | AB98: 0 | AC98: 0 | AD98: 0 | AE98: 0 | AF98: 0 | AG98: 0 | AH98: 0 | AI98: 0 | AJ98: 0 | AK98: 0 | AL98: 0 | AM98: 0 | AN98: 0 | AO98: 0 | AP98: 0 | AQ98: 0 | AR98: 0 | AS98: 0 | AT98: 0 | AU98: 0 | AV98: 0 | AW98: 0 | AX98: 0 | AY98: 0 | AZ98: 0 | BA98: 0 | BB98: 0 | BC98: 0 | BD98: 0 | BE98: 0 | BF98: 0 | BG98: 0 | BH98: 0 | BI98: 0 | BJ98: 0 | BK98: 0 | BL98: 0 | BM98: 0 | BN98: 0 | BO98: 0 | BP98: 0 | BQ98: 0 | BR98: 0 | BS98: 0 | BT98: 0
B99: 5.1FP | C99: Potable water exports input reductions as +ve and increases as -ve | D99: RSPWE | E99: Ml/d | F99: 2 | H99: 0 | I99: 0 | J99: 0 | K99: 0 | L99: 0 | M99: 0 | N99: 0 | O99: 0 | P99: 0 | Q99: 0 | R99: 0 | S99: 0 | T99: 0 | U99: 0 | V99: 0 | W99: 0 | X99: 0 | Y99: 0 | Z99: 0 | AA99: 0 | AB99: 0 | AC99: 0 | AD99: 0 | AE99: 0 | AF99: 0 | AG99: 0 | AH99: 0 | AI99: 0 | AJ99: 0 | AK99: 0 | AL99: 0 | AM99: 0 | AN99: 0 | AO99: 0 | AP99: 0 | AQ99: 0 | AR99: 0 | AS99: 0 | AT99: 0 | AU99: 0 | AV99: 0 | AW99: 0 | AX99: 0 | AY99: 0 | AZ99: 0 | BA99: 0 | BB99: 0 | BC99: 0 | BD99: 0 | BE99: 0 | BF99: 0 | BG99: 0 | BH99: 0 | BI99: 0 | BJ99: 0 | BK99: 0 | BL99: 0 | BM99: 0 | BN99: 0 | BO99: 0 | BP99: 0 | BQ99: 0 | BR99: 0 | BS99: 0 | BT99: 0
B100: 6.2FP | C100: DO benefit from increase raw water abstractions | D100: RSRWA | E100: Ml/d | F100: 2 | H100: 0 | I100: 0 | J100: 0 | K100: 0 | L100: 0 | M100: 0 | N100: 0 | O100: 0 | P100: 0 | Q100: 0 | R100: 0 | S100: 0 | T100: 0 | U100: 0 | V100: 0 | W100: 0 | X100: 0 | Y100: 0 | Z100: 0 | AA100: 0 | AB100: 0 | AC100: 0 | AD100: 0 | AE100: 0 | AF100: 0 | AG100: 0 | AH100: 0 | AI100: 0 | AJ100: 0 | AK100: 0 | AL100: 0 | AM100: 0 | AN100: 0 | AO100: 0 | AP100: 0 | AQ100: 0 | AR100: 0 | AS100: 0 | AT100: 0 | AU100: 0 | AV100: 0 | AW100: 0 | AX100: 0 | AY100: 0 | AZ100: 0 | BA100: 0 | BB100: 0 | BC100: 0 | BD100: 0 | BE100: 0 | BF100: 0 | BG100: 0 | BH100: 0 | BI100: 0 | BJ100: 0 | BK100: 0 | BL100: 0 | BM100: 0 | BN100: 0 | BO100: 0 | BP100: 0 | BQ100: 0 | BR100: 0 | BS100: 0 | BT100: 0
B101: 6.3FP | C101: Other options to increase deployable output | D101: RSIPO | E101: Ml/d | F101: 2 | H101: 0 | I101: 0 | J101: 0 | K101: 0 | L101: 0 | M101: 0 | N101: 0 | O101: 0 | P101: 0 | Q101: 0 | R101: 0 | S101: 0 | T101: 0 | U101: 0 | V101: 0 | W101: 0 | X101: 0 | Y101: 0 | Z101: 0 | AA101: 0 | AB101: 0 | AC101: 0 | AD101: 0 | AE101: 0 | AF101: 0 | AG101: 0 | AH101: 0 | AI101: 0 | AJ101: 0 | AK101: 0 | AL101: 0 | AM101: 0 | AN101: 0 | AO101: 0 | AP101: 0 | AQ101: 0 | AR101: 0 | AS101: 0 | AT101: 0 | AU101: 0 | AV101: 0 | AW101: 0 | AX101: 0 | AY101: 0 | AZ101: 0 | BA101: 0 | BB101: 0 | BC101: 0 | BD101: 0 | BE101: 0 | BF101: 0 | BG101: 0 | BH101: 0 | BI101: 0 | BJ101: 0 | BK101: 0 | BL101: 0 | BM101: 0 | BN101: 0 | BO101: 0 | BP101: 0 | BQ101: 0 | BR101: 0 | BS101: 0 | BT101: 0
B102: 7.01FP | C102: DO benefit from supply side drought measures | D102: RSDPS | E102: Ml/d | F102: 2 | H102: 0 | I102: 0 | J102: 0 | K102: 0 | L102: 0 | M102: 0 | N102: 0 | O102: 0 | P102: 0 | Q102: 0 | R102: 0 | S102: 0 | T102: 0 | U102: 0 | V102: 0 | W102: 0 | X102: 0 | Y102: 0 | Z102: 0 | AA102: 0 | AB102: 0 | AC102: 0 | AD102: 0 | AE102: 0 | AF102: 0 | AG102: 0 | AH102: 0 | AI102: 0 | AJ102: 0 | AK102: 0 | AL102: 0 | AM102: 0 | AN102: 0 | AO102: 0 | AP102: 0 | AQ102: 0 | AR102: 0 | AS102: 0 | AT102: 0 | AU102: 0 | AV102: 0 | AW102: 0 | AX102: 0 | AY102: 0 | AZ102: 0 | BA102: 0 | BB102: 0 | BC102: 0 | BD102: 0 | BE102: 0 | BF102: 0 | BG102: 0 | BH102: 0 | BI102: 0 | BJ102: 0 | BK102: 0 | BL102: 0 | BM102: 0 | BN102: 0 | BO102: 0 | BP102: 0 | BQ102: 0 | BR102: 0 | BS102: 0 | BT102: 0
B103: 7.02FP | C103: Benefit from demand side drought measures | D103: RSDPD | E103: Ml/d | F103: 2 | H103: 0 | I103: 0 | J103: 0 | K103: 0 | L103: 0 | M103: 0 | N103: 0 | O103: 0 | P103: 0 | Q103: 0 | R103: 0 | S103: 0 | T103: 0 | U103: 0 | V103: 0 | W103: 0 | X103: 0 | Y103: 0 | Z103: 0 | AA103: 0 | AB103: 0 | AC103: 0 | AD103: 0 | AE103: 0 | AF103: 0 | AG103: 0 | AH103: 0 | AI103: 0 | AJ103: 0 | AK103: 0 | AL103: 0 | AM103: 0 | AN103: 0 | AO103: 0 | AP103: 0 | AQ103: 0 | AR103: 0 | AS103: 0 | AT103: 0 | AU103: 0 | AV103: 0 | AW103: 0 | AX103: 0 | AY103: 0 | AZ103: 0 | BA103: 0 | BB103: 0 | BC103: 0 | BD103: 0 | BE103: 0 | BF103: 0 | BG103: 0 | BH103: 0 | BI103: 0 | BJ103: 0 | BK103: 0 | BL103: 0 | BM103: 0 | BN103: 0 | BO103: 0 | BP103: 0 | BQ103: 0 | BR103: 0 | BS103: 0 | BT103: 0
B104: 8.1FP | C104: Reduce raw water losses and operational use input as -ve | D104: RSLOU | E104: Ml/d | F104: 2 | H104: 0 | I104: 0 | J104: 0 | K104: 0 | L104: 0 | M104: 0 | N104: 0 | O104: 0 | P104: 0 | Q104: 0 | R104: 0 | S104: 0 | T104: 0 | U104: 0 | V104: 0 | W104: 0 | X104: 0 | Y104: 0 | Z104: 0 | AA104: 0 | AB104: 0 | AC104: 0 | AD104: 0 | AE104: 0 | AF104: 0 | AG104: 0 | AH104: 0 | AI104: 0 | AJ104: 0 | AK104: 0 | AL104: 0 | AM104: 0 | AN104: 0 | AO104: 0 | AP104: 0 | AQ104: 0 | AR104: 0 | AS104: 0 | AT104: 0 | AU104: 0 | AV104: 0 | AW104: 0 | AX104: 0 | AY104: 0 | AZ104: 0 | BA104: 0 | BB104: 0 | BC104: 0 | BD104: 0 | BE104: 0 | BF104: 0 | BG104: 0 | BH104: 0 | BI104: 0 | BJ104: 0 | BK104: 0 | BL104: 0 | BM104: 0 | BN104: 0 | BO104: 0 | BP104: 0 | BQ104: 0 | BR104: 0 | BS104: 0 | BT104: 0
B105: 8.2FP | C105: Reduce treatment works losses input as -ve | D105: PSTWL | E105: Ml/d | F105: 2 | H105: 0 | I105: 0 | J105: 0 | K105: 0 | L105: 0 | M105: 0 | N105: 0 | O105: 0 | P105: 0 | Q105: 0 | R105: 0 | S105: 0 | T105: 0 | U105: 0 | V105: 0 | W105: 0 | X105: 0 | Y105: 0 | Z105: 0 | AA105: 0 | AB105: 0 | AC105: 0 | AD105: 0 | AE105: 0 | AF105: 0 | AG105: 0 | AH105: 0 | AI105: 0 | AJ105: 0 | AK105: 0 | AL105: 0 | AM105: 0 | AN105: 0 | AO105: 0 | AP105: 0 | AQ105: 0 | AR105: 0 | AS105: 0 | AT105: 0 | AU105: 0 | AV105: 0 | AW105: 0 | AX105: 0 | AY105: 0 | AZ105: 0 | BA105: 0 | BB105: 0 | BC105: 0 | BD105: 0 | BE105: 0 | BF105: 0 | BG105: 0 | BH105: 0 | BI105: 0 | BJ105: 0 | BK105: 0 | BL105: 0 | BM105: 0 | BN105: 0 | BO105: 0 | BP105: 0 | BQ105: 0 | BR105: 0 | BS105: 0 | BT105: 0
B106: 9.1FP | C106: Reduce outages input as -ve | D106: PSROU | E106: Ml/d | F106: 2 | H106: 0 | I106: 0 | J106: 0 | K106: 0 | L106: 0 | M106: 0 | N106: 0 | O106: 0 | P106: 0 | Q106: 0 | R106: 0 | S106: 0 | T106: 0 | U106: 0 | V106: 0 | W106: 0 | X106: 0 | Y106: 0 | Z106: 0 | AA106: 0 | AB106: 0 | AC106: 0 | AD106: 0 | AE106: 0 | AF106: 0 | AG106: 0 | AH106: 0 | AI106: 0 | AJ106: 0 | AK106: 0 | AL106: 0 | AM106: 0 | AN106: 0 | AO106: 0 | AP106: 0 | AQ106: 0 | AR106: 0 | AS106: 0 | AT106: 0 | AU106: 0 | AV106: 0 | AW106: 0 | AX106: 0 | AY106: 0 | AZ106: 0 | BA106: 0 | BB106: 0 | BC106: 0 | BD106: 0 | BE106: 0 | BF106: 0 | BG106: 0 | BH106: 0 | BI106: 0 | BJ106: 0 | BK106: 0 | BL106: 0 | BM106: 0 | BN106: 0 | BO106: 0 | BP106: 0 | BQ106: 0 | BR106: 0 | BS106: 0 | BT106: 0
B107: 12.2FP | C107: Change volume delivered to measured non households input reductions as -ve, line to include both measured non-household consumption and USPL options | D107: CVMNH | E107: Ml/d | F107: 2 | H107: 0 | I107: 0 | J107: 0 | K107: 0 | L107: 0 | M107: -3.910551294e-05 | N107: -7.840224893e-05 | O107: -0.000117890208 | P107: -0.0001575693901 | Q107: -0.0001974397953 | R107: -0.0002375014236 | S107: -0.0002777542749 | T107: -0.0003181983492 | U107: -0.0003588336467 | V107: -0.0003996601672 | W107: -0.0004406779108 | X107: -0.0004818868774 | Y107: -0.0005232870671 | Z107: -0.0005648784798 | AA107: -0.0006066611156 | AB107: -0.0006486349745 | AC107: -0.0006908000565 | AD107: -0.0007331563615 | AE107: -0.0007757038895 | AF107: -0.0008184426407 | AG107: -0.0008613726149 | AH107: -0.0009044938121 | AI107: -0.0009478062324 | AJ107: -0.0009913098758 | AK107: -0.001035004742 | AL107: -0.001037395031 | AM107: -0.001039785319 | AN107: -0.001042175607 | AO107: -0.001044565895 | AP107: -0.001046956184 | AQ107: -0.001049346472 | AR107: -0.00105173676 | AS107: -0.001054127049 | AT107: -0.001056517337 | AU107: -0.001058907625 | AV107: -0.001061297913 | AW107: -0.001063688202 | AX107: -0.00106607849 | AY107: -0.001068468778 | AZ107: -0.001070859067 | BA107: -0.001073249355 | BB107: -0.001075639643 | BC107: -0.001078029931 | BD107: -0.00108042022 | BE107: -0.001082810508 | BF107: -0.001085200796 | BG107: -0.001087591085 | BH107: -0.001089981373 | BI107: -0.001092371661 | BJ107: -0.001094761949 | BK107: -0.001097152238 | BL107: -0.001099542526 | BM107: -0.001101932814 | BN107: -0.001104323103 | BO107: -0.001106713391 | BP107: -0.001109103679 | BQ107: -0.001111493967 | BR107: -0.001113884256 | BS107: -0.001116274544 | BT107: -0.001118664832
B108: 13.1FP | C108: Change volume delivered to unmeasured non households input reductions as -ve, line to include both unmeasured non-household consumption and USPL options | D108: CVUNH | E108: Ml/d | F108: 2 | H108: 0 | I108: 0 | J108: 0 | K108: 0 | L108: 0 | M108: 0 | N108: 0 | O108: 0 | P108: 0 | Q108: 0 | R108: 0 | S108: 0 | T108: 0 | U108: 0 | V108: 0 | W108: 0 | X108: 0 | Y108: 0 | Z108: 0 | AA108: 0 | AB108: 0 | AC108: 0 | AD108: 0 | AE108: 0 | AF108: 0 | AG108: 0 | AH108: 0 | AI108: 0 | AJ108: 0 | AK108: 0 | AL108: 0 | AM108: 0 | AN108: 0 | AO108: 0 | AP108: 0 | AQ108: 0 | AR108: 0 | AS108: 0 | AT108: 0 | AU108: 0 | AV108: 0 | AW108: 0 | AX108: 0 | AY108: 0 | AZ108: 0 | BA108: 0 | BB108: 0 | BC108: 0 | BD108: 0 | BE108: 0 | BF108: 0 | BG108: 0 | BH108: 0 | BI108: 0 | BJ108: 0 | BK108: 0 | BL108: 0 | BM108: 0 | BN108: 0 | BO108: 0 | BP108: 0 | BQ108: 0 | BR108: 0 | BS108: 0 | BT108: 0
B109: 14.1FP | C109: Change volume delivered to measured households input reductions as -ve, line to include both measured household consumption and USPL options | D109: CVMHH | E109: Ml/d | F109: 2 | H109: 0 | I109: 0 | J109: 0 | K109: 0 | L109: 0 | M109: -0.09425603811 | N109: -0.09877794433 | O109: -0.09922478983 | P109: -0.100805662 | Q109: -0.1042993677 | R109: -0.1100134718 | S109: -0.1155576547 | T109: -0.1236616344 | U109: -0.1320013744 | V109: -0.1406529009 | W109: -0.1489174712 | X109: -0.1594428213 | Y109: -0.162709347 | Z109: -0.1661528545 | AA109: -0.1696678251 | AB109: -0.1728437104 | AC109: -0.175684093 | AD109: -0.1787037714 | AE109: -0.1819201426 | AF109: -0.1852973068 | AG109: -0.188265298 | AH109: -0.1906279938 | AI109: -0.1931302515 | AJ109: -0.1957160674 | AK109: -0.1983819723 | AL109: -0.2246977814 | AM109: -0.2254277289 | AN109: -0.2260603907 | AO109: -0.2266016777 | AP109: -0.2270657285 | AQ109: -0.2274701837 | AR109: -0.2277661834 | AS109: -0.2280554417 | AT109: -0.22843091 | AU109: -0.2287685948 | AV109: -0.2290645757 | AW109: -0.2293695636 | AX109: -0.2297057131 | AY109: -0.230035342 | AZ109: -0.2301641371 | BA109: -0.2303170435 | BB109: -0.2306533623 | BC109: -0.2310961593 | BD109: -0.2315830475 | BE109: -0.2321375071 | BF109: -0.2326524237 | BG109: -0.2331858695 | BH109: -0.2338282682 | BI109: -0.2344423594 | BJ109: -0.2351211931 | BK109: -0.2358236356 | BL109: -0.2365130322 | BM109: -0.2372049908 | BN109: -0.2379161765 | BO109: -0.2385653869 | BP109: -0.2390905124 | BQ109: -0.2394384179 | BR109: -0.2396985513 | BS109: -0.2399806254 | BT109: -0.240204161
B110: 15.1FP | C110: Change volume delivered to unmeasured households input reductions as -ve, line to include both unmeasured household consumption and USPL options | D110: CVUHH | E110: Ml/d | F110: 2 | H110: 0 | I110: 0 | J110: 0 | K110: 0 | L110: 0 | M110: -0.01811464826 | N110: -0.04070323651 | O110: -0.0660327879 | P110: -0.09044245985 | Q110: -0.1139897014 | R110: -0.137968909 | S110: -0.1592331846 | T110: -0.1766509254 | U110: -0.1933070122 | V110: -0.20937611 | W110: -0.2236665994 | X110: -0.2353627985 | Y110: -0.2342607254 | Z110: -0.2330879523 | AA110: -0.2318268656 | AB110: -0.2309306387 | AC110: -0.2304166029 | AD110: -0.2298662106 | AE110: -0.2295199229 | AF110: -0.2291291218 | AG110: -0.2292924246 | AH110: -0.2300590924 | AI110: -0.2308127675 | AJ110: -0.2315747014 | AK110: -0.2323318106 | AL110: -0.2317329843 | AM110: -0.231278151 | AN110: -0.2308308476 | AO110: -0.2303821449 | AP110: -0.2299661145 | AQ110: -0.2296060745 | AR110: -0.2292333855 | AS110: -0.2288582363 | AT110: -0.2285064135 | AU110: -0.2281520252 | AV110: -0.2278029768 | AW110: -0.2274492624 | AX110: -0.2270998683 | AY110: -0.2267545064 | AZ110: -0.2264131956 | BA110: -0.2259103981 | BB110: -0.2252460618 | BC110: -0.224584683 | BD110: -0.2239177413 | BE110: -0.2232388131 | BF110: -0.2225537788 | BG110: -0.221871738 | BH110: -0.2211804031 | BI110: -0.2204940906 | BJ110: -0.2198127102 | BK110: -0.2191369418 | BL110: -0.2184671563 | BM110: -0.2178034037 | BN110: -0.217145555 | BO110: -0.2164935901 | BP110: -0.2159766311 | BQ110: -0.2155890643 | BR110: -0.215217801 | BS110: -0.2148448288 | BT110: -0.2144758765
B111: 21.1FP | C111: Options to reduce water taken unbilled input as -ve | D111: CSWTU | E111: Ml/d | F111: 2 | H111: 0 | I111: 0 | J111: 0 | K111: 0 | L111: 0 | M111: 0 | N111: 0 | O111: 0 | P111: 0 | Q111: 0 | R111: 0 | S111: 0 | T111: 0 | U111: 0 | V111: 0 | W111: 0 | X111: 0 | Y111: 0 | Z111: 0 | AA111: 0 | AB111: 0 | AC111: 0 | AD111: 0 | AE111: 0 | AF111: 0 | AG111: 0 | AH111: 0 | AI111: 0 | AJ111: 0 | AK111: 0 | AL111: 0 | AM111: 0 | AN111: 0 | AO111: 0 | AP111: 0 | AQ111: 0 | AR111: 0 | AS111: 0 | AT111: 0 | AU111: 0 | AV111: 0 | AW111: 0 | AX111: 0 | AY111: 0 | AZ111: 0 | BA111: 0 | BB111: 0 | BC111: 0 | BD111: 0 | BE111: 0 | BF111: 0 | BG111: 0 | BH111: 0 | BI111: 0 | BJ111: 0 | BK111: 0 | BL111: 0 | BM111: 0 | BN111: 0 | BO111: 0 | BP111: 0 | BQ111: 0 | BR111: 0 | BS111: 0 | BT111: 0
B112: 22.1FP | C112: Reduce distribution system operational use (DSOU) input as -ve | D112: DSDOU | E112: Ml/d | F112: 2 | H112: 0 | I112: 0 | J112: 0 | K112: 0 | L112: 0 | M112: 0 | N112: 0 | O112: 0 | P112: 0 | Q112: 0 | R112: 0 | S112: 0 | T112: 0 | U112: 0 | V112: 0 | W112: 0 | X112: 0 | Y112: 0 | Z112: 0 | AA112: 0 | AB112: 0 | AC112: 0 | AD112: 0 | AE112: 0 | AF112: 0 | AG112: 0 | AH112: 0 | AI112: 0 | AJ112: 0 | AK112: 0 | AL112: 0 | AM112: 0 | AN112: 0 | AO112: 0 | AP112: 0 | AQ112: 0 | AR112: 0 | AS112: 0 | AT112: 0 | AU112: 0 | AV112: 0 | AW112: 0 | AX112: 0 | AY112: 0 | AZ112: 0 | BA112: 0 | BB112: 0 | BC112: 0 | BD112: 0 | BE112: 0 | BF112: 0 | BG112: 0 | BH112: 0 | BI112: 0 | BJ112: 0 | BK112: 0 | BL112: 0 | BM112: 0 | BN112: 0 | BO112: 0 | BP112: 0 | BQ112: 0 | BR112: 0 | BS112: 0 | BT112: 0
B113: 23.1FP | C113: Options impacting on measured Non Household - USPL input reductions as -ve | D113: CUMNH | E113: Ml/d | F113: 2 | H113: 0 | I113: 0 | J113: 0 | K113: 0 | L113: 0 | M113: -0.0001700239693 | N113: -0.0003408793432 | O113: -0.0005125661217 | P113: -0.0006850843049 | Q113: -0.0008584338926 | R113: -0.001032614885 | S113: -0.001207627282 | T113: -0.001383471084 | U113: -0.00156014629 | V113: -0.001737652901 | W113: -0.001915990916 | X113: -0.002095160336 | Y113: -0.002275161161 | Z113: -0.002455993391 | AA113: -0.002637657025 | AB113: -0.002820152063 | AC113: -0.003003478506 | AD113: -0.003187636354 | AE113: -0.003372625607 | AF113: -0.003558446264 | AG113: -0.003745098325 | AH113: -0.003932581792 | AI113: -0.004120896663 | AJ113: -0.004310042938 | AK113: -0.004500020619 | AL113: -0.004510413176 | AM113: -0.004520805734 | AN113: -0.004531198292 | AO113: -0.00454159085 | AP113: -0.004551983407 | AQ113: -0.004562375965 | AR113: -0.004572768523 | AS113: -0.004583161081 | AT113: -0.004593553638 | AU113: -0.004603946196 | AV113: -0.004614338754 | AW113: -0.004624731312 | AX113: -0.00463512387 | AY113: -0.004645516427 | AZ113: -0.004655908985 | BA113: -0.004666301543 | BB113: -0.004676694101 | BC113: -0.004687086658 | BD113: -0.004697479216 | BE113: -0.004707871774 | BF113: -0.004718264332 | BG113: -0.004728656889 | BH113: -0.004739049447 | BI113: -0.004749442005 | BJ113: -0.004759834563 | BK113: -0.00477022712 | BL113: -0.004780619678 | BM113: -0.004791012236 | BN113: -0.004801404794 | BO113: -0.004811797352 | BP113: -0.004822189909 | BQ113: -0.004832582467 | BR113: -0.004842975025 | BS113: -0.004853367583 | BT113: -0.00486376014
B114: 24.1FP | C114: Options impacting on unmeasured Non Household - USPL input reductions as -ve | D114: CUUNH | E114: Ml/d | F114: 2 | H114: 0 | I114: 0 | J114: 0 | K114: 0 | L114: 0 | M114: 0 | N114: 0 | O114: 0 | P114: 0 | Q114: 0 | R114: 0 | S114: 0 | T114: 0 | U114: 0 | V114: 0 | W114: 0 | X114: 0 | Y114: 0 | Z114: 0 | AA114: 0 | AB114: 0 | AC114: 0 | AD114: 0 | AE114: 0 | AF114: 0 | AG114: 0 | AH114: 0 | AI114: 0 | AJ114: 0 | AK114: 0 | AL114: 0 | AM114: 0 | AN114: 0 | AO114: 0 | AP114: 0 | AQ114: 0 | AR114: 0 | AS114: 0 | AT114: 0 | AU114: 0 | AV114: 0 | AW114: 0 | AX114: 0 | AY114: 0 | AZ114: 0 | BA114: 0 | BB114: 0 | BC114: 0 | BD114: 0 | BE114: 0 | BF114: 0 | BG114: 0 | BH114: 0 | BI114: 0 | BJ114: 0 | BK114: 0 | BL114: 0 | BM114: 0 | BN114: 0 | BO114: 0 | BP114: 0 | BQ114: 0 | BR114: 0 | BS114: 0 | BT114: 0
B115: 25.1FP | C115: Options impacting on measured Household - USPL input reductions as -ve | D115: CUMHH | E115: Ml/d | F115: 2 | H115: 0 | I115: 0 | J115: 0 | K115: 0 | L115: 0 | M115: -0.0009078710931 | N115: -0.001654410018 | O115: -0.002368602373 | P115: -0.003277958317 | Q115: -0.004336118948 | R115: -0.005321910853 | S115: -0.006490494128 | T115: -0.007944082142 | U115: -0.009484931955 | V115: -0.01111175007 | W115: -0.01282073003 | X115: -0.0147141403 | Y115: -0.01680872793 | Z115: -0.01897169412 | AA115: -0.02120784675 | AB115: -0.02343335979 | AC115: -0.02563024237 | AD115: -0.027866469 | AE115: -0.03014277874 | AF115: -0.03246423726 | AG115: -0.03470175037 | AH115: -0.03683027902 | AI115: -0.03897117062 | AJ115: -0.04112700644 | AK115: -0.04329636265 | AL115: -0.04344369072 | AM115: -0.04357378946 | AN115: -0.04370429892 | AO115: -0.04384631545 | AP115: -0.04399959411 | AQ115: -0.04415590197 | AR115: -0.04431811174 | AS115: -0.04449237273 | AT115: -0.04467556782 | AU115: -0.0448781964 | AV115: -0.04509577859 | AW115: -0.04532333213 | AX115: -0.04556377199 | AY115: -0.04580256258 | AZ115: -0.04605184741 | BA115: -0.04631899487 | BB115: -0.04659329571 | BC115: -0.0468615544 | BD115: -0.04712648426 | BE115: -0.04738206127 | BF115: -0.04763740036 | BG115: -0.04789055201 | BH115: -0.04813218656 | BI115: -0.04836838715 | BJ115: -0.04859279213 | BK115: -0.04880665708 | BL115: -0.04901296204 | BM115: -0.04922267465 | BN115: -0.04943580189 | BO115: -0.04965324415 | BP115: -0.04984862875 | BQ115: -0.05001903476 | BR115: -0.0502009436 | BS115: -0.0503834205 | BT115: -0.05057518636
B116: 26.1FP | C116: Options impacting on unmeasured Household - USPL input reductions as -ve | D116: CUUHH | E116: Ml/d | F116: 2 | H116: 0 | I116: 0 | J116: 0 | K116: 0 | L116: 0 | M116: -0.002227591936 | N116: -0.004767356789 | O116: -0.007475892076 | P116: -0.01006637295 | Q116: -0.01253876786 | R116: -0.0150137496 | S116: -0.01724743027 | T116: -0.01913873205 | U116: -0.02095050671 | V116: -0.02268306979 | W116: -0.02433635586 | X116: -0.02577687684 | Y116: -0.02698138591 | Z116: -0.02812037918 | AA116: -0.02919385663 | AB116: -0.0303027885 | AC116: -0.03146664311 | AD116: -0.03259085553 | AE116: -0.0336749209 | AF116: -0.03471883924 | AG116: -0.03588826481 | AH116: -0.03720686251 | AI116: -0.03851686636 | AJ116: -0.03981827636 | AK116: -0.04111109253 | AL116: -0.04102700356 | AM116: -0.0409429146 | AN116: -0.04085882564 | AO116: -0.04077473668 | AP116: -0.04069143655 | AQ116: -0.04060813642 | AR116: -0.04052483629 | AS116: -0.04044153616 | AT116: -0.04035823603 | AU116: -0.0402749359 | AV116: -0.04019163577 | AW116: -0.04010833564 | AX116: -0.04002503551 | AY116: -0.03994173538 | AZ116: -0.03985843525 | BA116: -0.03976827215 | BB116: -0.03967124608 | BC116: -0.03957422 | BD116: -0.03947719393 | BE116: -0.03938016786 | BF116: -0.03928393062 | BG116: -0.03918769338 | BH116: -0.03909145613 | BI116: -0.03899521889 | BJ116: -0.03889898165 | BK116: -0.03880274441 | BL116: -0.03870650717 | BM116: -0.03861026992 | BN116: -0.03851403268 | BO116: -0.03841779544 | BP116: -0.03836099969 | BQ116: -0.03834364543 | BR116: -0.03832629118 | BS116: -0.03830893692 | BT116: -0.03829158266
B117: 27.1FP | C117: Options impacting on Void properties - USPL input reductions as -ve | D117: CUVPP | E117: Ml/d | F117: 2 | H117: 0 | I117: 0 | J117: 0 | K117: 0 | L117: 0 | M117: 1.320322483e-06 | N117: 6.945421522e-06 | O117: 1.555497464e-05 | P117: 2.416452775e-05 | Q117: 3.277408086e-05 | R117: 4.231955878e-05 | S117: 4.981650741e-05 | T117: 5.432900197e-05 | U117: 5.884149653e-05 | V117: 6.335399109e-05 | W117: 6.596153846e-05 | X117: 6.643221672e-05 | Y117: 6.667097304e-05 | Z117: 6.690972937e-05 | AA117: 6.714848569e-05 | AB117: 6.738724202e-05 | AC117: 6.762599835e-05 | AD117: 6.786475467e-05 | AE117: 6.8103511e-05 | AF117: 6.834226732e-05 | AG117: 6.858102365e-05 | AH117: 6.881977997e-05 | AI117: 6.90585363e-05 | AJ117: 6.929729263e-05 | AK117: 6.953604895e-05 | AL117: 6.977480528e-05 | AM117: 7.00135616e-05 | AN117: 7.025231793e-05 | AO117: 7.049107426e-05 | AP117: 7.072983058e-05 | AQ117: 7.096858691e-05 | AR117: 7.120734323e-05 | AS117: 7.144609956e-05 | AT117: 7.168485589e-05 | AU117: 7.192361221e-05 | AV117: 7.216236854e-05 | AW117: 7.240112486e-05 | AX117: 7.263988119e-05 | AY117: 7.287863752e-05 | AZ117: 7.311739384e-05 | BA117: 7.323677201e-05 | BB117: 7.323677201e-05 | BC117: 7.323677201e-05 | BD117: 7.323677201e-05 | BE117: 7.323677201e-05 | BF117: 7.323677201e-05 | BG117: 7.323677201e-05 | BH117: 7.323677201e-05 | BI117: 7.323677201e-05 | BJ117: 7.323677201e-05 | BK117: 7.323677201e-05 | BL117: 7.323677201e-05 | BM117: 7.323677201e-05 | BN117: 7.323677201e-05 | BO117: 7.323677201e-05 | BP117: 7.323677201e-05 | BQ117: 7.323677201e-05 | BR117: 7.323677201e-05 | BS117: 7.323677201e-05 | BT117: 7.323677201e-05
B118: 28.1FP | C118: Reduce distribution losses input as -ve | D118: DSRDL | E118: Ml/d | F118: 2 | H118: 0 | I118: 0 | J118: 0 | K118: 0 | L118: 0 | M118: -0.05048103332 | N118: -0.07212925927 | O118: -0.0936432144 | P118: -0.115079229 | Q118: -0.1364836934 | R118: -0.1579580442 | S118: -0.1794880248 | T118: -0.2010715637 | U118: -0.2226465365 | V118: -0.2442139212 | W118: -0.2657756847 | X118: -0.2873628147 | Y118: -0.308983716 | Z118: -0.330600923 | AA118: -0.3522096281 | AB118: -0.3737926869 | AC118: -0.395348622 | AD118: -0.4169040239 | AE118: -0.4384586583 | AF118: -0.4600074595 | AG118: -0.4815138675 | AH118: -0.5029792565 | AI118: -0.5244400449 | AJ118: -0.5458936516 | AK118: -0.5673415003 | AL118: -0.5923678673 | AM118: -0.5923117038 | AN118: -0.5922551295 | AO118: -0.5921870481 | AP118: -0.5921069158 | AQ118: -0.5920237542 | AR118: -0.5919346908 | AS118: -0.5918335761 | AT118: -0.5917235274 | AU118: -0.5915940451 | AV118: -0.5914496093 | AW118: -0.591295202 | AX118: -0.5911279085 | AY118: -0.5909622643 | AZ118: -0.5907861258 | BA118: -0.5905988682 | BB118: -0.5904112009 | BC118: -0.5902295757 | BD118: -0.5900512794 | BE118: -0.5898823359 | BF118: -0.5897128415 | BG118: -0.5895455345 | BH118: -0.5893897446 | BI118: -0.5892393887 | BJ118: -0.5891008284 | BK118: -0.5889728082 | BL118: -0.5888523479 | BM118: -0.58872848 | BN118: -0.5886011974 | BO118: -0.5884695998 | BP118: -0.5883206184 | BQ118: -0.5881571741 | BR118: -0.587982227 | BS118: -0.5878067118 | BT118: -0.5876219076
B120: Table 3c: DYAA - Final plan | C120: Back to top of sheet
B121: WRMP24 reference | C121: Component | D121: Derivation | E121: Unit | F121: Decimal places | G121: 2019-20 | H121: 2020-21 | I121: 2021-22 | J121: 2022-23 | K121: 2023-24 | L121: 2024-25 | M121: 2025-26 | N121: 2026-27 | O121: 2027-28 | P121: 2028-29 | Q121: 2029-30 | R121: 2030-31 | S121: 2031-32 | T121: 2032-33 | U121: 2033-34 | V121: 2034-35 | W121: 2035-36 | X121: 2036-37 | Y121: 2037-38 | Z121: 2038-39 | AA121: 2039-40 | AB121: 2040-41 | AC121: 2041-42 | AD121: 2042-43 | AE121: 2043-44 | AF121: 2044-45 | AG121: 2045-46 | AH121: 2046-47 | AI121: 2047-48 | AJ121: 2048-49 | AK121: 2049-50 | AL121: 2050-51 | AM121: 2051-52 | AN121: 2052-53 | AO121: 2053-54 | AP121: 2054-55 | AQ121: 2055-56 | AR121: 2056-57 | AS121: 2057-58 | AT121: 2058-59 | AU121: 2059-60 | AV121: 2060-61 | AW121: 2061-62 | AX121: 2062-63 | AY121: 2063-64 | AZ121: 2064-65 | BA121: 2065-66 | BB121: 2066-67 | BC121: 2067-68 | BD121: 2068-69 | BE121: 2069-70 | BF121: 2070-71 | BG121: 2071-72 | BH121: 2072-73 | BI121: 2073-74 | BJ121: 2074-75 | BK121: 2075-76 | BL121: 2076-77 | BM121: 2077-78 | BN121: 2078-79 | BO121: 2079-80 | BP121: 2080-81 | BQ121: 2081-82 | BR121: 2082-83 | BS121: 2083-84 | BT121: 2084-85 | BU121: 2085-86 | BV121: 2086-87 | BW121: 2087-88 | BX121: 2088-89 | BY121: 2089-90 | BZ121: 2090-91 | CA121: 2091-92 | CB121: 2092-93 | CC121: 2093-94 | CD121: 2094-95 | CE121: 2095-96 | CF121: 2096-97 | CG121: 2097-98 | CH121: 2098-99 | CI121: 2099-100
B122: 1FP | C122: Raw water abstracted | D122: Input | E122: Ml/d | F122: 2 | H122: 9.133349892 | I122: 9.883279064 | J122: 9.752648866 | K122: 9.61143838 | L122: 9.463757138 | M122: 9.416050935 | N122: 9.43205192 | O122: 9.445230098 | P122: 9.422515577 | Q122: 9.40130804 | R122: 9.367306923 | S122: 9.308292468 | T122: 9.245620291 | U122: 9.173686743 | V122: 9.106967761 | W122: 9.044334593 | X122: 8.982574426 | Y122: 8.941184388 | Z122: 8.900685977 | AA122: 8.860308592 | AB122: 8.821136025 | AC122: 8.782674246 | AD122: 8.744675536 | AE122: 8.718415009 | AF122: 8.692618942 | AG122: 8.668478627 | AH122: 8.645736323 | AI122: 8.622753689 | AJ122: 8.600458661 | AK122: 8.578558489 | AL122: 8.529453956 | AM122: 8.531493493 | AN122: 8.533114965 | AO122: 8.534757591 | AP122: 8.537772623 | AQ122: 8.542414109 | AR122: 8.54643678 | AS122: 8.550851834 | AT122: 8.556891176 | AU122: 8.563613039 | AV122: 8.571077658 | AW122: 8.578752395 | AX122: 8.587472496 | AY122: 8.596192529 | AZ122: 8.604722005 | BA122: 8.61348187 | BB122: 8.622544364 | BC122: 8.631731328 | BD122: 8.64067667 | BE122: 8.648961681 | BF122: 8.656775868 | BG122: 8.664491677 | BH122: 8.671736481 | BI122: 8.678644096 | BJ122: 8.685238603 | BK122: 8.691449572 | BL122: 8.697292151 | BM122: 8.703418038 | BN122: 8.70990216 | BO122: 8.716457673 | BP122: 8.723693226 | BQ122: 8.731019629 | BR122: 8.739037567 | BS122: 8.746954837 | BT122: 8.755131706
B123: 1.1FP | C123: Non-potable water supplies | D123: 1.1BL + 1.11FP | E123: Ml/d | F123: 2 | G123: =G25+G95 -> 0 | H123: =H25+H95 -> 0 | I123: 0 | J123: 0 | K123: 0 | L123: 0 | M123: 0 | N123: 0 | O123: 0 | P123: 0 | Q123: 0 | R123: 0 | S123: 0 | T123: 0 | U123: 0 | V123: 0 | W123: 0 | X123: 0 | Y123: 0 | Z123: 0 | AA123: 0 | AB123: 0 | AC123: 0 | AD123: 0 | AE123: 0 | AF123: 0 | AG123: 0 | AH123: 0 | AI123: 0 | AJ123: 0 | AK123: 0 | AL123: 0 | AM123: 0 | AN123: 0 | AO123: 0 | AP123: 0 | AQ123: 0 | AR123: 0 | AS123: 0 | AT123: 0 | AU123: 0 | AV123: 0 | AW123: 0 | AX123: 0 | AY123: 0 | AZ123: 0 | BA123: 0 | BB123: 0 | BC123: 0 | BD123: 0 | BE123: 0 | BF123: 0 | BG123: 0 | BH123: 0 | BI123: 0 | BJ123: 0 | BK123: 0 | BL123: 0 | BM123: 0 | BN123: 0 | BO123: 0 | BP123: 0 | BQ123: 0 | BR123: 0 | BS123: 0 | BT123: =BT25+BT95 -> 0
B124: 2FP | C124: Raw water imported | D124: 2BL + 2.1FP | E124: Ml/d | F124: 2 | G124: =G26+G96 -> 0 | H124: =H27+H96 -> 0 | I124: 0 | J124: 0 | K124: 0 | L124: 0 | M124: 0 | N124: 0 | O124: 0 | P124: 0 | Q124: 0 | R124: 0 | S124: 0 | T124: 0 | U124: 0 | V124: 0 | W124: 0 | X124: 0 | Y124: 0 | Z124: 0 | AA124: 0 | AB124: 0 | AC124: 0 | AD124: 0 | AE124: 0 | AF124: 0 | AG124: 0 | AH124: 0 | AI124: 0 | AJ124: 0 | AK124: 0 | AL124: 0 | AM124: 0 | AN124: 0 | AO124: 0 | AP124: 0 | AQ124: 0 | AR124: 0 | AS124: 0 | AT124: 0 | AU124: 0 | AV124: 0 | AW124: 0 | AX124: 0 | AY124: 0 | AZ124: 0 | BA124: 0 | BB124: 0 | BC124: 0 | BD124: 0 | BE124: 0 | BF124: 0 | BG124: 0 | BH124: 0 | BI124: 0 | BJ124: 0 | BK124: 0 | BL124: 0 | BM124: 0 | BN124: 0 | BO124: 0 | BP124: 0 | BQ124: 0 | BR124: 0 | BS124: 0 | BT124: =BT27+BT96 -> 0
B125: 3FP | C125: Potable water imported | D125: 3BL + 3.1FP | E125: Ml/d | F125: 2 | G125: 0 | H125: 0 | I125: 0 | J125: 0 | K125: 0 | L125: 0 | M125: 0 | N125: 0 | O125: 0 | P125: 0 | Q125: 0 | R125: 0 | S125: 0 | T125: 0 | U125: 0 | V125: 0 | W125: =W27+W97 -> 0 | X125: 0 | Y125: 0 | Z125: 0 | AA125: 0 | AB125: 0 | AC125: 0 | AD125: 0 | AE125: 0 | AF125: 0 | AG125: 0 | AH125: 0 | AI125: 0 | AJ125: 0 | AK125: 0 | AL125: 0 | AM125: 0 | AN125: 0 | AO125: 0 | AP125: 0 | AQ125: 0 | AR125: 0 | AS125: 0 | AT125: 0 | AU125: 0 | AV125: 0 | AW125: 0 | AX125: 0 | AY125: 0 | AZ125: 0 | BA125: 0 | BB125: 0 | BC125: 0 | BD125: 0 | BE125: 0 | BF125: 0 | BG125: 0 | BH125: 0 | BI125: 0 | BJ125: 0 | BK125: 0 | BL125: 0 | BM125: 0 | BN125: 0 | BO125: 0 | BP125: 0 | BQ125: 0 | BR125: 0 | BS125: 0 | BT125: 0
B126: 4FP | C126: Raw water exported enter as -ve | D126: 4BL + 4.1FP | E126: Ml/d | F126: 2 | G126: 0 | H126: =H29+H98 -> 0 | I126: 0 | J126: 0 | K126: 0 | L126: 0 | M126: 0 | N126: 0 | O126: 0 | P126: 0 | Q126: 0 | R126: 0 | S126: 0 | T126: 0 | U126: 0 | V126: 0 | W126: 0 | X126: 0 | Y126: 0 | Z126: 0 | AA126: 0 | AB126: 0 | AC126: 0 | AD126: 0 | AE126: 0 | AF126: 0 | AG126: 0 | AH126: 0 | AI126: 0 | AJ126: 0 | AK126: 0 | AL126: 0 | AM126: 0 | AN126: 0 | AO126: 0 | AP126: 0 | AQ126: 0 | AR126: 0 | AS126: 0 | AT126: 0 | AU126: 0 | AV126: 0 | AW126: 0 | AX126: 0 | AY126: 0 | AZ126: 0 | BA126: 0 | BB126: 0 | BC126: 0 | BD126: 0 | BE126: 0 | BF126: 0 | BG126: 0 | BH126: 0 | BI126: 0 | BJ126: 0 | BK126: 0 | BL126: 0 | BM126: 0 | BN126: 0 | BO126: 0 | BP126: 0 | BQ126: 0 | BR126: 0 | BS126: 0 | BT126: =BT29+BT98 -> 0
B127: 5FP | C127: Potable water exported enter as -ve | D127: 5BL + 5.1FP | E127: Ml/d | F127: 2 | G127: 0 | H127: 0 | I127: 0 | J127: 0 | K127: 0 | L127: 0 | M127: 0 | N127: 0 | O127: 0 | P127: 0 | Q127: 0 | R127: 0 | S127: 0 | T127: 0 | U127: 0 | V127: 0 | W127: =W29+W99 -> 0 | X127: 0 | Y127: 0 | Z127: 0 | AA127: 0 | AB127: 0 | AC127: 0 | AD127: 0 | AE127: 0 | AF127: 0 | AG127: 0 | AH127: 0 | AI127: 0 | AJ127: 0 | AK127: 0 | AL127: 0 | AM127: 0 | AN127: 0 | AO127: 0 | AP127: 0 | AQ127: 0 | AR127: 0 | AS127: 0 | AT127: 0 | AU127: 0 | AV127: 0 | AW127: 0 | AX127: 0 | AY127: 0 | AZ127: 0 | BA127: 0 | BB127: 0 | BC127: 0 | BD127: 0 | BE127: 0 | BF127: 0 | BG127: 0 | BH127: 0 | BI127: 0 | BJ127: 0 | BK127: 0 | BL127: 0 | BM127: 0 | BN127: 0 | BO127: 0 | BP127: 0 | BQ127: 0 | BR127: 0 | BS127: 0 | BT127: 0
B128: 6.1FP | C128: Deployable Output post forecast changes | D128: 6.1BL + 6.2FP + 6.3FP +7.01FP +7.02FP | E128: Ml/d | F128: 2 | G128: =G31+G100+G101+G102+G103 -> 0 | H128: =H31+H100+H101+H102+H103 -> 9.82 | I128: =I31+I100+I101+I102+I103 -> 9.82 | J128: 9.82 | K128: 9.82 | L128: 9.82 | M128: 9.82 | N128: 9.82 | O128: 9.82 | P128: 9.82 | Q128: 9.82 | R128: 9.82 | S128: 9.82 | T128: 9.82 | U128: 9.82 | V128: 9.82 | W128: 9.82 | X128: 9.82 | Y128: 9.82 | Z128: 9.82 | AA128: 9.82 | AB128: 9.82 | AC128: 9.82 | AD128: 9.82 | AE128: 9.82 | AF128: 9.82 | AG128: 9.82 | AH128: 9.82 | AI128: 9.82 | AJ128: 9.82 | AK128: 9.82 | AL128: 9.82 | AM128: 9.82 | AN128: 9.82 | AO128: 9.82 | AP128: 9.82 | AQ128: 9.82 | AR128: 9.82 | AS128: 9.82 | AT128: 9.82 | AU128: 9.82 | AV128: 9.82 | AW128: 9.82 | AX128: 9.82 | AY128: 9.82 | AZ128: 9.82 | BA128: 9.82 | BB128: 9.82 | BC128: 9.82 | BD128: 9.82 | BE128: 9.82 | BF128: 9.82 | BG128: 9.82 | BH128: 9.82 | BI128: 9.82 | BJ128: 9.82 | BK128: 9.82 | BL128: 9.82 | BM128: 9.82 | BN128: 9.82 | BO128: 9.82 | BP128: 9.82 | BQ128: 9.82 | BR128: 9.82 | BS128: 9.82 | BT128: 9.82
B129: 8FP | C129: Raw water losses, treatment works losses and operational use | D129: 8BL + 8.1FP + 8.2FP | E129: Ml/d | F129: 2 | G129: =G39+G104+G105 -> 0 | H129: 2.009336976 | I129: 2.174321394 | J129: 2.14558275 | K129: 2.114516444 | L129: 2.08202657 | M129: 2.107366897 | N129: 2.12162144 | O129: 2.13493131 | P129: 2.140374793 | Q129: 2.146374003 | R129: 2.150157357 | S129: 2.147815839 | T129: 2.144399022 | U129: 2.138827165 | V129: 2.13434034 | W129: 2.130275194 | X129: 2.126334829 | Y129: 2.122470854 | Z129: 2.118825649 | AA129: 2.115201533 | AB129: 2.111842548 | AC129: 2.108644282 | AD129: 2.105579263 | AE129: 2.105184693 | AF129: 2.104916645 | AG129: 2.105035462 | AH129: 2.105452435 | AI129: 2.10584341 | AJ129: 2.106404321 | AK129: 2.107067433 | AL129: 2.107428446 | AM129: 2.107925787 | AN129: 2.108311316 | AO129: 2.108678558 | AP129: 2.109335274 | AQ129: 2.11034835 | AR129: 2.111197345 | AS129: 2.112127989 | AT129: 2.113438109 | AU129: 2.114885231 | AV129: 2.11648447 | AW129: 2.118128696 | AX129: 2.120007873 | AY129: 2.121886851 | AZ129: 2.123678305 | BA129: 2.125487802 | BB129: 2.127368626 | BC129: 2.129302239 | BD129: 2.131191903 | BE129: 2.13295058 | BF129: 2.134595513 | BG129: 2.136224018 | BH129: 2.137773361 | BI129: 2.139244595 | BJ129: 2.140664869 | BK129: 2.142009512 | BL129: 2.143273219 | BM129: 2.144600394 | BN129: 2.146011159 | BO129: 2.14742434 | BP129: 2.148985708 | BQ129: 2.150553359 | BR129: 2.152254895 | BS129: =BS39+BS104+BS105 -> 2.153938609 | BT129: 2.155665397
B130: 9FP | C130: Total Outage Allowance | D130: 9BL + 9.1FP | E130: Ml/d | F130: 2 | G130: =G40+G106 -> 0 | H130: 0.59 | I130: 0.59 | J130: 0.59 | K130: 0.59 | L130: 0.59 | M130: 0.59 | N130: 0.59 | O130: 0.59 | P130: 0.59 | Q130: 0.59 | R130: 0.59 | S130: 0.59 | T130: 0.59 | U130: 0.59 | V130: 0.59 | W130: 0.59 | X130: 0.59 | Y130: 0.59 | Z130: 0.59 | AA130: 0.59 | AB130: 0.59 | AC130: 0.59 | AD130: 0.59 | AE130: 0.59 | AF130: 0.59 | AG130: 0.59 | AH130: 0.59 | AI130: 0.59 | AJ130: 0.59 | AK130: 0.59 | AL130: 0.59 | AM130: 0.59 | AN130: 0.59 | AO130: 0.59 | AP130: 0.59 | AQ130: 0.59 | AR130: 0.59 | AS130: 0.59 | AT130: 0.59 | AU130: 0.59 | AV130: 0.59 | AW130: 0.59 | AX130: 0.59 | AY130: 0.59 | AZ130: 0.59 | BA130: 0.59 | BB130: 0.59 | BC130: 0.59 | BD130: 0.59 | BE130: 0.59 | BF130: 0.59 | BG130: 0.59 | BH130: 0.59 | BI130: 0.59 | BJ130: 0.59 | BK130: 0.59 | BL130: 0.59 | BM130: 0.59 | BN130: 0.59 | BO130: 0.59 | BP130: 0.59 | BQ130: 0.59 | BR130: 0.59 | BS130: =BS40+BS106 -> 0.59 | BT130: 0.59
B131: 10FP | C131: Water Available For Use (own sources) | D131: (6.1FP) - (8FP + 9FP) | E131: Ml/d | F131: 2 | G131: =(G128)-(G129+G130) -> 0 | H131: =(H128)-(H130) -> 9.23 | I131: 9.23 | J131: 9.23 | K131: 9.23 | L131: 9.23 | M131: 9.23 | N131: 9.23 | O131: 9.23 | P131: 9.23 | Q131: 9.23 | R131: 9.23 | S131: 9.23 | T131: 9.23 | U131: 9.23 | V131: 9.23 | W131: 9.23 | X131: 9.23 | Y131: 9.23 | Z131: 9.23 | AA131: 9.23 | AB131: 9.23 | AC131: 9.23 | AD131: 9.23 | AE131: 9.23 | AF131: 9.23 | AG131: 9.23 | AH131: 9.23 | AI131: 9.23 | AJ131: 9.23 | AK131: 9.23 | AL131: 9.23 | AM131: 9.23 | AN131: 9.23 | AO131: 9.23 | AP131: 9.23 | AQ131: 9.23 | AR131: 9.23 | AS131: 9.23 | AT131: 9.23 | AU131: 9.23 | AV131: 9.23 | AW131: 9.23 | AX131: 9.23 | AY131: 9.23 | AZ131: 9.23 | BA131: 9.23 | BB131: 9.23 | BC131: 9.23 | BD131: 9.23 | BE131: 9.23 | BF131: 9.23 | BG131: 9.23 | BH131: 9.23 | BI131: 9.23 | BJ131: 9.23 | BK131: 9.23 | BL131: 9.23 | BM131: 9.23 | BN131: 9.23 | BO131: 9.23 | BP131: 9.23 | BQ131: 9.23 | BR131: 9.23 | BS131: 9.23 | BT131: =(BT128)-(BT130) -> 9.23
B132: 11FP | C132: Total Water Available For Use | D132: 10FP + sum (2FP:5FP) | E132: Ml/d | F132: 2 | G132: =G131+SUM(G124:G127) -> 0 | H132: 9.23 | I132: 9.23 | J132: 9.23 | K132: 9.23 | L132: 9.23 | M132: 9.23 | N132: 9.23 | O132: 9.23 | P132: 9.23 | Q132: 9.23 | R132: 9.23 | S132: 9.23 | T132: 9.23 | U132: 9.23 | V132: 9.23 | W132: 9.23 | X132: 9.23 | Y132: 9.23 | Z132: 9.23 | AA132: 9.23 | AB132: 9.23 | AC132: 9.23 | AD132: 9.23 | AE132: 9.23 | AF132: 9.23 | AG132: 9.23 | AH132: 9.23 | AI132: 9.23 | AJ132: 9.23 | AK132: 9.23 | AL132: 9.23 | AM132: =AM131+SUM(AM124:AM127) -> 9.23 | AN132: 9.23 | AO132: 9.23 | AP132: 9.23 | AQ132: 9.23 | AR132: 9.23 | AS132: 9.23 | AT132: 9.23 | AU132: 9.23 | AV132: 9.23 | AW132: 9.23 | AX132: 9.23 | AY132: 9.23 | AZ132: 9.23 | BA132: 9.23 | BB132: 9.23 | BC132: 9.23 | BD132: 9.23 | BE132: 9.23 | BF132: 9.23 | BG132: 9.23 | BH132: 9.23 | BI132: 9.23 | BJ132: 9.23 | BK132: 9.23 | BL132: 9.23 | BM132: 9.23 | BN132: 9.23 | BO132: 9.23 | BP132: 9.23 | BQ132: 9.23 | BR132: 9.23 | BS132: =BS131+SUM(BS124:BS127) -> 9.23 | BT132: 9.23
B133: 12FP | C133: Water delivered measured non-household | D133: 12BL + 12.2FP | E133: Ml/d | F133: 2 | G133: =G43+G107 -> 0 | H133: =H43+H107 -> 1.510667921 | I133: 2.062306244 | J133: 2.071379096 | K133: 2.081112536 | L133: 2.090063674 | M133: 2.157794414 | N133: 2.190826503 | O133: 2.224948265 | P133: 2.227012867 | Q133: 2.228984388 | R133: 2.231007339 | S133: 2.232738868 | T133: 2.233712719 | U133: 2.234451982 | V133: 2.235136556 | W133: 2.23580213 | X133: 2.236518805 | Y133: 2.237280653 | Z133: 2.238019197 | AA133: 2.238733436 | AB133: 2.239425884 | AC133: 2.240062436 | AD133: 2.240650275 | AE133: 2.241220394 | AF133: 2.24175999 | AG133: 2.242311032 | AH133: 2.242851351 | AI133: 2.243332458 | AJ133: 2.243801246 | AK133: 2.244255188 | AL133: 2.244736865 | AM133: 2.245187208 | AN133: 2.245417659 | AO133: 2.245613066 | AP133: 2.245786258 | AQ133: 2.245941404 | AR133: 2.246079428 | AS133: 2.246193834 | AT133: 2.246297956 | AU133: 2.246404965 | AV133: 2.246512539 | AW133: 2.246619972 | AX133: 2.246731775 | AY133: 2.246847658 | AZ133: 2.246958243 | BA133: 2.247050896 | BB133: 2.24713745 | BC133: 2.247226793 | BD133: 2.247317972 | BE133: 2.247403814 | BF133: 2.247480578 | BG133: 2.247545661 | BH133: 2.247606866 | BI133: 2.247662497 | BJ133: 2.247701462 | BK133: 2.247729615 | BL133: 2.24774373 | BM133: 2.247744633 | BN133: 2.247740102 | BO133: 2.247729841 | BP133: 2.247708421 | BQ133: 2.247683114 | BR133: 2.247648462 | BS133: =BS43+BS107 -> 2.247605256 | BT133: 2.247560028
B134: 12.1FP | C134: Non-potable water consumption | D134: Input | E134: Ml/d | F134: 2 | H134: 0 | I134: 0 | J134: 0 | K134: 0 | L134: 0 | M134: 0 | N134: 0 | O134: 0 | P134: 0 | Q134: 0 | R134: 0 | S134: 0 | T134: 0 | U134: 0 | V134: 0 | W134: 0 | X134: 0 | Y134: 0 | Z134: 0 | AA134: 0 | AB134: 0 | AC134: 0 | AD134: 0 | AE134: 0 | AF134: 0 | AG134: 0 | AH134: 0 | AI134: 0 | AJ134: 0 | AK134: 0 | AL134: 0 | AM134: 0 | AN134: 0 | AO134: 0 | AP134: 0 | AQ134: 0 | AR134: 0 | AS134: 0 | AT134: 0 | AU134: 0 | AV134: 0 | AW134: 0 | AX134: 0 | AY134: 0 | AZ134: 0 | BA134: 0 | BB134: 0 | BC134: 0 | BD134: 0 | BE134: 0 | BF134: 0 | BG134: 0 | BH134: 0 | BI134: 0 | BJ134: 0 | BK134: 0 | BL134: 0 | BM134: 0 | BN134: 0 | BO134: 0 | BP134: 0 | BQ134: 0 | BR134: 0 | BS134: 0 | BT134: 0
B135: 13FP | C135: Water delivered unmeasured non-household | D135: 13BL + 13.1FP | E135: Ml/d | F135: 2 | G135: =G45+G108 -> 0 | H135: 0.07819875031 | I135: 0.09867260901 | J135: 0.104897382 | K135: 0.104543981 | L135: 0.1041905801 | M135: 0.1038371791 | N135: 0.1034837782 | O135: 0.1031303772 | P135: 0.1027769762 | Q135: 0.1024235753 | R135: 0.1014811727 | S135: 0.1005387702 | T135: 0.09959636762 | U135: 0.09865396507 | V135: 0.09771156252 | W135: 0.0970047606 | X135: 0.09629795868 | Y135: 0.09559115677 | Z135: 0.09488435485 | AA135: 0.09417755294 | AB135: 0.09370635166 | AC135: 0.09323515038 | AD135: 0.09276394911 | AE135: 0.09229274783 | AF135: 0.09182154655 | AG135: 0.09135034527 | AH135: 0.090879144 | AI135: 0.09040794272 | AJ135: 0.08993674144 | AK135: 0.0897011408 | AL135: 0.08946554017 | AM135: 0.08922993953 | AN135: 0.08899433889 | AO135: 0.08875873825 | AP135: 0.08852313761 | AQ135: 0.08828753697 | AR135: 0.08805193633 | AS135: 0.0878163357 | AT135: 0.08758073506 | AU135: 0.08734513442 | AV135: 0.08710953378 | AW135: 0.08687393314 | AX135: 0.0866383325 | AY135: 0.08640273186 | AZ135: 0.08616713123 | BA135: 0.08593153059 | BB135: 0.08569592995 | BC135: 0.08546032931 | BD135: 0.08522472867 | BE135: 0.08498912803 | BF135: 0.08475352739 | BG135: 0.08451792676 | BH135: 0.08428232612 | BI135: 0.08404672548 | BJ135: 0.08381112484 | BK135: 0.0835755242 | BL135: 0.08333992356 | BM135: 0.08310432293 | BN135: 0.08286872229 | BO135: 0.08263312165 | BP135: 0.08239752101 | BQ135: 0.08216192037 | BR135: 0.08192631973 | BS135: =BS45+BS108 -> 0.08169071909 | BT135: 0.08145511846
B136: 14FP | C136: Water delivered measured household | D136: 14BL + 14.1FP | E136: Ml/d | F136: 2 | G136: 0 | H136: 1.049191448 | I136: 1.079101183 | J136: 1.100662168 | K136: 1.12512404 | L136: 1.148655732 | M136: 1.163445911 | N136: 1.225505498 | O136: 1.292882449 | P136: 1.363314529 | Q136: 1.43334128 | R136: 1.486598121 | S136: 1.512940823 | T136: 1.533408082 | U136: 1.551038806 | V136: 1.571063736 | W136: 1.582908686 | X136: 1.592539699 | Y136: 1.618690745 | Z136: 1.644746216 | AA136: 1.670583385 | AB136: 1.692414428 | AC136: 1.710287219 | AD136: 1.727837419 | AE136: 1.749159864 | AF136: 1.770606805 | AG136: 1.787935728 | AH136: 1.800617186 | AI136: 1.81304799 | AJ136: 1.825559125 | AK136: 1.837956573 | AL136: 1.824913784 | AM136: 1.835342085 | AN136: 1.84555218 | AO136: 1.855865293 | AP136: 1.866754939 | AQ136: 1.878012154 | AR136: 1.889038319 | AS136: 1.900434597 | AT136: 1.912710964 | AU136: 1.925584075 | AV136: 1.938963625 | AW136: 1.952560645 | AX136: 1.966885221 | AY136: 1.981106952 | AZ136: 1.995154325 | BA136: 2.00921156 | BB136: 2.023277139 | BC136: 2.037328291 | BD136: 2.051228963 | BE136: 2.064734846 | BF136: 2.077969297 | BG136: 2.091067156 | BH136: 2.103864253 | BI136: 2.116317961 | BJ136: 2.128427701 | BK136: 2.140142141 | BL136: 2.151489559 | BM136: 2.162995758 | BN136: 2.174709773 | BO136: 2.186429158 | BP136: 2.197579729 | BQ136: 2.207773199 | BR136: 2.21833619 | BS136: 2.228833 | BT136: 2.239499334
B137: 15FP | C137: Water delivered unmeasured household | D137: 15BL + 15.1FP | E137: Ml/d | F137: 2 | G137: 0 | H137: 2.760273226 | I137: 2.706233658 | J137: 2.615198253 | K137: 2.51870591 | L137: 2.418716144 | M137: 2.315721646 | N137: 2.246234628 | O137: 2.168824159 | P137: 2.092570758 | Q137: 2.017226048 | R137: 1.947062963 | S137: 1.8850513 | T137: 1.827159437 | U137: 1.765256671 | V137: 1.705152828 | W137: 1.656863449 | X137: 1.61150551 | Y137: 1.569709444 | Z137: 1.528681504 | AA137: 1.487992912 | AB137: 1.452085321 | AC137: 1.420770455 | AD137: 1.390114475 | AE137: 1.364736713 | AF137: 1.339584796 | AG137: 1.319855766 | AH137: 1.305915054 | AI137: 1.292035357 | AJ137: 1.278579093 | AK137: 1.265293372 | AL137: 1.253830848 | AM137: 1.244808024 | AN137: 1.235917726 | AO137: 1.227017948 | AP137: 1.218666627 | AQ137: 1.211240891 | AR137: 1.203618367 | AS137: 1.195980038 | AT137: 1.188731511 | AU137: 1.181461049 | AV137: 1.174298985 | AW137: 1.167101232 | AX137: 1.160003306 | AY137: 1.153001548 | AZ137: 1.146093788 | BA137: 1.139434362 | BB137: 1.133014176 | BC137: 1.126667306 | BD137: 1.120265893 | BE137: 1.113719775 | BF137: 1.107097886 | BG137: 1.100538699 | BH137: 1.093873236 | BI137: 1.087288661 | BJ137: 1.080783039 | BK137: 1.074358171 | BL137: 1.068014391 | BM137: 1.061750525 | BN137: 1.055564576 | BO137: 1.049455108 | BP137: 1.044483189 | BQ137: 1.040577717 | BR137: 1.036888765 | BS137: 1.033192641 | BT137: 1.029560918
B138: 16FP | C138: Percentage of consumption driven by climate change | D138: 16BL | E138: % | F138: 1 | G138: =G48 -> 0 | H138: 0 | I138: 0.001163693535 | J138: 0.001547043361 | K138: 0.001999102349 | L138: 0.002400239083 | M138: 0.002139144681 | N138: 0.002323725641 | O138: 0.002579195338 | P138: 0.002790124473 | Q138: 0.00300441658 | R138: 0.003219740176 | S138: 0.003463180347 | T138: 0.003640489583 | U138: 0.003846929546 | V138: 0.004053958683 | W138: 0.004300851847 | X138: 0.004498778084 | Y138: 0.004707722432 | Z138: 0.0049162269 | AA138: 0.005173447029 | AB138: 0.005375659906 | AC138: 0.005576735174 | AD138: 0.005781848221 | AE138: 0.005948142572 | AF138: 0.006115537834 | AG138: 0.00627460691 | AH138: 0.006419010717 | AI138: 0.006565774597 | AJ138: 0.006711509195 | AK138: 0.006857316374 | AL138: 0.007015214169 | AM138: 0.007135294218 | AN138: 0.007253171706 | AO138: 0.007369430049 | AP138: 0.007480511253 | AQ138: 0.00758832735 | AR138: 0.007693755132 | AS138: 0.007798592992 | AT138: 0.007901902954 | AU138: 0.008003413343 | AV138: 0.008102284135 | AW138: 0.008202315351 | AX138: 0.008299734982 | AY138: 0.008396303622 | AZ138: 0.008487110245 | BA138: 0.008573174239 | BB138: 0.008658591464 | BC138: 0.008745854577 | BD138: 0.008537498425 | BE138: 0.008405798301 | BF138: 0.008295358008 | BG138: 0.008208420954 | BH138: 0.008190063298 | BI138: 0.00816588056 | BJ138: 0.008170298817 | BK138: 0.008189678652 | BL138: 0.008210193799 | BM138: 0.008226819926 | BN138: 0.00824477942 | BO138: 0.008238347728 | BP138: 0.008209135086 | BQ138: 0.008173103188 | BR138: 0.008040453969 | BS138: =BS48 -> 0.007943478244 | BT138: 0.007820015278
B139: 17FP | C139: Volume of consumption driven by climate change | D139: 16FP * (12FP + sum(13FP:15FP) - sum (23FP:26FP)) | E139: Ml/d | F139: 2 | G139: =G138*(G133+SUM(G135:G137)-SUM(G145:G148)) -> 0 | H139: =H138*(SUM(H133:H137)-SUM(H145:H148)) -> 0 | I139: =I138*(SUM(I133:I137)-SUM(I145:I148)) -> 0.006663643422 | J139: =J138*(SUM(J133:J137)-SUM(J145:J148)) -> 0.008784180915 | K139: 0.01123854695 | L139: 0.01334652816 | M139: 0.01185399447 | N139: 0.01293980009 | O139: 0.01442754255 | P139: 0.01559977877 | Q139: 0.0167923762 | R139: 0.01795539616 | S139: 0.019203926 | T139: 0.02006310212 | U139: 0.0210424194 | V139: 0.02202468153 | W139: 0.0232224331 | X139: 0.02414429987 | Y139: 0.02520759206 | Z139: 0.02626667811 | AA139: 0.02758113085 | AB139: 0.02860204225 | AC139: 0.02961564433 | AD139: 0.03064847786 | AE139: 0.0315258344 | AF139: 0.03241085398 | AG139: 0.03325955096 | AH139: 0.03403779493 | AI139: 0.03482771035 | AJ139: 0.03561614956 | AK139: 0.03640765301 | AL139: 0.03707524966 | AM139: 0.03772104804 | AN139: 0.03835335463 | AO139: 0.03897770468 | AP139: 0.03958308902 | AQ139: 0.04018136196 | AR139: 0.04076428039 | AS139: 0.041347192 | AT139: 0.04193258786 | AU139: 0.04251381175 | AV139: 0.04308689262 | AW139: 0.0436686931 | AX139: 0.04424454026 | AY139: 0.04481718556 | AZ139: 0.04535951175 | BA139: 0.04587954099 | BB139: 0.04639932086 | BC139: 0.04693085702 | BD139: 0.04587350079 | BE139: 0.04522114588 | BF139: 0.04467860887 | BG139: 0.04426075508 | BH139: 0.0442088122 | BI139: 0.04412305622 | BJ139: 0.04418956899 | BK139: 0.04433458517 | BL139: 0.04448356892 | BM139: 0.04461346816 | BN139: 0.04475303637 | BO139: 0.04476084343 | BP139: 0.04464906477 | BQ139: 0.04450051635 | BR139: 0.04382943668 | BS139: 0.04335069911 | BT139: 0.04272773559
B140: 18FP | C140: Measured Household - PCC | D140: ((14FP - 25FP) * 1,000,000) / (39FP * 1000) | E140: l/h/d | F140: 1 | G140: =(((G136-G147))*1000000)/((G169)*1000) ->  | H140: =(((H136-H147))*1000000)/((H169)*1000) -> 147.5203523 | I140: 145.405218 | J140: 141.236278 | K140: 137.3297584 | L140: 133.7307844 | M140: 130.0842958 | N140: 128.2054912 | O140: 126.3373211 | P140: 124.6564911 | Q140: 123.0203752 | R140: 121.2508458 | S140: 119.6663561 | T140: 118.2923123 | U140: 116.6889998 | V140: 115.1584588 | W140: 113.8227186 | X140: 112.5033543 | Y140: 111.8167226 | Z140: 111.1450778 | AA140: 110.4819749 | AB140: 109.8468692 | AC140: 109.2525006 | AD140: 108.6632477 | AE140: 108.3801472 | AF140: 108.0891501 | AG140: 107.8188187 | AH140: 107.609484 | AI140: 107.3790395 | AJ140: 107.1540387 | AK140: 106.9247339 | AL140: 105.0964898 | AM140: 105.0118984 | AN140: 104.9418978 | AO140: 104.8821754 | AP140: 104.8582612 | AQ140: 104.8537567 | AR140: 104.8618666 | AS140: 104.8729937 | AT140: 104.8968856 | AU140: 104.9315172 | AV140: 104.9814861 | AW140: 105.0195033 | AX140: 105.0744457 | AY140: 105.1300902 | AZ140: 105.2145319 | BA140: 105.3217407 | BB140: 105.4276144 | BC140: 105.5181657 | BD140: 105.5995209 | BE140: 105.6640182 | BF140: 105.7297472 | BG140: 105.7877026 | BH140: 105.8282625 | BI140: 105.8689066 | BJ140: 105.896191 | BK140: 105.9153965 | BL140: 105.9321836 | BM140: 105.951221 | BN140: 105.9707267 | BO140: 105.9995388 | BP140: 106.037075 | BQ140: 106.0819975 | BR140: 106.1519137 | BS140: 106.2144591 | BT140: =(((BT136-BT147))*1000000)/((BT169)*1000) -> 106.2876281
B141: 19FP | C141: Unmeasured Household - PCC | D141: ((15FP - 26FP) * 1,000,000) / (40FP * 1000) | E141: l/h/d | F141: 1 | G141: =(((G137-G148))*1000000)/((G170)*1000) ->  | H141: 153.2147793 | I141: 151.6088804 | J141: 148.4394406 | K141: 145.2378772 | L141: 142.022575 | M141: 138.4576195 | N141: 137.2441846 | O141: 135.7065479 | P141: 134.165197 | Q141: 132.6198681 | R141: 131.1441996 | S141: 129.7038794 | T141: 128.2659977 | U141: 126.4672468 | V141: 124.7311313 | W141: 122.9930483 | X141: 121.2555436 | Y141: 120.4266925 | Z141: 119.6214103 | AA141: 118.8046985 | AB141: 118.0227255 | AC141: 117.2660083 | AD141: 116.5331341 | AE141: 116.2361707 | AF141: 115.9385308 | AG141: 115.6782198 | AH141: 115.4912981 | AI141: 115.2916504 | AJ141: 115.1126585 | AK141: 114.9309097 | AL141: 114.7734143 | AM141: 114.8288988 | AN141: 114.8829771 | AO141: 114.9223853 | AP141: 115.0022509 | AQ141: 115.1616235 | AR141: 115.2906386 | AS141: 115.40756 | AT141: 115.5535987 | AU141: 115.6874111 | AV141: 115.8227583 | AW141: 115.9453345 | AX141: 116.0691947 | AY141: 116.1943117 | AZ141: 116.3206304 | BA141: 116.4482688 | BB141: 116.5773187 | BC141: 116.7077335 | BD141: 116.8252303 | BE141: 116.9195936 | BF141: 116.9975881 | BG141: 117.0746605 | BH141: 117.1319097 | BI141: 117.1895918 | BJ141: 117.2476708 | BK141: 117.3060626 | BL141: 117.3647028 | BM141: 117.4235477 | BN141: 117.4825669 | BO141: 117.5417236 | BP141: 117.6042309 | BQ141: 117.6614045 | BR141: 117.7357351 | BS141: 117.8015274 | BT141: 117.8673239
B142: 20FP | C142: Average Household - PCC | D142: (((14FP - 25FP) + (15FP - 26FP)) * 1,000,000)/ ((39FP + 40FP) * 1,000) | E142: l/h/d | F142: 1 | G142: =(((G136-G147)+(G137-G148))*1000000)/((G169+G170)*1000) ->  | H142: =(((H136-H147)+(H137-H148))*1000000)/((H169+H170)*1000) -> 151.5944448 | I142: 149.7777319 | J142: 146.2202886 | K142: 142.6905235 | L142: 139.2336407 | M142: 135.5348337 | N142: 133.9079738 | O142: 132.0478234 | P142: 130.2468899 | Q142: 128.4584085 | R142: 126.6716648 | S142: 125.0373117 | T142: 123.5180224 | U142: 121.7020537 | V142: 119.9544201 | W142: 118.3389229 | X142: 116.7446087 | Y142: 115.8991328 | Z142: 115.0758994 | AA142: 114.2553394 | AB142: 113.4794243 | AC142: 112.7506633 | AD142: 112.0380846 | AE142: 111.6896834 | AF142: 111.3365512 | AG142: 111.0225872 | AH142: 110.7874625 | AI142: 110.5345829 | AJ142: 110.2932113 | AK142: 110.0481208 | AL142: 108.8310292 | AM142: 108.7668538 | AN142: 108.7112134 | AO142: 108.6561073 | AP142: 108.6382956 | AQ142: 108.6617205 | AR142: 108.6819249 | AS142: 108.6988299 | AT142: 108.7331995 | AU142: 108.7691903 | AV142: 108.8150849 | AW142: 108.8480091 | AX142: 108.8917258 | AY142: 108.9364245 | AZ142: 109.0013825 | BA142: 109.0828541 | BB142: 109.1644279 | BC142: 109.2360535 | BD142: 109.2973225 | BE142: 109.3398857 | BF142: 109.3785032 | BG142: 109.4117747 | BH142: 109.427026 | BI142: 109.4431027 | BJ142: 109.4504236 | BK142: 109.4526819 | BL142: 109.4538095 | BM142: 109.4565211 | BN142: 109.4594856 | BO142: 109.4693179 | BP142: 109.4896036 | BQ142: 109.5172808 | BR142: 109.5680303 | BS142: 109.6112101 | BT142: =(((BT136-BT147)+(BT137-BT148))*1000000)/((BT169+BT170)*1000) -> 109.6622218
B143: 21FP | C143: Water taken unbilled | D143: 21BL + 21.1FP | E143: Ml/d | F143: 2 | G143: =G53+G111 -> 0 | H143: 0.2279750549 | I143: 0.2325722038 | J143: 0.2327086595 | K143: 0.2325974142 | L143: 0.232488455 | M143: 0.2322620226 | N143: 0.2320151964 | O143: 0.2317254865 | P143: 0.2314135066 | Q143: 0.2311453316 | R143: 0.2310309528 | S143: 0.2309471025 | T143: 0.2308621538 | U143: 0.2307743593 | V143: 0.2306852344 | W143: 0.2306033815 | X143: 0.2305222448 | Y143: 0.2304336077 | Z143: 0.2303466717 | AA143: 0.2302592651 | AB143: 0.2301754836 | AC143: 0.2300983576 | AD143: 0.2300249265 | AE143: 0.2299544398 | AF143: 0.2298850082 | AG143: 0.2298220238 | AH143: 0.2297670843 | AI143: 0.2297147237 | AJ143: 0.2296640052 | AK143: 0.2296128065 | AL143: 0.2295844811 | AM143: 0.2295600968 | AN143: 0.2295356185 | AO143: 0.2295085082 | AP143: 0.2294787571 | AQ143: 0.2294483133 | AR143: 0.2294165198 | AS143: 0.2293819702 | AT143: 0.2293453775 | AU143: 0.2293043406 | AV143: 0.2292598844 | AW143: 0.2292131486 | AX143: 0.2291634667 | AY143: 0.2291141632 | AZ143: 0.229062461 | BA143: 0.2290074092 | BB143: 0.2289514573 | BC143: 0.2288968887 | BD143: 0.2288430829 | BE143: 0.2287914172 | BF143: 0.2287397422 | BG143: 0.2286885687 | BH143: 0.2286400297 | BI143: 0.2285927342 | BJ143: 0.2285481365 | BK143: 0.2285059493 | BL143: 0.2284654913 | BM143: 0.2284242548 | BN143: 0.2283822383 | BO143: 0.2283392359 | BP143: 0.2282953562 | BQ143: 0.2282512671 | BR143: 0.2282045498 | BS143: =BS53+BS111 -> 0.228157704 | BT143: 0.2281087365
B144: 22FP | C144: Distribution system operational use | D144: 22BL + 22.1FP | E144: Ml/d | F144: 2 | G144: 0 | H144: 0.01104344092 | I144: 0.01104344092 | J144: 0.01104344092 | K144: 0.01104344092 | L144: 0.01104344092 | M144: 0.01104344092 | N144: 0.01104344092 | O144: 0.01104344092 | P144: 0.01104344092 | Q144: 0.01104344092 | R144: 0.01104344092 | S144: 0.01104344092 | T144: 0.01104344092 | U144: 0.01104344092 | V144: 0.01104344092 | W144: 0.01104344092 | X144: 0.01104344092 | Y144: 0.01104344092 | Z144: 0.01104344092 | AA144: 0.01104344092 | AB144: 0.01104344092 | AC144: 0.01104344092 | AD144: 0.01104344092 | AE144: 0.01104344092 | AF144: 0.01104344092 | AG144: 0.01104344092 | AH144: 0.01104344092 | AI144: 0.01104344092 | AJ144: 0.01104344092 | AK144: 0.01104344092 | AL144: 0.01104344092 | AM144: 0.01104344092 | AN144: 0.01104344092 | AO144: 0.01104344092 | AP144: 0.01104344092 | AQ144: 0.01104344092 | AR144: 0.01104344092 | AS144: 0.01104344092 | AT144: 0.01104344092 | AU144: 0.01104344092 | AV144: 0.01104344092 | AW144: 0.01104344092 | AX144: 0.01104344092 | AY144: 0.01104344092 | AZ144: 0.01104344092 | BA144: 0.01104344092 | BB144: 0.01104344092 | BC144: 0.01104344092 | BD144: 0.01104344092 | BE144: 0.01104344092 | BF144: 0.01104344092 | BG144: 0.01104344092 | BH144: 0.01104344092 | BI144: 0.01104344092 | BJ144: 0.01104344092 | BK144: 0.01104344092 | BL144: 0.01104344092 | BM144: 0.01104344092 | BN144: 0.01104344092 | BO144: 0.01104344092 | BP144: 0.01104344092 | BQ144: 0.01104344092 | BR144: 0.01104344092 | BS144: 0.01104344092 | BT144: 0.01104344092
B145: 23FP | C145: Measured Non Household - USPL | D145: 23BL + 23.1FP | E145: Ml/d | F145: 2 | G145: 0 | H145: 0.009993295052 | I145: 0.01130424932 | J145: 0.01097049605 | K145: 0.01063496121 | L145: 0.01029764478 | M145: 0.01015285988 | N145: 0.01000724358 | O145: 0.009860795865 | P145: 0.009713516751 | Q145: 0.009565406232 | R145: 0.009416464309 | S145: 0.009266690981 | T145: 0.009116086248 | U145: 0.00896465011 | V145: 0.008812382568 | W145: 0.008659283622 | X145: 0.008505353271 | Y145: 0.008350591515 | Z145: 0.008194998354 | AA145: 0.008038573789 | AB145: 0.007881317819 | AC145: 0.007723230445 | AD145: 0.007564311666 | AE145: 0.007404561482 | AF145: 0.007243979894 | AG145: 0.007082566901 | AH145: 0.006920322504 | AI145: 0.006757246702 | AJ145: 0.006593339495 | AK145: 0.006428600884 | AL145: 0.006443447395 | AM145: 0.006458293906 | AN145: 0.006473140417 | AO145: 0.006487986928 | AP145: 0.006502833439 | AQ145: 0.00651767995 | AR145: 0.006532526461 | AS145: 0.006547372972 | AT145: 0.006562219483 | AU145: 0.006577065995 | AV145: 0.006591912506 | AW145: 0.006606759017 | AX145: 0.006621605528 | AY145: 0.006636452039 | AZ145: 0.00665129855 | BA145: 0.006666145061 | BB145: 0.006680991572 | BC145: 0.006695838083 | BD145: 0.006710684594 | BE145: 0.006725531106 | BF145: 0.006740377617 | BG145: 0.006755224128 | BH145: 0.006770070639 | BI145: 0.00678491715 | BJ145: 0.006799763661 | BK145: 0.006814610172 | BL145: 0.006829456683 | BM145: 0.006844303194 | BN145: 0.006859149705 | BO145: 0.006873996216 | BP145: 0.006888842728 | BQ145: 0.006903689239 | BR145: 0.00691853575 | BS145: 0.006933382261 | BT145: 0.006948228772
B146: 24FP | C146: Unmeasured Non Household - USPL | D146: 24BL + 24.1FP | E146: Ml/d | F146: 2 | G146: 0 | H146: 0.002988750312 | I146: 0.00377125964 | J146: 0.004009169991 | K146: 0.003995663033 | L146: 0.003982156076 | M146: 0.003968649118 | N146: 0.00395514216 | O146: 0.003941635202 | P146: 0.003928128244 | Q146: 0.003914621286 | R146: 0.003878602732 | S146: 0.003842584178 | T146: 0.003806565624 | U146: 0.00377054707 | V146: 0.003734528515 | W146: 0.0037075146 | X146: 0.003680500684 | Y146: 0.003653486768 | Z146: 0.003626472853 | AA146: 0.003599458937 | AB146: 0.00358144966 | AC146: 0.003563440383 | AD146: 0.003545431106 | AE146: 0.003527421829 | AF146: 0.003509412552 | AG146: 0.003491403274 | AH146: 0.003473393997 | AI146: 0.00345538472 | AJ146: 0.003437375443 | AK146: 0.003428370805 | AL146: 0.003419366166 | AM146: 0.003410361527 | AN146: 0.003401356889 | AO146: 0.00339235225 | AP146: 0.003383347612 | AQ146: 0.003374342973 | AR146: 0.003365338335 | AS146: 0.003356333696 | AT146: 0.003347329058 | AU146: 0.003338324419 | AV146: 0.00332931978 | AW146: 0.003320315142 | AX146: 0.003311310503 | AY146: 0.003302305865 | AZ146: 0.003293301226 | BA146: 0.003284296588 | BB146: 0.003275291949 | BC146: 0.003266287311 | BD146: 0.003257282672 | BE146: 0.003248278034 | BF146: 0.003239273395 | BG146: 0.003230268756 | BH146: 0.003221264118 | BI146: 0.003212259479 | BJ146: 0.003203254841 | BK146: 0.003194250202 | BL146: 0.003185245564 | BM146: 0.003176240925 | BN146: 0.003167236287 | BO146: 0.003158231648 | BP146: 0.003149227009 | BQ146: 0.003140222371 | BR146: =BR56+BR114 -> 0.003131217732 | BS146: 0.003122213094 | BT146: 0.003113208455
B147: 25FP | C147: Measured Household - USPL | D147: 25BL + 25.1FP | E147: Ml/d | F147: 2 | G147: =G57+G115 -> 0 | H147: 0.05050045065 | I147: 0.05312391333 | J147: 0.05415150782 | K147: 0.05532622627 | L147: 0.05655843395 | M147: 0.05989939152 | N147: 0.06350174905 | O147: 0.06759158699 | P147: 0.07172232341 | Q147: 0.07523863396 | R147: 0.07699955913 | S147: 0.07800172651 | T147: 0.0787303496 | U147: 0.07940173313 | V147: 0.0800003997 | W147: 0.07986339488 | X147: 0.07953364089 | Y147: 0.07963315668 | Z147: 0.07964607692 | AA147: 0.07959064877 | AB147: 0.07923197785 | AC147: 0.07857916266 | AD147: 0.07784707585 | AE147: 0.07704362796 | AF147: 0.07618379802 | AG147: 0.07502524963 | AH147: 0.07357609237 | AI147: 0.07208723301 | AJ147: 0.07056602847 | AK147: 0.06901253225 | AL147: 0.06923837604 | AM147: 0.0694396347 | AN147: 0.06964148048 | AO147: 0.06985974814 | AP147: 0.07009408837 | AQ147: 0.07033275269 | AR147: 0.07057984067 | AS147: 0.07084412781 | AT147: 0.07112116606 | AU147: 0.07142593898 | AV147: 0.07175205385 | AW147: 0.07209240086 | AX147: 0.07245114017 | AY147: 0.07280752824 | AZ147: 0.07317889517 | BA147: 0.0735679666 | BB147: 0.07395945835 | BC147: 0.07434232852 | BD147: 0.07472044932 | BE147: 0.07508522356 | BF147: 0.07544965943 | BG147: 0.07581097469 | BH147: 0.07615585442 | BI147: 0.07649298007 | BJ147: 0.07681327247 | BK147: 0.0771185234 | BL147: 0.07741298575 | BM147: 0.07771231222 | BN147: 0.07801651282 | BO147: 0.0783268726 | BP147: 0.07860573641 | BQ147: 0.07884893524 | BR147: 0.07910855116 | BS147: 0.07936897822 | BT147: 0.07964266286
B148: 26FP | C148: Unmeasured Household - USPL | D148: 26BL + 26.1BL | E148: Ml/d | F148: 2 | G148: 0 | H148: 0.152282383 | I148: 0.1518270469 | J148: 0.1449613096 | K148: 0.1377329359 | L148: 0.1302884229 | M148: 0.1253136747 | N148: 0.1200286692 | O148: 0.1145758512 | P148: 0.1092420455 | Q148: 0.1040263258 | R148: 0.09919499657 | S148: 0.09498811437 | T148: 0.09112361106 | U148: 0.08733863487 | V148: 0.08363478599 | W148: 0.08085265622 | X148: 0.07828520728 | Y148: 0.07511515959 | Z148: 0.07201062772 | AA148: 0.06897161165 | AB148: 0.0662802871 | AC148: 0.06391910146 | AD148: 0.06159947375 | AE148: 0.05931999308 | AF148: 0.05708065944 | AG148: 0.05519475099 | AH148: 0.05363860281 | AI148: 0.05209104849 | AJ148: 0.05055208801 | AK148: 0.04902172137 | AL148: 0.04886825986 | AM148: 0.04871479834 | AN148: 0.04856133683 | AO148: 0.04840787531 | AP148: 0.0482555407 | AQ148: 0.04810320608 | AR148: 0.04795087146 | AS148: 0.04779853685 | AT148: 0.04764620223 | AU148: 0.04749386762 | AV148: 0.047341533 | AW148: 0.04718919839 | AX148: 0.04703686377 | AY148: 0.04688452916 | AZ148: 0.04673219454 | BA148: 0.0465867229 | BB148: 0.04644811422 | BC148: 0.04630950555 | BD148: 0.04617089687 | BE148: 0.0460322882 | BF148: 0.04589480643 | BG148: 0.04575732465 | BH148: 0.04561984288 | BI148: 0.0454823611 | BJ148: 0.04534487933 | BK148: 0.04520739755 | BL148: 0.04506991578 | BM148: 0.04493243401 | BN148: 0.04479495223 | BO148: 0.04465747046 | BP148: 0.04457633367 | BQ148: 0.04455154188 | BR148: 0.04452675008 | BS148: 0.04450195829 | BT148: 0.04447716649
B149: 27FP | C149: Void Properties - USPL | D149: 27BL + 27.1FP | E149: Ml/d | F149: 2 | G149: 0 | H149: 0.01779540323 | I149: 0.01319825433 | J149: 0.01306179869 | K149: 0.01317304397 | L149: 0.01328200313 | M149: 0.01350975587 | N149: 0.01376220721 | O149: 0.01406052666 | P149: 0.01438111607 | Q149: 0.01465790066 | R149: 0.01478182493 | S149: 0.0148731722 | T149: 0.0149626334 | U149: 0.01505494041 | V149: 0.0151485778 | W149: 0.0152330382 | X149: 0.01531464556 | Y149: 0.01540352145 | Z149: 0.0154906962 | AA149: 0.01557834158 | AB149: 0.0156623618 | AC149: 0.01573972653 | AD149: 0.01581339646 | AE149: 0.01588412192 | AF149: 0.0159537922 | AG149: 0.01601701536 | AH149: 0.01607219368 | AI149: 0.01612479296 | AJ149: 0.01617575022 | AK149: 0.01622718768 | AL149: 0.01625575185 | AM149: 0.01628037497 | AN149: 0.016305092 | AO149: 0.01633244104 | AP149: 0.01636243092 | AQ149: 0.01639311347 | AR149: 0.01642514572 | AS149: 0.0164599341 | AT149: 0.01649676549 | AU149: 0.01653804114 | AV149: 0.01658273612 | AW149: 0.01662971071 | AX149: 0.01667963134 | AY149: 0.01672917361 | AZ149: 0.01678111459 | BA149: 0.0168362857 | BB149: 0.01689223762 | BC149: 0.01694680619 | BD149: 0.01700061201 | BE149: 0.01705227775 | BF149: 0.01710395272 | BG149: 0.01715512623 | BH149: 0.01720366523 | BI149: 0.01725096075 | BJ149: 0.01729555845 | BK149: 0.0173377456 | BL149: 0.01737820365 | BM149: 0.01741944016 | BN149: 0.01746145668 | BO149: 0.01750445901 | BP149: 0.01754833872 | BQ149: 0.01759242786 | BR149: 0.01763914517 | BS149: 0.01768599089 | BT149: 0.0177349584
B150: 28FP | C150: Distribution losses | D150: 28BL + 28.1FP | E150: Ml/d | F150: 2 | G150: 0 | H150: 1.468867672 | I150: 1.505830076 | J150: 1.458115318 | K150: 1.41062157 | L150: 1.363290539 | M150: 1.311069669 | N150: 1.287559229 | O150: 1.263684084 | P150: 1.23962759 | Q150: 1.216112072 | R150: 1.194143752 | S150: 1.172343152 | T150: 1.150476434 | U150: 1.128585414 | V150: 1.106685485 | W150: 1.084600512 | X150: 1.062497292 | Y150: 1.040560964 | Z150: 1.018648248 | AA150: 0.9967387253 | AB150: 0.9747802058 | AC150: 0.9527931785 | AD150: 0.9308483912 | AE150: 0.9089385937 | AF150: 0.8870469179 | AG150: 0.8651078138 | AH150: 0.8431384346 | AI150: 0.8212035741 | AJ150: 0.7992949384 | AK150: 0.777401347 | AL150: 0.7521947987 | AM150: 0.7521165366 | AN150: 0.7520375934 | AO150: 0.7519395963 | AP150: 0.751821759 | AQ150: 0.7516989048 | AR150: 0.7515662773 | AS150: 0.7514136946 | AT150: 0.7512463177 | AU150: 0.7510467619 | AV150: 0.7508224447 | AW150: 0.7505816159 | AX150: 0.7503194487 | AY150: 0.7500600111 | AZ150: 0.7497831959 | BA150: 0.7494785831 | BB150: 0.7491639063 | BC150: 0.7488592343 | BD150: 0.7485600745 | BE150: 0.7482764014 | BF150: 0.7479919304 | BG150: 0.7477110815 | BH150: 0.7474493027 | BI150: 0.7471965214 | BJ150: 0.7469632712 | BK150: 0.7467474731 | BL150: 0.7465441926 | BM150: 0.7463352695 | BN150: 0.7461206923 | BO150: 0.7458989701 | BP150: 0.7456515215 | BQ150: 0.7453831834 | BR150: =BR60+BR118 -> 0.7450958001 | BS150: 0.7448074772 | BT150: 0.744503775
B151: 29FP | C151: Total Leakage | D151: sum (23FP:28FP) | E151: Ml/d | F151: 2 | G151: =SUM(G145:G150) -> 0 | H151: =SUM(H145:H150) -> 1.702427954 | I151: 1.7390548 | J151: 1.6852696 | K151: 1.6314844 | L151: 1.5776992 | M151: 1.523914 | N151: 1.49881424 | O151: 1.47371448 | P151: 1.44861472 | Q151: 1.42351496 | R151: 1.3984152 | S151: 1.37331544 | T151: 1.34821568 | U151: 1.32311592 | V151: 1.29801616 | W151: 1.2729164 | X151: 1.24781664 | Y151: 1.22271688 | Z151: 1.19761712 | AA151: 1.17251736 | AB151: 1.1474176 | AC151: 1.12231784 | AD151: 1.09721808 | AE151: 1.07211832 | AF151: 1.04701856 | AG151: 1.0219188 | AH151: 0.99681904 | AI151: 0.97171928 | AJ151: 0.94661952 | AK151: 0.92151976 | AL151: 0.89642 | AM151: 0.89642 | AN151: 0.89642 | AO151: 0.89642 | AP151: 0.89642 | AQ151: 0.89642 | AR151: 0.89642 | AS151: 0.89642 | AT151: 0.89642 | AU151: 0.89642 | AV151: 0.89642 | AW151: 0.89642 | AX151: 0.89642 | AY151: 0.89642 | AZ151: 0.89642 | BA151: 0.89642 | BB151: 0.89642 | BC151: 0.89642 | BD151: 0.89642 | BE151: 0.89642 | BF151: 0.89642 | BG151: 0.89642 | BH151: 0.89642 | BI151: 0.89642 | BJ151: 0.89642 | BK151: 0.89642 | BL151: 0.89642 | BM151: 0.89642 | BN151: 0.89642 | BO151: 0.89642 | BP151: 0.89642 | BQ151: 0.89642 | BR151: 0.89642 | BS151: 0.89642 | BT151: =SUM(BT145:BT150) -> 0.89642
B152: 30FP | C152: Leakage/property | D152: (29FP * 1,000,000) / (36FP * 1,000) | E152: l/prop/d | F152: 2 | G152: =(G151*1000000)/(G166*1000) ->  | H152: =(H151*1000000)/(H166*1000) -> 158.071305 | I152: 159.8376264 | J152: 153.6242791 | K152: 147.6236314 | L152: 141.7876481 | M152: 134.6594339 | N152: 130.0351947 | O152: 125.1320266 | P152: 120.2173806 | Q152: 115.9202568 | R152: 113.0555875 | S152: 110.4609261 | T152: 107.8833548 | U152: 105.3090475 | V152: 102.7514502 | W152: 100.2251035 | X152: 97.73083774 | Y152: 95.2705187 | Z152: 92.84736129 | AA152: 90.44517282 | AB152: 88.07704006 | AC152: 85.74917845 | AD152: 83.46554212 | AE152: 81.2193379 | AF152: 78.9977176 | AG152: 76.80262527 | AH152: 74.64167844 | AI152: 72.5100568 | AJ152: 70.40150304 | AK152: 68.31359446 | AL152: 66.3479772 | AM152: 66.26210525 | AN152: 66.17600992 | AO152: 66.07769111 | AP152: 65.96712459 | AQ152: 65.85367441 | AR152: 65.7342977 | AS152: 65.60250579 | AT152: 65.46175938 | AU152: 65.30108692 | AV152: 65.1254928 | AW152: 64.94042827 | AX152: 64.74303733 | AY152: 64.54854985 | AZ152: 64.34447114 | BA152: 64.12675958 | BB152: 63.90653495 | BC152: 63.69389448 | BD152: 63.48599331 | BE152: 63.28872608 | BF152: 63.0925567 | BG152: 62.89974801 | BH152: 62.71933462 | BI152: 62.54522032 | BJ152: 62.38343736 | BK152: 62.23259726 | BL152: 62.08970241 | BM152: 61.9442275 | BN152: 61.79620693 | BO152: 61.64483517 | BP152: 61.48659773 | BQ152: 61.32432598 | BR152: 61.15226365 | BS152: 60.98064709 | BT152: =(BT151*1000000)/(BT166*1000) -> 60.80149582
B153: 31FP | C153: Measured Non Household - properties | D153: Input | E153: 000's | F153: 2 | H153: 0.789 | I153: 0.8925036902 | J153: 0.8947073805 | K153: 0.8969110707 | L153: 0.899114761 | M153: 0.9013184512 | N153: 0.9035221415 | O153: 0.9057258317 | P153: 0.907929522 | Q153: 0.9101332122 | R153: 0.9123369025 | S153: 0.9145405927 | T153: 0.916744283 | U153: 0.9189479732 | V153: 0.9211516635 | W153: 0.9233553537 | X153: 0.9255590439 | Y153: 0.9277627342 | Z153: 0.9299664244 | AA153: 0.9321701147 | AB153: 0.9343738049 | AC153: 0.9365774952 | AD153: 0.9387811854 | AE153: 0.9409848757 | AF153: 0.9431885659 | AG153: 0.9453922562 | AH153: 0.9475959464 | AI153: 0.9497996367 | AJ153: 0.9520033269 | AK153: 0.9542070172 | AL153: 0.9564107074 | AM153: 0.9586143977 | AN153: 0.9608180879 | AO153: 0.9630217781 | AP153: 0.9652254684 | AQ153: 0.9674291586 | AR153: 0.9696328489 | AS153: 0.9718365391 | AT153: 0.9740402294 | AU153: 0.9762439196 | AV153: 0.9784476099 | AW153: 0.9806513001 | AX153: 0.9828549904 | AY153: 0.9850586806 | AZ153: 0.9872623709 | BA153: 0.9894660611 | BB153: 0.9916697514 | BC153: 0.9938734416 | BD153: 0.9960771318 | BE153: 0.9982808221 | BF153: 1.000484512 | BG153: 1.002688203 | BH153: 1.004891893 | BI153: 1.007095583 | BJ153: 1.009299273 | BK153: 1.011502964 | BL153: 1.013706654 | BM153: 1.015910344 | BN153: 1.018114034 | BO153: 1.020317725 | BP153: 1.022521415 | BQ153: 1.024725105 | BR153: 1.026928795 | BS153: 1.029132486 | BT153: 1.031336176
B154: 32FP | C154: Unmeasured Non Household - properties | D154: Input | E154: 000's | F154: 2 | H154: 0.109 | I154: 0.1375381875 | J154: 0.1462148 | K154: 0.1457222 | L154: 0.1452296 | M154: 0.144737 | N154: 0.1442444 | O154: 0.1437518 | P154: 0.1432592 | Q154: 0.1427666 | R154: 0.141453 | S154: 0.1401394 | T154: 0.1388258 | U154: 0.1375122 | V154: 0.1361986 | W154: 0.1352134 | X154: 0.1342282 | Y154: 0.133243 | Z154: 0.1322578 | AA154: 0.1312726 | AB154: 0.1306158 | AC154: 0.129959 | AD154: 0.1293022 | AE154: 0.1286454 | AF154: 0.1279886 | AG154: 0.1273318 | AH154: 0.126675 | AI154: 0.1260182 | AJ154: 0.1253614 | AK154: 0.125033 | AL154: 0.1247046 | AM154: 0.1243762 | AN154: 0.1240478 | AO154: 0.1237194 | AP154: 0.123391 | AQ154: 0.1230626 | AR154: 0.1227342 | AS154: 0.1224058 | AT154: 0.1220774 | AU154: 0.121749 | AV154: 0.1214206 | AW154: 0.1210922 | AX154: 0.1207638 | AY154: 0.1204354 | AZ154: 0.120107 | BA154: 0.1197786 | BB154: 0.1194502 | BC154: 0.1191218 | BD154: 0.1187934 | BE154: 0.118465 | BF154: 0.1181366 | BG154: 0.1178082 | BH154: 0.1174798 | BI154: 0.1171514 | BJ154: 0.116823 | BK154: 0.1164946 | BL154: 0.1161662 | BM154: 0.1158378 | BN154: 0.1155094 | BO154: 0.115181 | BP154: 0.1148526 | BQ154: 0.1145242 | BR154: 0.1141958 | BS154: 0.1138674 | BT154: 0.113539
B155: 33FP | C155: All void non-households - properties | D155: Input | E155: 000's | F155: 2 | H155: 0.299 | I155: 0.1688497723 | J155: 0.1598611195 | K155: 0.1600416793 | L155: 0.160222239 | M155: 0.1604027988 | N155: 0.1605833585 | O155: 0.1607639183 | P155: 0.160944478 | Q155: 0.1611250378 | R155: 0.1611003475 | S155: 0.1610756573 | T155: 0.161050967 | U155: 0.1610262768 | V155: 0.1610015865 | W155: 0.1610589963 | X155: 0.1611164061 | Y155: 0.1611738158 | Z155: 0.1612312256 | AA155: 0.1612886353 | AB155: 0.1614281451 | AC155: 0.1615676548 | AD155: 0.1617071646 | AE155: 0.1618466743 | AF155: 0.1619861841 | AG155: 0.1621256938 | AH155: 0.1622652036 | AI155: 0.1624047133 | AJ155: 0.1625442231 | AK155: 0.1627658328 | AL155: 0.1629874426 | AM155: 0.1632090523 | AN155: 0.1634306621 | AO155: 0.1636522719 | AP155: 0.1638738816 | AQ155: 0.1640954914 | AR155: 0.1643171011 | AS155: 0.1645387109 | AT155: 0.1647603206 | AU155: 0.1649819304 | AV155: 0.1652035401 | AW155: 0.1654251499 | AX155: 0.1656467596 | AY155: 0.1658683694 | AZ155: 0.1660899791 | BA155: 0.1663115889 | BB155: 0.1665331986 | BC155: 0.1667548084 | BD155: 0.1669764182 | BE155: 0.1671980279 | BF155: 0.1674196377 | BG155: 0.1676412474 | BH155: 0.1678628572 | BI155: 0.1680844669 | BJ155: 0.1683060767 | BK155: 0.1685276864 | BL155: 0.1687492962 | BM155: 0.1689709059 | BN155: 0.1691925157 | BO155: 0.1694141254 | BP155: 0.1696357352 | BQ155: 0.1698573449 | BR155: 0.1700789547 | BS155: 0.1703005645 | BT155: 0.1705221742
B156: 34FP | C156: Measured households - properties (excl. void) | D156: Year before + sum (34.1BL:34.6BL) | E156: 000's | F156: 2 | H156: 3.492 | I156: =H156+SUM(I157:I162) -> 3.654886741 | J156: =I156+SUM(J157:J162) -> 3.817456667 | K156: =J156+SUM(K157:K162) -> 3.991730126 | L156: 4.176008228 | M156: 4.475297867 | N156: 4.810932452 | O156: 5.198631329 | P156: 5.607105685 | Q156: 5.974655161 | R156: 6.195288448 | S156: 6.367002249 | T156: 6.527711835 | U156: 6.691080142 | V156: 6.855630649 | W156: 6.976911348 | X156: 7.088848501 | Y156: 7.233430561 | Z156: 7.376423315 | AA156: 7.519855766 | AB156: 7.645657768 | AC156: 7.753040671 | AD156: 7.85691098 | AE156: 7.958030408 | AF156: 8.05816403 | AG156: 8.137098817 | AH156: 8.193342078 | AI156: 8.247175866 | AJ156: 8.299475578 | AK156: 8.350120773 | AL156: 8.379396473 | AM156: 8.404990228 | AN156: 8.430671723 | AO156: 8.458812178 | AP156: 8.489359155 | AQ156: 8.520553263 | AR156: 8.553008336 | AS156: 8.588038327 | AT156: 8.624977022 | AU156: 8.666067786 | AV156: 8.710353082 | AW156: 8.756768105 | AX156: 8.805935491 | AY156: 8.854749379 | AZ156: 8.905804284 | BA156: 8.959507274 | BB156: 9.013570048 | BC156: 9.066340422 | BD156: 9.118398185 | BE156: 9.168456576 | BF156: 9.218462886 | BG156: 9.268000702 | BH156: 9.315077211 | BI156: 9.360992001 | BJ156: 9.404386337 | BK156: 9.445528595 | BL156: 9.485055443 | BM156: 9.525309569 | BN156: 9.566292422 | BO156: 9.608196268 | BP156: 9.647884701 | BQ156: 9.684733677 | BR156: 9.724038038 | BS156: 9.763462357 | BT156: 9.804868972
B157: 34.1FP | C157: New build properties - properties | D157: Input (new builds in each year) | E157: 000's | F157: 2 | H157: 0.023 | I157: 0.1116495408 | J157: 0.09145474441 | K157: 0.08309014336 | L157: 0.07706533194 | M157: 0.1911186224 | N157: 0.2108523491 | O157: 0.2524490518 | P157: 0.2740765834 | Q157: 0.2315951877 | R157: 0.09156704856 | S157: 0.06573791407 | T157: 0.06680413359 | U157: 0.06956664047 | V157: 0.07079499114 | W157: 0.06983607776 | X157: 0.06907779314 | Y157: 0.06794704398 | Z157: 0.06629569716 | AA157: 0.06675255774 | AB157: 0.06485387816 | AC157: 0.06213575989 | AD157: 0.05848604736 | AE157: 0.05562778086 | AF157: 0.05460349255 | AG157: 0.05310212892 | AH157: 0.05004980278 | AI157: 0.04754627354 | AJ157: 0.04595231178 | AK157: 0.0442332084 | AL157: 0.02202952262 | AM157: 0.01820384672 | AN157: 0.01829501171 | AO157: 0.02084996141 | AP157: 0.02335042555 | AQ157: 0.02402281786 | AR157: 0.02533300645 | AS157: 0.02800844136 | AT157: 0.0299916538 | AU157: 0.03430580537 | AV157: 0.03762504102 | AW157: 0.03983790529 | AX157: 0.04269771058 | AY157: 0.04233041378 | AZ157: 0.04465891185 | BA157: 0.04791036967 | BB157: 0.04878419767 | BC157: 0.04744134671 | BD157: 0.04670091857 | BE157: 0.04462349736 | BF157: 0.04456938396 | BG157: 0.04408260151 | BH157: 0.04152521312 | BI157: 0.04031814422 | BJ157: 0.03769930142 | BK157: 0.03535930889 | BL157: 0.03368083957 | BM157: 0.03443650823 | BN157: 0.0351936817 | BO157: 0.03615062755 | BP157: 0.03795373285 | BQ157: 0.03910843255 | BR157: 0.0416596675 | BS157: 0.04178430852 | BT157: 0.0438439857
B158: 34.2FP | C158: Meter optants - properties | D158: Input (meter optants in each year) | E158: 000's | F158: 2 | H158: 0.047 | I158: 0.060445 | J158: 0.077995 | K158: 0.09852 | L158: 0.11494 | M158: 0.11997 | N158: 0.1375 | O158: 0.15 | P158: 0.15 | Q158: 0.15 | R158: 0.1375 | S158: 0.1125 | T158: 0.1 | U158: 0.1 | V158: 0.1 | W158: 0.056 | X158: 0.04705 | Y158: 0.0821 | Z158: 0.0821 | AA158: 0.0821 | AB158: 0.06568 | AC158: 0.04926 | AD158: 0.04926 | AE158: 0.04926 | AF158: 0.04926 | AG158: 0.028735 | AH158: 0.00821 | AI158: 0.00821 | AJ158: 0.00821 | AK158: 0.00821 | AL158: 0.00821 | AM158: 0.00821 | AN158: 0.00821 | AO158: 0.00821 | AP158: 0.00821 | AQ158: 0.00821 | AR158: 0.00821 | AS158: 0.00821 | AT158: 0.00821 | AU158: 0.00821 | AV158: 0.00821 | AW158: 0.00821 | AX158: 0.00821 | AY158: 0.00821 | AZ158: 0.00821 | BA158: 0.00821 | BB158: 0.00821 | BC158: 0.00821 | BD158: 0.00821 | BE158: 0.00821 | BF158: 0.00821 | BG158: 0.00821 | BH158: 0.00821 | BI158: 0.00821 | BJ158: 0.00821 | BK158: 0.00821 | BL158: 0.00821 | BM158: 0.00821 | BN158: 0.00821 | BO158: 0.00821 | BP158: 0.004105 | BQ158: 0 | BR158: 0 | BS158: 0 | BT158: 0
B159: 34.3FP | C159: Compulsory metering - properties | D159: Input (compulsory meters in each year) | E159: 000's | F159: 2 | H159: 0 | I159: 0 | J159: 0 | K159: 0 | L159: 0 | M159: 0 | N159: 0 | O159: 0 | P159: 0 | Q159: 0 | R159: 0 | S159: 0 | T159: 0 | U159: 0 | V159: 0 | W159: 0 | X159: 0 | Y159: 0 | Z159: 0 | AA159: 0 | AB159: 0 | AC159: 0 | AD159: 0 | AE159: 0 | AF159: 0 | AG159: 0 | AH159: 0 | AI159: 0 | AJ159: 0 | AK159: 0 | AL159: 0 | AM159: 0 | AN159: 0 | AO159: 0 | AP159: 0 | AQ159: 0 | AR159: 0 | AS159: 0 | AT159: 0 | AU159: 0 | AV159: 0 | AW159: 0 | AX159: 0 | AY159: 0 | AZ159: 0 | BA159: 0 | BB159: 0 | BC159: 0 | BD159: 0 | BE159: 0 | BF159: 0 | BG159: 0 | BH159: 0 | BI159: 0 | BJ159: 0 | BK159: 0 | BL159: 0 | BM159: 0 | BN159: 0 | BO159: 0 | BP159: 0 | BQ159: 0 | BR159: 0 | BS159: 0 | BT159: 0
B160: 34.4FP | C160: Metering on change of occupancy - properties | D160: Input (change of occupancy meters in each year) | E160: 000's | F160: 2 | H160: 0 | I160: 0 | J160: 0 | K160: 0 | L160: 0 | M160: 0 | N160: 0 | O160: 0 | P160: 0 | Q160: 0 | R160: 0 | S160: 0 | T160: 0 | U160: 0 | V160: 0 | W160: 0 | X160: 0 | Y160: 0 | Z160: 0 | AA160: 0 | AB160: 0 | AC160: 0 | AD160: 0 | AE160: 0 | AF160: 0 | AG160: 0 | AH160: 0 | AI160: 0 | AJ160: 0 | AK160: 0 | AL160: 0 | AM160: 0 | AN160: 0 | AO160: 0 | AP160: 0 | AQ160: 0 | AR160: 0 | AS160: 0 | AT160: 0 | AU160: 0 | AV160: 0 | AW160: 0 | AX160: 0 | AY160: 0 | AZ160: 0 | BA160: 0 | BB160: 0 | BC160: 0 | BD160: 0 | BE160: 0 | BF160: 0 | BG160: 0 | BH160: 0 | BI160: 0 | BJ160: 0 | BK160: 0 | BL160: 0 | BM160: 0 | BN160: 0 | BO160: 0 | BP160: 0 | BQ160: 0 | BR160: 0 | BS160: 0 | BT160: 0
B161: 34.5FP | C161: Selective metering - properties | D161: Input (selective meters in each year) | E161: 000's | F161: 2 | H161: 0 | I161: 0 | J161: 0 | K161: 0 | L161: 0 | M161: 0.0005 | N161: 0.001 | O161: 0.001 | P161: 0.001 | Q161: 0.001 | R161: 0.001 | S161: 0.001 | T161: 0.001 | U161: 0.001 | V161: 0.001 | W161: 0.001 | X161: 0.001 | Y161: 0.001 | Z161: 0.001 | AA161: 0.001 | AB161: 0.001 | AC161: 0.001 | AD161: 0.001 | AE161: 0.001 | AF161: 0.001 | AG161: 0.001 | AH161: 0.001 | AI161: 0.001 | AJ161: 0.001 | AK161: 0.001 | AL161: 0.001 | AM161: 0.001 | AN161: 0.001 | AO161: 0.001 | AP161: 0.001 | AQ161: 0.001 | AR161: 0.001 | AS161: 0.001 | AT161: 0.001 | AU161: 0.001 | AV161: 0.001 | AW161: 0.001 | AX161: 0.001 | AY161: 0.001 | AZ161: 0.001 | BA161: 0.0005 | BB161: 0 | BC161: 0 | BD161: 0 | BE161: 0 | BF161: 0 | BG161: 0 | BH161: 0 | BI161: 0 | BJ161: 0 | BK161: 0 | BL161: 0 | BM161: 0 | BN161: 0 | BO161: 0 | BP161: 0 | BQ161: 0 | BR161: 0 | BS161: 0 | BT161: 0
B162: 34.6FP | C162: Other changes to existing metering - properties | D162: Input (other changes to meters in each year) | E162: 000's | F162: 2 | H162: 0 | I162: -0.009207800175 | J162: -0.006879818215 | K162: -0.007336683723 | L162: -0.007727230377 | M162: -0.01229898341 | N162: -0.01371776452 | O162: -0.01575017461 | P162: -0.01660222752 | Q162: -0.01504571161 | R162: -0.009433761217 | S162: -0.007524113478 | T162: -0.007094546985 | U162: -0.007198334214 | V162: -0.00724448328 | W162: -0.00555537942 | X162: -0.00519063971 | Y162: -0.006464984066 | Z162: -0.006402943059 | AA162: -0.006420107285 | AB162: -0.005731875518 | AC162: -0.005012857486 | AD162: -0.00487573799 | AE162: -0.004768353078 | AF162: -0.004729870623 | AG162: -0.003902341374 | AH162: -0.00301654255 | AI162: -0.002922485097 | AJ162: -0.002862600043 | AK162: -0.002798013425 | AL162: -0.001963822193 | AM162: -0.001820091763 | AN162: -0.001823516827 | AO162: -0.001919506144 | AP162: -0.002013448442 | AQ162: -0.002038710184 | AR162: -0.002087933895 | AS162: -0.002188449835 | AT162: -0.002262959016 | AU162: -0.002425041449 | AV162: -0.002549744946 | AW162: -0.002632882133 | AX162: -0.002740324858 | AY162: -0.002726525538 | AZ162: -0.00281400708 | BA162: -0.002917379196 | BB162: -0.002931423893 | BC162: -0.002880973058 | BD162: -0.002853155214 | BE162: -0.002775106616 | BF162: -0.002773073578 | BG162: -0.002754785189 | BH162: -0.00265870425 | BI162: -0.002613354739 | BJ162: -0.002514964961 | BK162: -0.002427051573 | BL162: -0.002363991575 | BM162: -0.002392382004 | BN162: -0.002420828969 | BO162: -0.002456781371 | BP162: -0.002370299316 | BQ162: -0.002259456699 | BR162: -0.002355306453 | BS162: -0.002359989209 | BT162: -0.002437371165
B163: 34.7FP | C163: Measured household void properties | D163: Input | E163: 000's | F163: 2 | H163: 0.134 | I163: 0.1426741502 | J163: 0.1490203184 | K163: 0.1558233521 | L163: 0.1630169325 | M163: 0.1747001659 | N163: 0.1878021804 | O163: 0.202936605 | P163: 0.2188820325 | Q163: 0.2332298941 | R163: 0.2418426554 | S163: 0.2485457688 | T163: 0.2548193158 | U163: 0.26119665 | V163: 0.2676201333 | W163: 0.2723545127 | X163: 0.2767241525 | Y163: 0.2823681365 | Z163: 0.2879500796 | AA163: 0.2935491869 | AB163: 0.2984600624 | AC163: 0.3026519199 | AD163: 0.3067066579 | AE163: 0.3106540109 | AF163: 0.3145628816 | AG163: 0.3176442229 | AH163: 0.3198397655 | AI163: 0.3219412506 | AJ163: 0.3239828506 | AK163: 0.325959864 | AL163: 0.3271026862 | AM163: 0.328101778 | AN163: 0.3291042948 | AO163: 0.330202801 | AP163: 0.3313952494 | AQ163: 0.3326129596 | AR163: 0.3338798935 | AS163: 0.3352473433 | AT163: 0.3366893023 | AU163: 0.3382933438 | AV163: 0.3400220887 | AW163: 0.3418339709 | AX163: 0.3437532957 | AY163: 0.3456588213 | AZ163: 0.3476518284 | BA163: 0.3497482075 | BB163: 0.3518586314 | BC163: 0.3539186045 | BD163: 0.3559507597 | BE163: 0.3579048663 | BF163: 0.3598569399 | BG163: 0.3617907251 | BH163: 0.3636284293 | BI163: 0.3654207841 | BJ163: 0.367114749 | BK163: 0.3687208006 | BL163: 0.3702637922 | BM163: 0.3718351742 | BN163: 0.3734350032 | BO163: 0.3750707845 | BP163: 0.3766200839 | BQ163: 0.3780585406 | BR163: 0.379592847 | BS163: 0.3811318362 | BT163: 0.3827482074
B164: 35FP | C164: Unmeasured households - properties (excl. void) | D164: Input | E164: 000's | F164: 2 | H164: 5.731 | I164: 5.713863868 | J164: 5.635329433 | K164: 5.536862401 | L164: 5.42244929 | M164: 5.30274552 | N164: 5.16561187 | O164: 5.016378867 | P164: 4.867185729 | Q164: 4.71799259 | R164: 4.581098132 | S164: 4.468482112 | T164: 4.36800531 | U164: 4.267528509 | V164: 4.167131438 | W164: 4.109544148 | X164: 4.06072827 | Y164: 3.977953752 | Z164: 3.895179234 | AA164: 3.812404715 | AB164: 3.745576275 | AC164: 3.694773644 | AD164: 3.644050743 | AE164: 3.593327841 | AF164: 3.54260494 | AG164: 3.511814637 | AH164: 3.500956931 | AI164: 3.490099225 | AJ164: 3.479241519 | AK164: 3.468383813 | AL164: 3.457526107 | AM164: 3.446668401 | AN164: 3.435810695 | AO164: 3.424952989 | AP164: 3.414175014 | AQ164: 3.403397038 | AR164: 3.392619062 | AS164: 3.381841087 | AT164: 3.371063111 | AU164: 3.360285136 | AV164: 3.34950716 | AW164: 3.338729185 | AX164: 3.327951209 | AY164: 3.317173234 | AZ164: 3.306395258 | BA164: 3.296102851 | BB164: 3.286296013 | BC164: 3.276489175 | BD164: 3.266682337 | BE164: 3.256875499 | BF164: 3.247148392 | BG164: 3.237421284 | BH164: 3.227694176 | BI164: 3.217967069 | BJ164: 3.208239961 | BK164: 3.198512853 | BL164: 3.188785746 | BM164: 3.179058638 | BN164: 3.16933153 | BO164: 3.159604423 | BP164: 3.153863835 | BQ164: 3.152109766 | BR164: 3.150355697 | BS164: 3.148601629 | BT164: 3.14684756
B165: 35.1FP | C165: Unmeasured household void properties | D165: Input | E165: 000's | F165: 2 | H165: 0.216 | I165: 0.1698176324 | J165: 0.1674835671 | K165: 0.1645570993 | L165: 0.1611567097 | M165: 0.1575990801 | N165: 0.1535234297 | O165: 0.1490881831 | P165: 0.1446541213 | Q165: 0.1402200595 | R165: 0.1361515179 | S165: 0.1328045383 | T165: 0.1298183396 | U165: 0.126832141 | V165: 0.123848312 | W165: 0.1221368016 | X165: 0.1206859801 | Y165: 0.1182258982 | Z165: 0.1157658164 | AA165: 0.1133057346 | AB165: 0.1113195746 | AC165: 0.1098097062 | AD165: 0.1083022074 | AE165: 0.1067947086 | AF165: 0.1052872098 | AG165: 0.1043721133 | AH165: 0.1040494193 | AI165: 0.1037267252 | AJ165: 0.1034040312 | AK165: 0.1030813371 | AL165: 0.102758643 | AM165: 0.102435949 | AN165: 0.1021132549 | AO165: 0.1017905609 | AP165: 0.1014702364 | AQ165: 0.101149912 | AR165: 0.1008295875 | AS165: 0.1005092631 | AT165: 0.1001889386 | AU165: 0.09986861418 | AV165: 0.09954828973 | AW165: 0.09922796528 | AX165: 0.09890764083 | AY165: 0.09858731638 | AZ165: 0.09826699194 | BA165: 0.09796109873 | BB165: 0.09766963676 | BC165: 0.09737817479 | BD165: 0.09708671282 | BE165: 0.09679525085 | BF165: 0.09650615849 | BG165: 0.09621706613 | BH165: 0.09592797377 | BI165: 0.09563888141 | BJ165: 0.09534978905 | BK165: 0.09506069669 | BL165: 0.09477160433 | BM165: 0.09448251197 | BN165: 0.09419341961 | BO165: 0.09390432725 | BP165: 0.09373371537 | BQ165: 0.09368158396 | BR165: 0.09362945255 | BS165: 0.09357732114 | BT165: 0.09352518973
B166: 36FP | C166: Total Resource Zone Properties (incl. voids) | D166: sum (31FP:34FP) + 34.7FP + 35BL + 35.1BL | E166: 000's | F166: 2 | G166: =SUM(G153:G156)+G163+G164+G165 -> 0 | H166: =SUM(H153:H156)+H163+H164+H165 -> 10.77 | I166: 10.88013404 | J166: 10.97007329 | K166: 11.05164793 | L166: 11.12719776 | M166: 11.31680088 | N166: 11.52621983 | O166: 11.77727653 | P166: 12.04996077 | Q166: 12.28012255 | R166: 12.369271 | S166: 12.43259032 | T166: 12.49697585 | U166: 12.56412389 | V166: 12.63258238 | W166: 12.70057456 | X166: 12.76789055 | Y166: 12.8341579 | Z166: 12.89877389 | AA166: 12.96384675 | AB166: 13.02743143 | AC166: 13.08838009 | AD166: 13.14576114 | AE166: 13.20028392 | AF166: 13.25378241 | AG166: 13.30577954 | AH166: 13.35472434 | AI166: 13.40116562 | AJ166: 13.44601293 | AK166: 13.48955164 | AL166: 13.51088666 | AM166: 13.52839601 | AN166: 13.54599652 | AO166: 13.56615198 | AP166: 13.58889 | AQ166: 13.61230042 | AR166: 13.63702103 | AS166: 13.66441707 | AT166: 13.69379632 | AU166: 13.72748973 | AV166: 13.76450237 | AW166: 13.80372788 | AX166: 13.84581319 | AY166: 13.8875312 | AZ166: 13.93157771 | BA166: 13.97887568 | BB166: 14.02704748 | BC166: 14.07387643 | BD166: 14.11996494 | BE166: 14.16397604 | BF166: 14.20801513 | BG166: 14.25156743 | BH166: 14.29256234 | BI166: 14.33235018 | BJ166: 14.36951919 | BK166: 14.4043482 | BL166: 14.43749873 | BM166: 14.47140494 | BN166: 14.50606832 | BO166: 14.54168865 | BP166: 14.57911209 | BQ166: 14.61769022 | BR166: 14.65881959 | BS166: 14.70007359 | BT166: =SUM(BT153:BT156)+BT163+BT164+BT165 -> 14.74338728
B167: 37FP | C167: Measured Non Household - Population | D167: Input | E167: 000's | F167: 2 | H167: 0.396069078 | I167: 0.4014848942 | J167: 0.4111724526 | K167: 0.4198598024 | L167: 0.4289029305 | M167: 0.4373422053 | N167: 0.4458468148 | O167: 0.4569605173 | P167: 0.4703203143 | Q167: 0.4846191583 | R167: 0.4986625036 | S167: 0.5117417731 | T167: 0.534468613 | U167: 0.5540162614 | V167: 0.5693100478 | W167: 0.5826600296 | X167: 0.5949734982 | Y167: 0.606228112 | Z167: 0.6173977821 | AA167: 0.6299583555 | AB167: 0.6408586856 | AC167: 0.6524742472 | AD167: 0.6649527016 | AE167: 0.6788847641 | AF167: 0.6939035898 | AG167: 0.7088202401 | AH167: 0.7237301689 | AI167: 0.7381544433 | AJ167: 0.7520996052 | AK167: 0.7657862778 | AL167: 0.7789443217 | AM167: 0.7897314261 | AN167: 0.7989380917 | AO167: 0.8063198434 | AP167: 0.8126426653 | AQ167: 0.8175080508 | AR167: 0.8232989205 | AS167: 0.8267300843 | AT167: 0.8277753505 | AU167: 0.8279500301 | AV167: 0.8284035685 | AW167: 0.8284539565 | AX167: 0.8280638339 | AY167: 0.8293362673 | AZ167: 0.8342852084 | BA167: 0.8420261094 | BB167: 0.8508366285 | BC167: 0.8595881049 | BD167: 0.8686228796 | BE167: 0.8777590434 | BF167: 0.8881471833 | BG167: 0.8989498955 | BH167: 0.909443164 | BI167: 0.920183928 | BJ167: 0.9302314583 | BK167: 0.9400098538 | BL167: 0.9502915061 | BM167: 0.9593633213 | BN167: 0.9664499006 | BO167: 0.9733447964 | BP167: 0.9787465024 | BQ167: 0.9842611149 | BR167: 0.9897579582 | BS167: 0.9948191437 | BT167: 0.9997729864
B168: 38FP | C168: Unmeasured Non Household - Population | D168: Input | E168: 000's | F168: 2 | H168: 0.07538560358 | I168: 0.07641642017 | J168: 0.0782602966 | K168: 0.07991379883 | L168: 0.08163501796 | M168: 0.08324130297 | N168: 0.08486002344 | O168: 0.08697534426 | P168: 0.08951817433 | Q168: 0.09223973743 | R168: 0.09491267031 | S168: 0.09740210631 | T168: 0.1017278077 | U168: 0.1054483992 | V168: 0.1083593342 | W168: 0.1109002961 | X168: 0.1132439738 | Y168: 0.1153861149 | Z168: 0.1175120883 | AA168: 0.1199027985 | AB168: 0.1219775072 | AC168: 0.1241883492 | AD168: 0.1265634293 | AE168: 0.1292151813 | AF168: 0.1320737817 | AG168: 0.1349129346 | AH168: 0.1377508082 | AI168: 0.1404962451 | AJ168: 0.1431504903 | AK168: 0.145755536 | AL168: 0.1482599655 | AM168: 0.1503131235 | AN168: 0.1520654694 | AO168: 0.1534704713 | AP168: 0.1546739224 | AQ168: 0.155599973 | AR168: 0.1567021752 | AS168: 0.157355244 | AT168: 0.1575541942 | AU168: 0.1575874418 | AV168: 0.1576737657 | AW168: 0.1576833563 | AX168: 0.1576091025 | AY168: 0.1578512905 | AZ168: 0.1587932446 | BA168: 0.160266605 | BB168: 0.1619435506 | BC168: 0.1636092584 | BD168: 0.1653288876 | BE168: 0.1670678146 | BF168: 0.1690450358 | BG168: 0.1711011645 | BH168: 0.1730983953 | BI168: 0.1751427331 | BJ168: 0.1770551246 | BK168: 0.1789162905 | BL168: 0.1808732435 | BM168: 0.1825999227 | BN168: 0.1839487431 | BO168: 0.1852610796 | BP168: 0.1862892105 | BQ168: 0.1873388314 | BR168: 0.1883850702 | BS168: 0.1893483884 | BT168: 0.1902912755
B169: 39FP | C169: Measured Household - Population | D169: Input | E169: 000's | F169: 2 | H169: 6.769852305 | I169: 7.055986602 | J169: 7.40964485 | K169: 7.789992693 | L169: 8.16638669 | M169: 8.483318548 | N169: 9.063603583 | O169: 9.698566116 | P169: 10.36121098 | Q169: 11.03965618 | R169: 11.62547405 | S169: 11.99116563 | T169: 12.29731421 | U169: 12.61161785 | V169: 12.94792716 | W169: 13.20514313 | X169: 13.44854176 | Y169: 13.76410927 | Z169: 14.0815965 | AA169: 14.40047336 | AB169: 14.68573899 | AC169: 14.935201 | AD169: 15.18443796 | AE169: 15.42825212 | AF169: 15.67616181 | AG169: 15.88693421 | AH169: 16.0491532 | AI169: 16.21322713 | AJ169: 16.37822632 | AK169: 16.54382457 | AL169: 16.70536676 | AM169: 16.81621299 | AN169: 16.92279954 | AO169: 17.02868517 | AP169: 17.13418505 | AQ169: 17.24000606 | AR169: 17.34146586 | AS169: 17.44577326 | AT169: 17.55619136 | AU169: 17.6701737 | AV169: 17.78610344 | AW169: 17.90589543 | AX169: 18.02944634 | AY169: 18.15179099 | AZ169: 18.26720506 | BA169: 18.37838589 | BB169: 18.48963094 | BC169: 18.60329877 | BD169: 18.7170216 | BE169: 18.82996365 | BF169: 18.93998321 | BG169: 19.05000421 | BH169: 19.16036747 | BI169: 19.26746055 | BJ169: 19.37382647 | BK169: 19.47803328 | BL169: 19.5792865 | BM169: 19.68154237 | BN169: 19.78558915 | BO169: 19.88784393 | BP169: 19.98333124 | BQ169: 20.06866682 | BR169: 20.15251128 | BS169: 20.23701894 | BT169: 20.32086622
B170: 40FP | C170: Unmeasured Household - Population | D170: Input | E170: 000's | F170: 2 | H170: 17.02179682 | I170: 16.84866087 | J170: 16.64137869 | K170: 16.39360903 | L170: 16.11312653 | M170: 15.82006089 | N170: 15.49213881 | O170: 15.13742955 | P170: 14.78273619 | Q170: 14.42619232 | R170: 14.09035223 | S170: 13.80115378 | T170: 13.53465343 | U170: 13.26760943 | V170: 13.00010691 | W170: 12.81382009 | X170: 12.64453779 | Y170: 12.41082233 | Z170: 12.17734244 | AA170: 11.94415135 | AB170: 11.74184911 | AC170: 11.57071322 | AD170: 11.40031984 | AE170: 11.23072717 | AF170: 11.06193194 | AG170: 10.93257673 | AH170: 10.84303729 | AI170: 10.75484916 | AJ170: 10.66804486 | AK170: 10.58263311 | AL170: 10.49862109 | AM170: 10.41630842 | AN170: 10.33535532 | AO170: 10.25570493 | AP170: 10.17728851 | AQ170: 10.10004591 | AR170: 10.02394912 | AS170: 9.948927965 | AT170: 9.874943936 | AU170: 9.801992898 | AV170: 9.730017381 | AW170: 9.658965913 | AX170: 9.588818514 | AY170: 9.519545339 | AZ170: 9.451131668 | BA170: 9.384833719 | BB170: 9.320561445 | BC170: 9.256951252 | BD170: 9.194032773 | BE170: 9.131809769 | BF170: 9.070298765 | BG170: 9.009476257 | BH170: 8.949340925 | BI170: 8.889921735 | BJ170: 8.831204513 | BK170: 8.773210438 | BL170: 8.715946545 | BM170: 8.659405295 | BN170: 8.603571158 | BO170: 8.548433752 | BP170: 8.502303429 | BQ170: 8.465190261 | BR170: 8.42872399 | BS170: 8.392851128 | BT170: 8.357564408
